Workbook

Sheet Sheet1

Sheet Overview_Basin
AX1: Europe | AY1: Atlantic Ocean | AZ1: North Sea | BB1: Rhine | BC1: =VLOOKUP($BB$1,$BB$3:$BC$6081,2,0) -> 110
E2: Choose your Basin | AX2: continent | AY2: ocean | AZ2: sea | BA2: seabasin | BB2: basinname | BC2: BASINID
AX3: South America | AY3: Atlantic Ocean | AZ3: Atlantic Ocean | BA3: Guiana Coast - Amazon Cone | BB3: Amazon | BC3: 1
AX4: Africa | AY4: Mediterranean+Black Sea | AZ4: Mediterranean Sea | BA4: East Mediterranean | BB4: Nile | BC4: 2
E5: Select Continent | AX5: Africa | AY5: Atlantic Ocean | AZ5: Atlantic Ocean | BA5: Angola Basin | BB5: Zaire | BC5: 3
AX6: North America | AY6: Atlantic Ocean | AZ6: Gulf of Mexico | BA6: North Mexican Gulf | BB6: Mississippi | BC6: 4
E7: Select Ocean | AX7: North Asia | AY7: Arctic Ocean | AZ7: Kara Sea | BA7: Kara Sea | BB7: Ob | BC7: 5
AX8: South America | AY8: Atlantic Ocean | AZ8: Atlantic Ocean | BA8: Rio de la Plata Coast | BB8: Parana | BC8: 6
E9: Select Sea | AX9: North Asia | AY9: Arctic Ocean | AZ9: Kara Sea | BA9: Kara Sea | BB9: Yenisei | BC9: 7
AX10: North Asia | AY10: Arctic Ocean | AZ10: Laptev Sea | BA10: Laptev Sea | BB10: Lena | BC10: 8
E11: Select Basin | AX11: Africa | AY11: Atlantic Ocean | AZ11: Atlantic Ocean | BA11: Niger Delta Cone | BB11: Niger | BC11: 9
AX12: Africa | AY12: Atlantic Ocean | AZ12: Atlantic Ocean | BA12: South Canary Basin | BB12: Tamanrasett | BC12: 10
AX13: South Asia | AY13: Pacific Ocean | AZ13: Pacific Ocean | BA13: West Yellow Sea | BB13: Chang Jiang | BC13: 11
E14: General Information | AX14: North Asia | AY14: Pacific Ocean | AZ14: Pacific Ocean | BA14: West Okhotsk Sea | BB14: Amur | BC14: 12
AX15: North America | AY15: Arctic Ocean | AZ15: Beaufort Sea | BA15: Beaufort Sea | BB15: Mackenzie | BC15: 13
D16: Basin Name | F16: ='Calc sheet_basin'!M4 & " ("&BC1&")" -> Rhine (110) | H16: Continent | I16: ='Calc sheet_basin'!M5 -> Europe | K16: Input Data | M16: N | N16: P | AX16: South Asia | AY16: Indian Ocean | AZ16: Indian Ocean | BA16: Bengal Gulf | BB16: Ganges | BC16: 14
H17: Ocean | I17: ='Calc sheet_basin'!M6 -> Atlantic Ocean | AX17: Africa | AY17: Land | AZ17: Land | BA17: Land | BB17: CHARI BOUSSO/ Lake Chad | BC17: 15
H18: Sea | I18: ='Calc sheet_basin'!M7 -> North Sea | K18: Agri | L18: fertilizer application | M18: ='Calc sheet_basin'!Q41 -> 4515.691895 | N18: ='Calc sheet_basin'!AN41 -> 367.6836548 | O18: kg/km2/yr | AX18: Europe | AY18: Land | AZ18: Caspian Sea | BA18: North West Caspian Sea | BB18: Volga | BC18: 16
L19: manure application | M19: ='Calc sheet_basin'!R41 -> 3646.508545 | N19: ='Calc sheet_basin'!AO41 -> 707.6802979 | O19: kg/km2/yr | AX19: Africa | AY19: Indian Ocean | AZ19: Indian Ocean | BA19: Mozambique Coast | BB19: Zambezi | BC19: 17
D20: Area | E20: area | F20: ='Calc sheet_basin'!C41/1000 -> 164.864 | G20: 1000 km2 | L20: removed from agri land via harvest and grazing | M20: ='Calc sheet_basin'!S41 -> 5349.90625 | N20: ='Calc sheet_basin'!AP41 -> 838.3880005 | O20: kg/km2/yr | AX20: Australia | AY20: Land | AZ20: Land | BA20: Land | BB20: GreatArtesian/CopperCR | BC20: 18
E21: percentage land | F21: ='Calc sheet_basin'!E41*100 -> 99.32 | G21: % | L21: biological fixation by agri | M21: ='Calc sheet_basin'!T41 -> 259.6085205 | O21: kg/km2/yr | AX21: South Asia | AY21: Land | AZ21: Land | BA21: Land | BB21: Tarim | BC21: 19
E22: percentage agri land | F22: ='Calc sheet_basin'!W41 -> 45.99118042 | G22: % | L22: deposition on agri lands | M22: ='Calc sheet_basin'!V41 -> 966.6391602 | O22: kg/km2/yr | AX22: South Asia | AY22: Indian Ocean | AZ22: Indian Ocean | BA22: Indus Delta Coast | BB22: Indus | BC22: 20
AX23: North America | AY23: Atlantic Ocean | AZ23: Hudson Bay | BA23: West Hudson Bay | BB23: Nelson | BC23: 21
D24: Population | E24: population | F24: ='Calc sheet_basin'!B45 -> 35277.6732 | G24: 1000 cap | L24: biological fixation by non-agri (natural) systems | M24: ='Calc sheet_basin'!U41 -> 818.7233276 | O24: kg/km2/yr | AX24: North Asia | AY24: Land | AZ24: Land | BA24: Land | BB24: Kerulen | BC24: 22
E25: percentage urban pop | F25: ='Calc sheet_basin'!C45 -> 81.11033266 | G25: % | L25: deposition on non-agri lands | M25: ='Calc sheet_basin'!Y41 -> 1153.690308 | O25: kg/km2/yr | AX25: North Asia | AY25: Land | AZ25: Aral Sea | BA25: Aral Sea | BB25: Syr-Darya | BC25: 23
E26: GDP | F26: ='Calc sheet_basin'!D45 -> 34302.82429 | G26: US$ | AX26: North America | AY26: Atlantic Ocean | AZ26: Atlantic Ocean | BA26: Saint Lawrence Gulf | BB26: SAINT LAWRENCE | BC26: 24
K27: Sewage | L27: fraction of total sewage export as DIN/DIP | M27: ='Calc sheet_basin'!AA41 -> 0.711661577 | O27: - | AX27: South America | AY27: Atlantic Ocean | AZ27: Atlantic Ocean | BA27: Guiana Coast - Amazon Cone | BB27: Orinoco | BC27: 25
L28: fraction of total sewage export as DON/DOP | M28: ='Calc sheet_basin'!AE41 -> 0.1400000006 | N28: ='Calc sheet_basin'!AW41 -> 0.009999999776 | O28: - | AX28: Australia | AY28: Indian Ocean | AZ28: Indian Ocean | BA28: South East Australia Coast | BB28: Murray | BC28: 26
L29: amount of sewage N/P entering surface waters | M29: ='Calc sheet_basin'!AB41 -> 44.8354758 | N29: ='Calc sheet_basin'!AS41 -> 5.501615128 | O29: kg/km2/yr | AX29: South Asia | AY29: Indian Ocean | AZ29: Indian Ocean | BA29: Persian Gulf | BB29: Shatt el Arab | BC29: 27
L30: amount of sewage N/P entering surface waters (DON/DOP) | M30: ='Calc sheet_basin'!AG41 -> 44.8354758 | N30: ='Calc sheet_basin'!AY41 -> 5.501615128 | O30: kg/km2/yr | AX30: Africa | AY30: Atlantic Ocean | AZ30: Atlantic Ocean | BA30: Cape Basin | BB30: Orange | BC30: 28
L31: fraction of anthr. non-point sources of N/P entering as DIN/DIP | M31: ='Calc sheet_basin'!AC41 -> 0.335809499 | N31: ='Calc sheet_basin'!AT41 -> 0.04353576899 | O31: - | AX31: South Asia | AY31: Pacific Ocean | AZ31: Pacific Ocean | BA31: Pohai Gulf | BB31: Huang He | BC31: 29
L32: fraction of anthr. non-point sources of N/P entering as DON/DOP | M32: ='Calc sheet_basin'!AF41 -> 0.003761117114 | N32: ='Calc sheet_basin'!AX41 -> 0.003761117114 | O32: - | AX32: North America | AY32: Pacific Ocean | AZ32: Bering Strait | BA32: Norton Gulf | BB32: Yukon | BC32: 30
L33: fraction of non-anthr. non-point sources of N entering as DIN | M33: ='Calc sheet_basin'!AD41 -> 0.335809499 | O33: - | AX33: Africa | AY33: Atlantic Ocean | AZ33: Atlantic Ocean | BA33: Cape Verde Basin | BB33: Senegal | BC33: 31
AX34: Africa | AY34: Mediterranean+Black Sea | AZ34: Mediterranean Sea | BA34: South Ionian Sea | BB34: Irharhar | BC34: 32
L35: river DIN/DIP retention | M35: ='Calc sheet_basin'!AK41 -> 0.3044067621 | N35: ='Calc sheet_basin'!AU41 -> 0.225358665 | O35: - | AX35: Africa | AY35: Indian Ocean | AZ35: Indian Ocean | BA35: Somali Coast | BB35: Jubba | BC35: 33
L36: river DON/DOP retention | M36: ='Calc sheet_basin'!AL41 -> 0.991590023 | N36: ='Calc sheet_basin'!AV41 -> 0.991590023 | O36: - | AX36: North America | AY36: Pacific Ocean | AZ36: Pacific Ocean | BA36: California Gulf | BB36: Colorado (Ari) | BC36: 34
AX37: North America | AY37: Atlantic Ocean | AZ37: Gulf of Mexico | BA37: West Mexican Gulf | BB37: Rio Grande (US) | BC37: 35
L38: percentage of total suspended solids (TSS) occurring as PN/PP | M38: ='Calc sheet_basin'!AH41*100 -> 45.60635949 | N38: ='Calc sheet_basin'!AZ41*100 -> 19.1477581 | O38: % | AX38: Europe | AY38: Mediterranean+Black Sea | AZ38: Black Sea | BA38: North Black Sea | BB38: Danube | BC38: 36
AX39: South America | AY39: Atlantic Ocean | AZ39: Atlantic Ocean | BA39: Guiana Coast - Amazon Cone | BB39: Tocantins | BC39: 37
AX40: South Asia | AY40: Pacific Ocean | AZ40: Pacific Ocean | BA40: West SouthChina Sea | BB40: Mekong | BC40: 38
AX41: Africa | AY41: Land | AZ41: Land | BA41: Land | BB41: Bode le Depression | BC41: 39
AX42: North America | AY42: Pacific Ocean | AZ42: Pacific Ocean | BA42: South Cascadia Basin | BB42: Columbia | BC42: 40
AX43: Africa | AY43: Mediterranean+Black Sea | AZ43: Mediterranean Sea | BA43: South Ionian Sea | BB43: Araye | BC43: 41
AX44: Africa | AY44: Land | AZ44: Land | BA44: Land | BB44: Okavango | BC44: 42
AX45: North Asia | AY45: Arctic Ocean | AZ45: East Siberian Sea | BA45: East Siberian Sea | BB45: Kolyma | BC45: 43
AX46: South Asia | AY46: Land | AZ46: Aral Sea | BA46: Aral Sea | BB46: Amu-Darya | BC46: 44
AX47: South America | AY47: Atlantic Ocean | AZ47: Atlantic Ocean | BA47: North Brazilian Basin | BB47: Sao Francisco | BC47: 45
AX48: Africa | AY48: Mediterranean+Black Sea | AZ48: Mediterranean Sea | BA48: East Mediterranean | BB48: Qattara | BC48: 46
AX49: Europe | AY49: Mediterranean+Black Sea | AZ49: Black Sea | BA49: North Black Sea | BB49: Dnepr | BC49: 47
AX50: South Asia | AY50: Indian Ocean | AZ50: Indian Ocean | BA50: Persian Gulf | BB50: Dawasir | BC50: 48
AX51: Europe | AY51: Mediterranean+Black Sea | AZ51: Black Sea | BA51: Azov Sea | BB51: Don | BC51: 49
AX52: South America | AY52: Atlantic Ocean | AZ52: Atlantic Ocean | BA52: Pampa Coast | BB52: Colorado (Argentina) | BC52: 50
AX53: Africa | AY53: Indian Ocean | AZ53: Indian Ocean | BA53: Agulhas Basin | BB53: Limpopo | BC53: 51
AX54: South Asia | AY54: Land | AZ54: Land | BA54: Land | BB54: HELMAND/ Farah | BC54: 52
AX55: South Asia | AY55: Indian Ocean | AZ55: Indian Ocean | BA55: South Arabian Coast | BB55: Muqshin | BC55: 53
AX56: South Asia | AY56: Pacific Ocean | AZ56: Pacific Ocean | BA56: North SouthChina Sea | BB56: Zhujiang | BC56: 54
AX57: South Asia | AY57: Indian Ocean | AZ57: Indian Ocean | BA57: Adaman Sea | BB57: Irrawaddy | BC57: 55
AX58: Africa | AY58: Atlantic Ocean | AZ58: Atlantic Ocean | BA58: Guinea Basin | BB58: Volta | BC58: 56
AX59: South Asia | AY59: Land | AZ59: Caspian Sea | BA59: South East Caspian Sea | BB59: GHAASBasin57 | BC59: 57
AX60: North Asia | AY60: Arctic Ocean | AZ60: Laptev Sea | BA60: Laptev Sea | BB60: Khatanga | BC60: 58
AX61: Europe | AY61: Arctic Ocean | AZ61: Barents Sea | BA61: Barents Sea | BB61: Dvina | BC61: 59
AX62: South America | AY62: Atlantic Ocean | AZ62: Atlantic Ocean | BA62: Rio de la Plata Coast | BB62: Urugay | BC62: 60
AX63: North Asia | AY63: Land | AZ63: Land | BA63: Land | BB63: Dzungarian | BC63: 61
AX64: Africa | AY64: Mediterranean+Black Sea | AZ64: Mediterranean Sea | BA64: South Ionian Sea | BB64: GHAASBasin62 | BC64: 62
AX65: North Asia | AY65: Arctic Ocean | AZ65: East Siberian Sea | BA65: East Siberian Sea | BB65: Indigirka | BC65: 63
AX66: South Asia | AY66: Land | AZ66: Land | BA66: Land | BB66: GHAASBasin64 | BC66: 64
AX67: South America | AY67: Atlantic Ocean | AZ67: Atlantic Ocean | BA67: Ceara Abyssal Plain | BB67: Parnaiba | BC67: 65
AX68: Europe | AY68: Arctic Ocean | AZ68: Barents Sea | BA68: Barents Sea | BB68: Pechora | BC68: 66
AX69: South Asia | AY69: Indian Ocean | AZ69: Indian Ocean | BA69: East Deccan Coast | BB69: Godavari | BC69: 67
AX70: North America | AY70: Atlantic Ocean | AZ70: Hudson Bay | BA70: West Hudson Bay | BB70: Churchill (Hudson Bay) | BC70: 68
AX71: North America | AY71: Atlantic Ocean | AZ71: Hudson Bay | BA71: West Hudson Bay | BB71: KAZAN/ Baker | BC71: 69
AX72: North Asia | AY72: Land | AZ72: Caspian Sea | BA72: North East Caspian Sea | BB72: Ural | BC72: 70
AX73: North America | AY73: Arctic Ocean | AZ73: Greenland Sea | BA73: North Greenland Coast | BB73: GHAASBasin71 | BC73: 71
AX74: Europe | AY74: Atlantic Ocean | AZ74: Baltic Sea | BA74: Baltic Sea | BB74: Neva | BC74: 72
AX75: Australia | AY75: Land | AZ75: Land | BA75: Land | BB75: GHAASBasin73 | BC75: 73
AX76: South Asia | AY76: Pacific Ocean | AZ76: Pacific Ocean | BA76: Pohai Gulf | BB76: HUN/ Liao | BC76: 74
AX77: South Asia | AY77: Indian Ocean | AZ77: Indian Ocean | BA77: Adaman Sea | BB77: Salween | BC77: 75
AX78: South Asia | AY78: Land | AZ78: Land | BA78: Land | BB78: Dead Sea | BC78: 76
AX79: South America | AY79: Atlantic Ocean | AZ79: Caribbean Sea | BA79: South Colombia Basin | BB79: Magdalena | BC79: 77
AX80: South Asia | AY80: Indian Ocean | AZ80: Indian Ocean | BA80: East Deccan Coast | BB80: Krishna | BC80: 78
AX81: South America | AY81: Atlantic Ocean | AZ81: Atlantic Ocean | BA81: Pampa Coast | BB81: Salado | BC81: 79
AX82: South Asia | AY82: Land | AZ82: Land | BA82: Land | BB82: GHAASBasin80 | BC82: 80
AX83: South Asia | AY83: Pacific Ocean | AZ83: Pacific Ocean | BA83: Pohai Gulf | BB83: Hai Ho/ Yongding | BC83: 81
AX84: South Asia | AY84: Pacific Ocean | AZ84: Pacific Ocean | BA84: West Yellow Sea | BB84: Huai | BC84: 82
AX85: North America | AY85: Pacific Ocean | AZ85: Pacific Ocean | BA85: North Cascadia Basin | BB85: Fraser | BC85: 83
AX86: South Asia | AY86: Land | AZ86: Land | BA86: Land | BB86: Ruo Dong | BC86: 84
AX87: Africa | AY87: Land | AZ87: Land | BA87: Land | BB87: Lake Rudolf | BC87: 85
AX88: Australia | AY88: Indian Ocean | AZ88: Indian Ocean | BA88: Great Australian Bay | BB88: GHAASBasin86 | BC88: 86
AX89: North Asia | AY89: Pacific Ocean | AZ89: Bering Strait | BA89: Anadyr Gulf | BB89: Anadyr | BC89: 87
AX90: North Asia | AY90: Arctic Ocean | AZ90: Laptev Sea | BA90: Laptev Sea | BB90: Yana | BC90: 88
AX91: North Asia | AY91: Arctic Ocean | AZ91: Laptev Sea | BA91: Laptev Sea | BB91: Olenek | BC91: 89
AX92: North Asia | AY92: Land | AZ92: Land | BA92: Land | BB92: Lake Balkhash | BC92: 90
AX93: South Asia | AY93: Land | AZ93: Caspian Sea | BA93: South West Caspian Sea | BB93: Kura | BC93: 91
AX94: Australia | AY94: Land | AZ94: Land | BA94: Land | BB94: Lake Frome | BC94: 92
AX95: Africa | AY95: Atlantic Ocean | AZ95: Atlantic Ocean | BA95: Sao Tome - Principe Basin | BB95: Ogooue | BC95: 93
AX96: North Asia | AY96: Land | AZ96: Land | BA96: Land | BB96: Ili | BC96: 94
AX97: North America | AY97: Arctic Ocean | AZ97: South Greenland | BA97: East Baffin Bay | BB97: GHAASBasin95 | BC97: 95
AX98: Australia | AY98: Indian Ocean | AZ98: Indian Ocean | BA98: Rowley Shelf | BB98: Taymyr | BC98: 96
AX99: South Asia | AY99: Land | AZ99: Land | BA99: Land | BB99: Qarqan | BC99: 97
AX100: South Asia | AY100: Land | AZ100: Land | BA100: Land | BB100: GHAASBasin98 | BC100: 98
AX101: South America | AY101: Atlantic Ocean | AZ101: Atlantic Ocean | BA101: Pampa Coast | BB101: Negro Arg | BC101: 99
AX102: South America | AY102: Atlantic Ocean | AZ102: Atlantic Ocean | BA102: Patagonia Coast | BB102: Chubut | BC102: 100
AX103: South Asia | AY103: Indian Ocean | AZ103: Indian Ocean | BA103: Persian Gulf | BB103: GHAASBasin101 | BC103: 101
AX104: South Asia | AY104: Indian Ocean | AZ104: Indian Ocean | BA104: Persian Gulf | BB104: GHAASBasin102 | BC104: 102
AX105: Australia | AY105: Indian Ocean | AZ105: Indian Ocean | BA105: Rowley Shelf | BB105: Fitzroy West | BC105: 103
AX106: North America | AY106: Pacific Ocean | AZ106: Pacific Ocean | BA106: Rivera Basin | BB106: Grande de Santiago | BC106: 104
AX107: Africa | AY107: Indian Ocean | AZ107: Indian Ocean | BA107: Zanzibar Coast | BB107: Rufiji | BC107: 105
AX108: Europe | AY108: Atlantic Ocean | AZ108: Baltic Sea | BA108: Baltic Sea | BB108: Wisla | BC108: 106
AX109: North Asia | AY109: Arctic Ocean | AZ109: Kara Sea | BA109: Kara Sea | BB109: Taz | BC109: 107
AX110: South Asia | AY110: Pacific Ocean | AZ110: Pacific Ocean | BA110: North SouthChina Sea | BB110: Hong | BC110: 108
AX111: Australia | AY111: Indian Ocean | AZ111: Indian Ocean | BA111: West Australian Coast | BB111: Swan-Avon | BC111: 109
AX112: Europe | AY112: Atlantic Ocean | AZ112: North Sea | BA112: North Sea | BB112: Rhine | BC112: 110
AX113: North Asia | AY113: Arctic Ocean | AZ113: Kara Sea | BA113: Kara Sea | BB113: Pyasina | BC113: 111
AX114: Africa | AY114: Atlantic Ocean | AZ114: Atlantic Ocean | BA114: Angola Basin | BB114: Cuanza | BC114: 112
AX115: South America | AY115: Land | AZ115: Land | BA115: Land | BB115: ABAUCAN | BC115: 113
AX116: Australia | AY116: Indian Ocean | AZ116: Indian Ocean | BA116: Rowley Shelf | BB116: GHAASBasin114 | BC116: 114
AX117: Australia | AY117: Land | AZ117: Land | BA117: Land | BB117: GHAASBasin115 | BC117: 115
AX118: Africa | AY118: Atlantic Ocean | AZ118: Atlantic Ocean | BA118: North Canary / Madeira Basin | BB118: DRAA | BC118: 116
AX119: South Asia | AY119: Land | AZ119: Land | BA119: Land | BB119: GHAASBasin117 | BC119: 117
AX120: Africa | AY120: Indian Ocean | AZ120: Indian Ocean | BA120: Zanzibar Coast | BB120: Roviuna | BC120: 118
AX121: South America | AY121: Atlantic Ocean | AZ121: Atlantic Ocean | BA121: Guiana Coast - Amazon Cone | BB121: Essequibo | BC121: 119
AX122: North America | AY122: Atlantic Ocean | AZ122: Hudson Strait | BA122: Ungava Basin | BB122: Koksoak | BC122: 120
AX123: Europe | AY123: Atlantic Ocean | AZ123: North Sea | BA123: North Sea | BB123: Elbe | BC123: 121
AX124: Africa | AY124: Land | AZ124: Land | BA124: Land | BB124: GHAASBasin122 | BC124: 122
AX125: North America | AY125: Land | AZ125: Land | BA125: Land | BB125: HUMBOLDT | BC125: 123
AX126: South Asia | AY126: Land | AZ126: Land | BA126: Land | BB126: GHAASBasin124 | BC126: 124
AX127: Africa | AY127: Indian Ocean | AZ127: Indian Ocean | BA127: South Aden Gulf | BB127: GHAASBasin125 | BC127: 125
AX128: South Asia | AY128: Pacific Ocean | AZ128: Pacific Ocean | BA128: West SouthChina Sea | BB128: Chao Phraya | BC128: 126
AX129: South Asia | AY129: Indian Ocean | AZ129: Indian Ocean | BA129: East Deccan Coast | BB129: Mahanadi | BC129: 127
AX130: Australia | AY130: Pacific Ocean | AZ130: Pacific Ocean | BA130: Coral Sea | BB130: Fitzroy East | BC130: 128
AX131: South Asia | AY131: Land | AZ131: Land | BA131: Land | BB131: GHAASBasin129 | BC131: 129
AX132: Africa | AY132: Atlantic Ocean | AZ132: Atlantic Ocean | BA132: South Canary Basin | BB132: GHAASBasin130 | BC132: 130
AX133: Africa | AY133: Atlantic Ocean | AZ133: Atlantic Ocean | BA133: Sao Tome - Principe Basin | BB133: Sanaga | BC133: 131
AX134: North America | AY134: Atlantic Ocean | AZ134: Hudson Bay | BA134: James Bay | BB134: Albany | BC134: 132
AX135: South Asia | AY135: Indian Ocean | AZ135: Indian Ocean | BA135: Indus Delta Coast | BB135: GHAASBasin133 | BC135: 133
AX136: South America | AY136: Land | AZ136: Land | BA136: Land | BB136: GHAASBasin134 | BC136: 134
AX137: North America | AY137: Atlantic Ocean | AZ137: Gulf of Mexico | BA137: North Mexican Gulf | BB137: Brazos | BC137: 135
AX138: North Asia | AY138: Arctic Ocean | AZ138: Kara Sea | BA138: Kara Sea | BB138: Taymyra | BC138: 136
AX139: North America | AY139: Atlantic Ocean | AZ139: Gulf of Mexico | BA139: North Mexican Gulf | BB139: Alabama | BC139: 137
AX140: South Asia | AY140: Indian Ocean | AZ140: Indian Ocean | BA140: Persian Gulf | BB140: GHAASBasin138 | BC140: 138
AX141: North America | AY141: Pacific Ocean | AZ141: Pacific Ocean | BA141: Tehuantepec Basin | BB141: Balsas | BC141: 139
AX142: Australia | AY142: Pacific Ocean | AZ142: Pacific Ocean | BA142: Coral Sea | BB142: Burdekin | BC142: 140
AX143: North America | AY143: Atlantic Ocean | AZ143: Gulf of Mexico | BA143: North Mexican Gulf | BB143: Colorado (Texas) | BC143: 141
AX144: Europe | AY144: Atlantic Ocean | AZ144: Baltic Sea | BA144: Baltic Sea | BB144: Odra | BC144: 142
AX145: Europe | AY145: Atlantic Ocean | AZ145: Atlantic Ocean | BA145: Iberian-Biscay Plains | BB145: Loire | BC145: 143
AX146: Africa | AY146: Indian Ocean | AZ146: Indian Ocean | BA146: Zanzibar Coast | BB146: Galana | BC146: 144
AX147: North America | AY147: Pacific Ocean | AZ147: Pacific Ocean | BA147: East Aleutian Basin | BB147: Kuskowin | BC147: 145
AX148: North America | AY148: Atlantic Ocean | AZ148: Hudson Bay | BA148: James Bay | BB148: Moose | BC148: 146
AX149: South Asia | AY149: Indian Ocean | AZ149: Indian Ocean | BA149: West Deccan Coast | BB149: Narmada | BC149: 147
AX150: South Asia | AY150: Land | AZ150: Land | BA150: Land | BB150: GHAASBasin148 | BC150: 148
AX151: North America | AY151: Atlantic Ocean | AZ151: Atlantic Ocean | BA151: Labrador Coast | BB151: Churchill (Atlantic) | BC151: 149
AX152: Australia | AY152: Indian Ocean | AZ152: Indian Ocean | BA152: South Arafura-Timor Basin | BB152: Flinders | BC152: 150
AX153: North America | AY153: Land | AZ153: Land | BA153: Land | BB153: GHAASBasin151 | BC153: 151
AX154: South Asia | AY154: Mediterranean+Black Sea | AZ154: Black Sea | BA154: South Black Sea | BB154: Kizil Irmak | BC154: 152
AX155: North America | AY155: Pacific Ocean | AZ155: Pacific Ocean | BA155: San Francisco Coast | BB155: San Joaquin | BC155: 153
AX156: North America | AY156: Arctic Ocean | AZ156: Arctic Archipelago | BA156: Canadian Archipelago Basin | BB156: Back | BC156: 154
AX157: Africa | AY157: Indian Ocean | AZ157: Indian Ocean | BA157: Mozambique Coast | BB157: Save | BC157: 155
AX158: Australia | AY158: Indian Ocean | AZ158: Indian Ocean | BA158: South Arafura-Timor Basin | BB158: Roper | BC158: 156
AX159: Australia | AY159: Indian Ocean | AZ159: Indian Ocean | BA159: South Arafura-Timor Basin | BB159: Victoria | BC159: 157
AX160: Australia | AY160: Land | AZ160: Land | BA160: Land | BB160: GHAASBasin158 | BC160: 158
AX161: North America | AY161: Arctic Ocean | AZ161: Baffin Bay | BA161: East Baffin Bay | BB161: GHAASBasin159 | BC161: 159
AX162: Africa | AY162: Land | AZ162: Land | BA162: Land | BB162: GHAASBasin160 | BC162: 160
AX163: Africa | AY163: Atlantic Ocean | AZ163: Atlantic Ocean | BA163: Guinea Basin | BB163: Bandama | BC163: 161
AX164: North America | AY164: Atlantic Ocean | AZ164: Hudson Bay | BA164: West Hudson Bay | BB164: Severn CAN | BC164: 162
AX165: Europe | AY165: Mediterranean+Black Sea | AZ165: Mediterranean Sea | BA165: Adriatic Sea | BB165: Po | BC165: 163
AX166: Australia | AY166: Land | AZ166: Land | BA166: Land | BB166: GHAASBasin164 | BC166: 164
AX167: Europe | AY167: Mediterranean+Black Sea | AZ167: Mediterranean Sea | BA167: Balearic Basin | BB167: Rhone | BC167: 165
AX168: North Asia | AY168: Arctic Ocean | AZ168: Laptev Sea | BA168: Laptev Sea | BB168: Anabar | BC168: 166
AX169: North America | AY169: Atlantic Ocean | AZ169: Hudson Bay | BA169: James Bay | BB169: La Grande | BC169: 167
AX170: Africa | AY170: Indian Ocean | AZ170: Indian Ocean | BA170: Somali Coast | BB170: Tana (Kenya) | BC170: 168
AX171: Australia | AY171: Indian Ocean | AZ171: Indian Ocean | BA171: Great Australian Bay | BB171: GHAASBasin169 | BC171: 169
AX172: Africa | AY172: Atlantic Ocean | AZ172: Atlantic Ocean | BA172: Angola Basin | BB172: Cunene | BC172: 170
AX173: Europe | AY173: Atlantic Ocean | AZ173: Atlantic Ocean | BA173: Iberian-Biscay Plains | BB173: Douro | BC173: 171
AX174: Europe | AY174: Atlantic Ocean | AZ174: Baltic Sea | BA174: Baltic Sea | BB174: Nemanus | BC174: 172
AX175: North America | AY175: Arctic Ocean | AZ175: South Greenland | BA175: East Baffin Bay | BB175: Nordre Stromfjord | BC175: 173
AX176: South Asia | AY176: Land | AZ176: Land | BA176: Land | BB176: GHAASBasin174 | BC176: 174
AX177: Australia | AY177: Indian Ocean | AZ177: Indian Ocean | BA177: South Arafura-Timor Basin | BB177: Ord | BC177: 175
AX178: North America | AY178: Atlantic Ocean | AZ178: Hudson Bay | BA178: West Hudson Bay | BB178: Hayes (Hudson Bay) | BC178: 176
AX179: South America | AY179: Atlantic Ocean | AZ179: Atlantic Ocean | BA179: Ceara Abyssal Plain | BB179: Mearim | BC179: 177
AX180: Australia | AY180: Indian Ocean | AZ180: Indian Ocean | BA180: Great Australian Bay | BB180: GHAASBasin178 | BC180: 178
AX181: North America | AY181: Atlantic Ocean | AZ181: Atlantic Ocean | BA181: Saint Lawrence Gulf | BB181: Saguenay | BC181: 179
AX182: North America | AY182: Atlantic Ocean | AZ182: Gulf of Mexico | BA182: West Mexican Gulf | BB182: Panuco | BC182: 180
AX183: North America | AY183: Arctic Ocean | AZ183: South Greenland | BA183: South West Greenland Coast | BB183: GHAASBasin181 | BC183: 181
AX184: South America | AY184: Atlantic Ocean | AZ184: Atlantic Ocean | BA184: Santos Plateau | BB184: Doce | BC184: 182
AX185: Australia | AY185: Indian Ocean | AZ185: Indian Ocean | BA185: West Australian Coast | BB185: Gasgoyne | BC185: 183
AX186: South America | AY186: Land | AZ186: Land | BA186: Land | BB186: GHAASBasin184 | BC186: 184
AX187: Australia | AY187: Indian Ocean | AZ187: Indian Ocean | BA187: Great Australian Bay | BB187: GHAASBasin185 | BC187: 185
AX188: North Asia | AY188: Land | AZ188: Land | BA188: Land | BB188: Tes-Chem | BC188: 186
AX189: North Asia | AY189: Arctic Ocean | AZ189: Kara Sea | BA189: Kara Sea | BB189: Pur | BC189: 187
AX190: South Asia | AY190: Indian Ocean | AZ190: Red Sea | BA190: East Red Sea | BB190: GHAASBasin188 | BC190: 188
AX191: North Asia | AY191: Land | AZ191: Land | BA191: Land | BB191: GHAASBasin189 | BC191: 189
AX192: North Asia | AY192: Pacific Ocean | AZ192: Pacific Ocean | BA192: East Okhotsk Sea | BB192: Penzhina | BC192: 190
AX193: Australia | AY193: Indian Ocean | AZ193: Indian Ocean | BA193: Rowley Shelf | BB193: Ashburton | BC193: 191
AX194: North Asia | AY194: Land | AZ194: Land | BA194: Land | BB194: GHAASBasin192 | BC194: 192
AX195: Europe | AY195: Atlantic Ocean | AZ195: Baltic Sea | BA195: Baltic Sea | BB195: Daugava | BC195: 193
AX196: North America | AY196: Arctic Ocean | AZ196: Baffin Bay | BA196: East Baffin Bay | BB196: GHAASBasin194 | BC196: 194
AX197: South America | AY197: Atlantic Ocean | AZ197: Atlantic Ocean | BA197: Guiana Coast - Amazon Cone | BB197: CAPIM/ Yaqui | BC197: 195
AX198: Europe | AY198: Mediterranean+Black Sea | AZ198: Mediterranean Sea | BA198: Balearic Basin | BB198: Ebro | BC198: 196
AX199: Africa | AY199: Atlantic Ocean | AZ199: Atlantic Ocean | BA199: Guinea Basin | BB199: Comoe | BC199: 197
AX200: South America | AY200: Atlantic Ocean | AZ200: Atlantic Ocean | BA200: Santos Plateau | BB200: Jacui | BC200: 198
... 925 more rows

Sheet Overview_calc
B2: Output | C2: kg / basin / yr | E2: DIN | F2: PN | G2: DON | H2: DIP | I2: PP | J2: DOP
C3: Default | E3: ='Calc sheet_basin'!C28 -> 102902.9832 | F3: ='Calc sheet_basin'!D28 -> 2916.507605 | G3: ='Calc sheet_basin'!E28 -> 19971.3288 | H3: ='Calc sheet_basin'!F28 -> 732.7327348 | I3: ='Calc sheet_basin'!G28 -> 1224.491118 | J3: ='Calc sheet_basin'!H28 -> 1076.987486
C4: Scenario | E4: ='Calc sheet_basin'!C10 -> 102902.9832 | F4: ='Calc sheet_basin'!D10 -> 2916.507605 | G4: ='Calc sheet_basin'!E10 -> 19971.3288 | H4: ='Calc sheet_basin'!F10 -> 732.7327348 | I4: ='Calc sheet_basin'!G10 -> 1224.491118 | J4: ='Calc sheet_basin'!H10 -> 1076.987486
E6: DIN/DIP | F6: PN/PP | G6: DON/DOP
D7: Nitrogen | E7: =E3 -> 102902.9832 | F7: =F3 -> 2916.507605 | G7: 19971.3288
D8: Phosphorus | E8: =H3 -> 732.7327348 | F8: =I3 -> 1224.491118 | G8: 1076.987486

Sheet Overview_calc2
B2: Output | C2: kg / basin / yr | E2: DIN | F2: PN | G2: DON | H2: DIP | I2: PP | J2: DOP
C3: Default | E3: ='Calc sheet_basin'!C28 -> 102902.9832 | F3: ='Calc sheet_basin'!D28 -> 2916.507605 | G3: ='Calc sheet_basin'!E28 -> 19971.3288 | H3: ='Calc sheet_basin'!F28 -> 732.7327348 | I3: ='Calc sheet_basin'!G28 -> 1224.491118 | J3: ='Calc sheet_basin'!H28 -> 1076.987486
C4: Scenario | E4: ='Calc sheet_basin'!C10 -> 102902.9832 | F4: ='Calc sheet_basin'!D10 -> 2916.507605 | G4: ='Calc sheet_basin'!E10 -> 19971.3288 | H4: ='Calc sheet_basin'!F10 -> 732.7327348 | I4: ='Calc sheet_basin'!G10 -> 1224.491118 | J4: ='Calc sheet_basin'!H10 -> 1076.987486
E6: DIN/DIP | F6: PN/PP | G6: DON/DOP | I6: Total
C7: Nitrogen | D7: Default | E7: =E3 -> 102902.9832 | F7: =F3 -> 2916.507605 | G7: 19971.3288 | I7: =SUM(E7:G7) -> 125790.8196
D8: Scenario | E8: =E4 -> 102902.9832 | F8: =F4 -> 2916.507605 | G8: =G4 -> 19971.3288 | I8: =SUM(E8:G8) -> 125790.8196
C9: Phosphorus | D9: Default | E9: =H3 -> 732.7327348 | F9: 1224.491118 | G9: 1076.987486 | I9: =SUM(E9:G9) -> 3034.211339
D10: Scenario | E10: 732.7327348 | F10: 1224.491118 | G10: 1076.987486 | I10: =SUM(E10:G10) -> 3034.211339
C12: diff | D12: N | E12: =(E8-E7)/E7*100 -> 0 | F12: =(F8-F7)/F7*100 -> 0 | G12: 0 | I12: 0
D13: P | E13: =(E10-E9)/E9*100 -> 0 | F13: =(F10-F9)/F9*100 -> 0 | G13: 0 | I13: 0
I16: =SUM(I7:I10) -> 257650.0619

Sheet Calc sheet_basin
B3: Basin
B4: Value selected | D4: =Overview_Basin!BC1 -> 110 | L4: Basin Name | M4: =Overview_Basin!BB1 -> Rhine
L5: Continent | M5: =Overview_Basin!AX1 -> Europe
L6: Ocean | M6: =Overview_Basin!AY1 -> Atlantic Ocean
B7: Values | L7: Sea | M7: =Overview_Basin!AZ1 -> North Sea
C8: DIN | D8: PN | E8: DON | F8: DIP | G8: PP | H8: DOP | I8: SI
A9: 2000 | B9: Start | C9: =Combine!D9 -> 102902.9832 | D9: =Combine!E9 -> 2916.507605 | E9: =Combine!F9 -> 19971.3288 | F9: =Combine!G9 -> 732.7327348 | G9: =Combine!H9 -> 1224.491118 | H9: =Combine!I9 -> 1076.987486 | I9: =Combine!J9 -> 37330.30803
B10: Scenario | C10: =Combine!D4 -> 102902.9832 | D10: =Combine!E4 -> 2916.507605 | E10: =Combine!F4 -> 19971.3288 | F10: =Combine!G4 -> 732.7327348 | G10: =Combine!H4 -> 1224.491118 | H10: =Combine!I4 -> 1076.987486
A11: 2050 | B11: Start
B12: Scenario
B14: ICEP | C14: Indicator for Coastal Eutrophication Potential
B16: TotN | C16: TotP | D16: SI | E16: check
A17: Start | B17: =SUM(C9:E9) -> 125790.8196 | C17: =SUM(F9:H9) -> 3034.211339 | D17: =I9 -> 37330.30803 | E17: =(IF((B17/(14*16)>C17/31),((C17/31)-(D17/(20*28)))*106*12/365,((B17/(14*16))-(D17/(20*28)))*106*12/365))/1000 -> 0.1087874368
A18: Scenario | B18: =SUM(C10:E10) -> 125790.8196 | C18: =SUM(F10:H10) -> 3034.211339 | D18: =D17 -> 37330.30803 | E18: =(IF((B18/(14*16)>C18/31),((C18/31)-(D18/(20*28)))*106*12/365,((B18/(14*16))-(D18/(20*28)))*106*12/365))/1000 -> 0.1087874368
B21: N/P Ratio
A23: Start | B23: =IF(E17<0,IF(OR(B17<=0,C17<=0),-9999,(B17/14)/(C17/31)),-1) -> -1
A24: Scenario | B24: =IF(E18<0,IF(OR(B18<=0,C18<=0),-9999,(B18/14)/(C18/31)),-1) -> -1
C27: DIN | D27: PN | E27: DON | F27: DIP | G27: PP | H27: DOP
A28: Start | B28: 2000 | C28: =C9 -> 102902.9832 | D28: 2916.507605 | E28: 19971.3288 | F28: 732.7327348 | G28: 1224.491118 | H28: 1076.987486
B29: 2050 | C29: =C11 -> 0 | D29: =D11 -> 0 | E29: =E11 -> 0 | F29: =F11 -> 0 | G29: =G11 -> 0 | H29: =H10 -> 1076.987486
A30: Slider | B30: 2000 | C30: =C10 -> 102902.9832 | D30: =D10 -> 2916.507605 | E30: =E10 -> 19971.3288 | F30: =F10 -> 732.7327348 | G30: =G10 -> 1224.491118 | H30: =H11 -> 0
B31: 2050 | C31: =C12 -> 0 | D31: =D12 -> 0 | E31: =E12 -> 0 | F31: =F12 -> 0 | G31: =G12 -> 0 | H31: =H12 -> 0
A39: Input
A40: basinid | B40: basinname | C40: area | D40: arealand | E40: arealandfr | F40: basinorder | G40: basincellcnt | H40: mouth_lon | I40: mouth_lat | J40: latband | K40: basctr_lat | L40: continent | M40: ocean | N40: sea | O40: seabasin | Q40: c0TNfe | R40: c0TNma | S40: c0TNex | T40: c0TNfxag | U40: c0TNfxna | V40: c0TNdpag | W40: c0agrpct | Y40: c0TNdpna | AA40: c0DINFEpnt | AB40: c0DINTsew | AC40: c0DINFEws | AD40: c0DINFEwsnat | AE40: c0DONFEpnt | AF40: c0DONFEws | AG40: c0DONTsew | AH40: c0PNpct | AI40: c0TSSyld | AK40: c0DINFEriv | AL40: c0DONFEriv | AN40: c0TPfe | AO40: c0TPma | AP40: c0TPex | AR40: c0DIPFEpnt | AS40: c0DIPTsew | AT40: c0DIPFEws | AU40: c0DIPFEriv | AV40: c0DOPFEriv | AW40: c0DOPFEpnt | AX40: c0DOPFEws | AY40: c0DOPTsew | AZ40: c0PPpct | BA40: c0TSSload | BC40: c0DSiload
A41: =D4 -> 110 | B41: =VLOOKUP($A$41,Input!$A$8:$BC$6088,Input!B$6,0) -> Rhine | C41: =VLOOKUP($A$41,Input!$A$8:$BC$6088,Input!C$6,0) -> 164864 | D41: =VLOOKUP($A$41,Input!$A$8:$BC$6088,Input!D$6,0) -> 163750 | E41: =VLOOKUP($A$41,Input!$A$8:$BC$6088,Input!E$6,0) -> 0.9932 | F41: =VLOOKUP($A$41,Input!$A$8:$BC$6088,Input!F$6,0) -> 3 | G41: =VLOOKUP($A$41,Input!$A$8:$BC$6088,Input!G$6,0) -> 82 | H41: =VLOOKUP($A$41,Input!$A$8:$BC$6088,Input!H$6,0) -> 5.75 | I41: =VLOOKUP($A$41,Input!$A$8:$BC$6088,Input!I$6,0) -> 52.75 | J41: =VLOOKUP($A$41,Input!$A$8:$BC$6088,Input!J$6,0) -> 50-66N | K41: =VLOOKUP($A$41,Input!$A$8:$BC$6088,Input!K$6,0) -> 49.31 | L41: =VLOOKUP($A$41,Input!$A$8:$BC$6088,Input!L$6,0) -> Europe | M41: =VLOOKUP($A$41,Input!$A$8:$BC$6088,Input!M$6,0) -> Atlantic Ocean | N41: =VLOOKUP($A$41,Input!$A$8:$BC$6088,Input!N$6,0) -> North Sea | O41: =VLOOKUP($A$41,Input!$A$8:$BC$6088,Input!O$6,0) -> North Sea | Q41: =VLOOKUP($A$41,Input!$A$8:$BC$6088,Input!Q$6,0) -> 4515.691895 | R41: =VLOOKUP($A$41,Input!$A$8:$BC$6088,Input!R$6,0) -> 3646.508545 | S41: =VLOOKUP($A$41,Input!$A$8:$BC$6088,Input!S$6,0) -> 5349.90625 | T41: =VLOOKUP($A$41,Input!$A$8:$BC$6088,Input!T$6,0) -> 259.6085205 | U41: =VLOOKUP($A$41,Input!$A$8:$BC$6088,Input!U$6,0) -> 818.7233276 | V41: =VLOOKUP($A$41,Input!$A$8:$BC$6088,Input!V$6,0) -> 966.6391602 | W41: =VLOOKUP($A$41,Input!$A$8:$BC$6088,Input!W$6,0) -> 45.99118042 | Y41: =VLOOKUP($A$41,Input!$A$8:$BC$6088,Input!Y$6,0) -> 1153.690308 | AA41: =VLOOKUP($A$41,Input!$A$8:$BC$6088,Input!AA$6,0) -> 0.711661577 | AB41: ='Sewage (Calc)'!AE12 -> 44.8354758 | AC41: =VLOOKUP($A$41,Input!$A$8:$BC$6088,Input!AC$6,0) -> 0.335809499 | AD41: =VLOOKUP($A$41,Input!$A$8:$BC$6088,Input!AD$6,0) -> 0.335809499 | AE41: =VLOOKUP($A$41,Input!$A$8:$BC$6088,Input!AE$6,0) -> 0.1400000006 | AF41: =VLOOKUP($A$41,Input!$A$8:$BC$6088,Input!AF$6,0) -> 0.003761117114 | AG41: ='Sewage (Calc)'!AE12 -> 44.8354758 | AH41: =VLOOKUP($A$41,Input!$A$8:$BC$6088,Input!AH$6,0) -> 0.4560635949 | AI41: =VLOOKUP($A$41,Input!$A$8:$BC$6088,Input!AI$6,0) -> 3.878929392 | AK41: =VLOOKUP($A$41,Input!$A$8:$BC$6088,Input!AK$6,0) -> 0.3044067621 | AL41: =VLOOKUP($A$41,Input!$A$8:$BC$6088,Input!AL$6,0) -> 0.991590023 | AN41: =VLOOKUP($A$41,Input!$A$8:$BC$6088,Input!AN$6,0) -> 367.6836548 | AO41: =VLOOKUP($A$41,Input!$A$8:$BC$6088,Input!AO$6,0) -> 707.6802979 | AP41: =VLOOKUP($A$41,Input!$A$8:$BC$6088,Input!AP$6,0) -> 838.3880005 | AR41: =VLOOKUP($A$41,Input!$A$8:$BC$6088,Input!AR$6,0) -> 1 | AS41: ='Sewage (Calc)'!AF12 -> 5.501615128 | AT41: =VLOOKUP($A$41,Input!$A$8:$BC$6088,Input!AT$6,0) -> 0.04353576899 | AU41: =VLOOKUP($A$41,Input!$A$8:$BC$6088,Input!AU$6,0) -> 0.225358665 | AV41: =VLOOKUP($A$41,Input!$A$8:$BC$6088,Input!AV$6,0) -> 0.991590023 | AW41: =VLOOKUP($A$41,Input!$A$8:$BC$6088,Input!AW$6,0) -> 0.009999999776 | AX41: =VLOOKUP($A$41,Input!$A$8:$BC$6088,Input!AX$6,0) -> 0.003761117114 | AY41: ='Sewage (Calc)'!AF12 -> 5.501615128 | AZ41: =VLOOKUP($A$41,Input!$A$8:$BC$6088,Input!AZ$6,0) -> 0.191477581 | BA41: =VLOOKUP($A$41,Input!$A$8:$BC$6088,Input!BA$6,0) -> 639495.8153 | BC41: =VLOOKUP($A$41,Input!$A$8:$BC$6088,Input!BC$6,0) -> 37330.30803
A43: Sewage
A44: basinid | B44: pop_num | C44: pop_urb | D44: pop_gdp | E44: Su_(san_urb) | F44: san_rur | G44: human_N | H44: human_P | I44: Correction_C_(D=C*U*Su) | J44: D_(pop_con) | K44: pop_urb_con | L44: treatm_1_(mechanical) | M44: treatm_2_(biological) | N44: treatm_3_(advanced) | O44: N_removal[1,2,3] | R44: P_removal[1,2,3] | U44: N_retention[1970-2050] | V44: P_retention[1970-2050]
A45: =A41 -> 110 | B45: =VLOOKUP($A$45,Sewage!$A$7:$AH$6087,Sewage!B$3,0) -> 35277.6732 | C45: =VLOOKUP($A$45,Sewage!$A$7:$AH$6087,Sewage!C$3,0) -> 81.11033266 | D45: =VLOOKUP($A$45,Sewage!$A$7:$AH$6087,Sewage!D$3,0) -> 34302.82429 | E45: =VLOOKUP($A$45,Sewage!$A$7:$AH$6087,Sewage!E$3,0) -> 100 | F45: =VLOOKUP($A$45,Sewage!$A$7:$AH$6087,Sewage!F$3,0) -> 100 | G45: =VLOOKUP($A$45,Sewage!$A$7:$AH$6087,Sewage!G$3,0) -> 5.43160174 | H45: =VLOOKUP($A$45,Sewage!$A$7:$AH$6087,Sewage!H$3,0) -> 1.025188656 | I45: =VLOOKUP($A$45,Sewage!$A$7:$AH$6087,Sewage!I$3,0) -> 1.181748563 | J45: =VLOOKUP($A$45,Sewage!$A$7:$AH$6087,Sewage!J$3,0) -> 94.25032172 | K45: =VLOOKUP($A$45,Sewage!$A$7:$AH$6087,Sewage!K$3,0) -> 99.83395868 | L45: =VLOOKUP($A$45,Sewage!$A$7:$AH$6087,Sewage!L$3,0) -> 0.5231121995 | M45: =VLOOKUP($A$45,Sewage!$A$7:$AH$6087,Sewage!M$3,0) -> 11.79569804 | N45: =VLOOKUP($A$45,Sewage!$A$7:$AH$6087,Sewage!N$3,0) -> 80.12972712 | O45: =VLOOKUP($A$45,Sewage!$A$7:$AH$6087,Sewage!O$3,0) -> 10 | P45: =VLOOKUP($A$45,Sewage!$A$7:$AH$6087,Sewage!P$3,0) -> 35 | Q45: =VLOOKUP($A$45,Sewage!$A$7:$AH$6087,Sewage!Q$3,0) -> 80 | R45: =VLOOKUP($A$45,Sewage!$A$7:$AH$6087,Sewage!R$3,0) -> 10 | S45: =VLOOKUP($A$45,Sewage!$A$7:$AH$6087,Sewage!S$3,0) -> 45 | T45: =VLOOKUP($A$45,Sewage!$A$7:$AH$6087,Sewage!T$3,0) -> 90 | U45: =VLOOKUP($A$45,Sewage!$A$7:$AH$6087,Sewage!U$3,0) -> 72.16790902 | V45: =VLOOKUP($A$45,Sewage!$A$7:$AH$6087,Sewage!V$3,0) -> 81.90584172

Sheet Combine
B2: basinid | D2: DIN | E2: PN | F2: DON | G2: DIP | H2: PP | I2: DOP | J2: SI_ori
A3: Scaled
B4: =Calculation!A8 -> 110 | D4: =Calculation!C8 -> 102902.9832 | E4: =Calculation!E8 -> 2916.507605 | F4: =Calculation!D8 -> 19971.3288 | G4: =Calculation!G8 -> 732.7327348 | H4: =Calculation!I8 -> 1224.491118 | I4: =Calculation!H8 -> 1076.987486 | J4: =Calculation!K8 -> 37330.30803
A7: Unscaled
B9: =Calculation!A12 -> 110 | D9: =Calculation!C12 -> 102902.9832 | E9: =Calculation!E12 -> 2916.507605 | F9: =Calculation!D12 -> 19971.3288 | G9: =Calculation!G12 -> 732.7327348 | H9: =Calculation!I12 -> 1224.491118 | I9: =Calculation!H12 -> 1076.987486 | J9: =Calculation!K12 -> 37330.30803

Sheet Sliders
E2: N | F2: Diffuse Sources | J2: c0TNfe | K2: 50 | L2: =(K2-50)*2 -> 0 | M2: =1+L2/100 -> 1 | N2: kg N/km2/yr | O2: fertilizer N application | S2: 39
B3: Set to default | E3: N | J3: c0TNma | K3: 50 | L3: 0 | M3: 1 | N3: kg N/km2/yr | O3: manure N application
E4: N | J4: c0TNex | K4: 50 | L4: 0 | M4: 1 | N4: kg N/km2/yr | O4: N removed from agricultural lands via harvest and grazing
E5: N | J5: c0TNfxag | K5: 50 | L5: 0 | M5: 1 | N5: kg N/km2/yr | O5: biological N fixation by agriculture
E6: N | J6: c0TNfxna | K6: 50 | L6: 0 | M6: 1 | N6: kg N/km2/yr | O6: biological N fixation by non-agricultural (natural) systems
E7: N | J7: c0TNdpag | K7: 50 | L7: 0 | M7: 1 | N7: kg N/km2/yr | O7: N deposition on agricultural lands
E8: N | J8: c0agrpct | K8: 50 | L8: 0 | M8: 1 | N8: % | O8: percent of basin area used as agricultural land
E10: N | F10: Point Sources | J10: c0TNdpna | K10: 50 | L10: 0 | M10: =1+L10/100 -> 1 | N10: kg N/km2/yr | O10: N deposition on non-agricultural lands
E12: N | F12: GNE output | G12: DIN | J12: c0DINFEpnt | K12: 50 | L12: 0 | M12: =1+L12/100 -> 1 | N12: - | O12: fraction of total sewage N export as DIN
D13: Sewage calc | E13: N | G13: DIN | J13: c0DINTsew | K13: 50 | L13: 0 | M13: 1 | N13: kg N/km2/yr | O13: amount of sewage N entering surface waters
E14: N | G14: DIN | J14: c0DINFEws | K14: 50 | L14: 0 | M14: 1 | N14: - | O14: fraction of anthropogenic non-point sources of N entering surface waters as DIN
E15: N | G15: DIN | J15: c0DINFEwsnat | K15: 50 | L15: 0 | M15: 1 | N15: - | O15: fraction of non-anthropogenic non-point sources of N entering surface waters as DIN
E16: N | G16: DON | J16: c0DONFEpnt | K16: 50 | L16: 0 | M16: 1 | N16: - | O16: fraction of total sewage N exported as DON
E17: N | G17: DON | J17: c0DONFEws | K17: 50 | L17: 0 | M17: 1 | N17: - | O17: fraction of anthropogenic non-point sources of N entering surface waters as DON
D18: Sewage calc
E19: N | G19: PN | J19: c0PNpct | K19: 50 | L19: 0 | M19: 1 | N19: % | O19: percentage of total suspended solids (TSS) occurring as PN
E20: N | G20: PN | J20: c0TSSyld | K20: 50 | L20: 0 | M20: 1 | N20: kg/km2/yr | O20: total suspended solid yield
E22: N | G22: DIN | J22: c0DINFEriv | K22: 50 | L22: 0 | M22: =1+L22/100 -> 1 | N22: - | O22: river DIN retention
E23: N | G23: DON | J23: c0DONFEriv | K23: 50 | L23: 0 | M23: =1+L23/100 -> 1 | N23: - | O23: river DON retention
E25: P | F25: Diffuse Sources | J25: c0TPfe | K25: 50 | L25: 0 | M25: =1+L25/100 -> 1 | N25: kg P/km2/yr | O25: fertilizer P application
E26: P | J26: c0TPma | K26: 50 | L26: 0 | M26: =1+L26/100 -> 1 | N26: kg P/km2/yr | O26: manure P application
E27: P | J27: c0TPex | K27: 50 | L27: 0 | M27: =1+L27/100 -> 1 | N27: kg P/km2/yr | O27: P removed from agriculture lands via harvest and grazing
D29: Sewage calc | E29: P | F29: GNE output | G29: DIP | I29: aanpassen | J29: c0DIPTsew | K29: 50 | L29: 0 | M29: =1+L29/100 -> 1 | N29: kg N/km2/yr | O29: amount of sewage P entering surface waters
E30: P | G30: DIP | J30: c0DIPFEpnt | K30: 50 | L30: =(K30-50)*2 -> 0 | M30: =1+L30/100 -> 1 | N30: - | O30: fraction of total sewage P export as DIP
E31: P | G31: DIP | J31: c0DIPFEws | K31: 50 | L31: 0 | M31: 1 | N31: - | O31: fraction of anthropogenic non-point sources of P entering surface waters as DIP
E32: P | G32: DIP | J32: c0DIPFEriv | K32: 50 | L32: 0 | M32: 1 | N32: - | O32: river DIP retention
E33: P | G33: DOP | J33: c0DOPFEriv | K33: 50 | L33: 0 | M33: 1 | N33: - | O33: river DOP retention
E34: P | G34: DOP | J34: c0DOPFEpnt | K34: 50 | L34: 0 | M34: 1 | N34: - | O34: fraction of total sewage P exported as DOP
E35: P | G35: DOP | J35: c0DOPFEws | K35: 50 | L35: 0 | M35: 1 | N35: - | O35: fraction of anthropogenic non-point sources of P entering surface waters as DOP
D36: Sewage calc | K36: 1
E37: P | G37: PP | J37: c0PPpct | K37: 50 | L37: 0 | M37: 1 | N37: % | O37: percentage of total suspended solids (TSS) occurring as PP
E38: P | G38: PP | J38: c0TSSload | K38: 50 | L38: 0 | M38: 1 | N38: kg/basin/yr | O38: total suspended solid load
D40: General | F40: General | K40: 50 | L40: =(K40-50)*2 -> 0 | M40: =1+L40/100 -> 1 | N40: 1000 cap | O40: Population
D41: General | K41: 50 | L41: 0 | M41: 1 | N41: % | O41: Percentage Urban Population
D42: General | K42: 50 | L42: 0 | M42: 1 | N42: US$ | O42: GDP

Sheet Input
A1: Input for the various calculations | AB1: Sewage calc | AG1: Sewage calc | AS1: Sewage calc | AY1: Sewage calc
A2: ='Calc sheet_basin'!D4 -> 110 | B2: =VLOOKUP($A$2,$A$8:$BC$6088,B$6,0) -> Rhine | C2: =VLOOKUP($A$2,$A$8:$BC$6088,C$6,0) -> 164864 | D2: =VLOOKUP($A$2,$A$8:$BC$6088,D$6,0) -> 163750 | E2: =VLOOKUP($A$2,$A$8:$BC$6088,E$6,0) -> 0.9932 | F2: =VLOOKUP($A$2,$A$8:$BC$6088,F$6,0) -> 3
Q3: N | R3: N | S3: N | T3: N | U3: N | V3: N | W3: N | Y3: N | AA3: N | AB3: N | AC3: N | AD3: N | AE3: N | AF3: N | AG3: N | AH3: N | AI3: N | AK3: N | AL3: N | AN3: P | AO3: P | AP3: P | AS3: P | AT3: P | AU3: P | AV3: P | AW3: P | AX3: P | AY3: P | AZ3: P | BA3: P | BC3: SI
B4: General | Q4: Diffuse Sources | Y4: Point Sources | AA4: GNE output | AN4: Diffuse Sources | AS4: GNE output
AA5: DIN | AB5: DIN | AC5: DIN | AD5: DIN | AE5: DON | AF5: DON | AG5: DON | AH5: PN | AI5: PN | AK5: DIN | AL5: DON | AS5: DIP | AT5: DIP | AU5: DIP | AV5: DOP | AW5: DOP | AX5: DOP | AY5: DOP | AZ5: PP | BA5: PP
B6: 2 | C6: 3 | D6: 4 | E6: 5 | F6: 6 | G6: 7 | H6: 8 | I6: 9 | J6: 10 | K6: 11 | L6: 12 | M6: 13 | N6: 14 | O6: 15 | P6: 16 | Q6: 17 | R6: 18 | S6: 19 | T6: 20 | U6: 21 | V6: 22 | W6: 23 | X6: 24 | Y6: 25 | Z6: 26 | AA6: 27 | AB6: 28 | AC6: 29 | AD6: 30 | AE6: 31 | AF6: 32 | AG6: 33 | AH6: 34 | AI6: 35 | AJ6: 36 | AK6: 37 | AL6: 38 | AM6: 39 | AN6: 40 | AO6: 41 | AP6: 42 | AQ6: 43 | AR6: 44 | AS6: 45 | AT6: 46 | AU6: 47 | AV6: 48 | AW6: 49 | AX6: 50 | AY6: 51 | AZ6: 52 | BA6: 53 | BB6: 54 | BC6: 55
A7: basinid | B7: basinname | C7: area | D7: arealand | E7: arealandfr | F7: basinorder | G7: basincellcnt | H7: mouth_lon | I7: mouth_lat | J7: latband | K7: basctr_lat | L7: continent | M7: ocean | N7: sea | O7: seabasin | Q7: c0TNfe | R7: c0TNma | S7: c0TNex | T7: c0TNfxag | U7: c0TNfxna | V7: c0TNdpag | W7: c0agrpct | Y7: c0TNdpna | AA7: c0DINFEpnt | AB7: c0DINTsew | AC7: c0DINFEws | AD7: c0DINFEwsnat | AE7: c0DONFEpnt | AF7: c0DONFEws | AG7: c0DONTsew | AH7: c0PNpct | AI7: c0TSSyld | AK7: c0DINFEriv | AL7: c0DONFEriv | AN7: c0TPfe | AO7: c0TPma | AP7: c0TPex | AR7: c0DIPFEpnt | AS7: c0DIPTsew | AT7: c0DIPFEws | AU7: c0DIPFEriv | AV7: c0DOPFEriv | AW7: c0DOPFEpnt | AX7: c0DOPFEws | AY7: c0DOPTsew | AZ7: c0PPpct | BA7: c0TSSload | BC7: c0DSiload
A8: 1 | B8: Amazon | C8: 5846870 | D8: 5781100 | E8: 0.9888 | F8: 6 | G8: 1916 | H8: -51.75 | I8: -1.25 | J8: 0-10S | K8: -6.77 | L8: South America | M8: Atlantic Ocean | N8: Atlantic Ocean | O8: Guiana Coast - Amazon Cone | Q8: 41.32826614 | R8: 165.4031982 | S8: 137.024765 | T8: 44.211689 | U8: 2189.496338 | V8: 39.57159805 | W8: 8.615002632 | Y8: 434.668457 | AA8: 0.50848341 | AB8: 1.985487579 | AC8: 0.807239473 | AD8: 0.085876547 | AE8: 0.1400000006 | AF8: 0.008653281257 | AG8: 1.985487579 | AH8: 0.3731556745 | AI8: 75.48059482 | AK8: 0.3498495519 | AL8: 0.9997100234 | AN8: 11.73891354 | AO8: 29.20383263 | AP8: 23.09885406 | AR8: 1 | AS8: 0.327954728 | AT8: 0.1464875489 | AU8: 0.9994300604 | AV8: 0.9997100234 | AW8: 0.009999999776 | AX8: 0.008653281257 | AY8: 0.327954728 | AZ8: 0.159353506 | BA8: 441325225.5 | BC8: 19589036.84
A9: 2 | B9: Nile | C9: 3821590 | D9: 3720930 | E9: 0.9737 | F9: 5 | G9: 1283 | H9: 31.25 | I9: 31.25 | J9: 23.5-35N | K9: 12.83 | L9: Africa | M9: Mediterranean+Black Sea | N9: Mediterranean Sea | O9: East Mediterranean | Q9: 163.008316 | R9: 1154.867432 | S9: 766.6860962 | T9: 247.3988647 | U9: 737.0178833 | V9: 291.4572144 | W9: 42.07358551 | Y9: 223.404129 | AA9: 0.48958239 | AB9: 0.3565750197 | AC9: 0.124766275 | AD9: 0.124766275 | AE9: 0.1400000006 | AF9: 0.00146832061 | AG9: 0.3565750197 | AH9: 0.2234620277 | AI9: 1.637540996 | AK9: 0.0009554501157 | AL9: 0.003610014915 | AN9: 16.45689392 | AO9: 195.6005249 | AP9: 126.6875839 | AR9: 1 | AS9: 0.06175618732 | AT9: 0.006902972702 | AU9: 0.0005415021442 | AV9: 0.003610014915 | AW9: 0.009999999776 | AX9: 0.00146832061 | AY9: 0.06175618732 | AZ9: 0.098179288 | BA9: 6258010.295 | BC9: 96697.54048
A10: 3 | B10: Zaire | C10: 3694430 | D10: 3621450 | E10: 0.9802 | F10: 5 | G10: 1203 | H10: 12.75 | I10: -5.75 | J10: 0-10S | K10: -2.63 | L10: Africa | M10: Atlantic Ocean | N10: Atlantic Ocean | O10: Angola Basin | Q10: 1.864907384 | R10: 83.11269379 | S10: 78.24887848 | T10: 83.87410736 | U10: 2182.160645 | V10: 106.1110916 | W10: 15.18743038 | Y10: 629.0767822 | AA10: 0.485466808 | AB10: 0.04934445131 | AC10: 0.453126997 | AD10: 0.048204999 | AE10: 0.1400000006 | AF10: 0.004999625497 | AG10: 0.04934445131 | AH10: 0.4786366911 | AI10: 10.71920269 | AK10: 0.3277125061 | AL10: 0.999819994 | AN10: 0.3241907358 | AO10: 14.50264359 | AP10: 12.89102745 | AR10: 1 | AS10: 0.008379912802 | AT10: 0.07057272643 | AU10: 0.6762782335 | AV10: 0.999819994 | AW10: 0.009999999776 | AX10: 0.004999625497 | AY10: 0.008379912802 | AZ10: 0.201774131 | BA10: 39601344 | BC10: 2910369.174
A11: 4 | B11: Mississippi | C11: 3199170 | D11: 3191160 | E11: 0.9975 | F11: 5 | G11: 1371 | H11: -90.25 | I11: 29.75 | J11: 23.5-35N | K11: 40.43 | L11: North America | M11: Atlantic Ocean | N11: Gulf of Mexico | O11: North Mexican Gulf | Q11: 2582.820068 | R11: 1152.886597 | S11: 1967.179077 | T11: 357.7521667 | U11: 256.7562866 | V11: 818.6405029 | W11: 74.69468689 | Y11: 221.4208679 | AA11: 0.652169943 | AB11: 18.72075806 | AC11: 0.16699025 | AD11: 0.16699025 | AE11: 0.1400000006 | AF11: 0.001936801476 | AG11: 18.72075806 | AH11: 0.3371136034 | AI11: 16.58858516 | AK11: 0.301938504 | AL11: 0.9120699763 | AN11: 405.9146423 | AO11: 234.8931122 | AP11: 366.7669983 | AR11: 1 | AS11: 2.881555237 | AT11: 0.01213721372 | AU11: 0.7596265674 | AV11: 0.9120699763 | AW11: 0.009999999776 | AX11: 0.001936801476 | AY11: 2.881555237 | AZ11: 0.144169173 | BA11: 53069703.99 | BC11: 1550418.669
A12: 5 | B12: Ob | C12: 3022320 | D12: 3009560 | E12: 0.9958 | F12: 5 | G12: 1786 | H12: 69.25 | I12: 66.75 | J12: 66-90N | K12: 56.04 | L12: North Asia | M12: Arctic Ocean | N12: Kara Sea | O12: Kara Sea | Q12: 102.7654343 | R12: 214.1229401 | S12: 264.4511414 | T12: 188.8512878 | U12: 212.6343384 | V12: 165.282959 | W12: 37.23100281 | Y12: 187.621109 | AA12: 0.541034043 | AB12: 4.223006509 | AC12: 0.091579959 | AD12: 0.091579959 | AE12: 0.1400000006 | AF12: 0.001094558509 | AG12: 4.223006509 | AH12: 0.3151221536 | AI12: 10.69459143 | AK12: 0.3416420221 | AL12: 1 | AN12: 14.62012672 | AO12: 40.09932709 | AP12: 45.91439819 | AR12: 1 | AS12: 0.7658645691 | AT12: 0.003760425141 | AU12: 0.9346100092 | AV12: 1 | AW12: 0.009999999776 | AX12: 0.001094558509 | AY12: 0.7658645691 | AZ12: 0.135119409 | BA12: 32322477.58 | BC12: 1019501.588
A13: 6 | B13: Parana | C13: 2660890 | D13: 2650640 | E13: 0.9961 | F13: 5 | G13: 939 | H13: -58.75 | I13: -34.25 | J13: 23.5-35S | K13: -22.86 | L13: South America | M13: Atlantic Ocean | N13: Atlantic Ocean | O13: Rio de la Plata Coast | Q13: 282.2525635 | R13: 1341.028687 | S13: 1321.824707 | T13: 308.7688599 | U13: 873.7565308 | V13: 477.7612 | W13: 59.46619034 | Y13: 302.2454834 | AA13: 0.511120737 | AB13: 4.006475582 | AC13: 0.21210964 | AD13: 0.21210964 | AE13: 0.1400000006 | AF13: 0.002430865308 | AG13: 4.006475582 | AH13: 0.2675186844 | AI13: 12.19808445 | AK13: 0.2383168489 | AL13: 0.9908400178 | AN13: 131.2388 | AO13: 239.5781097 | AP13: 227.358902 | AR13: 1 | AS13: 0.6648753628 | AT13: 0.01909190044 | AU13: 0.1486259848 | AV13: 0.9908400178 | AW13: 0.009999999776 | AX13: 0.002430865308 | AY13: 0.6648753628 | AZ13: 0.116034606 | BA13: 32457760.94 | BC13: 1242731.931
A14: 7 | B14: Yenisei | C14: 2575660 | D14: 2533350 | E14: 0.9836 | F14: 5 | G14: 1627 | H14: 82.25 | I14: 71.25 | J14: 66-90N | K14: 57.81 | L14: North Asia | M14: Arctic Ocean | N14: Kara Sea | O14: Kara Sea | Q14: 7.749625206 | R14: 65.50476074 | S14: 41.39676666 | T14: 68.41236877 | U14: 181.499115 | V14: 28.28373909 | W14: 13.65145206 | Y14: 132.9251404 | AA14: 0.547873735 | AB14: 0.945466449 | AC14: 0.154967189 | AD14: 0.154967189 | AE14: 0.1400000006 | AF14: 0.001804082189 | AG14: 0.945466449 | AH14: 0.3206788306 | AI14: 11.85420473 | AK14: 0.2549359202 | AL14: 0.9962499738 | AN14: 0.7662075162 | AO14: 10.93599319 | AP14: 6.588718891 | AR14: 1 | AS14: 0.1667952871 | AT14: 0.0105134882 | AU14: 0.1784483045 | AV14: 0.9962499738 | AW14: 0.009999999776 | AX14: 0.001804082189 | AY14: 0.1667952871 | AZ14: 0.137452806 | BA14: 30532400.96 | BC14: 949281.5352
A15: 8 | B15: Lena | C15: 2438900 | D15: 2434280 | E15: 0.9981 | F15: 5 | G15: 1651 | H15: 127.25 | I15: 73.25 | J15: 66-90N | K15: 60.76 | L15: North Asia | M15: Arctic Ocean | N15: Laptev Sea | O15: Laptev Sea | Q15: 0 | R15: 0 | S15: 0 | T15: 0 | U15: 219.1893921 | V15: 0 | W15: 0 | Y15: 101.5285568 | AA15: 0.552575171 | AB15: 9.823852621 | AC15: 0.109787941 | AD15: 0.109787941 | AE15: 0.1400000006 | AF15: 0.001300335629 | AG15: 9.823852621 | AH15: 0.2300845493 | AI15: 21.55686509 | AK15: 0.3441949785 | AL15: 0.9850000143 | AN15: 0 | AO15: 0 | AP15: 0 | AR15: 1 | AS15: 1.731573892 | AT15: 0.005373910069 | AU15: 0.9823700786 | AV15: 0.9850000143 | AW15: 0.009999999776 | AX15: 0.001300335629 | AY15: 1.731573892 | AZ15: 0.10075551 | BA15: 52575038.26 | BC15: 883770.2464
A16: 9 | B16: Niger | C16: 2237360 | D16: 2229100 | E16: 0.9963 | F16: 5 | G16: 749 | H16: 6.75 | I16: 4.75 | J16: 0-10N | K16: 14.01 | L16: Africa | M16: Atlantic Ocean | N16: Atlantic Ocean | O16: Niger Delta Cone | Q16: 47.51269531 | R16: 835.413147 | S16: 693.5584717 | T16: 267.4294739 | U16: 836.0836182 | V16: 223.5281677 | W16: 40.40060806 | Y16: 185.0104675 | AA16: 0.48616448 | AB16: 3.937520647 | AC16: 0.15621151 | AD16: 0.15621151 | AE16: 0.1400000006 | AF16: 0.001817841083 | AG16: 3.937520647 | AH16: 0.3365107546 | AI16: 9.971676654 | AK16: 0.317915529 | AL16: 1 | AN16: 10.54890633 | AO16: 142.4415283 | AP16: 112.3681488 | AR16: 1 | AS16: 0.6755332892 | AT16: 0.01067676116 | AU16: 0.5688899755 | AV16: 1 | AW16: 0.009999999776 | AX16: 0.001817841083 | AY16: 0.6755332892 | AZ16: 0.143817428 | BA16: 22310230.48 | BC16: 493220.7525
A17: 10 | B17: Tamanrasett | C17: 1816640 | D17: 1813350 | E17: 0.9982 | F17: 5 | G17: 651 | H17: -16.25 | I17: 20.25 | J17: 10-23.5N | K17: 25.06 | L17: Africa | M17: Atlantic Ocean | N17: Atlantic Ocean | O17: South Canary Basin | Q17: 11.48174667 | R17: 27.30188751 | S17: 21.00405121 | T17: 15.79867268 | U17: 756.2697754 | V17: 7.653855324 | W17: 3.058608294 | Y17: 87.75707245 | AA17: 0.49574694 | AB17: 10.17431297 | AC17: 0 | AD17: 0 | AE17: 0.1400000006 | AF17: 0 | AG17: 10.17431297 | AH17: 0 | AI17: 0 | AK17: 0.2850960195 | AL17: 0.8145599961 | AN17: 2.466773748 | AO17: 4.839379311 | AP17: 3.468436241 | AR17: 1 | AS17: 1.770221623 | AT17: 0 | AU17: 0.8145599961 | AV17: 0.8145599961 | AW17: 0.009999999776 | AX17: 0 | AY17: 1.770221623 | AZ17: 0 | BA17: 0 | BC17: 0
A18: 11 | B18: Chang Jiang | C18: 1792120 | D18: 1770660 | E18: 0.988 | F18: 5 | G18: 672 | H18: 121.75 | I18: 31.25 | J18: 23.5-35N | K18: 30.1 | L18: South Asia | M18: Pacific Ocean | N18: Pacific Ocean | O18: West Yellow Sea | Q18: 3568.148193 | R18: 2069.928467 | S18: 2222.959473 | T18: 503.625885 | U18: 377.6694641 | V18: 1782.0625 | W18: 69.33519745 | Y18: 602.7219238 | AA18: 0.516875029 | AB18: 6.357285304 | AC18: 0.293588221 | AD18: 0.293588221 | AE18: 0.1400000006 | AF18: 0.003310398199 | AG18: 6.357285304 | AH18: 0.06143569792 | AI18: 78.5725178 | AK18: 0.2387401909 | AL18: 0.7790700197 | AN18: 528.9071045 | AO18: 398.5843506 | AP18: 384.4787292 | AR18: 1 | AS18: 1.16797289 | AT18: 0.03449688479 | AU18: 0.4114034772 | AV18: 0.7790700197 | AW18: 0.009999999776 | AX18: 0.003310398199 | AY18: 1.16797289 | AZ18: 0.032601716 | BA18: 140811380.6 | BC18: 1061798.809
A19: 12 | B19: Amur | C19: 1752600 | D19: 1743170 | E19: 0.9946 | F19: 5 | G19: 881 | H19: 140.75 | I19: 53.25 | J19: 50-66N | K19: 49.62 | L19: North Asia | M19: Pacific Ocean | N19: Pacific Ocean | O19: West Okhotsk Sea | Q19: 610.8467407 | R19: 446.0943909 | S19: 523.3139038 | T19: 219.3632355 | U19: 154.9834595 | V19: 230.8667145 | W19: 26.78061104 | Y19: 350.6544495 | AA19: 0.536871195 | AB19: 11.24307028 | AC19: 0.145956367 | AD19: 0.145956367 | AE19: 0.1400000006 | AF19: 0.001704278053 | AG19: 11.24307028 | AH19: 0.328560108 | AI19: 14.5687139 | AK19: 0.3312540054 | AL19: 1 | AN19: 88.40522766 | AO19: 84.12073517 | AP19: 87.7405014 | AR19: 1 | AS19: 2.063660858 | AT19: 0.009364720434 | AU19: 0.8819500208 | AV19: 1 | AW19: 0.009999999776 | AX19: 0.001704278053 | AY19: 2.063660858 | AZ19: 0.140527432 | BA19: 25533127.97 | BC19: 1052298.382
A20: 13 | B20: Mackenzie | C20: 1692900 | D20: 1593740 | E20: 0.9414 | F20: 5 | G20: 1127 | H20: -134.75 | I20: 69.25 | J20: 66-90N | K20: 60.4 | L20: North America | M20: Arctic Ocean | N20: Beaufort Sea | O20: Beaufort Sea | Q20: 11.22499847 | R20: 0.8618937731 | S20: 12.82107639 | T20: 5.177789688 | U20: 275.3157349 | V20: 0.8937858343 | W20: 0.484246552 | Y20: 69.72473145 | AA20: 0.635131299 | AB20: 0.0988450886 | AC20: 0.11197044 | AD20: 0.11197044 | AE20: 0.1400000006 | AF20: 0.001324880635 | AG20: 0.0988450886 | AH20: 0.1950453419 | AI20: 25.82640313 | AK20: 0.3331106603 | AL20: 0.9855999947 | AN20: 1.939848781 | AO20: 0.1472254694 | AP20: 2.242193937 | AR20: 1 | AS20: 0.01593041182 | AT20: 0.005585535895 | AU20: 0.9284056425 | AV20: 0.9855999947 | AW20: 0.009999999776 | AX20: 0.001324880635 | AY20: 0.01593041182 | AZ20: 0.086540691 | BA20: 43721517.86 | BC20: 749981.5076
A21: 14 | B21: Ganges | C21: 1626470 | D21: 1617760 | E21: 0.9946 | F21: 5 | G21: 592 | H21: 90.75 | I21: 22.75 | J21: 10-23.5N | K21: 27.03 | L21: South Asia | M21: Indian Ocean | N21: Indian Ocean | O21: Bengal Gulf | Q21: 3303.362549 | R21: 2681.949219 | S21: 2144.699951 | T21: 745.1351318 | U21: 507.2414551 | V21: 1218.719116 | W21: 63.92063904 | Y21: 519.7181396 | AA21: 0.516821325 | AB21: 14.83201845 | AC21: 0.586538434 | AD21: 0.586538434 | AE21: 0.1400000006 | AF21: 0.006388666108 | AG21: 14.83201845 | AH21: 0.04046770002 | AI21: 2025.600744 | AK21: 0.2412993163 | AL21: 0.6919800043 | AN21: 527.0112305 | AO21: 554.8574829 | AP21: 372.7944641 | AR21: 1 | AS21: 2.660600212 | AT21: 0.1015523598 | AU21: 0.6868524551 | AV21: 0.6919800043 | AW21: 0.009999999776 | AX21: 0.006388666108 | AY21: 2.660600212 | AZ21: 0.024170488 | BA21: 3294578842 | BC21: 3194610.964
A22: 15 | B22: CHARI BOUSSO/ Lake Chad | C22: 1545750 | D22: 1518230 | E22: 0.9822 | F22: 5 | G22: 515 | H22: 14.25 | I22: 12.25 | J22: 10-23.5N | K22: 12.97 | L22: Africa | M22: Land | N22: Land | O22: Land | Q22: 28.3197155 | R22: 638.7689209 | S22: 463.4300537 | T22: 246.5211029 | U22: 892.6152344 | V22: 187.168045 | W22: 42.06230164 | Y22: 194.4725952 | AA22: 0.485000014 | AB22: 0.3682202322 | AC22: 0.124459468 | AD22: 0.124459468 | AE22: 0.1400000006 | AF22: 0.0014648902 | AG22: 0.3682202322 | AH22: 0.3432378029 | AI22: 13.31662823 | AK22: 0.3467146158 | AL22: 0.99229002 | AN22: 4.238977909 | AO22: 109.6108704 | AP22: 75.39899445 | AR22: 1 | AS22: 0.06307257034 | AT22: 0.006869866978 | AU22: 0.9890353084 | AV22: 0.99229002 | AW22: 0.009999999776 | AX22: 0.0014648902 | AY22: 0.06307257034 | AZ22: 0.146380629 | BA22: 20584178.09 | BC22: 464394.6265
A23: 16 | B23: Volga | C23: 1474650 | D23: 1454800 | E23: 0.9865 | F23: 5 | G23: 848 | H23: 48.25 | I23: 46.25 | J23: 35-50N | K23: 55.42 | L23: Europe | M23: Land | N23: Caspian Sea | O23: North West Caspian Sea | Q23: 198.5223694 | R23: 392.766449 | S23: 566.9616699 | T23: 273.175354 | U23: 713.0505981 | V23: 413.5788269 | W23: 52.2395134 | Y23: 301.8200989 | AA23: 0.551807046 | AB23: 0.9848544678 | AC23: 0.152843952 | AD23: 0.152843952 | AE23: 0.1400000006 | AF23: 0.001780591905 | AG23: 0.9848544678 | AH23: 0.4503419604 | AI23: 0.7882948892 | AK23: 0.1812700778 | AL23: 0.9735599756 | AN23: 25.72434044 | AO23: 75.27074432 | AP23: 97.37565613 | AR23: 1 | AS23: 0.1738028571 | AT23: 0.01023746654 | AU23: 0.1460339725 | AV23: 0.9735599756 | AW23: 0.009999999776 | AX23: 0.001780591905 | AY23: 0.1738028571 | AZ23: 0.189645426 | BA23: 1162459.058 | BC23: 30365.41752
A24: 17 | B24: Zambezi | C24: 1361960 | D24: 1320930 | E24: 0.9699 | F24: 5 | G24: 457 | H24: 36.25 | I24: -18.75 | J24: 10-23.5S | K24: -14.97 | L24: Africa | M24: Indian Ocean | N24: Indian Ocean | O24: Mozambique Coast | Q24: 40.48826599 | R24: 277.1285706 | S24: 237.5789185 | T24: 282.4591064 | U24: 1248.97937 | V24: 223.4302063 | W24: 52.88166046 | Y24: 201.640274 | AA24: 0.495233297 | AB24: 0.2093352786 | AC24: 0.268678814 | AD24: 0.268678814 | AE24: 0.1400000006 | AF24: 0.003042988479 | AG24: 0.2093352786 | AH24: 0.2520197894 | AI24: 17.84855554 | AK24: 0.3153302073 | AL24: 0.9973800182 | AN24: 10.17048931 | AO24: 49.04505157 | AP24: 40.5590477 | AR24: 1 | AS24: 0.03601719473 | AT24: 0.02946090698 | AU24: 0.405754149 | AV24: 0.9973800182 | AW24: 0.009999999776 | AX24: 0.003042988479 | AY24: 0.03601719473 | AZ24: 0.109680007 | BA24: 24309018.71 | BC24: 485566.4754
A25: 18 | B25: GreatArtesian/CopperCR | C25: 1169990 | D25: 1151870 | E25: 0.9845 | F25: 5 | G25: 419 | H25: 136.75 | I25: -28.75 | J25: 23.5-35S | K25: -25.09 | L25: Australia | M25: Land | N25: Land | O25: Land | Q25: 0.2274421155 | R25: 266.479187 | S25: 201.6025696 | T25: 281.8733521 | U25: 359.5406799 | V25: 86.73664093 | W25: 56.37466812 | Y25: 63.36592865 | AA25: 0.574568987 | AB25: 0.5566348308 | AC25: 0 | AD25: 0 | AE25: 0.1400000006 | AF25: 0 | AG25: 0.5566348308 | AH25: 0 | AI25: 0 | AK25: 0.3495065272 | AL25: 0.9985899925 | AN25: 0.1121086478 | AO25: 42.55899811 | AP25: 32.64754486 | AR25: 1 | AS25: 0.09601300193 | AT25: 0 | AU25: 0.9985899925 | AV25: 0.9985899925 | AW25: 0.009999999776 | AX25: 0 | AY25: 0.09601300193 | AZ25: 0 | BA25: 0 | BC25: 0
A26: 19 | B26: Tarim | C26: 1154400 | D26: 1149640 | E26: 0.9959 | F26: 5 | G26: 479 | H26: 86.25 | I26: 41.25 | J26: 35-50N | K26: 38.57 | L26: South Asia | M26: Land | N26: Land | O26: Land | Q26: 28.06280327 | R26: 163.6867676 | S26: 109.5893936 | T26: 34.40756989 | U26: 547.7589722 | V26: 15.29071426 | W26: 6.843052864 | Y26: 194.0254822 | AA26: 0.516875029 | AB26: 22.32196366 | AC26: 0.023751121 | AD26: 0.023751121 | AE26: 0.1400000006 | AF26: 0.0003036885755 | AG26: 22.32196366 | AH26: 0.05204851782 | AI26: 27.86959377 | AK26: 0.3037055135 | AL26: 0.8677300215 | AN26: 5.066319942 | AO26: 24.88686752 | AP26: 16.80292702 | AR26: 1 | AS26: 4.099643083 | AT26: 0.0002560289286 | AU26: 0.8677300215 | AV26: 0.8677300215 | AW26: 0.009999999776 | AX26: 0.0003036885755 | AY26: 4.099643083 | AZ26: 0.028650594 | BA26: 32172659.05 | BC26: 101209.9577
A27: 20 | B27: Indus | C27: 1141750 | D27: 1140470 | E27: 0.9989 | F27: 5 | G27: 434 | H27: 67.75 | I27: 24.25 | J27: 23.5-35N | K27: 31.36 | L27: South Asia | M27: Indian Ocean | N27: Indian Ocean | O27: Indus Delta Coast | Q27: 2546.783447 | R27: 1961.226196 | S27: 1093.067627 | T27: 296.3827515 | U27: 442.8044739 | V27: 519.7363892 | W27: 37.01554489 | Y27: 567.022583 | AA27: 0.516875029 | AB27: 82.53609357 | AC27: 0.079057805 | AD27: 0.079057805 | AE27: 0.1400000006 | AF27: 0.0009518665029 | AG27: 82.53609357 | AH27: 0 | AI27: 0 | AK27: 0.1543414891 | AL27: 0.6333400011 | AN27: 354.9673767 | AO27: 390.543457 | AP27: 190.0135803 | AR27: 1 | AS27: 14.79893007 | AT27: 0.002811659127 | AU27: 0.09500098228 | AV27: 0.6333400011 | AW27: 0.009999999776 | AX27: 0.0009518665029 | AY27: 14.79893007 | AZ27: 0 | BA27: 0 | BC27: 0
A28: 21 | B28: Nelson | C28: 1138420 | D28: 1077930 | E28: 0.9469 | F28: 5 | G28: 592 | H28: -92.75 | I28: 57.25 | J28: 50-66N | K28: 51.33 | L28: North America | M28: Atlantic Ocean | N28: Hudson Bay | O28: West Hudson Bay | Q28: 1149.900757 | R28: 598.0921021 | S28: 1269.601807 | T28: 377.323822 | U28: 264.4349365 | V28: 237.7681274 | W28: 49.60533142 | Y28: 151.7199249 | AA28: 0.637481868 | AB28: 0.2136577197 | AC28: 0.117470697 | AD28: 0.117470697 | AE28: 0.1400000006 | AF28: 0.001386633143 | AG28: 0.2136577197 | AH28: 0.3734234565 | AI28: 1.549905086 | AK28: 0.2799055278 | AL28: 1 | AN28: 194.6021729 | AO28: 117.2071838 | AP28: 229.4320221 | AR28: 1 | AS28: 0.03330782938 | AT28: 0.006135867909 | AU28: 0.2034199834 | AV28: 1 | AW28: 0.009999999776 | AX28: 0.001386633143 | AY28: 0.03330782938 | AZ28: 0.158460057 | BA28: 1764442.949 | BC28: 54360.80255
A29: 22 | B29: Kerulen | C29: 1088500 | D29: 1085780 | E29: 0.9975 | F29: 4 | G29: 494 | H29: 117.75 | I29: 49.25 | J29: 35-50N | K29: 44.25 | L29: North Asia | M29: Land | N29: Land | O29: Land | Q29: 199.4276428 | R29: 467.8833313 | S29: 382.2590637 | T29: 420.502533 | U29: 101.4451065 | V29: 265.6022034 | W29: 83.29472351 | Y29: 44.23261261 | AA29: 0.515903711 | AB29: 21.58211562 | AC29: 0.003515358 | AD29: 0.003515358 | AE29: 0.1400000006 | AF29: 4.945379987e-05 | AG29: 21.58211562 | AH29: 0.03730517219 | AI29: 9.197985796 | AK29: 0.3434200287 | AL29: 0.9811999798 | AN29: 29.09104347 | AO29: 72.71282196 | AP29: 60.42406845 | AR29: 1 | AS29: 3.963905899 | AT29: 5.613518624e-06 | AU29: 0.9811999798 | AV29: 0.9811999798 | AW29: 0.009999999776 | AX29: 4.945379987e-05 | AY29: 3.963905899 | AZ29: 0.022649124 | BA29: 10012007.54 | BC29: 77336.17613
A30: 23 | B30: Syr-Darya | C30: 1057490 | D30: 1049420 | E30: 0.9924 | F30: 5 | G30: 489 | H30: 61.25 | I30: 45.75 | J30: 35-50N | K30: 45.27 | L30: North Asia | M30: Land | N30: Aral Sea | O30: Aral Sea | Q30: 330.3974609 | R30: 294.456665 | S30: 239.3620758 | T30: 398.359314 | U30: 97.72101593 | V30: 223.5964508 | W30: 78.91913605 | Y30: 57.69123077 | AA30: 0.511626363 | AB30: 1.125452215 | AC30: 0.038336094 | AD30: 0.038336094 | AE30: 0.1400000006 | AF30: 0.0004785816709 | AG30: 1.125452215 | AH30: 0.07181126039 | AI30: 13.84840711 | AK30: 0.2105393261 | AL30: 0.7635899782 | AN30: 26.04866219 | AO30: 51.88947296 | AP30: 41.63689423 | AR30: 1 | AS30: 0.2015664418 | AT30: 0.0006660724757 | AU30: 0.2077881098 | AV30: 0.7635899782 | AW30: 0.009999999776 | AX30: 0.0004785816709 | AY30: 0.2015664418 | AZ30: 0.036637012 | BA30: 14644552.04 | BC30: 56595.95123
A31: 24 | B31: SAINT LAWRENCE | C31: 1052470 | D31: 792309 | E31: 0.7528 | F31: 5 | G31: 487 | H31: -70.75 | I31: 47.25 | J31: 35-50N | K31: 45.46 | L31: North America | M31: Atlantic Ocean | N31: Atlantic Ocean | O31: Saint Lawrence Gulf | Q31: 728.4730225 | R31: 464.7429504 | S31: 637.918457 | T31: 123.2671738 | U31: 841.1165771 | V31: 232.5139923 | W31: 19.80636024 | Y31: 478.3689575 | AA31: 0.642920077 | AB31: 0.1052676385 | AC31: 0.436968237 | AD31: 0.436968237 | AE31: 0.1400000006 | AF31: 0.004830097314 | AG31: 0.1052676385 | AH31: 0.8475425652 | AI31: 2.283983827 | AK31: 0.3099007308 | AL31: 0.9882699847 | AN31: 117.1919403 | AO31: 93.38109589 | AP31: 117.9463577 | AR31: 1 | AS31: 0.01624778154 | AT31: 0.06676732004 | AU31: 0.3548581004 | AV31: 0.9882699847 | AW31: 0.009999999776 | AX31: 0.004830097314 | AY31: 0.01624778154 | AZ31: 0.350163277 | BA31: 2403824.458 | BC31: 216805.1838
A32: 25 | B32: Orinoco | C32: 1038130 | D32: 1032390 | E32: 0.9945 | F32: 4 | G32: 338 | H32: -61.25 | I32: 8.75 | J32: 0-10N | K32: 5.42 | L32: South America | M32: Atlantic Ocean | N32: Atlantic Ocean | O32: Guiana Coast - Amazon Cone | Q32: 109.0846024 | R32: 700.4016724 | S32: 560.1099854 | T32: 161.1416626 | U32: 1714.255371 | V32: 226.9311218 | W32: 31.69641495 | Y32: 309.7454224 | AA32: 0.502594709 | AB32: 8.252052968 | AC32: 1 | AD32: 0.112682417 | AE32: 0.1400000006 | AF32: 0.01120116841 | AG32: 8.252052968 | AH32: 0.2470788691 | AI32: 48.13295543 | AK32: 0.3130074739 | AL32: 0.996819973 | AN32: 17.50657463 | AO32: 123.6309509 | AP32: 95.9911499 | AR32: 1 | AS32: 1.362335744 | AT32: 0.1848290265 | AU32: 0.2974810004 | AV32: 0.996819973 | AW32: 0.009999999776 | AX32: 0.01120116841 | AY32: 1.362335744 | AZ32: 0.107892213 | BA32: 49968265.02 | BC32: 1112406.885
A33: 26 | B33: Murray | C33: 1030290 | D33: 1027360 | E33: 0.9972 | F33: 5 | G33: 393 | H33: 139.25 | I33: -35.25 | J33: 35-50S | K33: -31.64 | L33: Australia | M33: Indian Ocean | N33: Indian Ocean | O33: South East Australia Coast | Q33: 461.506958 | R33: 513.6184692 | S33: 506.0574951 | T33: 282.6233521 | U33: 591.5217896 | V33: 183.0018616 | W33: 53.89385605 | Y33: 140.5012054 | AA33: 0.574568629 | AB33: 3.498748566 | AC33: 0.021907603 | AD33: 0.021907603 | AE33: 0.1400000006 | AF33: 0.0002812507446 | AG33: 3.498748566 | AH33: 0.08311212349 | AI33: 8.884602233 | AK33: 0.1018446833 | AL33: 0.3347499967 | AN33: 219.1606293 | AO33: 86.69607544 | AP33: 89.14839935 | AR33: 1 | AS33: 0.6034932315 | AT33: 0.0002178551367 | AU33: 0.2091015875 | AV33: 0.3347499967 | AW33: 0.009999999776 | AX33: 0.0002812507446 | AY33: 0.6034932315 | AZ33: 0.04115032 | BA33: 9153716.835 | BC33: 102906.9889
A34: 27 | B34: Shatt el Arab | C34: 988948 | D34: 988160 | E34: 0.9992 | F34: 4 | G34: 386 | H34: 48.25 | I34: 30.25 | J34: 23.5-35N | K34: 33.69 | L34: South Asia | M34: Indian Ocean | N34: Indian Ocean | O34: Persian Gulf | Q34: 875.6901855 | R34: 628.217041 | S34: 648.1463013 | T34: 277.4746399 | U34: 360.5558777 | V34: 264.6701355 | W34: 48.65351868 | Y34: 195.6806641 | AA34: 0.548094869 | AB34: 103.202918 | AC34: 0.05309074 | AD34: 0.05309074 | AE34: 0.1400000006 | AF34: 0.0006520732422 | AG34: 103.202918 | AH34: 0 | AI34: 0 | AK34: 0.1216293201 | AL34: 0.656340003 | AN34: 180.5261841 | AO34: 111.2202072 | AP34: 111.6125412 | AR34: 1 | AS34: 17.221976 | AT34: 0.001274760929 | AU34: 0.09845098108 | AV34: 0.656340003 | AW34: 0.009999999776 | AX34: 0.0006520732422 | AY34: 17.221976 | AZ34: 0 | BA34: 0 | BC34: 0
A35: 28 | B35: Orange | C35: 942459 | D35: 941029 | E35: 0.9985 | F35: 5 | G35: 344 | H35: 16.75 | I35: -28.25 | J35: 23.5-35S | K35: -27.33 | L35: Africa | M35: Atlantic Ocean | N35: Atlantic Ocean | O35: Cape Basin | Q35: 141.8905182 | R35: 675.8850708 | S35: 513.9777832 | T35: 401.601532 | U35: 202.1573334 | V35: 277.4284973 | W35: 79.95127869 | Y35: 59.27844238 | AA35: 0.497453213 | AB35: 24.27802573 | AC35: 0.008473763 | AD35: 0.008473763 | AE35: 0.1400000006 | AF35: 0.0001140777822 | AG35: 24.27802573 | AH35: 0.05793998281 | AI35: 4.320359534 | AK35: 0.1967533231 | AL35: 0.8971899748 | AN35: 33.14595032 | AO35: 112.1703949 | AP35: 85.36933899 | AR35: 1 | AS35: 4.561618534 | AT35: 3.26143163e-05 | AU35: 0.1345784813 | AV35: 0.8971899748 | AW35: 0.009999999776 | AX35: 0.0001140777822 | AY35: 4.561618534 | AZ35: 0.031052997 | BA35: 4071761.727 | BC35: 12084.63438
A36: 29 | B36: Huang He | C36: 892570 | D36: 885310 | E36: 0.9919 | F36: 5 | G36: 361 | H36: 118.25 | I36: 37.75 | J36: 35-50N | K36: 36.69 | L36: South Asia | M36: Pacific Ocean | N36: Pacific Ocean | O36: Pohai Gulf | Q36: 2958.344971 | R36: 1849.983643 | S36: 1835.799927 | T36: 510.7140198 | U36: 97.19652557 | V36: 965.0335693 | W36: 81.49568176 | Y36: 142.8851471 | AA36: 0.516875029 | AB36: 10.98983104 | AC36: 0.038703792 | AD36: 0.038703792 | AE36: 0.1400000006 | AF36: 0.0004829413665 | AG36: 10.98983104 | AH36: 0 | AI36: 0 | AK36: 0.0484419167 | AL36: 0.501760006 | AN36: 484.2757263 | AO36: 331.0485535 | AP36: 309.3146667 | AR36: 1 | AS36: 2.019073254 | AT36: 0.0006788808387 | AU36: 0.07526399195 | AV36: 0.501760006 | AW36: 0.009999999776 | AX36: 0.0004829413665 | AY36: 2.019073254 | AZ36: 0 | BA36: 0 | BC36: 0
A37: 30 | B37: Yukon | C37: 854690 | D37: 849565 | E37: 0.994 | F37: 5 | G37: 644 | H37: -164.75 | I37: 62.75 | J37: 50-66N | K37: 64.34 | L37: North America | M37: Pacific Ocean | N37: Bering Strait | O37: Norton Gulf | Q37: 0 | R37: 0 | S37: 0 | T37: 0 | U37: 355.6575928 | V37: 0 | W37: 0 | Y37: 37.03939438 | AA37: 0.645536304 | AB37: 16.0704947 | AC37: 0.046569202 | AD37: 0.046569202 | AE37: 0.1400000006 | AF37: 0.0005757347099 | AG37: 16.0704947 | AH37: 0.05668182425 | AI37: 49.24885686 | AK37: 0.3482605219 | AL37: 0.9950299859 | AN37: 0 | AO37: 0 | AP37: 0 | AR37: 1 | AS37: 2.476785866 | AT37: 0.0009818138788 | AU37: 0.9950299859 | AV37: 0.9950299859 | AW37: 0.009999999776 | AX37: 0.0005757347099 | AY37: 2.476785866 | AZ37: 0.030536919 | BA37: 42092505.47 | BC37: 305166.605
A38: 31 | B38: Senegal | C38: 846269 | D38: 844138 | E38: 0.9975 | F38: 4 | G38: 287 | H38: -16.25 | I38: 16.25 | J38: 10-23.5N | K38: 17.02 | L38: Africa | M38: Atlantic Ocean | N38: Atlantic Ocean | O38: Cape Verde Basin | Q38: 13.97817993 | R38: 479.9714966 | S38: 362.7888794 | T38: 255.1789093 | U38: 612.9623413 | V38: 120.1757355 | W38: 49.70558929 | Y38: 81.17950439 | AA38: 0.485000014 | AB38: 0.5823754673 | AC38: 0.053575519 | AD38: 0.053575519 | AE38: 0.1400000006 | AF38: 0.0006577284657 | AG38: 0.5823754673 | AH38: 0.2270429047 | AI38: 4.567162348 | AK38: 0.3051166236 | AL38: 0.9826099873 | AN38: 5.211806297 | AO38: 76.54327393 | AP38: 57.17259979 | AR38: 1 | AS38: 0.1018478066 | AT38: 0.001298042363 | AU38: 0.4458985925 | AV38: 0.9826099873 | AW38: 0.009999999776 | AX38: 0.0006577284657 | AY38: 0.1018478066 | AZ38: 0.099214112 | BA38: 3865047.913 | BC38: 47502.33409
A39: 32 | B39: Irharhar | C39: 841249 | D39: 841075 | E39: 0.9998 | F39: 5 | G39: 318 | H39: 9.75 | I39: 34.25 | J39: 23.5-35N | K39: 30.87 | L39: Africa | M39: Mediterranean+Black Sea | N39: Mediterranean Sea | O39: South Ionian Sea | Q39: 27.66410446 | R39: 140.1392517 | S39: 112.1627502 | T39: 105.150795 | U39: 617.5162964 | V39: 69.60923767 | W39: 20.91176414 | Y39: 113.7102127 | AA39: 0.501260042 | AB39: 168.2398761 | AC39: 0 | AD39: 0 | AE39: 0.1400000006 | AF39: 0 | AG39: 168.2398761 | AH39: 0 | AI39: 0 | AK39: 0.2969120145 | AL39: 0.8483200073 | AN39: 7.61892128 | AO39: 23.7125988 | AP39: 18.05898094 | AR39: 1 | AS39: 29.36306317 | AT39: 0 | AU39: 0.8483200073 | AV39: 0.8483200073 | AW39: 0.009999999776 | AX39: 0 | AY39: 29.36306317 | AZ39: 0 | BA39: 0 | BC39: 0
A40: 33 | B40: Jubba | C40: 815089 | D40: 811625 | E40: 0.9958 | F40: 5 | G40: 265 | H40: 42.25 | I40: 0.25 | J40: 0-10N | K40: 4.35 | L40: Africa | M40: Indian Ocean | N40: Indian Ocean | O40: Somali Coast | Q40: 11.3676424 | R40: 924.7922974 | S40: 733.5383301 | T40: 212.1657867 | U40: 757.4118042 | V40: 143.7781677 | W40: 41.44516754 | Y40: 219.8238525 | AA40: 0.49115324 | AB40: 0.5984333345 | AC40: 0.059783701 | AD40: 0.059783701 | AE40: 0.1400000006 | AF40: 0.0007299316349 | AG40: 0.5984333345 | AH40: 0.0457687332 | AI40: 83.39974134 | AK40: 0.3407320082 | AL40: 0.9735199809 | AN40: 5.983763695 | AO40: 148.8438721 | AP40: 118.4669418 | AR40: 1 | AS40: 0.101336117 | AT40: 0.001614527428 | AU40: 0.9735199809 | AV40: 0.9735199809 | AW40: 0.009999999776 | AX40: 0.0007299316349 | AY40: 0.101336117 | AZ40: 0.026148552 | BA40: 67978211.77 | BC40: 423269.0402
A41: 34 | B41: Colorado (Ari) | C41: 806617 | D41: 804974 | E41: 0.998 | F41: 5 | G41: 325 | H41: -114.75 | I41: 31.75 | J41: 23.5-35N | K41: 36.32 | L41: North America | M41: Pacific Ocean | N41: Pacific Ocean | O41: California Gulf | Q41: 68.2869339 | R41: 150.7791138 | S41: 149.8579864 | T41: 197.0575867 | U41: 298.4179382 | V41: 112.8192215 | W41: 39.88745499 | Y41: 183.7489319 | AA41: 0.649571657 | AB41: 22.36133704 | AC41: 0.028367218 | AD41: 0.028367218 | AE41: 0.1400000006 | AF41: 0.0003595046001 | AG41: 22.36133704 | AH41: 0.1276984269 | AI41: 1.347626494 | AK41: 0.000960102072 | AL41: 0.005410015583 | AN41: 10.38704872 | AO41: 29.62037659 | AP41: 29.14890289 | AR41: 1 | AS41: 3.50374075 | AT41: 0.000365082291 | AU41: 0.000811502221 | AV41: 0.005410015583 | AW41: 0.009999999776 | AX41: 0.0003595046001 | AY41: 3.50374075 | AZ41: 0.05910636 | BA41: 1087018.44 | BC41: 19174.16908
A42: 35 | B42: Rio Grande (US) | C42: 803837 | D42: 801576 | E42: 0.9972 | F42: 4 | G42: 301 | H42: -97.25 | I42: 25.75 | J42: 23.5-35N | K42: 29.85 | L42: North America | M42: Atlantic Ocean | N42: Gulf of Mexico | O42: West Mexican Gulf | Q42: 412.0362549 | R42: 1099.260132 | S42: 889.2337036 | T42: 386.3146667 | U42: 251.4577026 | V42: 349.3382568 | W42: 73.84768677 | Y42: 123.8268433 | AA42: 0.581585765 | AB42: 32.60526735 | AC42: 0.010962119 | AD42: 0.010962119 | AE42: 0.1400000006 | AF42: 0.0001456895407 | AG42: 32.60526735 | AH42: 0 | AI42: 0 | AK42: 0.002800141694 | AL42: 0.04000002146 | AN42: 46.51938248 | AO42: 198.7915497 | AP42: 161.4058533 | AR42: 1 | AS42: 5.738947107 | AT42: 5.457726365e-05 | AU42: 0.00600000238 | AV42: 0.04000002146 | AW42: 0.009999999776 | AX42: 0.0001456895407 | AY42: 5.738947107 | AZ42: 0 | BA42: 0 | BC42: 0
A43: 36 | B43: Danube | C43: 787069 | D43: 785306 | E43: 0.9978 | F43: 4 | G43: 370 | H43: 29.25 | I43: 45.25 | J43: 35-50N | K43: 46.37 | L43: Europe | M43: Mediterranean+Black Sea | N43: Black Sea | O43: North Black Sea | Q43: 1829.293213 | R43: 1532.546753 | S43: 2437.575439 | T43: 351.3465881 | U43: 625.7481689 | V43: 781.9415894 | W43: 57.3032341 | Y43: 582.6820679 | AA43: 0.580356598 | AB43: 88.07325813 | AC43: 0.249969125 | AD43: 0.249969125 | AE43: 0.1400000006 | AF43: 0.002841322916 | AG43: 88.07325813 | AH43: 0.2192699422 | AI43: 24.52854384 | AK43: 0.3372005224 | AL43: 1 | AN43: 169.3002777 | AO43: 293.0353088 | AP43: 437.5245056 | AR43: 1 | AS43: 15.17734561 | AT43: 0.02585375495 | AU43: 0.939800024 | AV43: 1 | AW43: 0.009999999776 | AX43: 0.002841322916 | AY43: 15.17734561 | AZ43: 0.096332362 | BA43: 19305656.47 | BC43: 384616.6255
A44: 37 | B44: Tocantins | C44: 767705 | D44: 763979 | E44: 0.9951 | F44: 4 | G44: 254 | H44: -49.25 | I44: -2.25 | J44: 0-10S | K44: -11.2 | L44: South America | M44: Atlantic Ocean | N44: Atlantic Ocean | O44: Guiana Coast - Amazon Cone | Q44: 136.614975 | R44: 1061.708618 | S44: 1009.183228 | T44: 220.7162781 | U44: 1633.192505 | V44: 317.4565735 | W44: 42.7816658 | Y44: 450.2588806 | AA44: 0.508906245 | AB44: 4.455040916 | AC44: 0.612820446 | AD44: 0.065193668 | AE44: 0.1400000006 | AF44: 0.006660320796 | AG44: 4.455040916 | AH44: 0.4408821341 | AI44: 6.241843798 | AK44: 0.3089594841 | AL44: 0.9986100197 | AN44: 76.07362366 | AO44: 186.7449036 | AP44: 174.4797821 | AR44: 1 | AS44: 0.7401530417 | AT44: 0.1074108034 | AU44: 0.3057044744 | AV44: 0.9986100197 | AW44: 0.009999999776 | AX44: 0.006660320796 | AY44: 0.7401530417 | AZ44: 0.186070927 | BA44: 4791894.693 | BC44: 236535.007
A45: 38 | B45: Mekong | C45: 757660 | D45: 753419 | E45: 0.9944 | F45: 4 | G45: 261 | H45: 106.25 | I45: 10.25 | J45: 10-23.5N | K45: 18.8 | L45: South Asia | M45: Pacific Ocean | N45: Pacific Ocean | O45: West SouthChina Sea | Q45: 1014.730896 | R45: 688.0910034 | S45: 878.9509888 | T45: 427.9135742 | U45: 1609.74585 | V45: 355.0748291 | W45: 34.87738419 | Y45: 732.6294556 | AA45: 0.491968572 | AB45: 3.93666758 | AC45: 0.52962625 | AD45: 0.056343216 | AE45: 0.1400000006 | AF45: 0.005798284896 | AG45: 3.93666758 | AH45: 0.05492415147 | AI45: 501.6808988 | AK45: 0.3212499917 | AL45: 0.9372199774 | AN45: 164.6477356 | AO45: 136.2933197 | AP45: 150.7061157 | AR45: 1 | AS45: 0.7097387253 | AT45: 0.08852508664 | AU45: 0.8583436012 | AV45: 0.9372199774 | AW45: 0.009999999776 | AX45: 0.005798284896 | AY45: 0.7097387253 | AZ45: 0.029950644 | BA45: 380103549.8 | BC45: 1937984.703
A46: 39 | B46: Bode le Depression | C46: 756686 | D46: 754925 | E46: 0.9977 | F46: 5 | G46: 258 | H46: 17.75 | I46: 16.75 | J46: 10-23.5N | K46: 18.04 | L46: Africa | M46: Land | N46: Land | O46: Land | Q46: 0.01736783795 | R46: 56.17191315 | S46: 66.48187256 | T46: 70.7063446 | U46: 666.7164307 | V46: 31.32078552 | W46: 14.14060783 | Y46: 94.71775818 | AA46: 0.485667199 | AB46: 0.1385376968 | AC46: 0 | AD46: 0 | AE46: 0.1400000006 | AF46: 0 | AG46: 0.1385376968 | AH46: 0 | AI46: 0 | AK46: 0.3463495374 | AL46: 0.9895700216 | AN46: 0.001378061716 | AO46: 9.198756218 | AP46: 10.83819485 | AR46: 1 | AS46: 0.02365541414 | AT46: 0 | AU46: 0.9895700216 | AV46: 0.9895700216 | AW46: 0.009999999776 | AX46: 0 | AY46: 0.02365541414 | AZ46: 0 | BA46: 0 | BC46: 0
A47: 40 | B47: Columbia | C47: 731105 | D47: 727470 | E47: 0.995 | F47: 5 | G47: 341 | H47: -123.75 | I47: 46.25 | J47: 35-50N | K47: 45.84 | L47: North America | M47: Pacific Ocean | N47: Pacific Ocean | O47: South Cascadia Basin | Q47: 680.8269653 | R47: 326.7642822 | S47: 563.3581543 | T47: 76.16429901 | U47: 500.8213501 | V47: 48.27910995 | W47: 17.40297127 | Y47: 221.8094482 | AA47: 0.649929643 | AB47: 9.440135365 | AC47: 0.263490081 | AD47: 0.263490081 | AE47: 0.1400000006 | AF47: 0.002987133106 | AG47: 9.440135365 | AH47: 0.1073301377 | AI47: 41.24718311 | AK47: 0.2293900251 | AL47: 1 | AN47: 107.1026688 | AO47: 65.06261444 | AP47: 105.1370163 | AR47: 1 | AS47: 1.453684543 | AT47: 0.02844453044 | AU47: 0.1499999762 | AV47: 1 | AW47: 0.009999999776 | AX47: 0.002987133106 | AY47: 1.453684543 | AZ47: 0.051096716 | BA47: 30156021.81 | BC47: 457128.9823
A48: 41 | B48: Araye | C48: 725487 | D48: 724966 | E48: 0.9993 | F48: 4 | G48: 262 | H48: 20.25 | I48: 30.25 | J48: 23.5-35N | K48: 26.08 | L48: Africa | M48: Mediterranean+Black Sea | N48: Mediterranean Sea | O48: South Ionian Sea | Q48: 14.46586895 | R48: 20.4042244 | S48: 9.570137024 | T48: 14.51879883 | U48: 757.7668457 | V48: 7.958791733 | W48: 2.902932882 | Y48: 113.1284256 | AA48: 0.502606511 | AB48: 8.116583512 | AC48: 0 | AD48: 0 | AE48: 0.1400000006 | AF48: 0 | AG48: 8.116583512 | AH48: 0 | AI48: 0 | AK48: 0.3469305336 | AL48: 0.991230011 | AN48: 3.584626675 | AO48: 3.750501394 | AP48: 1.600662708 | AR48: 1 | AS48: 1.436509368 | AT48: 0 | AU48: 0.991230011 | AV48: 0.991230011 | AW48: 0.009999999776 | AX48: 0 | AY48: 1.436509368 | AZ48: 0 | BA48: 0 | BC48: 0
A49: 42 | B49: Okavango | C49: 700297 | D49: 699052 | E49: 0.9982 | F49: 5 | G49: 241 | H49: 23.25 | I49: -20.25 | J49: 10-23.5S | K49: -19.53 | L49: Africa | M49: Land | N49: Land | O49: Land | Q49: 0.3483150601 | R49: 190.8718719 | S49: 119.1454468 | T49: 246.5996399 | U49: 925.4487915 | V49: 189.1040497 | W49: 48.83342361 | Y49: 202.3569946 | AA49: 0.509161949 | AB49: 1.279905233 | AC49: 0.054117009 | AD49: 0.054117009 | AE49: 0.1400000006 | AF49: 0.0006640421343 | AG49: 1.279905233 | AH49: 0.3134156624 | AI49: 6.722541209 | AK49: 0.3492545187 | AL49: 0.997870028 | AN49: 0 | AO49: 31.96343803 | AP49: 19.78646278 | AR49: 1 | AS49: 0.232733958 | AT49: 0.001324293436 | AU49: 0.997870028 | AV49: 0.997870028 | AW49: 0.009999999776 | AX49: 0.0006640421343 | AY49: 0.232733958 | AZ49: 0.13395811 | BA49: 4707775.441 | BC49: 183025.2978
A50: 43 | B50: Kolyma | C50: 664851 | D50: 664582 | E50: 0.9996 | F50: 5 | G50: 518 | H50: 161.25 | I50: 69.25 | J50: 66-90N | K50: 65.25 | L50: North Asia | M50: Arctic Ocean | N50: East Siberian Sea | O50: East Siberian Sea | Q50: 0 | R50: 0 | S50: 0 | T50: 0 | U50: 369.872345 | V50: 0 | W50: 0 | Y50: 46.68700027 | AA50: 0.552574813 | AB50: 60.9779233 | AC50: 0.095405646 | AD50: 0.095405646 | AE50: 0.1400000006 | AF50: 0.001137951971 | AG50: 60.9779233 | AH50: 0.3283485169 | AI50: 11.00696111 | AK50: 0.3500000238 | AL50: 1 | AN50: 0 | AO50: 0 | AP50: 0 | AR50: 1 | AS50: 10.74810301 | AT50: 0.004076656885 | AU50: 1 | AV50: 1 | AW50: 0.009999999776 | AX50: 0.001137951971 | AY50: 10.74810301 | AZ50: 0.140095969 | BA50: 7317989.101 | BC50: 176040.0392
A51: 44 | B51: Amu-Darya | C51: 616576 | D51: 615012 | E51: 0.9975 | F51: 4 | G51: 256 | H51: 59.25 | I51: 43.75 | J51: 35-50N | K51: 38.64 | L51: South Asia | M51: Land | N51: Aral Sea | O51: Aral Sea | Q51: 513.1889648 | R51: 451.2468872 | S51: 440.1306763 | T51: 292.6354675 | U51: 236.9829559 | V51: 176.2605133 | W51: 57.89894485 | Y51: 122.9246674 | AA51: 0.516875029 | AB51: 2.980271652 | AC51: 0.11984095 | AD51: 0.11984095 | AE51: 0.1400000006 | AF51: 0.001413199585 | AG51: 2.980271652 | AH51: 0.233363638 | AI51: 15.77681846 | AK51: 0.274168998 | AL51: 0.8615800142 | AN51: 39.47639847 | AO51: 75.57884216 | AP51: 75.1036377 | AR51: 1 | AS51: 0.5125922001 | AT51: 0.006380475126 | AU51: 0.6205012798 | AV51: 0.8615800142 | AW51: 0.009999999776 | AX51: 0.001413199585 | AY51: 0.5125922001 | AZ51: 0.101848423 | BA51: 9727607.619 | BC51: 110829.5685
A52: 45 | B52: Sao Francisco | C52: 614418 | D52: 612860 | E52: 0.9975 | F52: 4 | G52: 205 | H52: -36.75 | I52: -10.25 | J52: 10-23.5S | K52: -13.38 | L52: South America | M52: Atlantic Ocean | N52: Atlantic Ocean | O52: North Brazilian Basin | Q52: 579.9537354 | R52: 2115.237549 | S52: 1861.5177 | T52: 321.3349915 | U52: 1008.878357 | V52: 369.2876587 | W52: 60.16327667 | Y52: 225.5711975 | AA52: 0.508906305 | AB52: 8.88861925 | AC52: 0.19213593 | AD52: 0.020439994 | AE52: 0.1400000006 | AF52: 0.002212874126 | AG52: 8.88861925 | AH52: 0.2964517188 | AI52: 2.458861218 | AK52: 0.253685236 | AL52: 0.9875400066 | AN52: 316.4083862 | AO52: 387.3698425 | AP52: 321.2552185 | AR52: 1 | AS52: 1.476740326 | AT52: 0.01585284993 | AU52: 0.1481309831 | AV52: 0.9875400066 | AW52: 0.009999999776 | AX52: 0.002212874126 | AY52: 1.476740326 | AZ52: 0.127385432 | BA52: 1510768.592 | BC52: 48773.63423
A53: 46 | B53: Qattara | C53: 581215 | D53: 580460 | E53: 0.9987 | F53: 4 | G53: 209 | H53: 28.75 | I53: 30.75 | J53: 23.5-35N | K53: 25.53 | L53: Africa | M53: Mediterranean+Black Sea | N53: Mediterranean Sea | O53: East Mediterranean | Q53: 0 | R53: 0 | S53: 0 | T53: 0 | U53: 779.9850464 | V53: 0 | W53: 0 | Y53: 141.9060211 | AA53: 0.509326518 | AB53: 24.4324854 | AC53: 0 | AD53: 0 | AE53: 0.1400000006 | AF53: 0 | AG53: 24.4324854 | AH53: 0 | AI53: 0 | AK53: 0.3500000238 | AL53: 1 | AN53: 0 | AO53: 0 | AP53: 0 | AR53: 1 | AS53: 4.193627699 | AT53: 0 | AU53: 1 | AV53: 1 | AW53: 0.009999999776 | AX53: 0 | AY53: 4.193627699 | AZ53: 0 | BA53: 0 | BC53: 0
A54: 47 | B54: Dnepr | C54: 508234 | D54: 503988 | E54: 0.9916 | F54: 4 | G54: 264 | H54: 32.25 | I54: 46.25 | J54: 35-50N | K54: 51.31 | L54: Europe | M54: Mediterranean+Black Sea | N54: Black Sea | O54: North Black Sea | Q54: 784.4968872 | R54: 1277.783447 | S54: 1515.209595 | T54: 351.6234741 | U54: 583.7409668 | V54: 644.866333 | W54: 62.19674301 | Y54: 402.723938 | AA54: 0.565994203 | AB54: 12.7454688 | AC54: 0.115298025 | AD54: 0.115298025 | AE54: 0.1400000006 | AF54: 0.00136225787 | AG54: 12.7454688 | AH54: 0.4152487238 | AI54: 0.6388122053 | AK54: 0.1203658581 | AL54: 0.9962700009 | AN54: 75.44477844 | AO54: 246.5006256 | AP54: 249.4756317 | AR54: 1 | AS54: 2.163635813 | AT54: 0.005915583111 | AU54: 0.1494404823 | AV54: 0.9962700009 | AW54: 0.009999999776 | AX54: 0.00136225787 | AY54: 2.163635813 | AZ54: 0.175068302 | BA54: 324666.0823 | BC54: 12599.45019
A55: 48 | B55: Dawasir | C55: 473614 | D55: 472442 | E55: 0.9975 | F55: 4 | G55: 165 | H55: 51.25 | I55: 24.75 | J55: 23.5-35N | K55: 21.54 | L55: South Asia | M55: Indian Ocean | N55: Indian Ocean | O55: Persian Gulf | Q55: 15.10962486 | R55: 72.40283966 | S55: 48.04650879 | T55: 91.31339264 | U55: 636.4359741 | V55: 39.6709137 | W55: 18.26267815 | Y55: 172.9989014 | AA55: 0.556555808 | AB55: 5.521006359 | AC55: 0 | AD55: 0 | AE55: 0.1400000006 | AF55: 0 | AG55: 5.521006359 | AH55: 0 | AI55: 0 | AK55: 0.3214295208 | AL55: 0.9183700085 | AN55: 1.449555993 | AO55: 12.00623322 | AP55: 8.065322876 | AR55: 1 | AS55: 0.9252047329 | AT55: 0 | AU55: 0.9183700085 | AV55: 0.9183700085 | AW55: 0.009999999776 | AX55: 0 | AY55: 0.9252047329 | AZ55: 0 | BA55: 0 | BC55: 0
A56: 49 | B56: Don | C56: 422537 | D56: 417050 | E56: 0.987 | F56: 5 | G56: 212 | H56: 38.75 | I56: 47.25 | J56: 35-50N | K56: 49.66 | L56: Europe | M56: Mediterranean+Black Sea | N56: Black Sea | O56: Azov Sea | Q56: 549.55896 | R56: 1454.805176 | S56: 1265.588623 | T56: 565.5930786 | U56: 0 | V56: 951.8574829 | W56: 98.70141602 | Y56: 0 | AA56: 0.553108394 | AB56: 2.032808792 | AC56: 0.082960136 | AD56: 0.082960136 | AE56: 0.1400000006 | AF56: 0.0009964477504 | AG56: 2.032808792 | AH56: 0.3575536514 | AI56: 8.331938429 | AK56: 0.2578310072 | AL56: 0.7366600037 | AN56: 57.65057373 | AO56: 274.5321655 | AP56: 219.2442322 | AR56: 1 | AS56: 0.352482174 | AT56: 0.003093046369 | AU56: 0.7366600037 | AV56: 0.7366600037 | AW56: 0.009999999776 | AX56: 0.0009964477504 | AY56: 0.352482174 | AZ56: 0.151700469 | BA56: 3520552.268 | BC56: 94018.86298
A57: 50 | B57: Colorado (Argentina) | C57: 421298 | D57: 420184 | E57: 0.9974 | F57: 4 | G57: 166 | H57: -62.25 | I57: -39.75 | J57: 35-50S | K57: -34.47 | L57: South America | M57: Atlantic Ocean | N57: Atlantic Ocean | O57: Pampa Coast | Q57: 32.45090103 | R57: 348.069519 | S57: 338.6486511 | T57: 154.1934662 | U57: 309.695282 | V57: 89.71582794 | W57: 30.47462845 | Y57: 152.7647858 | AA57: 0.510181308 | AB57: 5.722418755 | AC57: 0.018221695 | AD57: 0.018221695 | AE57: 0.1400000006 | AF57: 0.0002360956132 | AG57: 5.722418755 | AH57: 0.06355935658 | AI57: 124.0521008 | AK57: 0.3302635252 | AL57: 0.9436100125 | AN57: 9.07557106 | AO57: 59.94711685 | AP57: 57.79258347 | AR57: 1 | AS57: 0.9588816357 | AT57: 0.0001507495908 | AU57: 0.9436100125 | AV57: 0.9436100125 | AW57: 0.009999999776 | AX57: 0.0002360956132 | AY57: 0.9588816357 | AZ57: 0.033329823 | BA57: 52262901.97 | BC57: 63701.70497
A58: 51 | B58: Limpopo | C58: 419839 | D58: 419329 | E58: 0.9988 | F58: 4 | G58: 148 | H58: 33.75 | I58: -24.75 | J58: 23.5-35S | K58: -23.2 | L58: Africa | M58: Indian Ocean | N58: Indian Ocean | O58: Agulhas Basin | Q58: 457.7159424 | R58: 712.3039551 | S58: 617.7915649 | T58: 387.491394 | U58: 435.764679 | V58: 352.3374329 | W58: 74.80605316 | Y58: 117.7191696 | AA58: 0.496948838 | AB58: 22.47111301 | AC58: 0.010799211 | AD58: 0.010799211 | AE58: 0.1400000006 | AF58: 0.000143631929 | AG58: 22.47111301 | AH58: 0.03787817874 | AI58: 16.45920291 | AK58: 0.23861821 | AL58: 0.7703399658 | AN58: 102.1374893 | AO58: 129.6218262 | AP58: 106.1630783 | AR58: 1 | AS58: 4.135078565 | AT58: 5.296745803e-05 | AU58: 0.5899879932 | AV58: 0.7703399658 | AW58: 0.009999999776 | AX58: 0.000143631929 | AY58: 4.135078565 | AZ58: 0.022877533 | BA58: 6910215.289 | BC58: 110181.6223
A59: 52 | B59: HELMAND/ Farah | C59: 419621 | D59: 416318 | E59: 0.9921 | F59: 4 | G59: 160 | H59: 61.25 | I59: 30.25 | J59: 23.5-35N | K59: 31.8 | L59: South Asia | M59: Land | N59: Land | O59: Land | Q59: 0 | R59: 250.0756683 | S59: 153.9048309 | T59: 178.4627228 | U59: 473.7632141 | V59: 112.1440506 | W59: 35.69244766 | Y59: 190.6932526 | AA59: 0.522872686 | AB59: 1.268824394 | AC59: 0.018987879 | AD59: 0.018987879 | AE59: 0.1400000006 | AF59: 0.0002455167705 | AG59: 1.268824394 | AH59: 0.04024313379 | AI59: 30.42745793 | AK59: 0.2122211754 | AL59: 0.6209700108 | AN59: 0 | AO59: 37.27554321 | AP59: 22.97251511 | AR59: 1 | AS59: 0.2157206131 | AT59: 0.0001636861998 | AU59: 0.5746269822 | AV59: 0.6209700108 | AW59: 0.009999999776 | AX59: 0.0002455167705 | AY59: 0.2157206131 | AZ59: 0.023846897 | BA59: 12768000.33 | BC59: 36940.73054
A60: 53 | B60: Muqshin | C60: 413968 | D60: 413133 | E60: 0.998 | F60: 3 | G60: 141 | H60: 56.25 | I60: 18.75 | J60: 10-23.5N | K60: 17.98 | L60: South Asia | M60: Indian Ocean | N60: Indian Ocean | O60: South Arabian Coast | Q60: 4.775924683 | R60: 172.371048 | S60: 110.3276062 | T60: 108.4190063 | U60: 609.4866943 | V60: 49.3579216 | W60: 21.28942299 | Y60: 138.4628754 | AA60: 0.552846491 | AB60: 5.403526873 | AC60: 0 | AD60: 0 | AE60: 0.1400000006 | AF60: 0 | AG60: 5.403526873 | AH60: 0 | AI60: 0 | AK60: 0.1692005247 | AL60: 0.483430028 | AN60: 0 | AO60: 27.27046585 | AP60: 17.57739639 | AR60: 1 | AS60: 0.8319123966 | AT60: 0 | AU60: 0.483430028 | AV60: 0.483430028 | AW60: 0.009999999776 | AX60: 0 | AY60: 0.8319123966 | AZ60: 0 | BA60: 0 | BC60: 0
A61: 54 | B61: Zhujiang | C61: 408043 | D61: 405810 | E61: 0.9945 | F61: 4 | G61: 145 | H61: 113.25 | I61: 22.25 | J61: 10-23.5N | K61: 24.26 | L61: South Asia | M61: Pacific Ocean | N61: Pacific Ocean | O61: North SouthChina Sea | Q61: 2440.480469 | R61: 2120.119873 | S61: 1569.604126 | T61: 502.1970825 | U61: 486.7526245 | V61: 1801.37146 | W61: 69.10668945 | Y61: 835.8922729 | AA61: 0.51620537 | AB61: 12.17467332 | AC61: 0.392127603 | AD61: 0.392127603 | AE61: 0.1400000006 | AF61: 0.004357973579 | AG61: 12.17467332 | AH61: 0.1083595982 | AI61: 48.38136114 | AK61: 0.2633161247 | AL61: 0.8332300186 | AN61: 322.0861511 | AO61: 421.2350159 | AP61: 272.0179138 | AR61: 1 | AS61: 2.226612326 | AT61: 0.05629076436 | AU61: 0.4978632629 | AV61: 0.8332300186 | AW61: 0.009999999776 | AX61: 0.004357973579 | AY61: 2.226612326 | AZ61: 0.051495934 | BA61: 19741675.74 | BC61: 316384.1352
A62: 55 | B62: Irrawaddy | C62: 405481 | D62: 403027 | E62: 0.9939 | F62: 4 | G62: 143 | H62: 95.25 | I62: 15.75 | J62: 10-23.5N | K62: 23.1 | L62: South Asia | M62: Indian Ocean | N62: Indian Ocean | O62: Adaman Sea | Q62: 309.760498 | R62: 775.725647 | S62: 1011.67749 | T62: 523.31427 | U62: 1574.337769 | V62: 373.5957947 | W62: 33.07947922 | Y62: 736.7299194 | AA62: 0.487857819 | AB62: 1.773550706 | AC62: 0.946389019 | AD62: 0.946389019 | AE62: 0.1400000006 | AF62: 0.01006455906 | AG62: 1.773550706 | AH62: 0.04432859046 | AI62: 1385.608932 | AK62: 0.3337810338 | AL62: 0.9536600113 | AN62: 30.75409126 | AO62: 149.3184662 | AP62: 170.5778961 | AR62: 1 | AS62: 0.3119988008 | AT62: 0.1693155915 | AU62: 0.9536600113 | AV62: 0.9536600113 | AW62: 0.009999999776 | AX62: 0.01006455906 | AY62: 0.3119988008 | AZ62: 0.025661816 | BA62: 561838095.5 | BC62: 1761091.413
A63: 56 | B63: Volta | C63: 397598 | D63: 383327 | E63: 0.9641 | F63: 4 | G63: 131 | H63: 0.25 | I63: 5.75 | J63: 0-10N | K63: 10.4 | L63: Africa | M63: Atlantic Ocean | N63: Atlantic Ocean | O63: Guinea Basin | Q63: 42.88049698 | R63: 836.0580444 | S63: 659.5883179 | T63: 205.348114 | U63: 1618.378418 | V63: 229.4287262 | W63: 38.83570862 | Y63: 348.7718811 | AA63: 0.485000014 | AB63: 0.2170075546 | AC63: 0.175339475 | AD63: 0.018653136 | AE63: 0.1400000006 | AF63: 0.0020286832 | AG63: 0.2170075546 | AH63: 0.2653267208 | AI63: 1.806895554 | AK63: 0.2301389426 | AL63: 0.9988300204 | AN63: 15.80214214 | AO63: 140.1048279 | AP63: 106.8674927 | AR63: 1 | AS63: 0.03820372214 | AT63: 0.01332407724 | AU63: 0.1629990786 | AV63: 0.9988300204 | AW63: 0.009999999776 | AX63: 0.0020286832 | AY63: 0.03820372214 | AZ63: 0.114722614 | BA63: 718418.0586 | BC63: 18190.03874
A64: 57 | B64: GHAASBasin57 | C64: 373500 | D64: 373109 | E64: 0.999 | F64: 4 | G64: 153 | H64: 53.75 | I64: 39.75 | J64: 35-50N | K64: 37.66 | L64: South Asia | M64: Land | N64: Caspian Sea | O64: South East Caspian Sea | Q64: 237.6412354 | R64: 394.7844849 | S64: 324.891571 | T64: 360.3935852 | U64: 195.799469 | V64: 162.4741669 | W64: 70.13119507 | Y64: 64.11057281 | AA64: 0.521650791 | AB64: 3.931633469 | AC64: 0.010121749 | AD64: 0.010121749 | AE64: 0.1400000006 | AF64: 0.0001350583043 | AG64: 3.931633469 | AH64: 0.07514136855 | AI64: 7.770110813 | AK64: 0.2324840128 | AL64: 0.6642400026 | AN64: 19.86139297 | AO64: 67.36412048 | AP64: 53.77456665 | AR64: 1 | AS64: 0.6845849524 | AT64: 4.653136421e-05 | AU64: 0.6642400026 | AV64: 0.6642400026 | AW64: 0.009999999776 | AX64: 0.0001350583043 | AY64: 0.6845849524 | AZ64: 0.037820489 | BA64: 2902136.389 | BC64: 22939.48322
A65: 58 | B65: Khatanga | C65: 369915 | D65: 367299 | E65: 0.9929 | F65: 5 | G65: 356 | H65: 106.25 | I65: 73.25 | J65: 66-90N | K65: 70.15 | L65: North Asia | M65: Arctic Ocean | N65: Laptev Sea | O65: Laptev Sea | Q65: 0 | R65: 0 | S65: 0 | T65: 0 | U65: 365.8353882 | V65: 0 | W65: 0 | Y65: 58.84892654 | AA65: 0.552574933 | AB65: 5.248839701 | AC65: 0.113617994 | AD65: 0.113617994 | AE65: 0.1400000006 | AF65: 0.001343393582 | AG65: 5.248839701 | AH65: 0.2592136046 | AI65: 18.84428843 | AK65: 0.2955960333 | AL65: 0.8445600271 | AN65: 0 | AO65: 0 | AP65: 0 | AR65: 1 | AS65: 0.9251720417 | AT65: 0.005747835618 | AU65: 0.8445600271 | AV65: 0.8445600271 | AW65: 0.009999999776 | AX65: 0.001343393582 | AY65: 0.9251720417 | AZ65: 0.112158115 | BA65: 6970784.956 | BC65: 142118.3495
A66: 59 | B66: Dvina | C66: 360513 | D66: 359237 | E66: 0.9965 | F66: 4 | G66: 248 | H66: 40.25 | I66: 64.75 | J66: 50-66N | K66: 61.84 | L66: Europe | M66: Arctic Ocean | N66: Barents Sea | O66: Barents Sea | Q66: 4.736084461 | R66: 6.779977322 | S66: 10.50830364 | T66: 4.375209808 | U66: 1579.482544 | V66: 4.192026138 | W66: 0.8434647322 | Y66: 399.2366333 | AA66: 0.552574933 | AB66: 5.402470301 | AC66: 0.213550374 | AD66: 0.213550374 | AE66: 0.1400000006 | AF66: 0.00244654878 | AG66: 5.402470301 | AH66: 0.5565078006 | AI66: 9.678589936 | AK66: 0.3500000238 | AL66: 1 | AN66: 0.7679085135 | AO66: 1.488279223 | AP66: 1.897152066 | AR66: 1 | AS66: 0.9522513096 | AT66: 0.01933479309 | AU66: 1 | AV66: 1 | AW66: 0.009999999776 | AX66: 0.00244654878 | AY66: 0.9522513096 | AZ66: 0.23202261 | BA66: 3489257.494 | BC66: 204106.0671
A67: 60 | B67: Urugay | C67: 355084 | D67: 352235 | E67: 0.992 | F67: 4 | G67: 133 | H67: -58.25 | I67: -33.75 | J67: 23.5-35S | K67: -30.04 | L67: South America | M67: Atlantic Ocean | N67: Atlantic Ocean | O67: Rio de la Plata Coast | Q67: 437.6682434 | R67: 2431.838623 | S67: 1994.361938 | T67: 423.3787231 | U67: 290.9480591 | V67: 786.760376 | W67: 81.05856323 | Y67: 181.5049438 | AA67: 0.505684137 | AB67: 3.459053663 | AC67: 0.458050251 | AD67: 0.458050251 | AE67: 0.1400000006 | AF67: 0.005051216576 | AG67: 3.459053663 | AH67: 0.6024310923 | AI67: 2.559091907 | AK67: 0.2727840841 | AL67: 0.9818999767 | AN67: 261.1534119 | AO67: 430.8529663 | AP67: 346.7010498 | AR67: 1 | AS67: 0.5759368215 | AT67: 0.07173321396 | AU67: 0.1472849697 | AV67: 0.9818999767 | AW67: 0.009999999776 | AX67: 0.005051216576 | AY67: 0.5759368215 | AZ67: 0.250833052 | BA67: 908692.5906 | BC67: 208178.3077
A68: 61 | B68: Dzungarian | C68: 337755 | D68: 337342 | E68: 0.9988 | F68: 4 | G68: 154 | H68: 85.75 | I68: 45.75 | J68: 35-50N | K68: 44.71 | L68: North Asia | M68: Land | N68: Land | O68: Land | Q68: 148.220459 | R68: 569.4985962 | S68: 408.1864319 | T68: 124.1077118 | U68: 374.6443481 | V68: 38.68277359 | W68: 24.67226219 | Y68: 112.1049271 | AA68: 0.516255558 | AB68: 64.18382666 | AC68: 0.00319111 | AD68: 0.00319111 | AE68: 0.1400000006 | AF68: 4.51100459e-05 | AG68: 64.18382666 | AH68: 0.1658151903 | AI68: 82.74903066 | AK68: 0.2732695341 | AL68: 0.7807700038 | AN68: 26.75122452 | AO68: 86.8526001 | AP68: 63.24051285 | AR68: 1 | AS68: 11.79043734 | AT68: 4.625738256e-06 | AU68: 0.7807700038 | AV68: 0.7807700038 | AW68: 0.009999999776 | AX68: 4.51100459e-05 | AY68: 11.79043734 | AZ68: 0.074635012 | BA68: 27948898.85 | BC68: 32951.63065
A69: 62 | B69: GHAASBasin62 | C69: 337495 | D69: 336888 | E69: 0.9982 | F69: 4 | G69: 123 | H69: 15.75 | I69: 31.25 | J69: 23.5-35N | K69: 27.2 | L69: Africa | M69: Mediterranean+Black Sea | N69: Mediterranean Sea | O69: South Ionian Sea | Q69: 0 | R69: 1.445680618 | S69: 4.807301044 | T69: 7.269529819 | U69: 768.239502 | V69: 2.512976408 | W69: 1.45390594 | Y69: 108.0220413 | AA69: 0.503642082 | AB69: 4.855968181 | AC69: 0 | AD69: 0 | AE69: 0.1400000006 | AF69: 0 | AG69: 4.855968181 | AH69: 0 | AI69: 0 | AK69: 0.3500000238 | AL69: 1 | AN69: 0 | AO69: 0.2124126405 | AP69: 0.7252463102 | AR69: 1 | AS69: 0.8562574638 | AT69: 0 | AU69: 1 | AV69: 1 | AW69: 0.009999999776 | AX69: 0 | AY69: 0.8562574638 | AZ69: 0 | BA69: 0 | BC69: 0
A70: 63 | B70: Indigirka | C70: 333729 | D70: 333554 | E70: 0.9995 | F70: 4 | G70: 274 | H70: 149.75 | I70: 71.25 | J70: 66-90N | K70: 66.51 | L70: North Asia | M70: Arctic Ocean | N70: East Siberian Sea | O70: East Siberian Sea | Q70: 0 | R70: 0 | S70: 0 | T70: 0 | U70: 437.8103333 | V70: 0 | W70: 0 | Y70: 46.69626999 | AA70: 0.552574992 | AB70: 54.42892842 | AC70: 0.083945379 | AD70: 0.083945379 | AE70: 0.1400000006 | AF70: 0.001007686718 | AG70: 54.42892842 | AH70: 0.2577926027 | AI70: 14.03586429 | AK70: 0.3500000238 | AL70: 1 | AN70: 0 | AO70: 0 | AP70: 0 | AR70: 1 | AS70: 9.593762757 | AT70: 0.003166142153 | AU70: 1 | AV70: 1 | AW70: 0.009999999776 | AX70: 0.001007686718 | AY70: 9.593762757 | AZ70: 0.111505803 | BA70: 4684174.952 | BC70: 71767.41358
A71: 64 | B71: GHAASBasin64 | C71: 332518 | D71: 332099 | E71: 0.9987 | F71: 4 | G71: 130 | H71: 53.25 | I71: 34.25 | J71: 23.5-35N | K71: 33.99 | L71: South Asia | M71: Land | N71: Land | O71: Land | Q71: 113.5848312 | R71: 225.2651062 | S71: 185.2441101 | T71: 97.27954865 | U71: 553.7715454 | V71: 63.99683762 | W71: 18.96766472 | Y71: 244.6673737 | AA71: 0.556718707 | AB71: 9.344025745 | AC71: 0 | AD71: 0 | AE71: 0.1400000006 | AF71: 0 | AG71: 9.344025745 | AH71: 0 | AI71: 0 | AK71: 0.2010120004 | AL71: 0.5743199587 | AN71: 24.29606819 | AO71: 39.9596405 | AP71: 30.54000092 | AR71: 1 | AS71: 1.543338456 | AT71: 0 | AU71: 0.5743199587 | AV71: 0.5743199587 | AW71: 0.009999999776 | AX71: 0 | AY71: 1.543338456 | AZ71: 0 | BA71: 0 | BC71: 0
A72: 65 | B72: Parnaiba | C72: 330585 | D72: 329569 | E72: 0.9969 | F72: 4 | G72: 108 | H72: -41.75 | I72: -3.25 | J72: 0-10S | K72: -7.29 | L72: South America | M72: Atlantic Ocean | N72: Atlantic Ocean | O72: Ceara Abyssal Plain | Q72: 234.6924438 | R72: 1403.639038 | S72: 1247.639771 | T72: 256.8588867 | U72: 1409.697876 | V72: 269.1271667 | W72: 49.01583481 | Y72: 274.6624756 | AA72: 0.508906186 | AB72: 6.869036415 | AC72: 0.266557842 | AD72: 0.028357217 | AE72: 0.1400000006 | AF72: 0.00302016316 | AG72: 6.869036415 | AH72: 0.4627198115 | AI72: 10.27020895 | AK72: 0.3246409893 | AL72: 0.9965999722 | AN72: 129.4338837 | AO72: 249.4396362 | AP72: 215.6005402 | AR72: 1 | AS72: 1.141210214 | AT72: 0.02904401161 | AU72: 0.6614333987 | AV72: 0.9965999722 | AW72: 0.009999999776 | AX72: 0.00302016316 | AY72: 1.141210214 | AZ72: 0.194315858 | BA72: 3395177.025 | BC72: 203493.748
A73: 66 | B73: Pechora | C73: 313916 | D73: 311555 | E73: 0.9925 | F73: 4 | G73: 244 | H73: 54.25 | I73: 68.25 | J73: 66-90N | K73: 65.25 | L73: Europe | M73: Arctic Ocean | N73: Barents Sea | O73: Barents Sea | Q73: 0 | R73: 0 | S73: 0 | T73: 0 | U73: 394.2965698 | V73: 0 | W73: 0 | Y73: 212.7578735 | AA73: 0.552574933 | AB73: 3.226653715 | AC73: 0.234673887 | AD73: 0.234673887 | AE73: 0.1400000006 | AF73: 0.002675900934 | AG73: 3.226653715 | AH73: 0.5011685639 | AI73: 12.99924327 | AK73: 0.3500000238 | AL73: 1 | AN73: 0 | AO73: 0 | AP73: 0 | AR73: 1 | AS73: 0.5687370877 | AT73: 0.02303021774 | AU73: 1 | AV73: 1 | AW73: 0.009999999776 | AX73: 0.002675900934 | AY73: 0.5687370877 | AZ73: 0.209732538 | BA73: 4080670.452 | BC73: 248975.063
A74: 67 | B74: Godavari | C74: 311206 | D74: 310324 | E74: 0.9972 | F74: 4 | G74: 107 | H74: 81.75 | I74: 16.75 | J74: 10-23.5N | K74: 19.57 | L74: South Asia | M74: Indian Ocean | N74: Indian Ocean | O74: East Deccan Coast | Q74: 2158.242432 | R74: 1786.112793 | S74: 1392.601685 | T74: 619.3999634 | U74: 1644.107178 | V74: 640.6206665 | W74: 39.20907593 | Y74: 1109.650757 | AA74: 0.516875029 | AB74: 32.7568061 | AC74: 0.339381188 | AD74: 0.036104381 | AE74: 0.1400000006 | AF74: 0.003799110185 | AG74: 32.7568061 | AH74: 0.08998563954 | AI74: 200.7325839 | AK74: 0.2307558209 | AL74: 0.6720100045 | AN74: 365.1343384 | AO74: 372.2518311 | AP74: 239.2961578 | AR74: 1 | AS74: 5.898373605 | AT74: 0.0443244949 | AU74: 0.6360709071 | AV74: 0.6720100045 | AW74: 0.009999999776 | AX74: 0.003799110185 | AY74: 5.898373605 | AZ74: 0.044038536 | BA74: 62469184.52 | BC74: 498087.4037
A75: 68 | B75: Churchill (Hudson Bay) | C75: 303135 | D75: 278257 | E75: 0.9179 | F75: 4 | G75: 177 | H75: -94.25 | I75: 58.75 | J75: 50-66N | K75: 56.25 | L75: North America | M75: Atlantic Ocean | N75: Hudson Bay | O75: West Hudson Bay | Q75: 119.6334991 | R75: 10.69289303 | S75: 129.218338 | T75: 30.73986816 | U75: 154.0584259 | V75: 11.43820381 | W75: 4.754614353 | Y75: 151.5944977 | AA75: 0.635131717 | AB75: 0.05339338709 | AC75: 0.142763034 | AD75: 0.142763034 | AE75: 0.1400000006 | AF75: 0.001668835524 | AG75: 0.05339338709 | AH75: 0.6186964674 | AI75: 5.237758628 | AK75: 0.226012513 | AL75: 0.6457499862 | AN75: 20.54870033 | AO75: 1.826519489 | AP75: 23.41240692 | AR75: 1 | AS75: 0.008605168523 | AT75: 0.008971965872 | AU75: 0.6457499862 | AV75: 0.6457499862 | AW75: 0.009999999776 | AX75: 0.001668835524 | AY75: 0.008605168523 | AZ75: 0.256783446 | BA75: 1587747.962 | BC75: 161775.3702
A76: 69 | B76: KAZAN/ Baker | C76: 303115 | D76: 280632 | E76: 0.9258 | F76: 4 | G76: 219 | H76: -90.75 | I76: 63.25 | J76: 50-66N | K76: 63.28 | L76: North America | M76: Atlantic Ocean | N76: Hudson Bay | O76: West Hudson Bay | Q76: 0 | R76: 0 | S76: 0 | T76: 0 | U76: 455.8731689 | V76: 0 | W76: 0 | Y76: 49.84148026 | AA76: 0.635131061 | AB76: 0.09033446635 | AC76: 0.101519622 | AD76: 0.101519622 | AE76: 0.1400000006 | AF76: 0.001207121648 | AG76: 0.09033446635 | AH76: 0.5441770546 | AI76: 4.806174794 | AK76: 0.3500000238 | AL76: 1 | AN76: 0 | AO76: 0 | AP76: 0 | AR76: 1 | AS76: 0.01455879367 | AT76: 0.004607329611 | AU76: 1 | AV76: 1 | AW76: 0.009999999776 | AX76: 0.001207121648 | AY76: 0.01455879367 | AZ76: 0.226692096 | BA76: 1456823.673 | BC76: 33698.11858
A77: 70 | B77: Ural | C77: 295931 | D77: 295273 | E77: 0.9978 | F77: 3 | G77: 151 | H77: 51.75 | I77: 47.25 | J77: 35-50N | K77: 50.54 | L77: North Asia | M77: Land | N77: Caspian Sea | O77: North East Caspian Sea | Q77: 121.9216614 | R77: 220.5936584 | S77: 463.5742798 | T77: 452.0986328 | U77: 35.17103577 | V77: 497.4605713 | W77: 89.83547211 | Y77: 52.95930481 | AA77: 0.525839806 | AB77: 4.698834187 | AC77: 0.030098351 | AD77: 0.030098351 | AE77: 0.1400000006 | AF77: 0.0003803155851 | AG77: 4.698834187 | AH77: 0.1234976159 | AI77: 12.19622074 | AK77: 0.3051163554 | AL77: 0.9094200134 | AN77: 15.65780544 | AO77: 40.41077042 | AP77: 79.5489502 | AR77: 1 | AS77: 0.8580953356 | AT77: 0.0004109357542 | AU77: 0.8505805135 | AV77: 0.9094200134 | AW77: 0.009999999776 | AX77: 0.0003803155851 | AY77: 0.8580953356 | AZ77: 0.057319124 | BA77: 3609239.8 | BC77: 32270.56459
A78: 71 | B78: GHAASBasin71 | C78: 12096.40039 | D78: 12096.40039 | E78: 1 | F78: 5 | G78: 27 | H78: -23.75 | I78: 82.75 | J78: 66-90N | K78: 81.64 | L78: North America | M78: Arctic Ocean | N78: Greenland Sea | O78: North Greenland Coast | Q78: 0 | R78: 0 | S78: 0 | T78: 0 | U78: 0 | V78: 0 | W78: 0 | Y78: 384.628479 | AA78: 0.485000014 | AB78: 0 | AC78: 0.035657972 | AD78: 0.035657972 | AE78: 0.1400000006 | AF78: 0.0004467631807 | AG78: 0 | AH78: 0 | AI78: 0 | AK78: 0.4755598903 | AL78: 1 | AN78: 0 | AO78: 0 | AP78: 0 | AR78: 1 | AS78: 0 | AT78: 0.0005764392554 | AU78: 1 | AV78: 1 | AW78: 0.009999999776 | AX78: 0.0004467631807 | AY78: 0 | AZ78: 0 | BA78: 0 | BC78: 1024.236866
A79: 72 | B79: Neva | C79: 284166 | D79: 240726 | E79: 0.8471 | F79: 5 | G79: 189 | H79: 29.25 | I79: 60.25 | J79: 50-66N | K79: 60.72 | L79: Europe | M79: Atlantic Ocean | N79: Baltic Sea | O79: Baltic Sea | Q79: 13.16030025 | R79: 18.74510002 | S79: 29.02651978 | T79: 12.39286232 | U79: 1295.186646 | V79: 12.36266804 | W79: 2.33198905 | Y79: 536.1338501 | AA79: 0.575348616 | AB79: 0.1259578222 | AC79: 0.240801096 | AD79: 0.240801096 | AE79: 0.1400000006 | AF79: 0.002742231125 | AG79: 0.1259578222 | AH79: 0.7332101175 | AI79: 3.509534704 | AK79: 0.3009033203 | AL79: 0.9789500237 | AN79: 2.139235497 | AO79: 4.114742756 | AP79: 5.228246689 | AR79: 1 | AS79: 0.01898417011 | AT79: 0.02414708398 | AU79: 0.5259213448 | AV79: 0.9789500237 | AW79: 0.009999999776 | AX79: 0.002742231125 | AY79: 0.01898417011 | AZ79: 0.303037581 | BA79: 997290.4387 | BC79: 95201.2617
A80: 73 | B80: GHAASBasin73 | C80: 276146 | D80: 268046 | E80: 0.9707 | F80: 4 | G80: 97 | H80: 127.25 | I80: -20.25 | J80: 10-23.5S | K80: -22.66 | L80: Australia | M80: Land | N80: Land | O80: Land | Q80: 0 | R80: 420.2885437 | S80: 317.658783 | T80: 444.489502 | U80: 52.98574066 | V80: 130.4802551 | W80: 88.89753723 | Y80: 13.14105606 | AA80: 0.574568748 | AB80: 0.2831726081 | AC80: 0.003250105 | AD80: 0.003250105 | AE80: 0.1400000006 | AF80: 4.590194658e-05 | AG80: 0.2831726081 | AH80: 0.1059225726 | AI80: 43.00669486 | AK80: 0.3500000238 | AL80: 1 | AN80: 0 | AO80: 67.12355041 | AP80: 51.4354744 | AR80: 1 | AS80: 0.04884396495 | AT80: 4.798351256e-06 | AU80: 1 | AV80: 1 | AW80: 0.009999999776 | AX80: 4.590194658e-05 | AY80: 0.04884396495 | AZ80: 0.050337013 | BA80: 11876126.76 | BC80: 19233.19546
A81: 74 | B81: HUN/ Liao | C81: 273728 | D81: 273343 | E81: 0.9986 | F81: 4 | G81: 122 | H81: 122.25 | I81: 40.75 | J81: 35-50N | K81: 43.35 | L81: South Asia | M81: Pacific Ocean | N81: Pacific Ocean | O81: Pohai Gulf | Q81: 2362.955078 | R81: 1620.232544 | S81: 1497.208862 | T81: 482.5776062 | U81: 132.6302032 | V81: 861.055542 | W81: 88.19704437 | Y81: 138.9116211 | AA81: 0.516875029 | AB81: 77.13960121 | AC81: 0.040336881 | AD81: 0.040336881 | AE81: 0.1400000006 | AF81: 0.0005022798432 | AG81: 77.13960121 | AH81: 0.1696791629 | AI81: 7.613731771 | AK81: 0.1561659575 | AL81: 0.5065200329 | AN81: 191.7940369 | AO81: 298.6855469 | AP81: 252.5393982 | AR81: 1 | AS81: 14.17223841 | AT81: 0.0007372308755 | AU81: 0.3401281834 | AV81: 0.5065200329 | AW81: 0.009999999776 | AX81: 0.0005022798432 | AY81: 14.17223841 | AZ81: 0.075909732 | BA81: 2084091.57 | BC81: 67538.49179
A82: 75 | B82: Salween | C82: 273038 | D82: 268523 | E82: 0.9835 | F82: 3 | G82: 99 | H82: 97.25 | I82: 16.75 | J82: 10-23.5N | K82: 25.97 | L82: South Asia | M82: Indian Ocean | N82: Indian Ocean | O82: Adaman Sea | Q82: 315.7966919 | R82: 503.4134827 | S82: 498.395813 | T82: 383.1737671 | U82: 1043.884033 | V82: 301.7133179 | W82: 50.77717972 | Y82: 547.6380615 | AA82: 0.503370523 | AB82: 2.771478853 | AC82: 0.396769375 | AD82: 0.396769375 | AE82: 0.1400000006 | AF82: 0.004406966735 | AG82: 2.771478853 | AH82: 0.03843988467 | AI82: 1205.581969 | AK82: 0.3444665074 | AL82: 0.9841899872 | AN82: 35.05533981 | AO82: 94.01402283 | AP82: 83.99673462 | AR82: 1 | AS82: 0.5035586649 | AT82: 0.05736613646 | AU82: 0.9841899872 | AV82: 0.9841899872 | AW82: 0.009999999776 | AX82: 0.004406966735 | AY82: 0.5035586649 | AZ82: 0.023249595 | BA82: 329169689.6 | BC82: 611575.036
A83: 76 | B83: Dead Sea | C83: 265970 | D83: 264930 | E83: 0.9961 | F83: 3 | G83: 100 | H83: 35.25 | I83: 31.75 | J83: 23.5-35N | K83: 30.45 | L83: South Asia | M83: Land | N83: Land | O83: Land | Q83: 216.3262787 | R83: 330.2323608 | S83: 224.8742371 | T83: 90.42861938 | U83: 642.4370728 | V83: 76.98950958 | W83: 17.06293869 | Y83: 246.3228912 | AA83: 0.554239273 | AB83: 22.75081863 | AC83: 0.00708847 | AD83: 0.00708847 | AE83: 0.1400000006 | AF83: 9.62838385e-05 | AG83: 22.75081863 | AH83: 0.03759505376 | AI83: 19.61840265 | AK83: 0.2580339909 | AL83: 0.7372399569 | AN83: 43.14133072 | AO83: 59.11456299 | AP83: 38.36598206 | AR83: 1 | AS83: 3.761657281 | AT83: 2.282312926e-05 | AU83: 0.7372399569 | AV83: 0.7372399569 | AW83: 0.009999999776 | AX83: 9.62838385e-05 | AY83: 3.761657281 | AZ83: 0.022739707 | BA83: 5217906.552 | BC83: 22976.87947
A84: 77 | B84: Magdalena | C84: 251445 | D84: 250238 | E84: 0.9952 | F84: 3 | G84: 82 | H84: -74.75 | I84: 10.75 | J84: 10-23.5N | K84: 6.3 | L84: South America | M84: Atlantic Ocean | N84: Caribbean Sea | O84: South Colombia Basin | Q84: 806.0689087 | R84: 2514.048828 | S84: 1692.139404 | T84: 381.867218 | U84: 576.6947632 | V84: 643.5602417 | W84: 75.20650482 | Y84: 231.8686066 | AA84: 0.499662548 | AB84: 13.50779099 | AC84: 0.796733618 | AD84: 0.0847589 | AE84: 0.1400000006 | AF84: 0.008546258323 | AG84: 13.50779099 | AH84: 0.1204349039 | AI84: 285.4709839 | AK84: 0.3285139799 | AL84: 0.9743099809 | AN84: 139.3811798 | AO84: 459.0665894 | AP84: 289.9878845 | AR84: 1 | AS84: 2.232888915 | AT84: 0.1445881277 | AU84: 0.7711955905 | AV84: 0.9743099809 | AW84: 0.009999999776 | AX84: 0.008546258323 | AY84: 2.232888915 | AZ84: 0.056397664 | BA84: 71780251.56 | BC84: 1539697.071
A85: 78 | B85: Krishna | C85: 251385 | D85: 250090 | E85: 0.9948 | F85: 3 | G85: 85 | H85: 80.75 | I85: 16.25 | J85: 10-23.5N | K85: 16.64 | L85: South Asia | M85: Indian Ocean | N85: Indian Ocean | O85: East Deccan Coast | Q85: 4478.389648 | R85: 3597.517578 | S85: 2671.830078 | T85: 1246.414795 | U85: 517.807373 | V85: 1140.815918 | W85: 80.75223541 | Y85: 272.4474487 | AA85: 0.516875029 | AB85: 17.05463042 | AC85: 0.144815743 | AD85: 0.015405931 | AE85: 0.1400000006 | AF85: 0.001691622892 | AG85: 17.05463042 | AH85: 0.0488297489 | AI85: 14.9030007 | AK85: 0.02657354623 | AL85: 0.2483299971 | AN85: 761.0279541 | AO85: 757.7978516 | AP85: 457.0957031 | AR85: 1 | AS85: 3.070952082 | AT85: 0.009223561734 | AU85: 0.03724949434 | AV85: 0.2483299971 | AW85: 0.009999999776 | AX85: 0.001691622892 | AY85: 3.070952082 | AZ85: 0.027368087 | BA85: 3746390.83 | BC85: 21341.65921
A86: 79 | B86: Salado | C86: 251162 | D86: 249499 | E86: 0.9934 | F86: 4 | G86: 100 | H86: -57.25 | I86: -35.75 | J86: 35-50S | K86: -35.53 | L86: South America | M86: Atlantic Ocean | N86: Atlantic Ocean | O86: Pampa Coast | Q86: 356.2796326 | R86: 1549.227173 | S86: 1511.697632 | T86: 479.4156799 | U86: 72.19722748 | V86: 510.0691834 | W86: 95.95559692 | Y86: 17.16740608 | AA86: 0.510181248 | AB86: 2.229613638 | AC86: 0.054109074 | AD86: 0.054109074 | AE86: 0.1400000006 | AF86: 0.0006639497005 | AG86: 2.229613638 | AH86: 0.2102429592 | AI86: 12.08131789 | AK86: 0.349902004 | AL86: 0.9997199774 | AN86: 101.7916718 | AO86: 273.9458923 | AP86: 258.1142883 | AR86: 1 | AS86: 0.3736413846 | AT86: 0.001323906821 | AU86: 0.9997199774 | AV86: 0.9997199774 | AW86: 0.009999999776 | AX86: 0.0006639497005 | AY86: 0.3736413846 | AZ86: 0.092248777 | BA86: 3034367.964 | BC86: 92139.35092
A87: 80 | B87: GHAASBasin80 | C87: 248441 | D87: 248081 | E87: 0.9986 | F87: 4 | G87: 94 | H87: 58.75 | I87: 29.75 | J87: 23.5-35N | K87: 31.08 | L87: South Asia | M87: Land | N87: Land | O87: Land | Q87: 6.528390884 | R87: 9.69686985 | S87: 11.52937698 | T87: 6.021348953 | U87: 702.6456909 | V87: 3.648946762 | W87: 1.20427382 | Y87: 268.5655823 | AA87: 0.556718886 | AB87: 8.122594643 | AC87: 0 | AD87: 0 | AE87: 0.1400000006 | AF87: 0 | AG87: 8.122594643 | AH87: 0 | AI87: 0 | AK87: 0.1957620084 | AL87: 0.559319973 | AN87: 1.377667189 | AO87: 1.85080564 | AP87: 1.899380565 | AR87: 1 | AS87: 1.341596547 | AT87: 0 | AU87: 0.559319973 | AV87: 0.559319973 | AW87: 0.009999999776 | AX87: 0 | AY87: 1.341596547 | AZ87: 0 | BA87: 0 | BC87: 0
A88: 81 | B88: Hai Ho/ Yongding | C88: 245120 | D88: 244616 | E88: 0.9979 | F88: 4 | G88: 102 | H88: 117.25 | I88: 39.25 | J88: 35-50N | K88: 38.83 | L88: South Asia | M88: Pacific Ocean | N88: Pacific Ocean | O88: Pohai Gulf | Q88: 7293.203125 | R88: 3892.220215 | S88: 3649.841064 | T88: 743.4725952 | U88: 36.48931122 | V88: 1355.287231 | W88: 86.25693512 | Y88: 162.3209076 | AA88: 0.516875029 | AB88: 44.87016169 | AC88: 0.026282188 | AD88: 0.026282188 | AE88: 0.1400000006 | AF88: 0.0003343543212 | AG88: 44.87016169 | AH88: 0.03841927928 | AI88: 25.2430946 | AK88: 0.06079246849 | AL88: 0.2807700038 | AN88: 916.1063843 | AO88: 733.9507446 | AP88: 620.1004028 | AR88: 1 | AS88: 8.243633865 | AT88: 0.0003134424041 | AU88: 0.1030257493 | AV88: 0.2807700038 | AW88: 0.009999999776 | AX88: 0.0003343543212 | AY88: 8.243633865 | AZ88: 0.023125419 | BA88: 6187587.348 | BC88: 33549.13759
A89: 82 | B89: Huai | C89: 244004 | D89: 237192 | E89: 0.9721 | F89: 4 | G89: 95 | H89: 120.25 | I89: 34.25 | J89: 23.5-35N | K89: 33.68 | L89: South Asia | M89: Pacific Ocean | N89: Pacific Ocean | O89: West Yellow Sea | Q89: 14600.53906 | R89: 5797.855957 | S89: 7189.84082 | T89: 1008.196594 | U89: 97.19594574 | V89: 2778.204346 | W89: 91.10424042 | Y89: 192.7542114 | AA89: 0.516875029 | AB89: 2.925552625 | AC89: 0.107509971 | AD89: 0.107509971 | AE89: 0.1400000006 | AF89: 0.001274690731 | AG89: 2.925552625 | AH89: 0.04840133858 | AI89: 123.540823 | AK89: 0.101835832 | AL89: 0.3093799949 | AN89: 2248.626953 | AO89: 1120.395508 | AP89: 1239.963257 | AR89: 1 | AS89: 0.5374882502 | AT89: 0.005157143809 | AU89: 0.2798806131 | AV89: 0.3093799949 | AW89: 0.009999999776 | AX89: 0.001274690731 | AY89: 0.5374882502 | AZ89: 0.027179737 | BA89: 30144454.98 | BC89: 158123.7343
A90: 83 | B90: Fraser | C90: 237222 | D90: 235383 | E90: 0.9922 | F90: 4 | G90: 126 | H90: -122.75 | I90: 49.25 | J90: 35-50N | K90: 52.36 | L90: North America | M90: Pacific Ocean | N90: Pacific Ocean | O90: North Cascadia Basin | Q90: 72.83641815 | R90: 105.0349426 | S90: 86.79506683 | T90: 27.56139755 | U90: 466.786377 | V90: 9.495788574 | W90: 3.227091074 | Y90: 144.984024 | AA90: 0.635130525 | AB90: 0.4662328311 | AC90: 0.401178718 | AD90: 0.401178718 | AE90: 0.1400000006 | AF90: 0.004453480244 | AG90: 0.4662328311 | AH90: 0.05626852692 | AI90: 54.23293913 | AK90: 0.2709521949 | AL90: 0.982460022 | AN90: 12.55098629 | AO90: 20.03561974 | AP90: 15.53561687 | AR90: 1 | AS90: 0.07514061761 | AT90: 0.05839010701 | AU90: 0.4026121199 | AV90: 0.982460022 | AW90: 0.009999999776 | AX90: 0.004453480244 | AY90: 0.07514061761 | AZ90: 0.0304172 | BA90: 12865246.29 | BC90: 69418.92891
A91: 84 | B91: Ruo Dong | C91: 233948 | D91: 233426 | E91: 0.9978 | F91: 4 | G91: 101 | H91: 100.75 | I91: 42.25 | J91: 35-50N | K91: 41.31 | L91: South Asia | M91: Land | N91: Land | O91: Land | Q91: 12.19245338 | R91: 190.0413818 | S91: 130.9508972 | T91: 136.6175385 | U91: 362.1133728 | V91: 39.93434525 | W91: 27.34710312 | Y91: 106.8019409 | AA91: 0.51632607 | AB91: 32.7645671 | AC91: 0 | AD91: 0 | AE91: 0.1400000006 | AF91: 0 | AG91: 32.7645671 | AH91: 0 | AI91: 0 | AK91: 0.2809380293 | AL91: 0.8026800156 | AN91: 3.299122095 | AO91: 28.4294796 | AP91: 19.98627853 | AR91: 1 | AS91: 6.018886307 | AT91: 0 | AU91: 0.8026800156 | AV91: 0.8026800156 | AW91: 0.009999999776 | AX91: 0 | AY91: 6.018886307 | AZ91: 0 | BA91: 0 | BC91: 0
A92: 85 | B92: Lake Rudolf | C92: 230559 | D92: 220792 | E92: 0.9576 | F92: 4 | G92: 75 | H92: 36.25 | I92: 3.75 | J92: 0-10N | K92: 4.84 | L92: Africa | M92: Land | N92: Land | O92: Land | Q92: 90.22766113 | R92: 2196.760986 | S92: 1297.602905 | T92: 363.8643494 | U92: 684.4235229 | V92: 448.7571411 | W92: 53.1521225 | Y92: 334.0606995 | AA92: 0.493953764 | AB92: 0.08216604759 | AC92: 0.222576216 | AD92: 0.222576216 | AE92: 0.1400000006 | AF92: 0.002544681076 | AG92: 0.08216604759 | AH92: 0.03740639025 | AI92: 495.0680209 | AK92: 0.3495170176 | AL92: 0.9986199737 | AN92: 45.25652695 | AO92: 374.0595703 | AP92: 213.3323822 | AR92: 1 | AS92: 0.0140114033 | AT92: 0.02088354342 | AU92: 0.9986199737 | AV92: 0.9986199737 | AW92: 0.009999999776 | AX92: 0.002544681076 | AY92: 0.0140114033 | AZ92: 0.022787805 | BA92: 114142387.8 | BC92: 667414.698
A93: 86 | B93: GHAASBasin86 | C93: 230460 | D93: 226072 | E93: 0.981 | F93: 4 | G93: 85 | H93: 126.25 | I93: -32.25 | J93: 23.5-35S | K93: -28.53 | L93: Australia | M93: Indian Ocean | N93: Indian Ocean | O93: Great Australian Bay | Q93: 0 | R93: 455.1766052 | S93: 344.0293274 | T93: 481.3894043 | U93: 10.82435131 | V93: 78.65660095 | W93: 96.27744293 | Y93: 1.627167463 | AA93: 0.574568689 | AB93: 0.4789932035 | AC93: 0 | AD93: 0 | AE93: 0.1400000006 | AF93: 0 | AG93: 0.4789932035 | AH93: 0 | AI93: 0 | AK93: 0.3500000238 | AL93: 1 | AN93: 0 | AO93: 72.69548035 | AP93: 55.70554733 | AR93: 1 | AS93: 0.08262072875 | AT93: 0 | AU93: 1 | AV93: 1 | AW93: 0.009999999776 | AX93: 0 | AY93: 0.08262072875 | AZ93: 0 | BA93: 0 | BC93: 0
A94: 87 | B94: Anadyr | C94: 225578 | D94: 223648 | E94: 0.9914 | F94: 4 | G94: 175 | H94: 177.75 | I94: 64.75 | J94: 50-66N | K94: 65.27 | L94: North Asia | M94: Pacific Ocean | N94: Bering Strait | O94: Anadyr Gulf | Q94: 0 | R94: 0 | S94: 0 | T94: 0 | U94: 432.4273376 | V94: 0 | W94: 0 | Y94: 36.88165665 | AA94: 0.552575111 | AB94: 2.778823768 | AC94: 0.150227979 | AD94: 0.150227979 | AE94: 0.1400000006 | AF94: 0.001751627773 | AG94: 2.778823768 | AH94: 0.4749614364 | AI94: 9.195002744 | AK94: 0.3296720088 | AL94: 0.9419199824 | AN94: 0 | AO94: 0 | AP94: 0 | AR94: 1 | AS94: 0.4898015954 | AT94: 0.009901892394 | AU94: 0.9419199824 | AV94: 0.9419199824 | AW94: 0.009999999776 | AX94: 0.001751627773 | AY94: 0.4898015954 | AZ94: 0.198909333 | BA94: 2074190.329 | BC94: 134909.6387
A95: 88 | B95: Yana | C95: 224724 | D95: 224724 | E95: 1 | F95: 4 | G95: 187 | H95: 135.75 | I95: 71.25 | J95: 66-90N | K95: 67 | L95: North Asia | M95: Arctic Ocean | N95: Laptev Sea | O95: Laptev Sea | Q95: 0 | R95: 0 | S95: 0 | T95: 0 | U95: 372.1774292 | V95: 0 | W95: 0 | Y95: 53.47359467 | AA95: 0.552574873 | AB95: 0 | AC95: 0.071662009 | AD95: 0.071662009 | AE95: 0.1400000006 | AF95: 0.0008670678362 | AG95: 0 | AH95: 0.2273242391 | AI95: 14.35616526 | AK95: 0.3500000238 | AL95: 1 | AN95: 0 | AO95: 0 | AP95: 0 | AR95: 1 | AS95: 0 | AT95: 0.002314209938 | AU95: 1 | AV95: 1 | AW95: 0.009999999776 | AX95: 0.0008670678362 | AY95: 0 | AZ95: 0.099145741 | BA95: 3226174.881 | BC95: 38003.8883
A96: 89 | B96: Olenek | C96: 222924 | D96: 222324 | E96: 0.9973 | F96: 4 | G96: 204 | H96: 119.75 | I96: 72.75 | J96: 66-90N | K96: 69.11 | L96: North Asia | M96: Arctic Ocean | N96: Laptev Sea | O96: Laptev Sea | Q96: 0 | R96: 0 | S96: 0 | T96: 0 | U96: 176.5233917 | V96: 0 | W96: 0 | Y96: 50.57912064 | AA96: 0.552574992 | AB96: 12.45519919 | AC96: 0.074160501 | AD96: 0.074160501 | AE96: 0.1400000006 | AF96: 0.0008957618847 | AG96: 12.45519919 | AH96: 0.2263512114 | AI96: 14.94653181 | AK96: 0.3500000238 | AL96: 1 | AN96: 0 | AO96: 0 | AP96: 0 | AR96: 1 | AS96: 2.195380831 | AT96: 0.002476990689 | AU96: 1 | AV96: 1 | AW96: 0.009999999776 | AX96: 0.0008957618847 | AY96: 2.195380831 | AZ96: 0.09875904 | BA96: 3331940.657 | BC96: 48732.00996
A97: 90 | B97: Lake Balkhash | C97: 221301 | D97: 209489 | E97: 0.9466 | F97: 4 | G97: 105 | H97: 74.25 | I97: 46.25 | J97: 35-50N | K97: 46.91 | L97: North Asia | M97: Land | N97: Land | O97: Land | Q97: 13.95438766 | R97: 106.2010574 | S97: 119.2403107 | T97: 340.1426392 | U97: 72.24368286 | V97: 165.6250916 | W97: 67.90435028 | Y97: 67.61334229 | AA97: 0.509543777 | AB97: 0.1697201987 | AC97: 0.021909121 | AD97: 0.021909121 | AE97: 0.1400000006 | AF97: 0.0002812692546 | AG97: 0.1697201987 | AH97: 0.1214312072 | AI97: 9.782454806 | AK97: 0.3295880258 | AL97: 0.9416800141 | AN97: 0.9946498275 | AO97: 18.83981514 | AP97: 21.0941658 | AR97: 1 | AS97: 0.03136227279 | AT97: 0.0002178853028 | AU97: 0.9416800141 | AV97: 0.9416800141 | AW97: 0.009999999776 | AX97: 0.0002812692546 | AY97: 0.03136227279 | AZ97: 0.056427699 | BA97: 2164867.031 | BC97: 23857.55511
A98: 91 | B98: Kura | C98: 218647 | D98: 216967 | E98: 0.9923 | F98: 4 | G98: 93 | H98: 49.25 | I98: 39.75 | J98: 35-50N | K98: 40.38 | L98: South Asia | M98: Land | N98: Caspian Sea | O98: South West Caspian Sea | Q98: 542.125 | R98: 1688.058838 | S98: 750.9227295 | T98: 228.5890045 | U98: 572.5393066 | V98: 253.3179016 | W98: 43.08543015 | Y98: 344.1712036 | AA98: 0.526365161 | AB98: 11.23502506 | AC98: 0.140767634 | AD98: 0.140767634 | AE98: 0.1400000006 | AF98: 0.001646668534 | AG98: 11.23502506 | AH98: 0.03793174615 | AI98: 153.085276 | AK98: 0.2645186782 | AL98: 0.83525002 | AN98: 76.81559753 | AO98: 318.6784973 | AP98: 128.8236237 | AR98: 1 | AS98: 2.000545076 | AT98: 0.008730412461 | AU98: 0.5045244694 | AV98: 0.83525002 | AW98: 0.009999999776 | AX98: 0.001646668534 | AY98: 2.000545076 | AZ98: 0.022976586 | BA98: 33471636.35 | BC98: 126358.5208
A99: 92 | B99: Lake Frome | C99: 211796 | D99: 207997 | E99: 0.9821 | F99: 3 | G99: 79 | H99: 139.75 | I99: -30.75 | J99: 23.5-35S | K99: -29.68 | L99: Australia | M99: Land | N99: Land | O99: Land | Q99: 18.00024605 | R99: 170.4432526 | S99: 144.1981964 | T99: 184.1942291 | U99: 466.6433716 | V99: 70.37432098 | W99: 36.83879852 | Y99: 103.4377441 | AA99: 0.574568808 | AB99: 0.5229941931 | AC99: 0 | AD99: 0 | AE99: 0.1400000006 | AF99: 0 | AG99: 0.5229941931 | AH99: 0 | AI99: 0 | AK99: 0.3500000238 | AL99: 1 | AN99: 8.87250042 | AO99: 27.22119331 | AP99: 23.65970039 | AR99: 1 | AS99: 0.09021038514 | AT99: 0 | AU99: 1 | AV99: 1 | AW99: 0.009999999776 | AX99: 0 | AY99: 0.09021038514 | AZ99: 0 | BA99: 0 | BC99: 0
A100: 93 | B100: Ogooue | C100: 209907 | D100: 208702 | E100: 0.9943 | F100: 3 | G100: 68 | H100: 9.25 | I100: -1.25 | J100: 0-10S | K100: -0.26 | L100: Africa | M100: Atlantic Ocean | N100: Atlantic Ocean | O100: Sao Tome - Principe Basin | Q100: 0.1339740902 | R100: 4.168241024 | S100: 7.465544224 | T100: 29.34909248 | U100: 2311.656982 | V100: 38.16023254 | W100: 5.864025593 | Y100: 646.6387329 | AA100: 0.485000014 | AB100: 0.04584713815 | AC100: 0.659258842 | AD100: 0.070133917 | AE100: 0.1400000006 | AF100: 0.007138906512 | AG100: 0.04584713815 | AH100: 0.3058824741 | AI100: 85.07900625 | AK100: 0.3499195278 | AL100: 0.9997699857 | AN100: 0 | AO100: 0.6997432113 | AP100: 1.219849706 | AR100: 1 | AS100: 0.008434257309 | AT100: 0.1174629107 | AU100: 0.9997699857 | AV100: 0.9997699857 | AW100: 0.009999999776 | AX100: 0.007138906512 | AY100: 0.008434257309 | AZ100: 0.131226189 | BA100: 17858678.96 | BC100: 547802.3063
A101: 94 | B101: Ili | C101: 208019 | D101: 202778 | E101: 0.9748 | F101: 3 | G101: 94 | H101: 73.75 | I101: 45.75 | J101: 35-50N | K101: 44.18 | L101: North Asia | M101: Land | N101: Land | O101: Land | Q101: 957.258728 | R101: 410.0202332 | S101: 626.0437622 | T101: 327.0768433 | U101: 113.1795654 | V101: 178.3716888 | W101: 64.65130615 | Y101: 96.94979858 | AA101: 0.511759698 | AB101: 1.430686023 | AC101: 0.018272065 | AD101: 0.018272065 | AE101: 0.1400000006 | AF101: 0.0002367155539 | AG101: 1.430686023 | AH101: 0.03742515064 | AI101: 20.89169263 | AK101: 0.1690561324 | AL101: 0.7003400326 | AN101: 170.2657013 | AO101: 70.69306183 | AP101: 107.1445389 | AR101: 1 | AS101: 0.2628700292 | AT101: 0.0001515837503 | AU101: 0.2208802402 | AV101: 0.7003400326 | AW101: 0.009999999776 | AX101: 0.0002367155539 | AY101: 0.2628700292 | AZ101: 0.022698296 | BA101: 4345869.009 | BC101: 18519.97341
A102: 95 | B102: GHAASBasin95 | C102: 2187.800049 | D102: 2187.800049 | E102: 1 | F102: 4 | G102: 2 | H102: -50.75 | I102: 69.25 | J102: 66-90N | K102: 69.25 | L102: North America | M102: Arctic Ocean | N102: South Greenland | O102: East Baffin Bay | Q102: 0 | R102: 0 | S102: 0 | T102: 0 | U102: 0 | V102: 0 | W102: 0 | Y102: 648.9989624 | AA102: 0.485000014 | AB102: 0 | AC102: 0.068066433 | AD102: 0.068066433 | AE102: 0.1400000006 | AF102: 0.0008256859146 | AG102: 0 | AH102: 0.0580721194 | AI102: 69.95255307 | AK102: 0.579015553 | AL102: 1 | AN102: 0 | AO102: 0 | AP102: 0 | AR102: 1 | AS102: 0 | AT102: 0.002089440357 | AU102: 1 | AV102: 1 | AW102: 0.009999999776 | AX102: 0.0008256859146 | AY102: 0 | AZ102: 0.030791413 | BA102: 153042.199 | BC102: 308.6362849
A103: 96 | B103: Taymyr | C103: 204203 | D103: 200564 | E103: 0.9822 | F103: 4 | G103: 72 | H103: 119.25 | I103: -20.25 | J103: 10-23.5S | K103: -23.23 | L103: Australia | M103: Indian Ocean | N103: Indian Ocean | O103: Rowley Shelf | Q103: 0 | R103: 464.3506775 | S103: 350.9625244 | T103: 491.0897522 | U103: 0 | V103: 111.4596787 | W103: 98.21794891 | Y103: 0 | AA103: 0.574568868 | AB103: 0.4692742111 | AC103: 0.005103729 | AD103: 0.005103729 | AE103: 0.1400000006 | AF103: 7.047284453e-05 | AG103: 0.4692742111 | AH103: 0.07480941585 | AI103: 42.74271949 | AK103: 0.3500000238 | AL103: 1 | AN103: 0 | AO103: 74.16051483 | AP103: 56.8282547 | AR103: 1 | AS103: 0.08094431617 | AT103: 1.183210225e-05 | AU103: 1 | AV103: 1 | AW103: 0.009999999776 | AX103: 7.047284453e-05 | AY103: 0.08094431617 | AZ103: 0.037760375 | BA103: 8728191.548 | BC103: 11156.48843
A104: 97 | B104: Qarqan | C104: 200070 | D104: 199505 | E104: 0.9972 | F104: 3 | G104: 84 | H104: 91.75 | I104: 40.25 | J104: 35-50N | K104: 39.49 | L104: South Asia | M104: Land | N104: Land | O104: Land | Q104: 0 | R104: 0 | S104: 0 | T104: 0 | U104: 472.9969177 | V104: 0 | W104: 0 | Y104: 127.8227615 | AA104: 0.516875029 | AB104: 34.25490249 | AC104: 0 | AD104: 0 | AE104: 0.1400000006 | AF104: 0 | AG104: 34.25490249 | AH104: 0 | AI104: 0 | AK104: 0.3106425107 | AL104: 0.8875499964 | AN104: 0 | AO104: 0 | AP104: 0 | AR104: 1 | AS104: 6.293377683 | AT104: 0 | AU104: 0.8875499964 | AV104: 0.8875499964 | AW104: 0.009999999776 | AX104: 0 | AY104: 6.293377683 | AZ104: 0 | BA104: 0 | BC104: 0
A105: 98 | B105: GHAASBasin98 | C105: 199359 | D105: 191926 | E105: 0.9627 | F105: 3 | G105: 76 | H105: 88.75 | I105: 31.75 | J105: 23.5-35N | K105: 31.81 | L105: South Asia | M105: Land | N105: Land | O105: Land | Q105: 0 | R105: 372.2530823 | S105: 237.4289551 | T105: 424.8787231 | U105: 59.80066299 | V105: 282.7642517 | W105: 84.97584534 | Y105: 36.65708542 | AA105: 0.516875029 | AB105: 2.117775225 | AC105: 0.345169753 | AD105: 0.345169753 | AE105: 0.1400000006 | AF105: 0.003860642901 | AG105: 2.117775225 | AH105: 0.03893279977 | AI105: 1091.099763 | AK105: 0.3499720395 | AL105: 0.9999200106 | AN105: 0 | AO105: 59.0467453 | AP105: 37.5584259 | AR105: 1 | AS105: 0.3890818064 | AT105: 0.04560957849 | AU105: 0.9999200106 | AV105: 0.9999200106 | AW105: 0.009999999776 | AX105: 0.003860642901 | AY105: 0.3890818064 | AZ105: 0.023432285 | BA105: 217520557.6 | BC105: 107887.7932
A106: 99 | B106: Negro Arg | C106: 197309 | D106: 195738 | E106: 0.992 | F106: 4 | G106: 83 | H106: -62.75 | I106: -40.75 | J106: 35-50S | K106: -39.63 | L106: South America | M106: Atlantic Ocean | N106: Atlantic Ocean | O106: Pampa Coast | Q106: 33.53014755 | R106: 589.9528198 | S106: 562.1639404 | T106: 275.2104492 | U106: 218.6387787 | V106: 86.09592438 | W106: 55.04411697 | Y106: 72.56993103 | AA106: 0.510181248 | AB106: 2.090051842 | AC106: 0.055330269 | AD106: 0.055330269 | AE106: 0.1400000006 | AF106: 0.0006781772245 | AG106: 2.090051842 | AH106: 0 | AI106: 0 | AK106: 0.007022685371 | AL106: 0.5732799768 | AN106: 9.722567558 | AO106: 100.5083389 | AP106: 95.96572113 | AR106: 1 | AS106: 0.3502400712 | AT106: 0.001384051749 | AU106: 0.0859919861 | AV106: 0.5732799768 | AW106: 0.009999999776 | AX106: 0.0006781772245 | AY106: 0.3502400712 | AZ106: 0 | BA106: 0 | BC106: 0
A107: 100 | B107: Chubut | C107: 196477 | D107: 195071 | E107: 0.9928 | F107: 4 | G107: 88 | H107: -65.25 | I107: -43.25 | J107: 35-50S | K107: -43.64 | L107: South America | M107: Atlantic Ocean | N107: Atlantic Ocean | O107: Patagonia Coast | Q107: 24.14898491 | R107: 913.8422852 | S107: 816.3703613 | T107: 427.4128723 | U107: 110.2851715 | V107: 74.94057465 | W107: 85.48532104 | Y107: 15.5225296 | AA107: 0.509922862 | AB107: 2.68841498 | AC107: 0.052317005 | AD107: 0.052317005 | AE107: 0.1400000006 | AF107: 0.0006430419162 | AG107: 2.68841498 | AH107: 0.2547610091 | AI107: 1.337391305 | AK107: 0.2979758084 | AL107: 0.9943000078 | AN107: 6.993999481 | AO107: 155.5556183 | AP107: 139.2534485 | AR107: 1 | AS107: 0.4504777118 | AT107: 0.00123803271 | AU107: 0.1827523261 | AV107: 0.9943000078 | AW107: 0.009999999776 | AX107: 0.0006430419162 | AY107: 0.4504777118 | AZ107: 0.110090325 | BA107: 262766.6315 | BC107: 5468.277729
A108: 101 | B108: GHAASBasin101 | C108: 195842 | D108: 195536 | E108: 0.9984 | F108: 3 | G108: 68 | H108: 51.75 | I108: 23.75 | J108: 23.5-35N | K108: 21.08 | L108: South Asia | M108: Indian Ocean | N108: Indian Ocean | O108: Persian Gulf | Q108: 0 | R108: 61.89785767 | S108: 36.73946381 | T108: 80.82740021 | U108: 653.5267944 | V108: 30.20031548 | W108: 16.16547966 | Y108: 163.1764374 | AA108: 0.555220962 | AB108: 8.965276419 | AC108: 0 | AD108: 0 | AE108: 0.1400000006 | AF108: 0 | AG108: 8.965276419 | AH108: 0 | AI108: 0 | AK108: 0.3500000238 | AL108: 1 | AN108: 0 | AO108: 10.13873386 | AP108: 6.083271027 | AR108: 1 | AS108: 1.498860846 | AT108: 0 | AU108: 1 | AV108: 1 | AW108: 0.009999999776 | AX108: 0 | AY108: 1.498860846 | AZ108: 0 | BA108: 0 | BC108: 0
A109: 102 | B109: GHAASBasin102 | C109: 193278 | D109: 193084 | E109: 0.999 | F109: 4 | G109: 70 | H109: 47.75 | I109: 29.75 | J109: 23.5-35N | K109: 26.53 | L109: South Asia | M109: Indian Ocean | N109: Indian Ocean | O109: Persian Gulf | Q109: 102.4705353 | R109: 126.1343765 | S109: 109.2633438 | T109: 142.7927704 | U109: 557.1766968 | V109: 60.36124039 | W109: 28.5585537 | Y109: 162.6434479 | AA109: 0.555788875 | AB109: 27.44296455 | AC109: 0 | AD109: 0 | AE109: 0.1400000006 | AF109: 0 | AG109: 27.44296455 | AH109: 0 | AI109: 0 | AK109: 0.3500000238 | AL109: 1 | AN109: 9.830606461 | AO109: 21.65611267 | AP109: 18.83670235 | AR109: 1 | AS109: 4.5778324 | AT109: 0 | AU109: 1 | AV109: 1 | AW109: 0.009999999776 | AX109: 0 | AY109: 4.5778324 | AZ109: 0 | BA109: 0 | BC109: 0
A110: 103 | B110: Fitzroy West | C110: 192211 | D110: 190563 | E110: 0.9914 | F110: 4 | G110: 66 | H110: 123.25 | I110: -17.25 | J110: 10-23.5S | K110: -19.34 | L110: Australia | M110: Indian Ocean | N110: Indian Ocean | O110: Rowley Shelf | Q110: 20.27422905 | R110: 362.3725891 | S110: 276.9825745 | T110: 369.3435974 | U110: 296.5397339 | V110: 132.9346466 | W110: 73.68464661 | Y110: 53.34241867 | AA110: 0.574568629 | AB110: 0.9180082551 | AC110: 0.024295799 | AD110: 0.024295799 | AE110: 0.1400000006 | AF110: 0.000310301024 | AG110: 0.9180082551 | AH110: 0.07495534208 | AI110: 18.70242884 | AK110: 0.3499790132 | AL110: 0.9999399781 | AN110: 9.5978899 | AO110: 58.1231041 | AP110: 45.1505394 | AR110: 1 | AS110: 0.1583456936 | AT110: 0.0002678955207 | AU110: 0.9999399781 | AV110: 0.9999399781 | AW110: 0.009999999776 | AX110: 0.000310301024 | AY110: 0.1583456936 | AZ110: 0.037759917 | BA110: 3594812.549 | BC110: 29699.11086
A111: 104 | B111: Grande de Santiago | C111: 191671 | D111: 189719 | E111: 0.9898 | F111: 4 | G111: 67 | H111: -105.25 | I111: 21.75 | J111: 10-23.5N | K111: 22.04 | L111: North America | M111: Pacific Ocean | N111: Pacific Ocean | O111: Rivera Basin | Q111: 1595.437012 | R111: 2375.763672 | S111: 1882.29834 | T111: 445.2984619 | U111: 663.9971313 | V111: 490.8353271 | W111: 70.5161438 | Y111: 188.917984 | AA111: 0.530581355 | AB111: 11.29313741 | AC111: 0.113676786 | AD111: 0.113676786 | AE111: 0.1400000006 | AF111: 0.001344054006 | AG111: 11.29313741 | AH111: 0.4353696163 | AI111: 1.22876102 | AK111: 0.2268022448 | AL111: 0.8245300055 | AN111: 164.1072388 | AO111: 448.2315979 | AP111: 333.6597595 | AR111: 1 | AS111: 2.025242006 | AT111: 0.005753668025 | AU111: 0.1236794814 | AV111: 0.8245300055 | AW111: 0.009999999776 | AX111: 0.001344054006 | AY111: 2.025242006 | AZ111: 0.182847433 | BA111: 235517.8534 | BC111: 45155.59041
A112: 105 | B112: Rufiji | C112: 186538 | D112: 184614 | E112: 0.9897 | F112: 4 | G112: 61 | H112: 39.25 | I112: -7.75 | J112: 0-10S | K112: -7.84 | L112: Africa | M112: Indian Ocean | N112: Indian Ocean | O112: Zanzibar Coast | Q112: 9.1641922 | R112: 1127.05188 | S112: 788.6757812 | T112: 280.5203247 | U112: 1330.790527 | V112: 192.7993164 | W112: 54.02116394 | Y112: 135.3005829 | AA112: 0.485000014 | AB112: 0.1067816496 | AC112: 0.315697074 | AD112: 0.033584796 | AE112: 0.1400000006 | AF112: 0.003546790685 | AG112: 0.1067816496 | AH112: 0.1027755386 | AI112: 170.835478 | AK112: 0.3486595154 | AL112: 0.9961699843 | AN112: 1.694185615 | AO112: 190.6078186 | AP112: 133.8917541 | AR112: 1 | AS112: 0.01786157232 | AT112: 0.03916012496 | AU112: 0.9961699843 | AV112: 0.9961699843 | AW112: 0.009999999776 | AX112: 0.003546790685 | AY112: 0.01786157232 | AZ112: 0.049152465 | BA112: 31867308.4 | BC112: 231935.9052
A113: 106 | B113: Wisla | C113: 180368 | D113: 179883 | E113: 0.9973 | F113: 4 | G113: 94 | H113: 18.75 | I113: 54.25 | J113: 50-66N | K113: 51.52 | L113: Europe | M113: Atlantic Ocean | N113: Baltic Sea | O113: Baltic Sea | Q113: 2456.178467 | R113: 1629.817993 | S113: 2950.634277 | T113: 271.9839478 | U113: 782.1287842 | V113: 800.1530151 | W113: 50.96863174 | Y113: 734.2543945 | AA113: 0.627291083 | AB113: 64.4647564 | AC113: 0.118492812 | AD113: 0.118492812 | AE113: 0.1400000006 | AF113: 0.001398092601 | AG113: 64.4647564 | AH113: 0.3346971999 | AI113: 13.25610444 | AK113: 0.3481030166 | AL113: 0.9945799708 | AN113: 319.5871887 | AO113: 319.2550659 | AP113: 504.7669067 | AR113: 1 | AS113: 10.2914315 | AT113: 0.006240800954 | AU113: 0.9945799708 | AV113: 0.9945799708 | AW113: 0.009999999776 | AX113: 0.001398092601 | AY113: 10.2914315 | AZ113: 0.142379125 | BA113: 2390977.046 | BC113: 82829.40129
A114: 107 | B114: Taz | C114: 170827 | D114: 170322 | E114: 0.997 | F114: 3 | G114: 135 | H114: 78.25 | I114: 67.75 | J114: 66-90N | K114: 65.64 | L114: North Asia | M114: Arctic Ocean | N114: Kara Sea | O114: Kara Sea | Q114: 0 | R114: 0 | S114: 0 | T114: 0 | U114: 236.1986084 | V114: 0 | W114: 0 | Y114: 136.7043915 | AA114: 0.552574754 | AB114: 8.351322494 | AC114: 0.212092221 | AD114: 0.212092221 | AE114: 0.1400000006 | AF114: 0.002430675784 | AG114: 8.351322494 | AH114: 0.5948908188 | AI114: 8.423410139 | AK114: 0.246085003 | AL114: 0.703099966 | AN114: 0 | AO114: 0 | AP114: 0 | AR114: 1 | AS114: 1.472022489 | AT114: 0.01908897236 | AU114: 0.703099966 | AV114: 0.703099966 | AW114: 0.009999999776 | AX114: 0.002430675784 | AY114: 1.472022489 | AZ114: 0.247137881 | BA114: 1438945.884 | BC114: 117217.1236
A115: 108 | B115: Hong | C115: 170700 | D115: 169839 | E115: 0.995 | F115: 3 | G115: 60 | H115: 106.25 | I115: 20.25 | J115: 10-23.5N | K115: 22.82 | L115: South Asia | M115: Pacific Ocean | N115: Pacific Ocean | O115: North SouthChina Sea | Q115: 2543.901611 | R115: 1388.787354 | S115: 1639.771484 | T115: 532.3637695 | U115: 821.8746338 | V115: 1076.701782 | W115: 57.70129013 | Y115: 744.5869751 | AA115: 0.502415597 | AB115: 8.66670498 | AC115: 0.401156425 | AD115: 0.401156425 | AE115: 0.1400000006 | AF115: 0.004453245085 | AG115: 8.66670498 | AH115: 0.03927537695 | AI115: 740.9369915 | AK115: 0.3074610233 | AL115: 0.87845999 | AN115: 437.646759 | AO115: 269.8646851 | AP115: 279.446991 | AR115: 1 | AS115: 1.513633491 | AT115: 0.05838492513 | AU115: 0.87845999 | AV115: 0.87845999 | AW115: 0.009999999776 | AX115: 0.004453245085 | AY115: 1.513633491 | AZ115: 0.023548496 | BA115: 126477944.4 | BC115: 781311.5424
A116: 109 | B116: Swan-Avon | C116: 165803 | D116: 160439 | E116: 0.9676 | F116: 4 | G116: 62 | H116: 115.75 | I116: -31.75 | J116: 23.5-35S | K116: -29.93 | L116: Australia | M116: Indian Ocean | N116: Indian Ocean | O116: West Australian Coast | Q116: 162.8462677 | R116: 244.8176422 | S116: 308.2163696 | T116: 273.6325684 | U116: 287.6853943 | V116: 61.65690613 | W116: 54.68387222 | Y116: 49.6773262 | AA116: 0.574568868 | AB116: 0.2884565543 | AC116: 0.017693905 | AD116: 0.017693905 | AE116: 0.1400000006 | AF116: 0.0002295942686 | AG116: 0.2884565543 | AH116: 0.08145223409 | AI116: 12.42074839 | AK116: 0.3482675254 | AL116: 0.9950500131 | AN116: 79.83088684 | AO116: 39.35447311 | AP116: 52.69096375 | AR116: 1 | AS116: 0.04975538392 | AT116: 0.0001421474008 | AU116: 0.9950500131 | AV116: 0.9950500131 | AW116: 0.009999999776 | AX116: 0.0002295942686 | AY116: 0.04975538392 | AZ116: 0.040335973 | BA116: 2059397.345 | BC116: 13404.07741
A117: 110 | B117: Rhine | C117: 164864 | D117: 163750 | E117: 0.9932 | F117: 3 | G117: 82 | H117: 5.75 | I117: 52.75 | J117: 50-66N | K117: 49.31 | L117: Europe | M117: Atlantic Ocean | N117: North Sea | O117: North Sea | Q117: 4515.691895 | R117: 3646.508545 | S117: 5349.90625 | T117: 259.6085205 | U117: 818.7233276 | V117: 966.6391602 | W117: 45.99118042 | Y117: 1153.690308 | AA117: 0.711661577 | AB117: 44.8354758 | AC117: 0.335809499 | AD117: 0.335809499 | AE117: 0.1400000006 | AF117: 0.003761117114 | AG117: 44.8354758 | AH117: 0.4560635949 | AI117: 3.878929392 | AK117: 0.3044067621 | AL117: 0.991590023 | AN117: 367.6836548 | AO117: 707.6802979 | AP117: 838.3880005 | AR117: 1 | AS117: 5.501615128 | AT117: 0.04353576899 | AU117: 0.225358665 | AV117: 0.991590023 | AW117: 0.009999999776 | AX117: 0.003761117114 | AY117: 5.501615128 | AZ117: 0.191477581 | BA117: 639495.8153 | BC117: 37330.30803
A118: 111 | B118: Pyasina | C118: 164251 | D118: 160921 | E118: 0.9797 | F118: 4 | G118: 170 | H118: 86.75 | I118: 73.75 | J118: 66-90N | K118: 71.65 | L118: North Asia | M118: Arctic Ocean | N118: Kara Sea | O118: Kara Sea | Q118: 0 | R118: 0 | S118: 0 | T118: 0 | U118: 581.8138428 | V118: 0 | W118: 0 | Y118: 74.68082428 | AA118: 0.552575171 | AB118: 2.103957259 | AC118: 0.169390693 | AD118: 0.169390693 | AE118: 0.1400000006 | AF118: 0.001963241026 | AG118: 2.103957259 | AH118: 0.4026143019 | AI118: 11.61230984 | AK118: 0.2581546605 | AL118: 0.7882199883 | AN118: 0 | AO118: 0 | AP118: 0 | AR118: 1 | AS118: 0.3708481386 | AT118: 0.01247354504 | AU118: 0.6728166938 | AV118: 0.7882199883 | AW118: 0.009999999776 | AX118: 0.001963241026 | AY118: 0.3708481386 | AZ118: 0.169758147 | BA118: 1907333.503 | BC118: 103998.4504
A119: 112 | B119: Cuanza | C119: 163638 | D119: 162334 | E119: 0.992 | F119: 3 | G119: 54 | H119: 13.25 | I119: -9.25 | J119: 0-10S | K119: -10.95 | L119: Africa | M119: Atlantic Ocean | N119: Atlantic Ocean | O119: Angola Basin | Q119: 1.042814016 | R119: 117.5961609 | S119: 87.53773499 | T119: 196.15065 | U119: 1838.594971 | V119: 232.7100067 | W119: 38.32215118 | Y119: 367.2417297 | AA119: 0.485000014 | AB119: 0.2744709176 | AC119: 0.406396985 | AD119: 0.406396985 | AE119: 0.1400000006 | AF119: 0.004508493934 | AG119: 0.2744709176 | AH119: 0.2893577055 | AI119: 22.20215174 | AK119: 0.3211048841 | AL119: 0.9993600249 | AN119: 0 | AO119: 20.2361927 | AP119: 14.89171219 | AR119: 1 | AS119: 0.0486143115 | AT119: 0.05960474908 | AU119: 0.489466548 | AV119: 0.9993600249 | AW119: 0.009999999776 | AX119: 0.004508493934 | AY119: 0.0486143115 | AZ119: 0.124397569 | BA119: 3633115.706 | BC119: 103303.3816
A120: 113 | B120: ABAUCAN | C120: 161157 | D120: 161130 | E120: 0.9998 | F120: 3 | G120: 60 | H120: -65.25 | I120: -30.25 | J120: 23.5-35S | K120: -29.48 | L120: South America | M120: Land | N120: Land | O120: Land | Q120: 44.71657944 | R120: 518.7816772 | S120: 506.9882507 | T120: 232.8493347 | U120: 369.4360046 | V120: 192.6096954 | W120: 46.10938263 | Y120: 156.6081543 | AA120: 0.510181248 | AB120: 65.13230022 | AC120: 0.009269696 | AD120: 0.009269696 | AE120: 0.1400000006 | AF120: 0.0001242340804 | AG120: 65.13230022 | AH120: 0.2922356886 | AI120: 715.8023776 | AK120: 0.3205160201 | AL120: 0.9157599807 | AN120: 12.61862659 | AO120: 88.91764069 | AP120: 86.57086182 | AR120: 1 | AS120: 10.9147064 | AT120: 3.902805474e-05 | AU120: 0.9157599807 | AV120: 0.9157599807 | AW120: 0.009999999776 | AX120: 0.0001242340804 | AY120: 10.9147064 | AZ120: 0.126119978 | BA120: 115356563.8 | BC120: 44271.6699
A121: 114 | B121: GHAASBasin114 | C121: 159409 | D121: 157944 | E121: 0.9908 | F121: 4 | G121: 56 | H121: 121.75 | I121: -19.25 | J121: 10-23.5S | K121: -22.64 | L121: Australia | M121: Indian Ocean | N121: Indian Ocean | O121: Rowley Shelf | Q121: 0 | R121: 468.4315186 | S121: 354.0465088 | T121: 495.4042969 | U121: 0 | V121: 126.3586121 | W121: 99.08097839 | Y121: 0 | AA121: 0.574568868 | AB121: 0.9019044237 | AC121: 0.007156511 | AD121: 0.007156511 | AE121: 0.1400000006 | AF121: 9.716163186e-05 | AG121: 0.9019044237 | AH121: 0.05964751627 | AI121: 44.91051363 | AK121: 0.3499090374 | AL121: 0.9997400045 | AN121: 0 | AO121: 74.81259155 | AP121: 57.32744217 | AR121: 1 | AS121: 0.1555679709 | AT121: 2.32633447e-05 | AU121: 0.9997400045 | AV121: 0.9997400045 | AW121: 0.009999999776 | AX121: 9.716163186e-05 | AY121: 0.1555679709 | AZ121: 0.03163641 | BA121: 7159140.067 | BC121: 11029.55798
A122: 115 | B122: GHAASBasin115 | C122: 156976 | D122: 155649 | E122: 0.9915 | F122: 3 | G122: 54 | H122: 133.25 | I122: -18.25 | J122: 10-23.5S | K122: -19.64 | L122: Australia | M122: Land | N122: Land | O122: Land | Q122: 0 | R122: 311.3182983 | S122: 235.2983856 | T122: 329.2439575 | U122: 243.9302826 | V122: 124.6470795 | W122: 65.84892273 | Y122: 67.54663086 | AA122: 0.574568629 | AB122: 0.9358164791 | AC122: 0.011782696 | AD122: 0.011782696 | AE122: 0.1400000006 | AF122: 0.0001560310193 | AG122: 0.9358164791 | AH122: 0.06108835375 | AI122: 11.41729924 | AK122: 0.3498880267 | AL122: 0.9996799827 | AN122: 0 | AO122: 49.72002029 | AP122: 38.09958267 | AR122: 1 | AS122: 0.1614174041 | AT122: 6.305205898e-05 | AU122: 0.9996799827 | AV122: 0.9996799827 | AW122: 0.009999999776 | AX122: 0.0001560310193 | AY122: 0.1614174041 | AZ122: 0.032138197 | BA122: 1792241.966 | BC122: 18266.07216
A123: 116 | B123: DRAA | C123: 156314 | D123: 156287 | E123: 0.9998 | F123: 3 | G123: 58 | H123: -10.75 | I123: 28.25 | J123: 23.5-35N | K123: 29.16 | L123: Africa | M123: Atlantic Ocean | N123: Atlantic Ocean | O123: North Canary / Madeira Basin | Q123: 106.0103378 | R123: 152.166153 | S123: 285.5361633 | T123: 211.4756165 | U123: 452.0766296 | V123: 90.5357132 | W123: 40.98788452 | Y123: 85.17023468 | AA123: 0.507864773 | AB123: 299.5619296 | AC123: 0.002954264 | AD123: 0.002954264 | AE123: 0.1400000006 | AF123: 4.192329288e-05 | AG123: 299.5619296 | AH123: 0.1687218525 | AI123: 74.72890615 | AK123: 0.2878170609 | AL123: 0.8538500071 | AN123: 23.80362511 | AO123: 25.00198364 | AP123: 46.37415695 | AR123: 1 | AS123: 51.36438347 | AT123: 3.964579264e-06 | AU123: 0.8151620626 | AV123: 0.8538500071 | AW123: 0.009999999776 | AX123: 4.192329288e-05 | AY123: 51.36438347 | AZ123: 0.075701198 | BA123: 11681174.24 | BC123: 15239.05187
A124: 117 | B124: GHAASBasin117 | C124: 155176 | D124: 152980 | E124: 0.9858 | F124: 3 | G124: 60 | H124: 81.25 | I124: 33.25 | J124: 23.5-35N | K124: 33.09 | L124: South Asia | M124: Land | N124: Land | O124: Land | Q124: 0 | R124: 369.5023804 | S124: 235.6743317 | T124: 421.7391968 | U124: 65.63385773 | V124: 275.3570251 | W124: 84.34809875 | Y124: 42.90682983 | AA124: 0.516875029 | AB124: 5.723409975 | AC124: 0.194359928 | AD124: 0.194359928 | AE124: 0.1400000006 | AF124: 0.002237200504 | AG124: 5.723409975 | AH124: 0.03918411694 | AI124: 625.5649041 | AK124: 0.3500000238 | AL124: 1 | AN124: 0 | AO124: 58.61048126 | AP124: 37.28089523 | AR124: 1 | AS124: 1.051516075 | AT124: 0.01620134711 | AU124: 1 | AV124: 1 | AW124: 0.009999999776 | AX124: 0.002237200504 | AY124: 1.051516075 | AZ124: 0.02350055 | BA124: 97072659.56 | BC124: 45981.79991
A125: 118 | B125: Roviuna | C125: 153988 | D125: 152249 | E125: 0.9887 | F125: 3 | G125: 51 | H125: 40.25 | I125: -10.75 | J125: 10-23.5S | K125: -12.01 | L125: Africa | M125: Indian Ocean | N125: Indian Ocean | O125: Zanzibar Coast | Q125: 12.82820702 | R125: 367.319519 | S125: 291.8896179 | T125: 248.9109497 | U125: 1513.241211 | V125: 132.4291534 | W125: 48.76288986 | Y125: 142.0740509 | AA125: 0.485000014 | AB125: 0.1141122123 | AC125: 0.41550383 | AD125: 0.044202536 | AE125: 0.1400000006 | AF125: 0.004604418762 | AG125: 0.1141122123 | AH125: 0.1070964027 | AI125: 214.5427406 | AK125: 0.3497620225 | AL125: 0.9993199706 | AN125: 2.062375069 | AO125: 63.43890381 | AP125: 49.82180405 | AR125: 1 | AS125: 0.01926682597 | AT125: 0.06173101068 | AU125: 0.9993199706 | AV125: 0.9993199706 | AW125: 0.009999999776 | AX125: 0.004604418762 | AY125: 0.01926682597 | AZ125: 0.050902888 | BA125: 33037007.53 | BC125: 197892.3279
A126: 119 | B126: Essequibo | C126: 150591 | D126: 149687 | E126: 0.994 | F126: 3 | G126: 49 | H126: -58.75 | I126: 6.75 | J126: 0-10N | K126: 5.2 | L126: South America | M126: Atlantic Ocean | N126: Atlantic Ocean | O126: Guiana Coast - Amazon Cone | Q126: 2.405827761 | R126: 44.38146973 | S126: 35.89065933 | T126: 10.14124393 | U126: 2314.182129 | V126: 6.561620712 | W126: 2.025194168 | Y126: 242.2296143 | AA126: 0.513338506 | AB126: 1.61670304 | AC126: 0.771713674 | AD126: 0.082097203 | AE126: 0.1400000006 | AF126: 0.008291095495 | AG126: 1.61670304 | AH126: 0.3986115938 | AI126: 64.52062752 | AK126: 0.3499055207 | AL126: 0.999729991 | AN126: 0.3819311857 | AO126: 7.580134392 | AP126: 6.169797897 | AR126: 1 | AS126: 0.2658203602 | AT126: 0.1399636567 | AU126: 0.999729991 | AV126: 0.999729991 | AW126: 0.009999999776 | AX126: 0.008291095495 | AY126: 0.2658203602 | AZ126: 0.168574564 | BA126: 9716225.819 | BC126: 554341.2684
A127: 120 | B127: Koksoak | C127: 149975 | D127: 143327 | E127: 0.9557 | F127: 4 | G127: 86 | H127: -68.25 | I127: 58.25 | J127: 50-66N | K127: 55.55 | L127: North America | M127: Atlantic Ocean | N127: Hudson Strait | O127: Ungava Basin | Q127: 0 | R127: 0 | S127: 0 | T127: 0 | U127: 309.14151 | V127: 0 | W127: 0 | Y127: 119.9693298 | AA127: 0.635131598 | AB127: 0.09557040134 | AC127: 0.453157425 | AD127: 0.453157425 | AE127: 0.1400000006 | AF127: 0.004999944475 | AG127: 0.09557040134 | AH127: 0.828850372 | AI127: 8.671491722 | AK127: 0.3461220264 | AL127: 1 | AN127: 0 | AO127: 0 | AP127: 0 | AR127: 1 | AS127: 0.01540264542 | AT127: 0.07057990134 | AU127: 0.9824000001 | AV127: 1 | AW127: 0.009999999776 | AX127: 0.004999944475 | AY127: 0.01540264542 | AZ127: 0.341470701 | BA127: 1300506.971 | BC127: 101586.99
A128: 121 | B128: Elbe | C128: 148353 | D128: 148118 | E128: 0.9984 | F128: 3 | G128: 77 | H128: 9.25 | I128: 53.75 | J128: 50-66N | K128: 51.34 | L128: Europe | M128: Atlantic Ocean | N128: North Sea | O128: North Sea | Q128: 5141.77002 | R128: 3117.989014 | S128: 5932.377441 | T128: 324.5144959 | U128: 707.0028687 | V128: 1085.795288 | W128: 53.67798614 | Y128: 916.7930298 | AA128: 0.713971138 | AB128: 161.7440248 | AC128: 0.107758507 | AD128: 0.107758507 | AE128: 0.1400000006 | AF128: 0.001277490053 | AG128: 161.7440248 | AH128: 0.4676033753 | AI128: 6.78715969 | AK128: 0.3413515091 | AL128: 0.9752900004 | AN128: 438.0571899 | AO128: 610.7837524 | AP128: 990.7114258 | AR128: 1 | AS128: 19.39318167 | AT128: 0.005180588923 | AU128: 0.9752900004 | AV128: 0.9752900004 | AW128: 0.009999999776 | AX128: 0.001277490053 | AY128: 19.39318167 | AZ128: 0.195690831 | BA128: 1006895.501 | BC128: 107368.766
A129: 122 | B129: GHAASBasin122 | C129: 145198 | D129: 145010 | E129: 0.9987 | F129: 4 | G129: 51 | H129: 11.75 | I129: 20.25 | J129: 10-23.5N | K129: 22.73 | L129: Africa | M129: Land | N129: Land | O129: Land | Q129: 0 | R129: 0 | S129: 0 | T129: 0 | U129: 779.9901123 | V129: 0 | W129: 0 | Y129: 72.08087921 | AA129: 0.494135678 | AB129: 11.99451068 | AC129: 0 | AD129: 0 | AE129: 0.1400000006 | AF129: 0 | AG129: 11.99451068 | AH129: 0 | AI129: 0 | AK129: 0.3500000238 | AL129: 1 | AN129: 0 | AO129: 0 | AP129: 0 | AR129: 1 | AS129: 2.089224264 | AT129: 0 | AU129: 1 | AV129: 1 | AW129: 0.009999999776 | AX129: 0 | AY129: 2.089224264 | AZ129: 0 | BA129: 0 | BC129: 0
A130: 123 | B130: HUMBOLDT | C130: 143664 | D130: 142906 | E130: 0.9947 | F130: 4 | G130: 61 | H130: -118.25 | I130: 39.75 | J130: 35-50N | K130: 40.27 | L130: North America | M130: Land | N130: Land | O130: Land | Q130: 0 | R130: 0 | S130: 0 | T130: 0 | U130: 319.2365417 | V130: 0 | W130: 0 | Y130: 211.4029999 | AA130: 0.652343333 | AB130: 8.746040672 | AC130: 0.068733379 | AD130: 0.068733379 | AE130: 0.1400000006 | AF130: 0.0008333700243 | AG130: 8.746040672 | AH130: 0.2856873346 | AI130: 9.855384487 | AK130: 0.3208240271 | AL130: 0.9166399837 | AN130: 0 | AO130: 0 | AP130: 0 | AR130: 1 | AS130: 1.346173244 | AT130: 0.002130285371 | AU130: 0.9166399837 | AV130: 0.9166399837 | AW130: 0.009999999776 | AX130: 0.0008333700243 | AY130: 1.346173244 | AZ130: 0.122504478 | BA130: 1415863.957 | BC130: 74083.03357
A131: 124 | B131: GHAASBasin124 | C131: 143214 | D131: 143159 | E131: 0.9996 | F131: 3 | G131: 63 | H131: 88.75 | I131: 42.75 | J131: 35-50N | K131: 42.58 | L131: South Asia | M131: Land | N131: Land | O131: Land | Q131: 0 | R131: 0 | S131: 0 | T131: 0 | U131: 611.8054199 | V131: 0 | W131: 0 | Y131: 123.2896194 | AA131: 0.516875029 | AB131: 263.2718489 | AC131: 0 | AD131: 0 | AE131: 0.1400000006 | AF131: 0 | AG131: 263.2718489 | AH131: 0 | AI131: 0 | AK131: 0.187985003 | AL131: 0.5370999575 | AN131: 0 | AO131: 0 | AP131: 0 | AR131: 1 | AS131: 48.368819 | AT131: 0 | AU131: 0.5370999575 | AV131: 0.5370999575 | AW131: 0.009999999776 | AX131: 0 | AY131: 48.368819 | AZ131: 0 | BA131: 0 | BC131: 0
A132: 125 | B132: GHAASBasin125 | C132: 142971 | D132: 140952 | E132: 0.9859 | F132: 3 | G132: 47 | H132: 41.75 | I132: 11.25 | J132: 10-23.5N | K132: 9.8 | L132: Africa | M132: Indian Ocean | N132: Indian Ocean | O132: South Aden Gulf | Q132: 70.10302734 | R132: 2803.400635 | S132: 1837.099854 | T132: 304.6988525 | U132: 596.5713501 | V132: 378.3711243 | W132: 54.56616974 | Y132: 247.018631 | AA132: 0.485000014 | AB132: 0.1253917919 | AC132: 0.18394272 | AD132: 0.18394272 | AE132: 0.1400000006 | AF132: 0.002123132115 | AG132: 0.1253917919 | AH132: 0.03786145623 | AI132: 512.2540157 | AK132: 0.3380703628 | AL132: 0.9783599973 | AN132: 32.26829147 | AO132: 468.146698 | AP132: 302.5522766 | AR132: 1 | AS132: 0.02118579771 | AT132: 0.0145962555 | AU132: 0.9536759853 | AV132: 0.9783599973 | AW132: 0.009999999776 | AX132: 0.002123132115 | AY132: 0.02118579771 | AZ132: 0.022955132 | BA132: 73237468.88 | BC132: 381759.3189
A133: 126 | B133: Chao Phraya | C133: 141662 | D133: 141276 | E133: 0.9973 | F133: 3 | G133: 48 | H133: 100.25 | I133: 13.75 | J133: 10-23.5N | K133: 17.01 | L133: South Asia | M133: Pacific Ocean | N133: Pacific Ocean | O133: West SouthChina Sea | Q133: 1723.129761 | R133: 1049.674683 | S133: 1956.036255 | T133: 658.9106445 | U133: 1876.727661 | V133: 483.1281128 | W133: 37.58396912 | Y133: 862.3766479 | AA133: 0.485000014 | AB133: 0.01540025784 | AC133: 0.255229682 | AD133: 0.027152095 | AE133: 0.1400000006 | AF133: 0.002898098668 | AG133: 0.01540025784 | AH133: 0.09955943753 | AI133: 71.18149363 | AK133: 0.1524927169 | AL133: 0.5433399677 | AN133: 420.4147949 | AO133: 207.6788483 | AP133: 332.4201355 | AR133: 1 | AS133: 0.002876357413 | AT133: 0.02685156278 | AU133: 0.3021893799 | AV133: 0.5433399677 | AW133: 0.009999999776 | AX133: 0.002898098668 | AY133: 0.002876357413 | AZ133: 0.047813848 | BA133: 10083712.75 | BC133: 137595.5536
A134: 127 | B134: Mahanadi | C134: 141040 | D134: 140265 | E134: 0.9945 | F134: 3 | G134: 49 | H134: 86.25 | I134: 20.25 | J134: 10-23.5N | K134: 21.19 | L134: South Asia | M134: Indian Ocean | N134: Indian Ocean | O134: East Deccan Coast | Q134: 2725.737549 | R134: 2273.099854 | S134: 1700.191528 | T134: 738.0459595 | U134: 1526.14856 | V134: 1111.507446 | W134: 48.91598129 | Y134: 1144.122314 | AA134: 0.516875029 | AB134: 17.01253903 | AC134: 0.517985046 | AD134: 0.055104792 | AE134: 0.1400000006 | AF134: 0.005677143577 | AG134: 17.01253903 | AH134: 0.09241440441 | AI134: 132.3475396 | AK134: 0.1992650032 | AL134: 0.6426700354 | AN134: 462.4142151 | AO134: 472.6644897 | AP134: 291.9030151 | AR134: 1 | AS134: 3.063372871 | AT134: 0.08581520617 | AU134: 0.2694651186 | AV134: 0.6426700354 | AW134: 0.009999999776 | AX134: 0.005677143577 | AY134: 3.063372871 | AZ134: 0.044989984 | BA134: 18666296.99 | BC134: 71834.40031
A135: 128 | B135: Fitzroy East | C135: 138324 | D135: 136912 | E135: 0.9898 | F135: 3 | G135: 49 | H135: 150.75 | I135: -23.25 | J135: 10-23.5S | K135: -23.86 | L135: Australia | M135: Pacific Ocean | N135: Pacific Ocean | O135: Coral Sea | Q135: 679.8198242 | R135: 777.3198853 | S135: 651.8543701 | T135: 301.8680725 | U135: 991.1583862 | V135: 153.2821503 | W135: 54.93067169 | Y135: 121.8487015 | AA135: 0.574569106 | AB135: 0.8201148933 | AC135: 0.041096427 | AD135: 0.041096427 | AE135: 0.1400000006 | AF135: 0.000511260645 | AG135: 0.8201148933 | AH135: 0.1318341556 | AI135: 16.0965121 | AK135: 0.3313885629 | AL135: 0.9641600251 | AN135: 320.112915 | AO135: 132.222168 | AP135: 115.7116623 | AR135: 1 | AS135: 0.1414602329 | AT135: 0.0007651825435 | AU135: 0.9362283349 | AV135: 0.9641600251 | AW135: 0.009999999776 | AX135: 0.000511260645 | AY135: 0.1414602329 | AZ135: 0.060622077 | BA135: 2226533.94 | BC135: 43872.11091
A136: 129 | B136: GHAASBasin129 | C136: 136840 | D136: 136103 | E136: 0.9946 | F136: 3 | G136: 55 | H136: 95.25 | I136: 36.75 | J136: 35-50N | K136: 36.3 | L136: South Asia | M136: Land | N136: Land | O136: Land | Q136: 0 | R136: 54.5574379 | S136: 34.25387192 | T136: 17.72500801 | U136: 377.6468811 | V136: 8.062701225 | W136: 3.544994116 | Y136: 181.1100616 | AA136: 0.516875029 | AB136: 16.26877114 | AC136: 0.013529433 | AD136: 0.013529433 | AE136: 0.1400000006 | AF136: 0.000177927941 | AG136: 16.26877114 | AH136: 0.06068845068 | AI136: 86.81642661 | AK136: 0.337855041 | AL136: 0.9653000236 | AN136: 0 | AO136: 8.53390789 | AP136: 5.346894264 | AR136: 1 | AS136: 2.988930454 | AT136: 8.312641876e-05 | AU136: 0.9653000236 | AV136: 0.9653000236 | AW136: 0.009999999776 | AX136: 0.000177927941 | AY136: 2.988930454 | AZ136: 0.03208461 | BA136: 11879959.82 | BC136: 15793.92105
A137: 130 | B137: GHAASBasin130 | C137: 135976 | D137: 135749 | E137: 0.9983 | F137: 3 | G137: 47 | H137: -15.75 | I137: 18.75 | J137: 10-23.5N | K137: 20.41 | L137: Africa | M137: Atlantic Ocean | N137: Atlantic Ocean | O137: South Canary Basin | Q137: 0 | R137: 130.5899506 | S137: 78.25939941 | T137: 85.39815521 | U137: 646.3029785 | V137: 15.47832012 | W137: 17.07955742 | Y137: 73.52664948 | AA137: 0.487014413 | AB137: 0.1773187136 | AC137: 0 | AD137: 0 | AE137: 0.1400000006 | AF137: 0 | AG137: 0.1773187136 | AH137: 0 | AI137: 0 | AK137: 0.3500000238 | AL137: 1 | AN137: 0 | AO137: 19.67972374 | AP137: 11.8078928 | AR137: 1 | AS137: 0.03151080301 | AT137: 0 | AU137: 1 | AV137: 1 | AW137: 0.009999999776 | AX137: 0 | AY137: 0.03151080301 | AZ137: 0 | BA137: 0 | BC137: 0
A138: 131 | B138: Sanaga | C138: 129060 | D138: 127459 | E138: 0.9876 | F138: 3 | G138: 42 | H138: 10.25 | I138: 3.75 | J138: 0-10N | K138: 5.53 | L138: Africa | M138: Atlantic Ocean | N138: Atlantic Ocean | O138: Sao Tome - Principe Basin | Q138: 29.60057259 | R138: 676.5101318 | S138: 562.2260742 | T138: 124.3716125 | U138: 1931.985107 | V138: 209.4692383 | W138: 23.44545174 | Y138: 691.4396362 | AA138: 0.485000014 | AB138: 0.007952927893 | AC138: 0.678727984 | AD138: 0.072205104 | AE138: 0.1400000006 | AF138: 0.007339044008 | AG138: 0.007952927893 | AH138: 0.1829986093 | AI138: 158.3953595 | AK138: 0.3406495154 | AL138: 0.9998400211 | AN138: 3.882054806 | AO138: 115.8190002 | AP138: 93.58747864 | AR138: 1 | AS138: 0.00141424205 | AT138: 0.1215522513 | AU138: 0.8738301992 | AV138: 0.9998400211 | AW138: 0.009999999776 | AX138: 0.007339044008 | AY138: 0.00141424205 | AZ138: 0.081562446 | BA138: 20442505.1 | BC138: 292812.2669
A139: 132 | B139: Albany | C139: 128632 | D139: 127232 | E139: 0.9891 | F139: 4 | G139: 66 | H139: -81.75 | I139: 52.25 | J139: 50-66N | K139: 50.84 | L139: North America | M139: Atlantic Ocean | N139: Hudson Bay | O139: James Bay | Q139: 0 | R139: 0 | S139: 0 | T139: 0 | U139: 241.4694672 | V139: 0 | W139: 0 | Y139: 257.3271179 | AA139: 0.635130823 | AB139: 0.3105407306 | AC139: 0.314284563 | AD139: 0.314284563 | AE139: 0.1400000006 | AF139: 0.003531713039 | AG139: 0.3105407306 | AH139: 0.8805144791 | AI139: 4.633630261 | AK139: 0.3365612328 | AL139: 0.9821500182 | AN139: 0 | AO139: 0 | AP139: 0 | AR139: 1 | AS139: 0.05004843232 | AT139: 0.03885733336 | AU139: 0.8621509671 | AV139: 0.9821500182 | AW139: 0.009999999776 | AX139: 0.003531713039 | AY139: 0.05004843232 | AZ139: 0.361894131 | BA139: 596033.1278 | BC139: 181923.3328
A140: 133 | B140: GHAASBasin133 | C140: 128222 | D140: 128040 | E140: 0.9986 | F140: 3 | G140: 46 | H140: 68.25 | I140: 24.25 | J140: 23.5-35N | K140: 25.45 | L140: South Asia | M140: Indian Ocean | N140: Indian Ocean | O140: Indus Delta Coast | Q140: 1806.803833 | R140: 1963.032837 | S140: 1251.501343 | T140: 384.6796875 | U140: 370.365448 | V140: 384.426239 | W140: 34.59655762 | Y140: 579.5635986 | AA140: 0.516875029 | AB140: 68.78695439 | AC140: 0.030831255 | AD140: 0.030831255 | AE140: 0.1400000006 | AF140: 0.0003891080269 | AG140: 68.78695439 | AH140: 0.204573338 | AI140: 7.145474523 | AK140: 0.06857901067 | AL140: 0.1959400177 | AN140: 302.9760742 | AO140: 387.5785828 | AP140: 212.9572144 | AR140: 1 | AS140: 12.37107387 | AT140: 0.0004311621306 | AU140: 0.1959400177 | AV140: 0.1959400177 | AW140: 0.009999999776 | AX140: 0.0003891080269 | AY140: 12.37107387 | AZ140: 0.089772924 | BA140: 916207.0343 | BC140: 16218.88938
A141: 134 | B141: GHAASBasin134 | C141: 126505 | D141: 124638 | E141: 0.9852 | F141: 3 | G141: 47 | H141: -62.75 | I141: -30.75 | J141: 23.5-35S | K141: -29.26 | L141: South America | M141: Land | N141: Land | O141: Land | Q141: 384.4567261 | R141: 1313.291992 | S141: 1466.139648 | T141: 415.8950195 | U141: 273.7369995 | V141: 496.8491516 | W141: 82.29003143 | Y141: 92.13627625 | AA141: 0.510181308 | AB141: 0.8708209041 | AC141: 0.049375094 | AD141: 0.049375094 | AE141: 0.1400000006 | AF141: 0.0006086408393 | AG141: 0.8708209041 | AH141: 0.05083128654 | AI141: 59.27356338 | AK141: 0.3156028092 | AL141: 0.9054800272 | AN141: 109.5838089 | AO141: 234.9725342 | AP141: 250.619339 | AR141: 1 | AS141: 0.1459332338 | AT141: 0.00110322726 | AU141: 0.8998026848 | AV141: 0.9054800272 | AW141: 0.009999999776 | AX141: 0.0006086408393 | AY141: 0.1459332338 | AZ141: 0.028086783 | BA141: 7498402.135 | BC141: 54608.25734
A142: 135 | B142: Brazos | C142: 124892 | D142: 124303 | E142: 0.9953 | F142: 3 | G142: 48 | H142: -95.25 | I142: 29.25 | J142: 23.5-35N | K142: 32.53 | L142: North America | M142: Atlantic Ocean | N142: Gulf of Mexico | O142: North Mexican Gulf | Q142: 1791.619995 | R142: 850.0784912 | S142: 1466.723267 | T142: 317.9483032 | U142: 277.8744812 | V142: 964.7935791 | W142: 85.10793304 | Y142: 123.6340179 | AA142: 0.652344227 | AB142: 8.057429621 | AC142: 0.045679621 | AD142: 0.045679621 | AE142: 0.1400000006 | AF142: 0.0005652816617 | AG142: 8.057429621 | AH142: 0.1722991324 | AI142: 13.28325673 | AK142: 0.3140340149 | AL142: 0.8972399831 | AN142: 281.4703979 | AO142: 173.1664124 | AP142: 279.8722229 | AR142: 1 | AS142: 1.240183596 | AT142: 0.000944783329 | AU142: 0.8972399831 | AV142: 0.8972399831 | AW142: 0.009999999776 | AX142: 0.0005652816617 | AY142: 1.240183596 | AZ142: 0.076873156 | BA142: 1658972.5 | BC142: 45195.23862
A143: 136 | B143: Taymyra | C143: 124036 | D143: 118664 | E143: 0.9567 | F143: 4 | G143: 150 | H143: 98.75 | I143: 76.25 | J143: 66-90N | K143: 74.41 | L143: North Asia | M143: Arctic Ocean | N143: Kara Sea | O143: Kara Sea | Q143: 0 | R143: 0 | S143: 0 | T143: 0 | U143: 586.453064 | V143: 0 | W143: 0 | Y143: 47.77967834 | AA143: 0.552574933 | AB143: 1.344102048 | AC143: 0.105672322 | AD143: 0.105672322 | AE143: 0.1400000006 | AF143: 0.001253983239 | AG143: 1.344102048 | AH143: 0.2835511775 | AI143: 15.32586713 | AK143: 0.3500000238 | AL143: 1 | AN143: 0 | AO143: 0 | AP143: 0 | AR143: 1 | AS143: 0.2369143862 | AT143: 0.004985354841 | AU143: 1 | AV143: 1 | AW143: 0.009999999776 | AX143: 0.001253983239 | AY143: 0.2369143862 | AZ143: 0.121707503 | BA143: 1900959.256 | BC143: 30876.11938
A144: 137 | B144: Alabama | C144: 124011 | D144: 123583 | E144: 0.9965 | F144: 3 | G144: 48 | H144: -88.25 | I144: 30.75 | J144: 23.5-35N | K144: 33.18 | L144: North America | M144: Atlantic Ocean | N144: Gulf of Mexico | O144: North Mexican Gulf | Q144: 568.3883057 | R144: 434.6816101 | S144: 552.4470215 | T144: 111.5667191 | U144: 1200.312866 | V144: 251.5462341 | W144: 22.98433113 | Y144: 789.4597778 | AA144: 0.65234381 | AB144: 10.98448534 | AC144: 0.476082951 | AD144: 0.476082951 | AE144: 0.1400000006 | AF144: 0.00523994863 | AG144: 10.98448534 | AH144: 0.5607422497 | AI144: 20.01145498 | AK144: 0.3439929187 | AL144: 0.9982600212 | AN144: 89.29611206 | AO144: 85.08035278 | AP144: 103.3609924 | AR144: 1 | AS144: 1.690710209 | AT144: 0.07598344982 | AU144: 0.9442541599 | AV144: 0.9982600212 | AW144: 0.009999999776 | AX144: 0.00523994863 | AY144: 1.690710209 | AZ144: 0.23361695 | BA144: 2481640.544 | BC144: 207867.8907
A145: 138 | B145: GHAASBasin138 | C145: 123363 | D145: 123246 | E145: 0.9991 | F145: 3 | G145: 44 | H145: 48.25 | I145: 28.25 | J145: 23.5-35N | K145: 24.7 | L145: South Asia | M145: Indian Ocean | N145: Indian Ocean | O145: Persian Gulf | Q145: 50.37547684 | R145: 189.3201294 | S145: 129.2802582 | T145: 236.4436646 | U145: 410.9311523 | V145: 120.0384216 | W145: 47.28881454 | Y145: 109.2823639 | AA145: 0.556718826 | AB145: 15.40822868 | AC145: 0 | AD145: 0 | AE145: 0.1400000006 | AF145: 0 | AG145: 15.40822868 | AH145: 0 | AI145: 0 | AK145: 0.3500000238 | AL145: 1 | AN145: 4.832818508 | AO145: 31.49971962 | AP145: 21.77233124 | AR145: 1 | AS145: 2.583022116 | AT145: 0 | AU145: 1 | AV145: 1 | AW145: 0.009999999776 | AX145: 0 | AY145: 2.583022116 | AZ145: 0 | BA145: 0 | BC145: 0
A146: 139 | B146: Balsas | C146: 122842 | D146: 121880 | E146: 0.9922 | F146: 3 | G146: 42 | H146: -101.75 | I146: 18.25 | J146: 10-23.5N | K146: 18.68 | L146: North America | M146: Pacific Ocean | N146: Pacific Ocean | O146: Tehuantepec Basin | Q146: 618.6987915 | R146: 644.9398193 | S146: 871.5830078 | T146: 219.6528931 | U146: 1528.247559 | V146: 294.7737732 | W146: 37.64445496 | Y146: 472.5704651 | AA146: 0.530580997 | AB146: 14.14396218 | AC146: 0.264873058 | AD146: 0.028177986 | AE146: 0.1400000006 | AF146: 0.003002026118 | AG146: 14.14396218 | AH146: 0.03728760878 | AI146: 65.94335136 | AK146: 0.2587938011 | AL146: 0.9185000062 | AN146: 62.16025543 | AO146: 114.8719482 | AP146: 153.0917816 | AR146: 1 | AS146: 2.536491436 | AT146: 0.02871426567 | AU146: 0.1377749741 | AV146: 0.9185000062 | AW146: 0.009999999776 | AX146: 0.003002026118 | AY146: 2.536491436 | AZ146: 0.022722545 | BA146: 8100613.168 | BC146: 55781.34104
A147: 140 | B147: Burdekin | C147: 121070 | D147: 120401 | E147: 0.9945 | F147: 3 | G147: 42 | H147: 147.25 | I147: -19.75 | J147: 10-23.5S | K147: -20.94 | L147: Australia | M147: Pacific Ocean | N147: Pacific Ocean | O147: Coral Sea | Q147: 172.6893463 | R147: 131.5338287 | S147: 234.3693695 | T147: 124.2966843 | U147: 1413.455078 | V147: 49.47724533 | W147: 21.38258934 | Y147: 186.1955872 | AA147: 0.574569106 | AB147: 1.470941517 | AC147: 0.019021586 | AD147: 0.019021586 | AE147: 0.1400000006 | AF147: 0.0002459308016 | AG147: 1.470941517 | AH147: 0.07227184666 | AI147: 1.33206473 | AK147: 0.218426913 | AL147: 0.8669300079 | AN147: 76.01338196 | AO147: 22.27091789 | AP147: 40.90047073 | AR147: 1 | AS147: 0.2537202182 | AT147: 0.0001642675634 | AU147: 0.1529871225 | AV147: 0.8669300079 | AW147: 0.009999999776 | AX147: 0.0002459308016 | AY147: 0.2537202182 | AZ147: 0.036636345 | BA147: 161273.0769 | BC147: 3172.897226
A148: 141 | B148: Colorado (Texas) | C148: 121034 | D148: 119908 | E148: 0.9907 | F148: 3 | G148: 46 | H148: -95.75 | I148: 28.75 | J148: 23.5-35N | K148: 31.52 | L148: North America | M148: Atlantic Ocean | N148: Gulf of Mexico | O148: North Mexican Gulf | Q148: 1157.782227 | R148: 1041.211548 | S148: 1103.524658 | T148: 335.7304688 | U148: 212.4865723 | V148: 741.0826416 | W148: 81.80701447 | Y148: 132.1537781 | AA148: 0.652343869 | AB148: 3.952159811 | AC148: 0.033825833 | AD148: 0.033825833 | AE148: 0.1400000006 | AF148: 0.0004249273043 | AG148: 3.952159811 | AH148: 0.09966401186 | AI148: 12.05094431 | AK148: 0.2437943965 | AL148: 0.889779985 | AN148: 181.8926849 | AO148: 211.8892212 | AP148: 218.5964203 | AR148: 1 | AS148: 0.6083086041 | AT148: 0.0005188283976 | AU148: 0.4057307839 | AV148: 0.889779985 | AW148: 0.009999999776 | AX148: 0.0004249273043 | AY148: 0.6083086041 | AZ148: 0.047671941 | BA148: 1458573.993 | BC148: 17400.33723
A149: 142 | B149: Odra | C149: 119703 | D149: 118731 | E149: 0.9919 | F149: 3 | G149: 63 | H149: 14.25 | I149: 53.75 | J149: 50-66N | K149: 51.98 | L149: Europe | M149: Atlantic Ocean | N149: Baltic Sea | O149: Baltic Sea | Q149: 3720.433105 | R149: 2074.359131 | S149: 4269.399902 | T149: 367.3299866 | U149: 572.6055298 | V149: 1132.920654 | W149: 63.48963547 | Y149: 628.5422974 | AA149: 0.645740807 | AB149: 23.86137834 | AC149: 0.090445049 | AD149: 0.090445049 | AE149: 0.1400000006 | AF149: 0.001081668306 | AG149: 23.86137834 | AH149: 0.5171410867 | AI149: 4.721741568 | AK149: 0.3174885213 | AL149: 0.9071099758 | AN149: 463.5088501 | AO149: 409.3564758 | AP149: 732.8278809 | AR149: 1 | AS149: 3.688136383 | AT149: 0.003668972524 | AU149: 0.9071099758 | AV149: 0.9071099758 | AW149: 0.009999999776 | AX149: 0.001081668306 | AY149: 3.688136383 | AZ149: 0.215429566 | BA149: 565206.6309 | BC149: 51167.67176
A150: 143 | B150: Loire | C150: 118141 | D150: 117340 | E150: 0.9932 | F150: 3 | G150: 56 | H150: -2.25 | I150: 47.25 | J150: 35-50N | K150: 46.88 | L150: Europe | M150: Atlantic Ocean | N150: Atlantic Ocean | O150: Iberian-Biscay Plains | Q150: 5265.834473 | R150: 3006.644531 | S150: 5739.751465 | T150: 680.3531494 | U150: 350.4524231 | V150: 1204.49292 | W150: 77.43518066 | Y150: 322.1142578 | AA150: 0.643100441 | AB150: 32.51444993 | AC150: 0.178886533 | AD150: 0.178886533 | AE150: 0.1400000006 | AF150: 0.002067651367 | AG150: 32.51444993 | AH150: 0.4759215497 | AI150: 10.90849567 | AK150: 0.3204250038 | AL150: 0.9154999852 | AN150: 795.4520874 | AO150: 577.7841797 | AP150: 1049.838745 | AR150: 1 | AS150: 4.926179004 | AT150: 0.01384262089 | AU150: 0.9154999852 | AV150: 0.9154999852 | AW150: 0.009999999776 | AX150: 0.002067651367 | AY150: 4.926179004 | AZ150: 0.199128925 | BA150: 1288740.587 | BC150: 104358.1078
A151: 144 | B151: Galana | C151: 117230 | D151: 115223 | E151: 0.9829 | F151: 3 | G151: 38 | H151: 39.75 | I151: -3.25 | J151: 0-10S | K151: -2.1 | L151: Africa | M151: Indian Ocean | N151: Indian Ocean | O151: Zanzibar Coast | Q151: 132.0924683 | R151: 2073.692871 | S151: 1183.766846 | T151: 363.5775757 | U151: 983.6816406 | V151: 311.5473938 | W151: 61.8573761 | Y151: 194.1286316 | AA151: 0.502618134 | AB151: 0.2857179481 | AC151: 0.13445136 | AD151: 0.014303336 | AE151: 0.1400000006 | AF151: 0.00157639652 | AG151: 0.2857179481 | AH151: 0.03765513465 | AI151: 375.3886055 | AK151: 0.3491600156 | AL151: 0.997600019 | AN151: 69.53339386 | AO151: 364.8946533 | AP151: 199.0053711 | AR151: 1 | AS151: 0.04889638901 | AT151: 0.007985609584 | AU151: 0.997600019 | AV151: 0.997600019 | AW151: 0.009999999776 | AX151: 0.00157639652 | AY151: 0.04889638901 | AZ151: 0.022849916 | BA151: 44006806.22 | BC151: 281347.8208
A152: 145 | B152: Kuskowin | C152: 115670 | D152: 114864 | E152: 0.993 | F152: 3 | G152: 79 | H152: -162.25 | I152: 60.25 | J152: 50-66N | K152: 61.65 | L152: North America | M152: Pacific Ocean | N152: Pacific Ocean | O152: East Aleutian Basin | Q152: 0 | R152: 0 | S152: 0 | T152: 0 | U152: 219.4760895 | V152: 0 | W152: 0 | Y152: 43.93247986 | AA152: 0.652343869 | AB152: 17.06763757 | AC152: 0.119029015 | AD152: 0.119029015 | AE152: 0.1400000006 | AF152: 0.00140410231 | AG152: 17.06763757 | AH152: 0.1909856653 | AI152: 30.25386026 | AK152: 0.3500000238 | AL152: 1 | AN152: 0 | AO152: 0 | AP152: 0 | AR152: 1 | AS152: 2.627016942 | AT152: 0.006296182051 | AU152: 1 | AV152: 1 | AW152: 0.009999999776 | AX152: 0.00140410231 | AY152: 2.627016942 | AZ152: 0.084507725 | BA152: 3499464.016 | BC152: 67447.27303
A153: 146 | B153: Moose | C153: 114593 | D153: 112675 | E153: 0.9833 | F153: 3 | G153: 57 | H153: -80.75 | I153: 51.75 | J153: 50-66N | K153: 49.34 | L153: North America | M153: Atlantic Ocean | N153: Hudson Bay | O153: James Bay | Q153: 0 | R153: 0 | S153: 0 | T153: 0 | U153: 1148.115479 | V153: 0 | W153: 0 | Y153: 348.5213013 | AA153: 0.63513124 | AB153: 0.1891165839 | AC153: 0.429392129 | AD153: 0.429392129 | AE153: 0.1400000006 | AF153: 0.004750506487 | AG153: 0.1891165839 | AH153: 0.9404065926 | AI153: 6.242612507 | AK153: 0.33535254 | AL153: 0.9581500292 | AN153: 0 | AO153: 0 | AP153: 0 | AR153: 1 | AS153: 0.03047905675 | AT153: 0.06498649716 | AU153: 0.9581500292 | AV153: 0.9581500292 | AW153: 0.009999999776 | AX153: 0.004750506487 | AY153: 0.03047905675 | AZ153: 0.386061934 | BA153: 715359.695 | BC153: 209481.3361
A154: 147 | B154: Narmada | C154: 113952 | D154: 113406 | E154: 0.9952 | F154: 2 | G154: 40 | H154: 72.75 | I154: 21.75 | J154: 10-23.5N | K154: 22.67 | L154: South Asia | M154: Indian Ocean | N154: Indian Ocean | O154: West Deccan Coast | Q154: 3072.556885 | R154: 2310.727295 | S154: 1810.060425 | T154: 821.6266479 | U154: 1281.408081 | V154: 888.7250977 | W154: 52.44813538 | Y154: 874.0320435 | AA154: 0.516875029 | AB154: 19.77524328 | AC154: 0.390090257 | AD154: 0.041498967 | AE154: 0.1400000006 | AF154: 0.004336460494 | AG154: 19.77524328 | AH154: 0.04484945721 | AI154: 27.67660467 | AK154: 0.1342072785 | AL154: 0.9582399726 | AN154: 519.9812012 | AO154: 488.4372253 | AP154: 312.183197 | AR154: 1 | AS154: 3.560840842 | AT154: 0.05581965297 | AU154: 0.143735975 | AV154: 0.9582399726 | AW154: 0.009999999776 | AX154: 0.004336460494 | AY154: 3.560840842 | AZ154: 0.025773961 | BA154: 3153804.455 | BC154: 10179.81488
A155: 148 | B155: GHAASBasin148 | C155: 111672 | D155: 111407 | E155: 0.9976 | F155: 3 | G155: 41 | H155: 63.25 | I155: 28.25 | J155: 23.5-35N | K155: 28.09 | L155: South Asia | M155: Land | N155: Land | O155: Land | Q155: 0 | R155: 0 | S155: 0 | T155: 0 | U155: 779.1469116 | V155: 0 | W155: 0 | Y155: 319.8903809 | AA155: 0.527589917 | AB155: 27.02621342 | AC155: 0 | AD155: 0 | AE155: 0.1400000006 | AF155: 0 | AG155: 27.02621342 | AH155: 0 | AI155: 0 | AK155: 0.2000005096 | AL155: 0.5714299679 | AN155: 0 | AO155: 0 | AP155: 0 | AR155: 1 | AS155: 4.801651354 | AT155: 0 | AU155: 0.5714299679 | AV155: 0.5714299679 | AW155: 0.009999999776 | AX155: 0 | AY155: 4.801651354 | AZ155: 0 | BA155: 0 | BC155: 0
A156: 149 | B156: Churchill (Atlantic) | C156: 110509 | D156: 101592 | E156: 0.9193 | F156: 3 | G156: 60 | H156: -60.25 | I156: 53.25 | J156: 50-66N | K156: 53.36 | L156: North America | M156: Atlantic Ocean | N156: Atlantic Ocean | O156: Labrador Coast | Q156: 0 | R156: 0 | S156: 0 | T156: 0 | U156: 162.7179718 | V156: 0 | W156: 0 | Y156: 150.851059 | AA156: 0.635131717 | AB156: 0.0468687507 | AC156: 0.604111373 | AD156: 0.604111373 | AE156: 0.1400000006 | AF156: 0.006570367608 | AG156: 0.0468687507 | AH156: 0.8375152572 | AI156: 5.365174997 | AK156: 0.2930087745 | AL156: 0.9784799814 | AN156: 0 | AO156: 0 | AP156: 0 | AR156: 1 | AS156: 0.007553622653 | AT156: 0.1054821238 | AU156: 0.5059329271 | AV156: 0.9784799814 | AW156: 0.009999999776 | AX156: 0.006570367608 | AY156: 0.007553622653 | AZ156: 0.344941279 | BA156: 592900.1237 | BC156: 52770.81677
A157: 150 | B157: Flinders | C157: 110210 | D157: 109857 | E157: 0.9968 | F157: 3 | G157: 38 | H157: 140.75 | I157: -17.75 | J157: 10-23.5S | K157: -20.03 | L157: Australia | M157: Indian Ocean | N157: Indian Ocean | O157: South Arafura-Timor Basin | Q157: 27.63496971 | R157: 329.1280212 | S157: 272.363678 | T157: 354.1230469 | U157: 497.5365295 | V157: 143.9606171 | W157: 70.8245163 | Y157: 59.20379257 | AA157: 0.574569046 | AB157: 2.492680008 | AC157: 0.015441468 | AD157: 0.015441468 | AE157: 0.1400000006 | AF157: 0.0002017356746 | AG157: 2.492680008 | AH157: 0.07447857508 | AI157: 11.97106363 | AK157: 0.08575000614 | AL157: 0.2450000048 | AN157: 13.62154102 | AO157: 52.56446838 | AP157: 44.57880402 | AR157: 1 | AS157: 0.4299581649 | AT157: 0.0001082728122 | AU157: 0.2450000048 | AV157: 0.2450000048 | AW157: 0.009999999776 | AX157: 0.0002017356746 | AY157: 0.4299581649 | AZ157: 0.037501414 | BA157: 1319330.923 | BC157: 13865.83023
A158: 151 | B158: GHAASBasin151 | C158: 109608 | D158: 103719 | E158: 0.9463 | F158: 3 | G158: 47 | H158: -113.25 | I158: 41.25 | J158: 35-50N | K158: 40.93 | L158: North America | M158: Land | N158: Land | O158: Land | Q158: 343.0990295 | R158: 606.2814941 | S158: 471.7018738 | T158: 29.56599808 | U158: 334.0139465 | V158: 17.78757095 | W158: 6.081800461 | Y158: 241.4312897 | AA158: 0.652343154 | AB158: 0.8804129006 | AC158: 0.079406962 | AD158: 0.079406962 | AE158: 0.1400000006 | AF158: 0.0009558598395 | AG158: 0.8804129006 | AH158: 0.3253527327 | AI158: 9.296458636 | AK158: 0.3005030155 | AL158: 0.8585799932 | AN158: 53.90227127 | AO158: 118.844429 | AP158: 94.63451385 | AR158: 1 | AS158: 0.1355114085 | AT158: 0.002836306114 | AU158: 0.8585799932 | AV158: 0.8585799932 | AW158: 0.009999999776 | AX158: 0.0009558598395 | AY158: 0.1355114085 | AZ158: 0.138402009 | BA158: 1018966.238 | BC158: 32117.91684
A159: 152 | B159: Kizil Irmak | C159: 109558 | D159: 107530 | E159: 0.9815 | F159: 3 | G159: 46 | H159: 35.25 | I159: 41.25 | J159: 35-50N | K159: 39.49 | L159: South Asia | M159: Mediterranean+Black Sea | N159: Black Sea | O159: South Black Sea | Q159: 2046.331665 | R159: 1617.599731 | S159: 1840.541138 | T159: 308.7643127 | U159: 153.7039795 | V159: 438.2190247 | W159: 59.73858643 | Y159: 272.7806396 | AA159: 0.506674886 | AB159: 10.03413656 | AC159: 0.047294036 | AD159: 0.047294036 | AE159: 0.1400000006 | AF159: 0.000584244437 | AG159: 10.03413656 | AH159: 0.04495900507 | AI159: 55.45654004 | AK159: 0.2578956485 | AL159: 0.8207499981 | AN159: 412.3989258 | AO159: 290.8879395 | AP159: 327.6145935 | AR159: 1 | AS159: 1.843430897 | AT159: 0.001012507244 | AU159: 0.6911289096 | AV159: 0.8207499981 | AW159: 0.009999999776 | AX159: 0.000584244437 | AY159: 1.843430897 | AZ159: 0.025720113 | BA159: 6075707.613 | BC159: 46815.98625
A160: 153 | B160: San Joaquin | C160: 109335 | D160: 108806 | E160: 0.9952 | F160: 3 | G160: 44 | H160: -121.25 | I160: 37.75 | J160: 35-50N | K160: 36.38 | L160: North America | M160: Pacific Ocean | N160: Pacific Ocean | O160: San Francisco Coast | Q160: 3852.252197 | R160: 1237.298218 | S160: 2998.399658 | T160: 110.4943542 | U160: 745.2773438 | V160: 114.9705048 | W160: 25.37211418 | Y160: 323.7051392 | AA160: 0.652343273 | AB160: 8.671108942 | AC160: 0.177500814 | AD160: 0.177500814 | AE160: 0.1400000006 | AF160: 0.002052432625 | AG160: 8.671108942 | AH160: 0.03734186417 | AI160: 125.1858103 | AK160: 0.06318344176 | AL160: 0.2222300172 | AN160: 605.2041626 | AO160: 261.4295654 | AP160: 561.1259155 | AR160: 1 | AS160: 1.3346399 | AT160: 0.01363903936 | AU160: 0.071269162 | AV160: 0.2222300172 | AW160: 0.009999999776 | AX160: 0.002052432625 | AY160: 1.3346399 | AZ160: 0.022723135 | BA160: 13687190.56 | BC160: 18760.64314
A161: 154 | B161: Back | C161: 108544 | D161: 103774 | E161: 0.9561 | F161: 3 | G161: 85 | H161: -95.75 | I161: 67.25 | J161: 66-90N | K161: 65.55 | L161: North America | M161: Arctic Ocean | N161: Arctic Archipelago | O161: Canadian Archipelago Basin | Q161: 0 | R161: 0 | S161: 0 | T161: 0 | U161: 586.0618896 | V161: 0 | W161: 0 | Y161: 36.5755806 | AA161: 0.635131776 | AB161: 0.1790453666 | AC161: 0.062036589 | AD161: 0.062036589 | AE161: 0.1400000006 | AF161: 0.0007560387603 | AG161: 0.1790453666 | AH161: 0.4582961846 | AI161: 4.053113898 | AK161: 0.2901570201 | AL161: 0.8290200233 | AN161: 0 | AO161: 0 | AP161: 0 | AR161: 1 | AS161: 0.02885592461 | AT161: 0.001737760962 | AU161: 0.8290200233 | AV161: 0.8290200233 | AW161: 0.009999999776 | AX161: 0.0007560387603 | AY161: 0.02885592461 | AZ161: 0.191660392 | BA161: 439941.195 | BC161: 6430.156429
A162: 155 | B162: Save | C162: 107166 | D162: 106824 | E162: 0.9968 | F162: 3 | G162: 37 | H162: 34.75 | I162: -21.25 | J162: 10-23.5S | K162: -20.24 | L162: Africa | M162: Indian Ocean | N162: Indian Ocean | O162: Mozambique Coast | Q162: 349.3057556 | R162: 859.2202759 | S162: 724.7410278 | T162: 415.0822144 | U162: 542.7952881 | V162: 308.2153015 | W162: 78.03575897 | Y162: 84.31163025 | AA162: 0.509177685 | AB162: 5.418631289 | AC162: 0.051588781 | AD162: 0.051588781 | AE162: 0.1400000006 | AF162: 0.0006345356815 | AG162: 5.418631289 | AH162: 0.09565314433 | AI162: 28.61797321 | AK162: 0.3258423507 | AL162: 0.959890008 | AN162: 75.67717743 | AO162: 153.3042145 | AP162: 124.8250351 | AR162: 1 | AS162: 0.9692227551 | AT162: 0.001203949098 | AU162: 0.9140936732 | AV162: 0.959890008 | AW162: 0.009999999776 | AX162: 0.0006345356815 | AY162: 0.9692227551 | AZ162: 0.046086071 | BA162: 3066873.717 | BC162: 59058.76566
A163: 156 | B163: Roper | C163: 107087 | D163: 105678 | E163: 0.9868 | F163: 3 | G163: 36 | H163: 135.25 | I163: -14.75 | J163: 10-23.5S | K163: -15.52 | L163: Australia | M163: Indian Ocean | N163: Indian Ocean | O163: South Arafura-Timor Basin | Q163: 0 | R163: 34.30472565 | S163: 25.92798424 | T163: 36.28003311 | U163: 2287.317871 | V163: 15.16897488 | W163: 7.256006718 | Y163: 199.0605774 | AA163: 0.574568629 | AB163: 0.5738673886 | AC163: 0.101487555 | AD163: 0.101487555 | AE163: 0.1400000006 | AF163: 0.001206759363 | AG163: 0.5738673886 | AH163: 0.2088535449 | AI163: 22.86643943 | AK163: 0.3498180211 | AL163: 0.9994800091 | AN163: 0 | AO163: 5.478750706 | AP163: 4.19826889 | AR163: 1 | AS163: 0.09898541671 | AT163: 0.004604464863 | AU163: 0.9994800091 | AV163: 0.9994800091 | AW163: 0.009999999776 | AX163: 0.001206759363 | AY163: 0.09898541671 | AZ163: 0.091653906 | BA163: 2448698.399 | BC163: 48922.31993
A164: 157 | B164: Victoria | C164: 106287 | D164: 105810 | E164: 0.9955 | F164: 3 | G164: 36 | H164: 129.75 | I164: -15.25 | J164: 10-23.5S | K164: -16.98 | L164: Australia | M164: Indian Ocean | N164: Indian Ocean | O164: South Arafura-Timor Basin | Q164: 0 | R164: 91.4771347 | S164: 69.13959503 | T164: 96.74465942 | U164: 1410.115967 | V164: 46.08127213 | W164: 19.34893227 | Y164: 193.5025024 | AA164: 0.574568629 | AB164: 1.7112219 | AC164: 0.032494813 | AD164: 0.032494813 | AE164: 0.1400000006 | AF164: 0.0004090269213 | AG164: 1.7112219 | AH164: 0.2200580514 | AI164: 6.812378913 | AK164: 0.3500000238 | AL164: 1 | AN164: 0 | AO164: 14.60968876 | AP164: 11.19515991 | AR164: 1 | AS164: 0.2951657757 | AT164: 0.0004788668302 | AU164: 1 | AV164: 1 | AW164: 0.009999999776 | AX164: 0.0004090269213 | AY164: 0.2951657757 | AZ164: 0.095962016 | BA164: 724067.3176 | BC164: 42227.0502
A165: 158 | B165: GHAASBasin158 | C165: 106198 | D165: 100309 | E165: 0.9445 | F165: 3 | G165: 39 | H165: 121.25 | I165: -29.25 | J165: 23.5-35S | K165: -28.1 | L165: Australia | M165: Land | N165: Land | O165: Land | Q165: 0 | R165: 389.8171387 | S165: 294.6289062 | T165: 412.2629395 | U165: 93.73557281 | V165: 75.86404419 | W165: 82.45259094 | Y165: 11.59758186 | AA165: 0.574568629 | AB165: 0.1634601344 | AC165: 0.003394756 | AD165: 0.003394756 | AE165: 0.1400000006 | AF165: 4.784061457e-05 | AG165: 0.1634601344 | AH165: 0.1063558408 | AI165: 45.17394895 | AK165: 0.3500000238 | AL165: 1 | AN165: 0 | AO165: 62.25701141 | AP165: 47.70645523 | AR165: 1 | AS165: 0.02819496252 | AT165: 5.234964192e-06 | AU165: 1 | AV165: 1 | AW165: 0.009999999776 | AX165: 4.784061457e-05 | AY165: 0.02819496252 | AZ165: 0.050430974 | BA165: 4797383.03 | BC165: 3695.283679
A166: 159 | B166: GHAASBasin159 | C166: 864 | D166: 864 | E166: 1 | F166: 3 | G166: 1 | H166: -55.75 | I166: 73.75 | J166: 66-90N | K166: 73.75 | L166: North America | M166: Arctic Ocean | N166: Baffin Bay | O166: East Baffin Bay | Q166: 0 | R166: 0 | S166: 0 | T166: 0 | U166: 0 | V166: 0 | W166: 0 | Y166: 553 | AA166: 0.485000014 | AB166: 0 | AC166: 0.196515471 | AD166: 0.196515471 | AE166: 0.1400000006 | AF166: 0.002260765294 | AG166: 0 | AH166: 0 | AI166: 0 | AK166: 0.6352248192 | AL166: 1 | AN166: 0 | AO166: 0 | AP166: 0 | AR166: 1 | AS166: 0 | AT166: 0.0165420901 | AU166: 1 | AV166: 1 | AW166: 0.009999999776 | AX166: 0.002260765294 | AY166: 0 | AZ166: 0 | BA166: 0 | BC166: 139.3761045
A167: 160 | B167: GHAASBasin160 | C167: 105716 | D167: 105502 | E167: 0.998 | F167: 3 | G167: 36 | H167: 16.75 | I167: -18.75 | J167: 10-23.5S | K167: -17.95 | L167: Africa | M167: Land | N167: Land | O167: Land | Q167: 0.02166502737 | R167: 215.5397491 | S167: 108.7460709 | T167: 240.3902893 | U167: 936.1278687 | V167: 190.2077332 | W167: 47.30059814 | Y167: 178.1849518 | AA167: 0.506164134 | AB167: 0.8627769837 | AC167: 0.029675053 | AD167: 0.029675053 | AE167: 0.1400000006 | AF167: 0.0003752325429 | AG167: 0.8627769837 | AH167: 0.1997761177 | AI167: 7.101871226 | AK167: 0.3483200073 | AL167: 0.9951999784 | AN167: 0 | AO167: 39.3842926 | AP167: 18.23716354 | AR167: 1 | AS167: 0.1555773583 | AT167: 0.000399474171 | AU167: 0.9951999784 | AV167: 0.9951999784 | AW167: 0.009999999776 | AX167: 0.0003752325429 | AY167: 0.1555773583 | AZ167: 0.087812354 | BA167: 750781.4185 | BC167: 25297.18132
A168: 161 | B168: Bandama | C168: 103965 | D168: 100931 | E168: 0.9708 | F168: 4 | G168: 34 | H168: -4.75 | I168: 5.25 | J168: 0-10N | K168: 7.89 | L168: Africa | M168: Atlantic Ocean | N168: Atlantic Ocean | O168: Guinea Basin | Q168: 198.59375 | R168: 388.918396 | S168: 618.4100342 | T168: 393.289093 | U168: 618.770752 | V168: 519.4334717 | W168: 76.58827209 | Y168: 138.0733948 | AA168: 0.485000014 | AB168: 0.4254318818 | AC168: 0.251612395 | AD168: 0.026767274 | AE168: 0.1400000006 | AF168: 0.002859064611 | AG168: 0.4254318818 | AH168: 0.2979845039 | AI168: 33.36968276 | AK168: 0.3430592716 | AL168: 0.986890018 | AN168: 22.11619377 | AO168: 70.89712524 | AP168: 103.7599182 | AR168: 1 | AS168: 0.07503566375 | AT168: 0.02616401948 | AU168: 0.9754519463 | AV168: 0.986890018 | AW168: 0.009999999776 | AX168: 0.002859064611 | AY168: 0.07503566375 | AZ168: 0.12766292 | BA168: 3469279.068 | BC168: 127292.8938
A169: 162 | B169: Severn CAN | C169: 103938 | D169: 100291 | E169: 0.9649 | F169: 3 | G169: 57 | H169: -87.75 | I169: 56.25 | J169: 50-66N | K169: 53.76 | L169: North America | M169: Atlantic Ocean | N169: Hudson Bay | O169: West Hudson Bay | Q169: 0 | R169: 0 | S169: 0 | T169: 0 | U169: 170.7893219 | V169: 0 | W169: 0 | Y169: 171.426239 | AA169: 0.63513124 | AB169: 0.1093494842 | AC169: 0.220502704 | AD169: 0.220502704 | AE169: 0.1400000006 | AF169: 0.002522154944 | AG169: 0.1093494842 | AH169: 0.7832468866 | AI169: 4.893045191 | AK169: 0.2333344966 | AL169: 0.6666699648 | AN169: 0 | AO169: 0 | AP169: 0 | AR169: 1 | AS169: 0.01762335732 | AT169: 0.02052366547 | AU169: 0.6666699648 | AV169: 0.6666699648 | AW169: 0.009999999776 | AX169: 0.002522154944 | AY169: 0.01762335732 | AZ169: 0.322524543 | BA169: 508573.3311 | BC169: 85327.14215
A170: 163 | B170: Po | C170: 102061 | D170: 100297 | E170: 0.9827 | F170: 3 | G170: 47 | H170: 12.25 | I170: 44.75 | J170: 35-50N | K170: 45.29 | L170: Europe | M170: Mediterranean+Black Sea | N170: Mediterranean Sea | O170: Adriatic Sea | Q170: 2254.690918 | R170: 2562.38916 | S170: 2148.715088 | T170: 344.9966125 | U170: 448.8678284 | V170: 793.362793 | W170: 56.50120926 | Y170: 609.5178223 | AA170: 0.62368083 | AB170: 29.56642681 | AC170: 0.604460359 | AD170: 0.604460359 | AE170: 0.1400000006 | AF170: 0.006573973689 | AG170: 29.56642681 | AH170: 0.05028432446 | AI170: 741.1575586 | AK170: 0.3500000238 | AL170: 1 | AN170: 595.09021 | AO170: 514.6245728 | AP170: 398.9378967 | AR170: 1 | AS170: 4.780106216 | AT170: 0.1055596471 | AU170: 1 | AV170: 1 | AW170: 0.009999999776 | AX170: 0.006573973689 | AY170: 4.780106216 | AZ170: 0.027980217 | BA170: 75643281.59 | BC170: 261817.0901
A171: 164 | B171: GHAASBasin164 | C171: 100736 | D171: 100580 | E171: 0.9985 | F171: 3 | G171: 35 | H171: 132.75 | I171: -19.75 | J171: 10-23.5S | K171: -21.2 | L171: Australia | M171: Land | N171: Land | O171: Land | Q171: 0 | R171: 284.3114624 | S171: 214.8864288 | T171: 300.6819763 | U171: 310.1254883 | V171: 106.7225189 | W171: 60.1363945 | Y171: 62.09756088 | AA171: 0.574568391 | AB171: 5.410004298 | AC171: 0.006148958 | AD171: 0.006148958 | AE171: 0.1400000006 | AF171: 8.411820454e-05 | AG171: 5.410004298 | AH171: 0.03934482771 | AI171: 11.3057545 | AK171: 0.3498320282 | AL171: 0.9995200038 | AN171: 0 | AO171: 45.40680695 | AP171: 34.79441452 | AR171: 1 | AS171: 0.933162505 | AT171: 1.717440682e-05 | AU171: 0.9995200038 | AV171: 0.9995200038 | AW171: 0.009999999776 | AX171: 8.411820454e-05 | AY171: 0.933162505 | AZ171: 0.023380985 | BA171: 1138896.486 | BC171: 9364.927163
A172: 165 | B172: Rhone | C172: 99180.20313 | D172: 98660.39844 | E172: 0.9948 | F172: 3 | G172: 46 | H172: 4.75 | I172: 43.75 | J172: 35-50N | K172: 45.67 | L172: Europe | M172: Mediterranean+Black Sea | N172: Mediterranean Sea | O172: Balearic Basin | Q172: 2281.433105 | R172: 1078.864502 | S172: 2562.104004 | T172: 547.6102905 | U172: 901.6427002 | V172: 482.965332 | W172: 32.45829391 | Y172: 973.5562134 | AA172: 0.645391881 | AB172: 43.69900195 | AC172: 0.495010674 | AD172: 0.495010674 | AE172: 0.1400000006 | AF172: 0.005437663756 | AG172: 43.69900195 | AH172: 0.06650526169 | AI172: 391.4677466 | AK172: 0.3090676963 | AL172: 0.9016699791 | AN172: 337.4362793 | AO172: 210.2808685 | AP172: 456.4449158 | AR172: 1 | AS172: 6.560098446 | AT172: 0.08043623716 | AU172: 0.8147850633 | AV172: 0.9016699791 | AW172: 0.009999999776 | AX172: 0.005437663756 | AY172: 6.560098446 | AZ172: 0.034509608 | BA172: 38825850.63 | BC172: 167484.7932
A173: 166 | B173: Anabar | C173: 98827 | D173: 98372 | E173: 0.9954 | F173: 3 | G173: 97 | H173: 113.75 | I173: 73.25 | J173: 66-90N | K173: 70.67 | L173: North Asia | M173: Arctic Ocean | N173: Laptev Sea | O173: Laptev Sea | Q173: 0 | R173: 0 | S173: 0 | T173: 0 | U173: 244.3745117 | V173: 0 | W173: 0 | Y173: 44.58245087 | AA173: 0.552574933 | AB173: 8.371605687 | AC173: 0.069355138 | AD173: 0.069355138 | AE173: 0.1400000006 | AF173: 0.0008405300905 | AG173: 8.371605687 | AH173: 0.2369139492 | AI173: 13.10420937 | AK173: 0.3397065103 | AL173: 0.9705899954 | AN173: 0 | AO173: 0 | AP173: 0 | AR173: 1 | AS173: 1.47559765 | AT173: 0.002168710809 | AU173: 0.9705899954 | AV173: 0.9705899954 | AW173: 0.009999999776 | AX173: 0.0008405300905 | AY173: 1.47559765 | AZ173: 0.102846373 | BA173: 1295049.7 | BC173: 23286.23805
A174: 167 | B174: La Grande | C174: 98823.39844 | D174: 95794.10156 | E174: 0.9693 | F174: 3 | G174: 54 | H174: -78.75 | I174: 53.75 | J174: 50-66N | K174: 53.64 | L174: North America | M174: Atlantic Ocean | N174: Hudson Bay | O174: James Bay | Q174: 0 | R174: 0 | S174: 0 | T174: 0 | U174: 171.5747528 | V174: 0 | W174: 0 | Y174: 167.6171875 | AA174: 0.63513118 | AB174: 0.1252574063 | AC174: 0.41707474 | AD174: 0.41707474 | AE174: 0.1400000006 | AF174: 0.00462095486 | AG174: 0.1252574063 | AH174: 0.8945884026 | AI174: 0.3760698748 | AK174: 0.2170490026 | AL174: 1 | AN174: 0 | AO174: 0 | AP174: 0 | AR174: 1 | AS174: 0.02018716452 | AT174: 0.06209852174 | AU174: 0.1499999762 | AV174: 1 | AW174: 0.009999999776 | AX174: 0.00462095486 | AY174: 0.02018716452 | AZ174: 0.367554896 | BA174: 37164.50308 | BC174: 3729.733397
A175: 168 | B175: Tana (Kenya) | C175: 98779.29688 | D175: 98453.29688 | E175: 0.9967 | F175: 2 | G175: 32 | H175: 40.25 | I175: -2.25 | J175: 0-10S | K175: -1 | L175: Africa | M175: Indian Ocean | N175: Indian Ocean | O175: Somali Coast | Q175: 202.555603 | R175: 1932.884644 | S175: 1059.068115 | T175: 285.2996521 | U175: 732.6686401 | V175: 245.7559509 | W175: 52.95097351 | Y175: 209.4659576 | AA175: 0.508906245 | AB175: 1.948644475 | AC175: 0.178213969 | AD175: 0.018958932 | AE175: 0.1400000006 | AF175: 0.002060265513 | AG175: 1.948644475 | AH175: 0.1462108554 | AI175: 61.75927221 | AK175: 0.3393476605 | AL175: 0.9839699864 | AN175: 99.1321106 | AO175: 336.8894348 | AP175: 179.6672058 | AR175: 1 | AS175: 0.3355029353 | AT175: 0.0137436511 | AU175: 0.9577766657 | AV175: 0.9839699864 | AW175: 0.009999999776 | AX175: 0.002060265513 | AY175: 0.3355029353 | AZ175: 0.066529118 | BA175: 6100537.484 | BC175: 93022.63349
A176: 169 | B176: GHAASBasin169 | C176: 98052.89844 | D176: 97714.60156 | E176: 0.9965 | F176: 3 | G176: 36 | H176: 129.25 | I176: -31.25 | J176: 23.5-35S | K176: -28.03 | L176: Australia | M176: Indian Ocean | N176: Indian Ocean | O176: Great Australian Bay | Q176: 0 | R176: 444.4590759 | S176: 335.9278564 | T176: 470.0523987 | U176: 44.08406067 | V176: 83.48564911 | W176: 94.01037598 | Y176: 5.817829132 | AA176: 0.574568868 | AB176: 2.591119281 | AC176: 0 | AD176: 0 | AE176: 0.1400000006 | AF176: 0 | AG176: 2.591119281 | AH176: 0 | AI176: 0 | AK176: 0.3500000238 | AL176: 1 | AN176: 0 | AO176: 70.98382568 | AP176: 54.39369965 | AR176: 1 | AS176: 0.446937789 | AT176: 0 | AU176: 1 | AV176: 1 | AW176: 0.009999999776 | AX176: 0 | AY176: 0.446937789 | AZ176: 0 | BA176: 0 | BC176: 0
A177: 170 | B177: Cunene | C177: 98000.60156 | D177: 95895.70313 | E177: 0.9785 | F177: 3 | G177: 33 | H177: 11.75 | I177: -17.25 | J177: 10-23.5S | K177: -15.82 | L177: Africa | M177: Atlantic Ocean | N177: Atlantic Ocean | O177: Angola Basin | Q177: 0.860041678 | R177: 391.6282043 | S177: 137.5726318 | T177: 320.3847656 | U177: 738.1392822 | V177: 234.6893768 | W177: 63.41236496 | Y177: 141.641983 | AA177: 0.491705626 | AB177: 0.0966232801 | AC177: 0.140984759 | AD177: 0.140984759 | AE177: 0.1400000006 | AF177: 0.001649081358 | AG177: 0.0966232801 | AH177: 0.1539939116 | AI177: 41.88370638 | AK177: 0.3345592618 | AL177: 0.9977700114 | AN177: 0 | AO177: 75.61515045 | AP177: 23.30832672 | AR177: 1 | AS177: 0.01716529178 | AT177: 0.008756551892 | AU177: 0.8969453573 | AV177: 0.9977700114 | AW177: 0.009999999776 | AX177: 0.001649081358 | AY177: 0.01716529178 | AZ177: 0.069631221 | BA177: 4104628.421 | BC177: 55807.91782
A178: 171 | B178: Douro | C178: 96993.29688 | D178: 95455.29688 | E178: 0.9841 | F178: 3 | G178: 42 | H178: -8.75 | I178: 41.25 | J178: 35-50N | K178: 41.58 | L178: Europe | M178: Atlantic Ocean | N178: Atlantic Ocean | O178: Iberian-Biscay Plains | Q178: 2178.758789 | R178: 1631.989014 | S178: 1772.57605 | T178: 369.1265259 | U178: 430.5524292 | V178: 589.3891602 | W178: 65.45277405 | Y178: 277.2191467 | AA178: 0.597150266 | AB178: 14.99328419 | AC178: 0.17041342 | AD178: 0.17041342 | AE178: 0.1400000006 | AF178: 0.001974500017 | AG178: 14.99328419 | AH178: 0.2228563554 | AI178: 33.97252722 | AK178: 0.263258785 | AL178: 0.76098001 | AN178: 498.1055603 | AO178: 298.4536133 | AP178: 327.928833 | AR178: 1 | AS178: 2.647275735 | AT178: 0.01261804905 | AU178: 0.7391018271 | AV178: 0.76098001 | AW178: 0.009999999776 | AX178: 0.001974500017 | AY178: 2.647275735 | AZ178: 0.097353537 | BA178: 3295107.418 | BC178: 77458.84165
A179: 172 | B179: Nemanus | C179: 96921.39844 | D179: 95531.70313 | E179: 0.9857 | F179: 3 | G179: 54 | H179: 21.25 | I179: 55.75 | J179: 50-66N | K179: 54.44 | L179: Europe | M179: Atlantic Ocean | N179: Baltic Sea | O179: Baltic Sea | Q179: 1197.454834 | R179: 844.6617432 | S179: 1053.709473 | T179: 213.8681488 | U179: 978.6477051 | V179: 412.7540588 | W179: 37.55300903 | Y179: 644.3200684 | AA179: 0.579541981 | AB179: 7.317856219 | AC179: 0.162884742 | AD179: 0.162884742 | AE179: 0.1400000006 | AF179: 0.001891537453 | AG179: 7.317856219 | AH179: 0.4705407114 | AI179: 10.14234184 | AK179: 0.3071460426 | AL179: 0.8775600195 | AN179: 143.8443909 | AO179: 170.2142181 | AP179: 162.5409851 | AR179: 1 | AS179: 1.240115106 | AT179: 0.01157127507 | AU179: 0.8775600195 | AV179: 0.8775600195 | AW179: 0.009999999776 | AX179: 0.001891537453 | AY179: 1.240115106 | AZ179: 0.196865835 | BA179: 983009.9549 | BC179: 26961.92703
A180: 173 | B180: Nordre Stromfjord | C180: 17809.5 | D180: 17809.5 | E180: 1 | F180: 3 | G180: 15 | H180: -53.25 | I180: 67.75 | J180: 66-90N | K180: 67.37 | L180: North America | M180: Arctic Ocean | N180: South Greenland | O180: East Baffin Bay | Q180: 0 | R180: 0 | S180: 0 | T180: 0 | U180: 0 | V180: 0 | W180: 0 | Y180: 778.0847168 | AA180: 0.485000014 | AB180: 0 | AC180: 0.118404791 | AD180: 0.118404791 | AE180: 0.1400000006 | AF180: 0.001397105982 | AG180: 0 | AH180: 0 | AI180: 0 | AK180: 0.4521570802 | AL180: 1 | AN180: 0 | AO180: 0 | AP180: 0 | AR180: 1 | AS180: 0 | AT180: 0.00623173127 | AU180: 1 | AV180: 1 | AW180: 0.009999999776 | AX180: 0.001397105982 | AY180: 0 | AZ180: 0 | BA180: 0 | BC180: 3265.378947
A181: 174 | B181: GHAASBasin174 | C181: 96576.89844 | D181: 96576.89844 | E181: 1 | F181: 3 | G181: 38 | H181: 51.75 | I181: 34.75 | J181: 23.5-35N | K181: 34.58 | L181: South Asia | M181: Land | N181: Land | O181: Land | Q181: 751.4312134 | R181: 900.7599487 | S181: 832.7664185 | T181: 419.5993042 | U181: 131.9042206 | V181: 406.9244385 | W181: 76.12358856 | Y181: 109.2590485 | AA181: 0.556718767 | AB181: 0 | AC181: 0.030408293 | AD181: 0.030408293 | AE181: 0.1400000006 | AF181: 0.0003840351419 | AG181: 0 | AH181: 0.04253690009 | AI181: 116.9210284 | AK181: 0.1929270178 | AL181: 0.5512199998 | AN181: 151.4927521 | AO181: 156.3376007 | AP181: 138.9845886 | AR181: 1 | AS181: 0 | AT181: 0.0004194304056 | AU181: 0.5512199998 | AV181: 0.5512199998 | AW181: 0.009999999776 | AX181: 0.0003840351419 | AY181: 0 | AZ181: 0.02476278 | BA181: 11291870.28 | BC181: 39297.03202
A182: 175 | B182: Ord | C182: 94593.39844 | D182: 93149.20313 | E182: 0.9847 | F182: 3 | G182: 32 | H182: 128.25 | I182: -15.25 | J182: 10-23.5S | K182: -16.76 | L182: Australia | M182: Indian Ocean | N182: Indian Ocean | O182: South Arafura-Timor Basin | Q182: 0 | R182: 131.5144653 | S182: 99.40006256 | T182: 139.0868683 | U182: 1486.647217 | V182: 66.33666229 | W182: 27.81737518 | Y182: 174.7648315 | AA182: 0.574568629 | AB182: 0.4993835724 | AC182: 0.055833042 | AD182: 0.055833042 | AE182: 0.1400000006 | AF182: 0.0006840301794 | AG182: 0.4993835724 | AH182: 0.2263905515 | AI182: 11.25001326 | AK182: 0.3474298716 | AL182: 0.9894599915 | AN182: 0 | AO182: 21.00389671 | AP182: 16.09488678 | AR182: 1 | AS182: 0.08613782905 | AT182: 0.001409195946 | AU182: 0.9894599915 | AV182: 0.9894599915 | AW182: 0.009999999776 | AX182: 0.0006840301794 | AY182: 0.08613782905 | AZ182: 0.098575673 | BA182: 1064176.987 | BC182: 44292.24158
A183: 176 | B183: Hayes (Hudson Bay) | C183: 93906.20313 | D183: 89939 | E183: 0.9578 | F183: 3 | G183: 53 | H183: -92.75 | I183: 56.75 | J183: 50-66N | K183: 54.96 | L183: North America | M183: Atlantic Ocean | N183: Hudson Bay | O183: West Hudson Bay | Q183: 0 | R183: 0 | S183: 0 | T183: 0 | U183: 169.5223541 | V183: 0 | W183: 0 | Y183: 147.4002686 | AA183: 0.63513118 | AB183: 0.09725585336 | AC183: 0.170837462 | AD183: 0.170837462 | AE183: 0.1400000006 | AF183: 0.00197916734 | AG183: 0.09725585336 | AH183: 0.7098039354 | AI183: 4.702736155 | AK183: 0.3515719175 | AL183: 1 | AN183: 0 | AO183: 0 | AP183: 0 | AR183: 1 | AS183: 0.01567428203 | AT183: 0.0126781743 | AU183: 1 | AV183: 1 | AW183: 0.009999999776 | AX183: 0.00197916734 | AY183: 0.01567428203 | AZ183: 0.292875619 | BA183: 441616.0966 | BC183: 84153.9902
A184: 177 | B184: Mearim | C184: 92292.79688 | D184: 91399.20313 | E184: 0.9903 | F184: 3 | G184: 30 | H184: -44.75 | I184: -2.75 | J184: 0-10S | K184: -4.78 | L184: South America | M184: Atlantic Ocean | N184: Atlantic Ocean | O184: Ceara Abyssal Plain | Q184: 82.61435699 | R184: 308.8800049 | S184: 436.8109131 | T184: 86.09566498 | U184: 2319.964355 | V184: 131.1250763 | W184: 16.58092499 | Y184: 619.7146606 | AA184: 0.508906245 | AB184: 2.152393492 | AC184: 0.50562191 | AD184: 0.053789567 | AE184: 0.1400000006 | AF184: 0.0055483412 | AG184: 2.152393492 | AH184: 0.6032384374 | AI184: 19.52630592 | AK184: 0.3519504368 | AL184: 0.9980999827 | AN184: 43.6431694 | AO184: 53.27100372 | AP184: 75.55475616 | AR184: 1 | AS184: 0.3575950524 | AT184: 0.08292505145 | AU184: 0.9980999827 | AV184: 0.9980999827 | AW184: 0.009999999776 | AX184: 0.0055483412 | AY184: 0.3575950524 | AZ184: 0.250604174 | BA184: 1802137.386 | BC184: 183349.6558
A185: 178 | B185: GHAASBasin178 | C185: 92000.89844 | D185: 91232.60156 | E185: 0.9916 | F185: 3 | G185: 34 | H185: 131.25 | I185: -31.25 | J185: 23.5-35S | K185: -28.75 | L185: Australia | M185: Indian Ocean | N185: Indian Ocean | O185: Great Australian Bay | Q185: 0 | R185: 359.5649719 | S185: 271.7636414 | T185: 380.269104 | U185: 180.49823 | V185: 69.10214996 | W185: 76.05371094 | Y185: 19.89643669 | AA185: 0.574568927 | AB185: 1.093514248 | AC185: 0 | AD185: 0 | AE185: 0.1400000006 | AF185: 0 | AG185: 1.093514248 | AH185: 0 | AI185: 0 | AK185: 0.3528119922 | AL185: 1 | AN185: 0 | AO185: 57.42541885 | AP185: 44.00413513 | AR185: 1 | AS185: 0.1886184259 | AT185: 0 | AU185: 1 | AV185: 1 | AW185: 0.009999999776 | AX185: 0 | AY185: 0.1886184259 | AZ185: 0 | BA185: 0 | BC185: 0
A186: 179 | B186: Saguenay | C186: 91957.79688 | D186: 89850.89844 | E186: 0.9771 | F186: 3 | G186: 46 | H186: -69.75 | I186: 48.25 | J186: 35-50N | K186: 49.62 | L186: North America | M186: Atlantic Ocean | N186: Atlantic Ocean | O186: Saint Lawrence Gulf | Q186: 0 | R186: 0 | S186: 0 | T186: 0 | U186: 813.8766479 | V186: 0 | W186: 0 | Y186: 372.2533875 | AA186: 0.63513118 | AB186: 0.1397747271 | AC186: 0.572767675 | AD186: 0.572767675 | AE186: 0.1400000006 | AF186: 0.006246088073 | AG186: 0.1397747271 | AH186: 0.738247712 | AI186: 2.888684183 | AK186: 0.2911427617 | AL186: 0.994599998 | AN186: 0 | AO186: 0 | AP186: 0 | AR186: 1 | AS186: 0.02252685486 | AT186: 0.09843949229 | AU186: 0.3586825728 | AV186: 0.994599998 | AW186: 0.009999999776 | AX186: 0.006246088073 | AY186: 0.02252685486 | AZ186: 0.304921391 | BA186: 265637.0334 | BC186: 21036.12517
A187: 180 | B187: Panuco | C187: 91927.70313 | D187: 91790 | E187: 0.9985 | F187: 3 | G187: 32 | H187: -98.25 | I187: 22.25 | J187: 10-23.5N | K187: 21.48 | L187: North America | M187: Atlantic Ocean | N187: Gulf of Mexico | O187: West Mexican Gulf | Q187: 1063.75769 | R187: 1833.647583 | S187: 1632.239136 | T187: 432.5638428 | U187: 588.0501709 | V187: 559.3613281 | W187: 74.87568665 | Y187: 193.3334503 | AA187: 0.530581415 | AB187: 76.25568264 | AC187: 0.20157896 | AD187: 0.20157896 | AE187: 0.1400000006 | AF187: 0.002316068858 | AG187: 76.25568264 | AH187: 0.04741531773 | AI187: 257.3383948 | AK187: 0.3209772408 | AL187: 0.9243599772 | AN187: 108.6818161 | AO187: 327.2180176 | AP187: 285.1534424 | AR187: 1 | AS187: 13.67522647 | AT187: 0.01735386252 | AU187: 0.8937082291 | AV187: 0.9243599772 | AW187: 0.009999999776 | AX187: 0.002316068858 | AY187: 13.67522647 | AZ187: 0.026766296 | BA187: 23656527.56 | BC187: 119943.5649
A188: 181 | B188: GHAASBasin181 | C188: 14365.5 | D188: 14365.5 | E188: 1 | F188: 3 | G188: 11 | H188: -51.75 | I188: 64.25 | J188: 50-66N | K188: 64.97 | L188: North America | M188: Arctic Ocean | N188: South Greenland | O188: South West Greenland Coast | Q188: 0 | R188: 0 | S188: 0 | T188: 0 | U188: 0 | V188: 0 | W188: 0 | Y188: 1130.388794 | AA188: 0.485000014 | AB188: 0 | AC188: 0.406024635 | AD188: 0.406024635 | AE188: 0.1400000006 | AF188: 0.00450456934 | AG188: 0 | AH188: 0.3850882688 | AI188: 36.01066906 | AK188: 0.4651586413 | AL188: 1 | AN188: 0 | AO188: 0 | AP188: 0 | AR188: 1 | AS188: 0 | AT188: 0.05951797217 | AU188: 1 | AV188: 1 | AW188: 0.009999999776 | AX188: 0.00450456934 | AY188: 0 | AZ188: 0.162262138 | BA188: 517311.2663 | BC188: 10504.51259
A189: 182 | B189: Doce | C189: 90250.10156 | D189: 89197 | E189: 0.9883 | F189: 3 | G189: 31 | H189: -39.75 | I189: -19.25 | J189: 10-23.5S | K189: -19.44 | L189: South America | M189: Atlantic Ocean | N189: Atlantic Ocean | O189: Santos Plateau | Q189: 506.1323853 | R189: 1439.255981 | S189: 2038.235962 | T189: 391.9740601 | U189: 573.9284668 | V189: 471.865387 | W189: 74.01864624 | Y189: 154.7665863 | AA189: 0.508906245 | AB189: 1.986012287 | AC189: 0.256292164 | AD189: 0.027265122 | AE189: 0.1400000006 | AF189: 0.00290955836 | AG189: 1.986012287 | AH189: 0.1845216618 | AI189: 68.17398126 | AK189: 0.3519638777 | AL189: 0.9943199754 | AN189: 280.2024536 | AO189: 251.8113556 | AP189: 351.8810425 | AR189: 1 | AS189: 0.3299527576 | AT189: 0.02705468424 | AU189: 0.9943199754 | AV189: 0.9943199754 | AW189: 0.009999999776 | AX189: 0.00290955836 | AY189: 0.3299527576 | AZ189: 0.081983584 | BA189: 6152708.733 | BC189: 141140.1739
A190: 183 | B190: Gasgoyne | C190: 89553.39844 | D190: 89005.39844 | E190: 0.9939 | F190: 3 | G190: 32 | H190: 113.75 | I190: -24.75 | J190: 23.5-35S | K190: -24.98 | L190: Australia | M190: Indian Ocean | N190: Indian Ocean | O190: West Australian Coast | Q190: 0 | R190: 469.8839111 | S190: 355.1445312 | T190: 496.9403687 | U190: 0 | V190: 95.9284668 | W190: 99.38807678 | Y190: 0 | AA190: 0.574568748 | AB190: 1.400721194 | AC190: 0 | AD190: 0 | AE190: 0.1400000006 | AF190: 0 | AG190: 1.400721194 | AH190: 0 | AI190: 0 | AK190: 0.3519551158 | AL190: 0.9929800034 | AN190: 0 | AO190: 75.04438782 | AP190: 57.50524521 | AR190: 1 | AS190: 0.2416080332 | AT190: 0 | AU190: 0.9929800034 | AV190: 0.9929800034 | AW190: 0.009999999776 | AX190: 0 | AY190: 0.2416080332 | AZ190: 0 | BA190: 0 | BC190: 0
A191: 184 | B191: GHAASBasin184 | C191: 88995.70313 | D191: 80892.60156 | E191: 0.9089 | F191: 3 | G191: 30 | H191: -69.75 | I191: -15.75 | J191: 10-23.5S | K191: -16.06 | L191: South America | M191: Land | N191: Land | O191: Land | Q191: 329.8237915 | R191: 1100.135132 | S191: 761.4221191 | T191: 320.6469421 | U191: 308.1530762 | V191: 221.3354034 | W191: 62.96809769 | Y191: 116.0044785 | AA191: 0.510900378 | AB191: 0.174365096 | AC191: 0.251996607 | AD191: 0.251996607 | AE191: 0.1400000006 | AF191: 0.00286321179 | AG191: 0.174365096 | AH191: 0.08213161137 | AI191: 175.27374 | AK191: 0.3531074822 | AL191: 0.9951699972 | AN191: 22.48468018 | AO191: 190.350769 | AP191: 125.7937164 | AR191: 1 | AS191: 0.02844652904 | AT191: 0.02623674832 | AU191: 0.9951699972 | AV191: 0.9951699972 | AW191: 0.009999999776 | AX191: 0.00286321179 | AY191: 0.02844652904 | AZ191: 0.040754973 | BA191: 15598609.73 | BC191: 160208.8024
A192: 185 | B192: GHAASBasin185 | C192: 87687.89844 | D192: 81694.70313 | E192: 0.9317 | F192: 3 | G192: 33 | H192: 124.75 | I192: -32.75 | J192: 23.5-35S | K192: -30.59 | L192: Australia | M192: Indian Ocean | N192: Indian Ocean | O192: Great Australian Bay | Q192: 51.06645203 | R192: 209.8898468 | S192: 202.2559662 | T192: 233.1439209 | U192: 293.2001038 | V192: 36.85046768 | W192: 46.62866974 | Y192: 37.52136993 | AA192: 0.574568748 | AB192: 0.1384176839 | AC192: 0 | AD192: 0 | AE192: 0.1400000006 | AF192: 0 | AG192: 0.1384176839 | AH192: 0 | AI192: 0 | AK192: 0.3557168841 | AL192: 1 | AN192: 25.17109108 | AO192: 33.52116013 | AP192: 33.63177872 | AR192: 1 | AS192: 0.02387543254 | AT192: 0 | AU192: 1 | AV192: 1 | AW192: 0.009999999776 | AX192: 0 | AY192: 0.02387543254 | AZ192: 0 | BA192: 0 | BC192: 0
A193: 186 | B193: Tes-Chem | C193: 87549.10156 | D193: 84147 | E193: 0.9611 | F193: 3 | G193: 44 | H193: 92.75 | I193: 50.25 | J193: 50-66N | K193: 49.87 | L193: North Asia | M193: Land | N193: Land | O193: Land | Q193: 44.50325394 | R193: 482.2722168 | S193: 203.9986725 | T193: 379.5801392 | U193: 41.16193008 | V193: 122.6831512 | W193: 75.47238922 | Y193: 38.8640213 | AA193: 0.523390949 | AB193: 0.1021367377 | AC193: 0.049775951 | AD193: 0.049775951 | AE193: 0.1400000006 | AF193: 0.000613334123 | AG193: 0.1021367377 | AH193: 0.1100392522 | AI193: 24.91552781 | AK193: 0.3532508612 | AL193: 0.9927999973 | AN193: 2.97861433 | AO193: 87.7273407 | AP193: 32.37668991 | AR193: 1 | AS193: 0.0181664215 | AT193: 0.001121143694 | AU193: 0.9927999973 | AV193: 0.9927999973 | AW193: 0.009999999776 | AX193: 0.000613334123 | AY193: 0.0181664215 | AZ193: 0.051843149 | BA193: 2181332.075 | BC193: 18465.42925
A194: 187 | B194: Pur | C194: 86055.29688 | D194: 86055.29688 | E194: 1 | F194: 3 | G194: 65 | H194: 78.25 | I194: 67.25 | J194: 66-90N | K194: 64.56 | L194: North Asia | M194: Arctic Ocean | N194: Kara Sea | O194: Kara Sea | Q194: 0 | R194: 0 | S194: 0 | T194: 0 | U194: 177.0001373 | V194: 0 | W194: 0 | Y194: 156.7550201 | AA194: 0.552574933 | AB194: 0 | AC194: 0.181050003 | AD194: 0.181050003 | AE194: 0.1400000006 | AF194: 0.002091400325 | AG194: 0 | AH194: 0.5756679287 | AI194: 7.676957523 | AK194: 0.3029511869 | AL194: 0.8489500284 | AN194: 0 | AO194: 0 | AP194: 0 | AR194: 1 | AS194: 0 | AT194: 0.01416302379 | AU194: 0.8489500284 | AV194: 0.8489500284 | AW194: 0.009999999776 | AX194: 0.002091400325 | AY194: 0 | AZ194: 0.239056302 | BA194: 660642.8587 | BC194: 61211.23833
A195: 188 | B195: GHAASBasin188 | C195: 85978.79688 | D195: 85917.79688 | E195: 0.9993 | F195: 3 | G195: 31 | H195: 37.25 | I195: 25.75 | J195: 23.5-35N | K195: 26.05 | L195: South Asia | M195: Indian Ocean | N195: Red Sea | O195: East Red Sea | Q195: 0 | R195: 172.6227875 | S195: 102.4597931 | T195: 225.4137115 | U195: 428.3509521 | V195: 82.63339996 | W195: 45.08262634 | Y195: 101.7762527 | AA195: 0.556718647 | AB195: 20.24232084 | AC195: 0 | AD195: 0 | AE195: 0.1400000006 | AF195: 0 | AG195: 20.24232084 | AH195: 0 | AI195: 0 | AK195: 0.3569077253 | AL195: 1 | AN195: 0 | AO195: 28.27511024 | AP195: 16.96511269 | AR195: 1 | AS195: 3.39340514 | AT195: 0 | AU195: 1 | AV195: 1 | AW195: 0.009999999776 | AX195: 0 | AY195: 3.39340514 | AZ195: 0 | BA195: 0 | BC195: 0
A196: 189 | B196: GHAASBasin189 | C196: 85916.39844 | D196: 84060.20313 | E196: 0.9784 | F196: 3 | G196: 42 | H196: 92.75 | I196: 48.25 | J196: 35-50N | K196: 48.48 | L196: North Asia | M196: Land | N196: Land | O196: Land | Q196: 1.19782722 | R196: 300.5002441 | S196: 174.8304138 | T196: 442.6407471 | U196: 57.07804489 | V196: 130.5129242 | W196: 88.52826691 | Y196: 17.63563156 | AA196: 0.516691148 | AB196: 0.1232962902 | AC196: 0.025325157 | AD196: 0.025325157 | AE196: 0.1400000006 | AF196: 0.0003227773705 | AG196: 0.1232962902 | AH196: 0.04197377886 | AI196: 40.62757211 | AK196: 0.3545707762 | AL196: 0.9933300018 | AN196: 0 | AO196: 45.67544937 | AP196: 26.19465065 | AR196: 1 | AS196: 0.02202517041 | AT196: 0.000291053293 | AU196: 0.9933300018 | AV196: 0.9933300018 | AW196: 0.009999999776 | AX196: 0.0003227773705 | AY196: 0.02202517041 | AZ196: 0.024484874 | BA196: 3490574.673 | BC196: 17494.97154
A197: 190 | B197: Penzhina | C197: 85841.60156 | D197: 84545.70313 | E197: 0.9849 | F197: 3 | G197: 62 | H197: 164.25 | I197: 62.25 | J197: 50-66N | K197: 63.34 | L197: North Asia | M197: Pacific Ocean | N197: Pacific Ocean | O197: East Okhotsk Sea | Q197: 0 | R197: 0 | S197: 0 | T197: 0 | U197: 369.6238098 | V197: 0 | W197: 0 | Y197: 47.23210907 | AA197: 0.552574933 | AB197: 1.368266411 | AC197: 0.196189582 | AD197: 0.196189582 | AE197: 0.1400000006 | AF197: 0.00225720345 | AG197: 1.368266411 | AH197: 0.497900264 | AI197: 11.0016417 | AK197: 0.3570043445 | AL197: 1 | AN197: 0 | AO197: 0 | AP197: 0 | AR197: 1 | AS197: 0.2411736501 | AT197: 0.0164903868 | AU197: 1 | AV197: 1 | AW197: 0.009999999776 | AX197: 0.00225720345 | AY197: 0.2411736501 | AZ197: 0.207873576 | BA197: 944398.5434 | BC197: 82834.16742
A198: 191 | B198: Ashburton | C198: 84895.79688 | D198: 84797.60156 | E198: 0.9988 | F198: 3 | G198: 30 | H198: 115.25 | I198: -22.25 | J198: 10-23.5S | K198: -23.56 | L198: Australia | M198: Indian Ocean | N198: Indian Ocean | O198: Rowley Shelf | Q198: 0 | R198: 424.6641235 | S198: 320.9675903 | T198: 449.1176453 | U198: 27.16424179 | V198: 93.977211 | W198: 89.82352448 | Y198: 11.24970913 | AA198: 0.574568689 | AB198: 6.996692451 | AC198: 0.004327049 | AD198: 0.004327049 | AE198: 0.1400000006 | AF198: 6.024357572e-05 | AG198: 6.996692451 | AH198: 0.1034561002 | AI198: 55.43767548 | AK198: 0.3576745987 | AL198: 1 | AN198: 0 | AO198: 67.8224411 | AP198: 51.97112274 | AR198: 1 | AS198: 1.206847665 | AT198: 8.505017831e-06 | AU198: 1 | AV198: 1 | AW198: 0.009999999776 | AX198: 6.024357572e-05 | AY198: 1.206847665 | AZ198: 0.049260693 | BA198: 4706425.636 | BC198: 6013.696968
A199: 192 | B199: GHAASBasin192 | C199: 84710.5 | D199: 82216 | E199: 0.9706 | F199: 3 | G199: 41 | H199: 93.25 | I199: 47.75 | J199: 35-50N | K199: 47.98 | L199: North Asia | M199: Land | N199: Land | O199: Land | Q199: 0 | R199: 317.6642761 | S199: 190.552536 | T199: 485.2763367 | U199: 0 | V199: 136.5485992 | W199: 97.05526733 | Y199: 0 | AA199: 0.514962554 | AB199: 0.06442678365 | AC199: 0.011606506 | AD199: 0.011606506 | AE199: 0.1400000006 | AF199: 0.0001538136858 | AG199: 0.06442678365 | AH199: 0.04604152636 | AI199: 16.05156493 | AK199: 0.3548978865 | AL199: 0.9918699861 | AN199: 0 | AO199: 47.51500702 | AP199: 28.5089798 | AR199: 1 | AS199: 0.01143249758 | AT199: 6.118088641e-05 | AU199: 0.9918699861 | AV199: 0.9918699861 | AW199: 0.009999999776 | AX199: 0.0001538136858 | AY199: 0.01143249758 | AZ199: 0.026077791 | BA199: 1359736.091 | BC199: 6497.93045
A200: 193 | B200: Daugava | C200: 83315.79688 | D200: 83278.89844 | E200: 0.9996 | F200: 2 | G200: 48 | H200: 24.25 | I200: 56.75 | J200: 50-66N | K200: 55.78 | L200: Europe | M200: Atlantic Ocean | N200: Baltic Sea | O200: Baltic Sea | Q200: 281.434021 | R200: 266.3840637 | S200: 323.0515747 | T200: 105.3953781 | U200: 1270.923462 | V200: 186.3836212 | W200: 20.72068024 | Y200: 712.1290283 | AA200: 0.603548706 | AB200: 144.7271499 | AC200: 0.182502553 | AD200: 0.182502553 | AE200: 0.1400000006 | AF200: 0.002107337117 | AG200: 144.7271499 | AH200: 0.7892048837 | AI200: 1.861615359 | AK200: 0.3348892629 | AL200: 1 | AN200: 42.82801437 | AO200: 53.50426102 | AP200: 48.89228821 | AR200: 1 | AS200: 22.86185564 | AT200: 0.01437987853 | AU200: 0.7253199816 | AV200: 1 | AW200: 0.009999999776 | AX200: 0.002107337117 | AY200: 22.86185564 | AZ200: 0.324678591 | BA200: 155101.9671 | BC200: 9972.528481
... 925 more rows

Sheet Input (Scale)
A1: Input for the various calculations | AB1: Sewage calc | AG1: Sewage calc | AR1: Sewage calc | AY1: Sewage calc
Q3: N | R3: N | S3: N | T3: N | U3: N | V3: N | W3: N | Y3: N | AA3: N | AB3: N | AC3: N | AD3: N | AE3: N | AF3: N | AG3: N | AH3: N | AI3: N | AK3: N | AL3: N | AN3: P | AO3: P | AP3: P | AS3: P | AT3: P | AU3: P | AV3: P | AW3: P | AX3: P | AY3: P | AZ3: P | BA3: P | BC3: SI
B4: General | Q4: Diffuse Sources | Y4: Point Sources | AA4: GNE output | AN4: Diffuse Sources | AS4: GNE output
AA5: DIN | AB5: DIN | AC5: DIN | AD5: DIN | AE5: DON | AF5: DON | AG5: DON | AH5: PN | AI5: PN | AK5: DIN | AL5: DON | AS5: DIP | AT5: DIP | AU5: DIP | AV5: DOP | AW5: DOP | AX5: DOP | AY5: DOP | AZ5: PP | BA5: PP
A6: Scaled
A7: basinid | B7: basinname | C7: area | D7: arealand | E7: arealandfr | F7: basinorder | G7: basincellcnt | H7: mouth_lon | I7: mouth_lat | J7: latband | K7: basctr_lat | L7: continent | M7: ocean | N7: sea | O7: seabasin | Q7: c0TNfe | R7: c0TNma | S7: c0TNex | T7: c0TNfxag | U7: c0TNfxna | V7: c0TNdpag | W7: c0agrpct | Y7: c0TNdpna | AA7: c0DINFEpnt | AB7: c0DINTsew | AC7: c0DINFEws | AD7: c0DINFEwsnat | AE7: c0DONFEpnt | AF7: c0DONFEws | AG7: c0DONTsew | AH7: c0PNpct | AI7: c0TSSyld | AK7: c0DINFEriv | AL7: c0DONFEriv | AN7: c0TPfe | AO7: c0TPma | AP7: c0TPex | AR7: c0DIPFEpnt | AS7: c0DIPTsew | AT7: c0DIPFEws | AU7: c0DIPFEriv | AV7: c0DOPFEriv | AW7: c0DOPFEpnt | AX7: c0DOPFEws | AY7: c0DOPTsew | AZ7: c0PPpct | BA7: c0TSSload | BC7: c0DSiload
A8: =A12 -> 110 | B8: Rhine | C8: 164864 | D8: 163750 | E8: 0.9932 | F8: 3 | G8: 82 | H8: 5.75 | I8: 52.75 | J8: 50-66N | K8: 49.31 | L8: Europe | M8: Atlantic Ocean | N8: North Sea | O8: North Sea | Q8: =Q12*Sliders!$M$2 -> 4515.691895 | R8: =R12*Sliders!$M$3 -> 3646.508545 | S8: =S12*Sliders!$M$4 -> 5349.90625 | T8: =T12*Sliders!$M$5 -> 259.6085205 | U8: =U12*Sliders!$M$6 -> 818.7233276 | V8: =V12*Sliders!$M$7 -> 966.6391602 | W8: =W12*Sliders!$M$8 -> 45.99118042 | Y8: =Y12*Sliders!$M$10 -> 1153.690308 | AA8: =AA12*Sliders!$M$12 -> 0.711661577 | AB8: ='Sewage (Calc)'!AE8 -> 44.8354758 | AC8: =AC12*Sliders!$M$14 -> 0.335809499 | AD8: =AD12*Sliders!$M$15 -> 0.335809499 | AE8: =AE12*Sliders!$M$16 -> 0.1400000006 | AF8: =AF12*Sliders!$M$17 -> 0.003761117114 | AG8: ='Sewage (Calc)'!AE8 -> 44.8354758 | AH8: =AH12*Sliders!$M$19 -> 0.4560635949 | AI8: =AI12*Sliders!$M$20 -> 3.878929392 | AK8: =AK12*Sliders!$M$22 -> 0.3044067621 | AL8: =AL12*Sliders!$M$23 -> 0.991590023 | AN8: =AN12*Sliders!$M$25 -> 367.6836548 | AO8: =AO12*Sliders!$M$26 -> 707.6802979 | AP8: =AP12*Sliders!$M$27 -> 838.3880005 | AR8: =AR12*Sliders!$M$30 -> 1 | AS8: ='Sewage (Calc)'!AF8 -> 5.501615128 | AT8: =AT12*Sliders!$M$31 -> 0.04353576899 | AU8: =AU12*Sliders!$M$32 -> 0.225358665 | AV8: =AV12*Sliders!$M$33 -> 0.991590023 | AW8: =AW12*Sliders!$M$34 -> 0.009999999776 | AX8: =AX12*Sliders!$M$35 -> 0.003761117114 | AY8: ='Sewage (Calc)'!AF8 -> 5.501615128 | AZ8: =AZ12*Sliders!$M$37 -> 0.191477581 | BA8: =BA12*Sliders!$M$38 -> 639495.8153 | BC8: =BC12 -> 37330.30803
A10: Unscaled
A11: basinid | B11: basinname | C11: area | D11: arealand | E11: arealandfr | F11: basinorder | G11: basincellcnt | H11: mouth_lon | I11: mouth_lat | J11: latband | K11: basctr_lat | L11: continent | M11: ocean | N11: sea | O11: seabasin | Q11: c0TNfe | R11: c0TNma | S11: c0TNex | T11: c0TNfxag | U11: c0TNfxna | V11: c0TNdpag | W11: c0agrpct | Y11: c0TNdpna | AA11: c0DINFEpnt | AB11: c0DINTsew | AC11: c0DINFEws | AD11: c0DINFEwsnat | AE11: c0DONFEpnt | AF11: c0DONFEws | AG11: c0DONTsew | AH11: c0PNpct | AI11: c0TSSyld | AK11: c0DINFEriv | AL11: c0DONFEriv | AN11: c0TPfe | AO11: c0TPma | AP11: c0TPex | AR11: c0DIPFEpnt | AS11: c0DIPTsew | AT11: c0DIPFEws | AU11: c0DIPFEriv | AV11: c0DOPFEriv | AW11: c0DOPFEpnt | AX11: c0DOPFEws | AY11: c0DOPTsew | AZ11: c0PPpct | BA11: c0TSSload | BC11: c0DSiload
A12: ='Calc sheet_basin'!A41 -> 110 | B12: ='Calc sheet_basin'!B41 -> Rhine | C12: ='Calc sheet_basin'!C41 -> 164864 | D12: ='Calc sheet_basin'!D41 -> 163750 | E12: ='Calc sheet_basin'!E41 -> 0.9932 | F12: ='Calc sheet_basin'!F41 -> 3 | G12: ='Calc sheet_basin'!G41 -> 82 | H12: ='Calc sheet_basin'!H41 -> 5.75 | I12: ='Calc sheet_basin'!I41 -> 52.75 | J12: ='Calc sheet_basin'!J41 -> 50-66N | K12: ='Calc sheet_basin'!K41 -> 49.31 | L12: ='Calc sheet_basin'!L41 -> Europe | M12: ='Calc sheet_basin'!M41 -> Atlantic Ocean | N12: ='Calc sheet_basin'!N41 -> North Sea | O12: ='Calc sheet_basin'!O41 -> North Sea | Q12: ='Calc sheet_basin'!Q41 -> 4515.691895 | R12: ='Calc sheet_basin'!R41 -> 3646.508545 | S12: ='Calc sheet_basin'!S41 -> 5349.90625 | T12: ='Calc sheet_basin'!T41 -> 259.6085205 | U12: ='Calc sheet_basin'!U41 -> 818.7233276 | V12: ='Calc sheet_basin'!V41 -> 966.6391602 | W12: ='Calc sheet_basin'!W41 -> 45.99118042 | Y12: ='Calc sheet_basin'!Y41 -> 1153.690308 | AA12: ='Calc sheet_basin'!AA41 -> 0.711661577 | AB12: ='Sewage (Calc)'!AE12 -> 44.8354758 | AC12: ='Calc sheet_basin'!AC41 -> 0.335809499 | AD12: ='Calc sheet_basin'!AD41 -> 0.335809499 | AE12: ='Calc sheet_basin'!AE41 -> 0.1400000006 | AF12: ='Calc sheet_basin'!AF41 -> 0.003761117114 | AG12: ='Sewage (Calc)'!AE12 -> 44.8354758 | AH12: ='Calc sheet_basin'!AH41 -> 0.4560635949 | AI12: ='Calc sheet_basin'!AI41 -> 3.878929392 | AK12: ='Calc sheet_basin'!AK41 -> 0.3044067621 | AL12: ='Calc sheet_basin'!AL41 -> 0.991590023 | AN12: ='Calc sheet_basin'!AN41 -> 367.6836548 | AO12: ='Calc sheet_basin'!AO41 -> 707.6802979 | AP12: ='Calc sheet_basin'!AP41 -> 838.3880005 | AR12: ='Calc sheet_basin'!AR41 -> 1 | AS12: ='Sewage (Calc)'!AF12 -> 5.501615128 | AT12: ='Calc sheet_basin'!AT41 -> 0.04353576899 | AU12: ='Calc sheet_basin'!AU41 -> 0.225358665 | AV12: ='Calc sheet_basin'!AV41 -> 0.991590023 | AW12: ='Calc sheet_basin'!AW41 -> 0.009999999776 | AX12: ='Calc sheet_basin'!AX41 -> 0.003761117114 | AY12: ='Sewage (Calc)'!AF12 -> 5.501615128 | AZ12: ='Calc sheet_basin'!AZ41 -> 0.191477581 | BA12: ='Calc sheet_basin'!BA41 -> 639495.8153 | BC12: ='Calc sheet_basin'!BC41 -> 37330.30803

Sheet Intermediate
A1: Intermediate calculations
C3: DON | F3: PN | H3: DIP | K3: DOP
A6: Scaled
A7: basinid | C7: DONTnat | D7: DONTant | F7: Nyld | H7: DIPTnat | I7: DIPTant | K7: DOPTnat | L7: DOPTant
A8: ='Input (Scale)'!A8 -> 110 | C8: =(1-('Input (Scale)'!W8/100))*(280/0.01) -> 15122.46948 | D8: =('Input (Scale)'!W8/100)*(280/0.01)+('Input (Scale)'!Q8+'Input (Scale)'!R8-'Input (Scale)'!S8) -> 15689.82471 | F8: ='Input (Scale)'!AH8/100*1000*'Input (Scale)'!AI8 -> 17.69038483 | H8: =(1-('Input (Scale)'!W8/100))*(26/0.29) -> 48.42170031 | I8: =('Input (Scale)'!W8/100)*(26/0.29)+('Input (Scale)'!AN8+'Input (Scale)'!AO8-'Input (Scale)'!AP8) -> 278.2094242 | K8: =(1-('Input (Scale)'!W8/100))*(15/0.01) -> 810.1322937 | L8: =('Input (Scale)'!W8/100)*(15/0.01)+('Input (Scale)'!AN8+'Input (Scale)'!AO8-'Input (Scale)'!AP8) -> 926.8436584
A10: UnScaled
A11: basinid
A12: ='Input (Scale)'!A12 -> 110 | C12: =(1-('Input (Scale)'!W12/100))*(280/0.01) -> 15122.46948 | D12: =('Input (Scale)'!W12/100)*(280/0.01)+('Input (Scale)'!Q12+'Input (Scale)'!R12-'Input (Scale)'!S12) -> 15689.82471 | F12: ='Input (Scale)'!AH12/100*1000*'Input (Scale)'!AI12 -> 17.69038483 | H12: =(1-('Input (Scale)'!W12/100))*(26/0.29) -> 48.42170031 | I12: =('Input (Scale)'!W12/100)*(26/0.29)+('Input (Scale)'!AN12+'Input (Scale)'!AO12-'Input (Scale)'!AP12) -> 278.2094242 | K12: =(1-('Input (Scale)'!W12/100))*(15/0.01) -> 810.1322937 | L12: =('Input (Scale)'!W12/100)*(15/0.01)+('Input (Scale)'!AN12+'Input (Scale)'!AO12-'Input (Scale)'!AP12) -> 926.8436584

Sheet Calculation
A1: Various calculations
A6: Scaled
A7: basinid | C7: DIN | D7: DON | E7: PN | G7: DIP | H7: DOP | I7: PP | K7: SI
A8: =Intermediate!A8 -> 110 | C8: =('Input (Scale)'!C8*'Input (Scale)'!AK8*('Input (Scale)'!AA8*'Input (Scale)'!AB8+'Input (Scale)'!AC8*('Input (Scale)'!Q8+'Input (Scale)'!R8+'Input (Scale)'!V8+'Input (Scale)'!T8-'Input (Scale)'!S8)+'Input (Scale)'!AD8*('Input (Scale)'!Y8+'Input (Scale)'!U8)))/1000 -> 102902.9832 | D8: =('Input (Scale)'!C8*'Input (Scale)'!AL8*('Input (Scale)'!AE8*'Input (Scale)'!AG8+('Input (Scale)'!AF8*(Intermediate!C8+Intermediate!D8))))/1000 -> 19971.3288 | E8: =Intermediate!F8*'Input (Scale)'!C8/1000 -> 2916.507605 | G8: =('Input (Scale)'!C8*'Input (Scale)'!AU8*('Input (Scale)'!AS8+('Input (Scale)'!AT8*(Intermediate!H8+Intermediate!I8))))/1000 -> 732.7327348 | H8: =('Input (Scale)'!C8*'Input (Scale)'!AV8*('Input (Scale)'!AY8*'Input (Scale)'!AW8+'Input (Scale)'!AX8*(Intermediate!K8+Intermediate!L8)))/1000 -> 1076.987486 | I8: ='Input (Scale)'!AZ8/100*'Input (Scale)'!BA8 -> 1224.491118 | K8: ='Input (Scale)'!BC8 -> 37330.30803
R9: DINload(Mg N/basin/yr) = Area * FEriv * (FEsew * Tsew + FEws*(Nfert + Nmanure + Ndepag + Nfixag-Nexport)+FEwsnat*(Ndepnat + Nfixnat))
A10: UnScaled | R10: DON==(Area*FEriv*(FEpnt*Tsew+(FEws*((1-(PCTag/100))*(280/0.01)+(PCTag/100)*(280/0.01)+(Nfe+Nma-Nexp)))))/1000
A11: basinid
A12: =Intermediate!A12 -> 110 | C12: =('Input (Scale)'!C12*'Input (Scale)'!AK12*('Input (Scale)'!AA12*'Input (Scale)'!AB12+'Input (Scale)'!AC12*('Input (Scale)'!Q12+'Input (Scale)'!R12+'Input (Scale)'!V12+'Input (Scale)'!T12-'Input (Scale)'!S12)+'Input (Scale)'!AD12*('Input (Scale)'!Y12+'Input (Scale)'!U12)))/1000 -> 102902.9832 | D12: =('Input (Scale)'!C12*'Input (Scale)'!AL12*('Input (Scale)'!AE12*'Input (Scale)'!AG12+('Input (Scale)'!AF12*(Intermediate!C12+Intermediate!D12))))/1000 -> 19971.3288 | E12: =Intermediate!F12*'Input (Scale)'!C12/1000 -> 2916.507605 | G12: =('Input (Scale)'!C12*'Input (Scale)'!AU12*('Input (Scale)'!AS12+('Input (Scale)'!AT12*(Intermediate!H12+Intermediate!I12))))/1000 -> 732.7327348 | H12: =('Input (Scale)'!C12*'Input (Scale)'!AV12*('Input (Scale)'!AY12*'Input (Scale)'!AW12+'Input (Scale)'!AX12*(Intermediate!K12+Intermediate!L12)))/1000 -> 1076.987486 | I12: ='Input (Scale)'!AZ12/100*'Input (Scale)'!BA12 -> 1224.491118 | K12: ='Input (Scale)'!BC12 -> 37330.30803
R13: PNload (Mg/basin/yr)= Nyld * Area/1000
R15: DIP = =(Area*FEriv*(Tsew+(FEws*((1-(agpct/100))*(26/0.29)+(agpct/100)*(26/0.29)+(Pfe+Pma-Pexp)))))/1000
R16: DOPload = =(Area*FEriv*(Tsew*FEpnt+FEws*((1-(agpct/100))*(15/0.01)+(agpct/100)*(15/0.01)+(Pfe+Pma-Pexp))))/1000
R17: Ppload=OPPpct/100*TSSload

Sheet Sewage
B3: 2 | C3: 3 | D3: 4 | E3: 5 | F3: 6 | G3: 7 | H3: 8 | I3: 9 | J3: 10 | K3: 11 | L3: 12 | M3: 13 | N3: 14 | O3: 15 | P3: 16 | Q3: 17 | R3: 18 | S3: 19 | T3: 20 | U3: 21 | V3: 22 | W3: 23 | X3: 24 | Y3: 25 | Z3: 26 | AA3: 27 | AB3: 28 | AC3: 29 | AD3: 30 | AE3: 31 | AF3: 32 | AG3: 33 | AH3: 34
A4: cnt | B4: pop_num | C4: pop_urb | D4: pop_gdp | E4: Su_(san_urb) | F4: san_rur | G4: human_N | H4: human_P | I4: Correction_C_(D=C*U*Su) | J4: D_(pop_con) | K4: pop_urb_con | L4: treatm_1_(mechanical) | M4: treatm_2_(biological) | N4: treatm_3_(advanced) | O4: N_removal[1,2,3] | R4: P_removal[1,2,3] | U4: N_retention[1970-2050] | V4: P_retention[1970-2050] | W4: Total rural population | X4: Total urban population with access to improved sanitation | Y4: Total urban with connection | Z4: Total_human_N_sew | AA4: Total_human_P_sew | AB4: Total_N_effluent | AC4: Total_P_effluent | AE4: Total_N_effluent | AF4: Total_P_effluent
B5: 1000 | C5: % | D5: PPP_US$ | E5: % | F5: % | G5: kg/capita | H5: kg/capita | I5: (-) | J5: % | K5: % | L5: % | M5: % | N5: % | O5: % | U5: (%) | V5: (%) | W5: 1000 inh | X5: 1000 inh | Y5: 1000 inh | Z5: kg_N | AA5: kg_P | AB5: kg_N | AC5: kg_P | AE5: kg_N/km2 | AF5: kg_P/km2 | AH5: Area water
A6: basinid | I6: Correction_C | O6: mech | P6: biol | Q6: adv | R6: mech | S6: biol | T6: adv
A7: 1 | B7: 115562.305 | C7: 76.94541125 | D7: 3653.969082 | E7: 82.25047543 | F7: 38.75781968 | G7: 4.134197954 | H7: 0.7709781265 | I7: 0.7376596266 | J7: 46.65274771 | K7: 60.93233476 | L7: 15.55092851 | M7: 15.55092851 | N7: 15.55092851 | O7: 10 | P7: 35 | Q7: 80 | R7: 10 | S7: 45 | T7: 90 | U7: 41.66570627 | V7: 48.33221106 | W7: =B7*(100-C7)/100 -> 26642.41417 | X7: =B7*C7/100*E7/100 -> 73137.03296 | Y7: =B7*C7/100*K7/100 -> 54180.96555 | Z7: =B7*J7/100*G7 -> 222886.9754 | AA7: =B7*J7/100*H7 -> 41565.73648 | AB7: =((100-U7)/100)*Z7 -> 130019.5429 | AC7: =(100-V7)/100*AA7 -> 21476.097 | AE7: =IF(AH7>0,AB7/AH7,0) -> 1.985487579 | AF7: =IF(AH7>0,AC7/AH7,0) -> 0.327954728 | AH7: =Input!C8*(1-Input!E8) -> 65484.944
A8: 2 | B8: 126801.487 | C8: 27.98665306 | D8: 513.3624042 | E8: 56.84169623 | F8: 33.89967371 | G8: 3.544572705 | H8: 0.6235843843 | I8: 0.3502716126 | J8: 9.196842574 | K8: 24.66773676 | L8: 5.018575902 | M8: 4.178264166 | N8: 0 | O8: 10 | P8: 35 | Q8: 80 | R8: 10 | S8: 45 | T8: 90 | U8: 13.29906775 | V8: 14.64637198 | W8: 91313.99478 | X8: 20171.69254 | Y8: 8753.961169 | Z8: =B8*J8/100*G8 -> 41335.86099 | AA8: 7272.074683 | AB8: =((100-U8)/100)*Z8 -> 35838.57683 | AC8: 6206.979574 | AE8: =IF(AH8>0,AB8/AH8,0) -> 0.3565750197 | AF8: =IF(AH8>0,AC8/AH8,0) -> 0.06175618732 | AH8: =Input!C9*(1-Input!E9) -> 100507.817
A9: 3 | B9: 71726.72139 | C9: 31.47418142 | D9: 197.2286879 | E9: 46.97156229 | F9: 22.89701675 | G9: 3.354970333 | H9: 0.5697572493 | I9: 0.124982104 | J9: 1.648199768 | K9: 6.112822333 | L9: 1.393456548 | M9: 0 | N9: 0 | O9: 10 | P9: 35 | Q9: 80 | R9: 10 | S9: 45 | T9: 90 | U9: 8.993702899 | V9: 8.993702899 | W9: 49151.32297 | X9: 10604.01733 | Y9: 1379.993996 | Z9: 3966.244772 | AA9: 673.5668238 | AB9: 3609.532501 | AC9: 612.9882248 | AE9: 0.04934445131 | AF9: 0.008379912802 | AH9: =Input!C10*(1-Input!E10) -> 73149.714
A10: 4 | B10: 74300.08827 | C10: 79.10019241 | D10: 31724.88828 | E10: 100 | F10: 99.99935862 | G10: 5.765339831 | H10: 1.082519214 | I10: 0.9102429493 | J10: 72.00128275 | K10: 91.02539499 | L10: 6.005131005 | M10: 30.9974345 | N10: 31.99871725 | O10: 10 | P10: 35 | Q10: 80 | R10: 10 | S10: 45 | T10: 90 | U10: 51.45480129 | V10: 60.20402958 | W10: 15528.57549 | X10: 58771.51278 | Y10: 53497.00165 | Z10: 308428.4809 | AA10: 57911.5484 | AB10: 149727.2189 | AC10: 23046.46267 | AE10: 18.72075806 | AF10: 2.881555237 | AH10: =Input!C11*(1-Input!E11) -> 7997.925
A11: 5 | B11: 36244.55901 | C11: 53.89628246 | D11: 1772.868937 | E11: 80.61553434 | F11: 50.03293758 | G11: 4.030922178 | H11: 0.7475910323 | I11: 0.8874938693 | J11: 42.7690581 | K11: 72.94304801 | L11: 26.51810323 | M11: 13.30419148 | N11: 0 | O11: 10 | P11: 35 | Q11: 80 | R11: 10 | S11: 45 | T11: 90 | U11: 14.21041504 | V11: 16.11097927 | W11: 16710.08911 | X11: 15747.81729 | Y11: 14249.03776 | Z11: 62485.1648 | AA11: 11588.74987 | AB11: 53605.76354 | AC11: 9721.688779 | AE11: 4.223006509 | AF11: 0.7658645691 | AH11: =Input!C12*(1-Input!E12) -> 12693.744
A12: 6 | B12: 43484.70674 | C12: 78.83490113 | D12: 4839.23994 | E12: 84.24511839 | F12: 46.34052185 | G12: 4.261211928 | H12: 0.7983875086 | I12: 0.5681468137 | J12: 38.46418331 | K12: 47.43199294 | L12: 12.82141503 | M12: 12.82141503 | N12: 12.82141503 | O12: 10 | P12: 35 | Q12: 80 | R12: 10 | S12: 45 | T12: 90 | U12: 41.66518387 | V12: 48.33160464 | W12: 9203.581172 | X12: 28880.17482 | Y12: 16260.22106 | Z12: 71273.1897 | AA12: 13353.85926 | AB12: 41577.08417 | AC12: 6899.724796 | AE12: 4.006475582 | AF12: 0.6648753628 | AH12: =Input!C13*(1-Input!E13) -> 10377.471
A13: 7 | B13: 17400.26126 | C13: 72.78611455 | D13: 2863.795818 | E13: 92.42558648 | F13: 75.72352551 | G13: 4.209134658 | H13: 0.7879862173 | I13: 1.02011591 | J13: 68.88308483 | K13: 94.39890831 | L13: 33 | M13: 31.94690855 | N13: 0 | O13: 10 | P13: 35 | Q13: 80 | R13: 10 | S13: 45 | T13: 90 | U13: 20.83789637 | V13: 25.40165747 | W13: 4735.287167 | X13: 11705.67658 | Y13: 11955.59728 | Z13: 50450.00074 | AA13: 9444.674138 | AB13: 39937.28187 | AC13: 7045.570365 | AE13: 0.945466449 | AF13: 0.1667952871 | AH13: =Input!C14*(1-Input!E14) -> 42240.824
A14: 8 | B14: 19513.02138 | C14: 73.32 | D14: 2944.08 | E14: 93 | F14: 77 | G14: 4.23017 | H14: 0.793073 | I14: 1.02656 | J14: 70 | K14: 95.4719 | L14: 33 | M14: 33 | N14: 0 | O14: 10 | P14: 35 | Q14: 80 | R14: 10 | S14: 45 | T14: 90 | U14: 21.214 | V14: 25.9282 | W14: 5206.074105 | X14: 13305.46097 | Y14: 13659.1144 | Z14: 57780.37836 | AA14: 10832.67529 | AB14: 45522.8489 | AC14: 8023.957572 | AE14: 9.823852621 | AF14: 1.731573892 | AH14: =Input!C15*(1-Input!E15) -> 4633.91
A15: 9 | B15: 95519.3875 | C15: 41.05518706 | D15: 315.8367731 | E15: 51.62363552 | F15: 31.98072833 | G15: 3.40386191 | H15: 0.5845906175 | I15: 0.4510968543 | J15: 11.00141934 | K15: 24.09113353 | L15: 10.31171242 | M15: 0.6502945713 | N15: 0 | O15: 10 | P15: 35 | Q15: 80 | R15: 10 | S15: 45 | T15: 90 | U15: 8.872751663 | V15: 8.968382406 | W15: 56303.72428 | X15: 20244.55104 | Y15: 9447.497789 | Z15: 35769.4433 | AA15: 6143.163705 | AB15: 32595.70942 | AC15: 5592.221292 | AE15: 3.937520647 | AF15: 0.6755332892 | AH15: =Input!C16*(1-Input!E16) -> 8278.232
A16: 10 | B16: 21188.18055 | C16: 52.45862232 | D16: 1307.665072 | E16: 88.38339322 | F16: 65.47331261 | G16: 3.882870829 | H16: 0.7099519405 | I16: 0.9163123053 | J16: 50.26492832 | K16: 76.43385419 | L16: 24.65100598 | M16: 24.3369219 | N16: 0 | O16: 10 | P16: 35 | Q16: 80 | R16: 10 | S16: 45 | T16: 90 | U16: 19.54837979 | V16: 23.44362947 | W16: 10073.15294 | X16: 9823.838561 | Y16: 8495.643999 | Z16: 41353.44319 | AA16: 7561.14703 | AB16: 33269.51506 | AC16: 5788.539737 | AE16: 10.17431297 | AF16: 1.770221623 | AH16: =Input!C17*(1-Input!E17) -> 3269.952
A17: 11 | B17: 206197.8446 | C17: 36.42 | D17: 824.63 | E17: 68 | F17: 26 | G17: 3.87737 | H17: 0.712358 | I17: 0.767162 | J17: 19 | K17: 52.1691 | L17: 19 | M17: 0 | N17: 0 | O17: 10 | P17: 35 | Q17: 80 | R17: 10 | S17: 45 | T17: 90 | U17: 9.99947 | V17: 9.99947 | W17: 131100.5896 | X17: 51066.13339 | Y17: 39177.56205 | Z17: 151906.014 | AA17: 27908.46999 | AB17: 136716.2177 | AC17: 25117.77091 | AE17: 6.357285304 | AF17: 1.16797289 | AH17: =Input!C18*(1-Input!E18) -> 21505.44
A18: 12 | B18: 148557.4254 | C18: 37.54583743 | D18: 888.5874505 | E18: 68.75731791 | F18: 27.55084529 | G18: 3.88787198 | H18: 0.7147542853 | I18: 0.7749705342 | J18: 20.54705622 | K18: 53.47796752 | L18: 19.42697345 | M18: 0.9984296137 | N18: 0 | O18: 10 | P18: 35 | Q18: 80 | R18: 10 | S18: 45 | T18: 90 | U18: 10.33859021 | V18: 10.48122042 | W18: 92780.296 | X18: 38350.85821 | Y18: 29828.47517 | Z18: 118674.0953 | AA18: 21817.28683 | AB18: 106404.8669 | AC18: 19530.56891 | AE18: 11.24307028 | AF18: 2.063660858 | AH18: =Input!C19*(1-Input!E19) -> 9464.04
A19: 13 | B19: 4566.690905 | C19: 79.4 | D19: 22981 | E19: 100 | F19: 99 | G19: 5.48461 | H19: 1.03455 | I19: 0.931978 | J19: 74 | K19: 93.199 | L19: 14 | M19: 27 | N19: 30 | O19: 10 | P19: 35 | Q19: 80 | R19: 10 | S19: 45 | T19: 90 | U19: 47.094 | V19: 54.7966 | W19: 940.7383265 | X19: 3625.952579 | Y19: 3379.351544 | Z19: 18534.42377 | AA19: 3496.107856 | AB19: 9805.822239 | AC19: 1580.359619 | AE19: 0.0988450886 | AF19: 0.01593041182 | AH19: =Input!C20*(1-Input!E20) -> 99203.94
A20: 14 | B20: 502679.4635 | C20: 26.71915755 | D20: 463.2304813 | E20: 55.80350177 | F20: 20.1942049 | G20: 3.653627001 | H20: 0.655395677 | I20: 0.4935390481 | J20: 7.88025423 | K20: 27.96126744 | L20: 7.879659293 | M20: 0 | N20: 0 | O20: 10 | P20: 35 | Q20: 80 | R20: 10 | S20: 45 | T20: 90 | U20: 9.991298956 | V20: 9.991298956 | W20: 368367.7457 | X20: 74950.64183 | Y20: 37555.25863 | Z20: 144729.0061 | AA20: 25961.80862 | AB20: 130268.6985 | AC20: 23367.88671 | AE20: 14.83201845 | AF20: 2.660600212 | AH20: =Input!C21*(1-Input!E21) -> 8782.938
A21: 15 | B21: 36082.89287 | C21: 39.30939385 | D21: 266.2051209 | E21: 48.4074843 | F21: 27.4625908 | G21: 3.387604705 | H21: 0.5802639762 | I21: 0.4029916816 | J21: 8.998244591 | K21: 20.57651718 | L21: 8.998244276 | M21: 0 | N21: 0 | O21: 10 | P21: 35 | Q21: 80 | R21: 10 | S21: 45 | T21: 90 | U21: 7.888249714 | V21: 7.888249714 | W21: 21898.9264 | X21: 6866.101343 | Y21: 2918.566298 | Z21: 10998.96627 | AA21: 1884.016719 | AB21: 10131.34035 | AC21: 1735.400776 | AE21: 0.3682202322 | AF21: 0.06307257034 | AH21: =Input!C22*(1-Input!E22) -> 27514.35
A22: 16 | B22: 8450.382778 | C22: 72.9753411 | D22: 2916.191416 | E22: 92.88169603 | F22: 76.50706678 | G22: 4.224912571 | H22: 0.791886076 | I22: 1.023770885 | J22: 69.46763213 | K22: 95.10779587 | L22: 33 | M22: 32.34932816 | N22: 0 | O22: 10 | P22: 35 | Q22: 80 | R22: 10 | S22: 45 | T22: 90 | U22: 20.9470321 | V22: 25.56828067 | W22: 2283.687122 | X22: 5727.731514 | Y22: 5865.008316 | Z22: 24801.42324 | AA22: 4648.593645 | AB22: 19606.26115 | AC22: 3460.028174 | AE22: 0.9848544678 | AF22: 0.1738028571 | AH22: =Input!C23*(1-Input!E23) -> 19907.775
A23: 17 | B23: 32615.51197 | C23: 27.58956356 | D23: 357.9792109 | E23: 60.56095557 | F23: 43.96084936 | G23: 3.423016438 | H23: 0.5889473118 | I23: 0.4157968723 | J23: 8.385861458 | K23: 25.80797071 | L23: 6.396038909 | M23: 0 | N23: 0 | O23: 10 | P23: 35 | Q23: 80 | R23: 10 | S23: 45 | T23: 90 | U23: 8.33735075 | V23: 8.33735075 | W23: 23617.03457 | X23: 5449.563904 | Y23: 2322.324413 | Z23: 9362.263669 | AA23: 1610.824873 | AB23: 8581.698909 | AC23: 1476.524754 | AE23: 0.2093352786 | AF23: 0.03601719473 | AH23: =Input!C24*(1-Input!E24) -> 40994.996
A24: 18 | B24: 2881.217275 | C24: 90.72 | D24: 23475.7 | E24: 100 | F24: 100 | G24: 5.41086 | H24: 1.02167 | I24: 0.992053 | J24: 90 | K24: 99.2063 | L24: 34 | M24: 51 | N24: 5 | O24: 10 | P24: 35 | Q24: 80 | R24: 10 | S24: 45 | T24: 90 | U24: 28.0552 | V24: 34.2774 | W24: 267.3769632 | X24: 2613.840312 | Y24: 2593.094262 | Z24: 14030.87698 | AA24: 2649.287928 | AB24: 10094.48638 | AC24: 1741.180908 | AE24: 0.5566348308 | AF24: 0.09601300193 | AH24: =Input!C25*(1-Input!E25) -> 18134.845
A25: 19 | B25: 159979.5567 | C25: 36.38297932 | D25: 821.1845094 | E25: 68.10183293 | F25: 26.14038895 | G25: 3.87427822 | H25: 0.711548417 | I25: 0.7644804357 | J25: 18.9396531 | K25: 52.04092474 | L25: 18.93950309 | M25: 0 | N25: 0 | O25: 10 | P25: 35 | Q25: 80 | R25: 10 | S25: 45 | T25: 90 | U25: 9.999430549 | V25: 9.999430549 | W25: 101774.2277 | X25: 39638.89592 | Y25: 30290.59147 | Z25: 117388.976 | AA25: 21559.61325 | AB25: 105650.7469 | AC25: 19403.7747 | AE25: 22.32196366 | AF25: 4.099643083 | AH25: =Input!C26*(1-Input!E26) -> 4733.04
A26: 20 | B26: 248898.1173 | C26: 30.26376673 | D26: 499.6258847 | E26: 69.18052943 | F26: 24.3434019 | G26: 3.64888759 | H26: 0.6542547621 | I26: 0.590408071 | J26: 12.68172214 | K26: 40.89864712 | L26: 12.6816657 | M26: 0 | N26: 0 | O26: 10 | P26: 35 | Q26: 80 | R26: 10 | S26: 45 | T26: 90 | U26: 9.999010162 | V26: 9.999010162 | W26: 173572.1717 | X26: 52110.88797 | Y26: 30807.29269 | Z26: 115175.5592 | AA26: 20651.2687 | AB26: 103659.1433 | AC26: 18586.34625 | AE26: 82.53609357 | AF26: 14.79893007 | AH26: =Input!C27*(1-Input!E27) -> 1255.925
A27: 21 | B27: 6298.340481 | C27: 79.17773993 | D27: 29463.21499 | E27: 100 | F27: 99.74086691 | G27: 5.692726923 | H27: 1.070111611 | I27: 0.9158648857 | J27: 72.51826619 | K27: 91.58761448 | L27: 8.073064752 | M27: 29.96346762 | N27: 31.48173381 | O27: 10 | P27: 35 | Q27: 80 | R27: 10 | S27: 45 | T27: 90 | U27: 50.32684683 | V27: 58.80535674 | W27: 1311.456835 | X27: 4986.883646 | Y27: 4567.367768 | Z27: 26001.2303 | AA27: 4887.678407 | AB27: 12915.63095 | AC27: 2013.461683 | AE27: 0.2136577197 | AF27: 0.03330782938 | AH27: =Input!C28*(1-Input!E28) -> 60450.102
A28: 22 | B28: 87925.01575 | C28: 36.61456926 | D28: 820.8329799 | E28: 68.06763868 | F28: 26.10639829 | G28: 3.874423105 | H28: 0.7116010474 | I28: 0.7677177593 | J28: 19.15454557 | K28: 52.26270813 | L28: 19.13494256 | M28: 0.000306894489 | N28: 0 | O28: 10 | P28: 35 | Q28: 80 | R28: 10 | S28: 45 | T28: 90 | U28: 9.994074238 | V28: 9.994118079 | W28: 55731.64996 | X28: 21913.26391 | Y28: 16825.1248 | Z28: 65251.62832 | AA28: 11984.52667 | AB28: 58730.33214 | AC28: 10786.77893 | AE28: 21.58211562 | AF28: 3.963905899 | AH28: =Input!C29*(1-Input!E29) -> 2721.25
A29: 23 | B29: 14131.15754 | C29: 41.87035166 | D29: 860.6693095 | E29: 78.38600025 | F29: 50.86374861 | G29: 3.665848889 | H29: 0.6566421589 | I29: 0.4988480402 | J29: 19.25455261 | K29: 40.50390067 | L29: 16.07887669 | M29: 0.0921297593 | N29: 0 | O29: 10 | P29: 35 | Q29: 80 | R29: 10 | S29: 45 | T29: 90 | U29: 9.315890482 | V29: 9.329051637 | W29: 8214.392183 | X29: 4637.915707 | Y29: 2396.520762 | Z29: 9974.375846 | AA29: 1786.651847 | AB29: 9045.173915 | AC29: 1619.974174 | AE29: 1.125452215 | AF29: 0.2015664418 | AH29: =Input!C30*(1-Input!E30) -> 8036.924
A30: 24 | B30: 13539.62283 | C30: 79.11664898 | D30: 31244.93239 | E30: 100 | F30: 99.94450339 | G30: 5.749930447 | H30: 1.079886163 | I30: 0.9114359958 | J30: 72.11099322 | K30: 91.14470513 | L30: 6.443972896 | M30: 30.77801355 | N30: 31.88900678 | O30: 10 | P30: 35 | Q30: 80 | R30: 10 | S30: 45 | T30: 90 | U30: 51.21543498 | V30: 59.90721338 | W30: 2827.526963 | X30: 10712.09587 | Y30: 9763.508195 | Z30: 56139.77081 | AA30: 10543.52957 | AB30: 27387.54299 | AC30: 4227.194811 | AE30: 0.1052676385 | AF30: 0.01624778154 | AH30: =Input!C31*(1-Input!E31) -> 260170.584
A31: 25 | B31: 31566.43535 | C31: 81.53238643 | D31: 2865.224671 | E31: 82.20762663 | F31: 50.55213752 | G31: 4.099385633 | H31: 0.7640918097 | I31: 0.9374206891 | J31: 62.41801176 | K31: 77.73509761 | L31: 20.80598604 | M31: 20.80598604 | N31: 20.80598604 | O31: 10 | P31: 35 | Q31: 80 | R31: 10 | S31: 45 | T31: 90 | U31: 41.66594178 | V31: 48.33248604 | W31: 5829.567298 | X31: 21157.6684 | Y31: 20006.5795 | Z31: 80770.77449 | AA31: 15055.00892 | AB31: 47116.87061 | AC31: 7778.548833 | AE31: 8.252052968 | AF31: 1.362335744 | AH31: =Input!C32*(1-Input!E32) -> 5709.715
A32: 26 | B32: 2880.859201 | C32: 90.72 | D32: 23475.7 | E32: 100 | F32: 100 | G32: 5.41086 | H32: 1.02167 | I32: 0.992053 | J32: 90 | K32: 99.2063 | L32: 34 | M32: 51 | N32: 5 | O32: 10 | P32: 35 | Q32: 80 | R32: 10 | S32: 45 | T32: 90 | U32: 28.0552 | V32: 34.2774 | W32: 267.3437339 | X32: 2613.515467 | Y32: 2592.771995 | Z32: 14029.13324 | AA32: 2648.958678 | AB32: 10093.23185 | AC32: 1740.964516 | AE32: 3.498748566 | AF32: 0.6034932315 | AH32: =Input!C33*(1-Input!E33) -> 2884.812
A33: 27 | B33: 55142.4091 | C33: 63.76139858 | D33: 1664.785988 | E33: 95.42877165 | F33: 62.73381383 | G33: 3.810439035 | H33: 0.6910597784 | I33: 0.972333458 | J33: 57.87039991 | K33: 85.32142194 | L33: 16.84681624 | M33: 16.84681624 | N33: 14.82475983 | O33: 10 | P33: 35 | Q33: 80 | R33: 10 | S33: 45 | T33: 90 | U33: 32.85121123 | V33: 38.21421241 | W33: 19982.83785 | X33: 33552.34697 | Y33: 29998.64615 | Z33: 121595.4256 | AA33: 22052.50027 | AB33: 81649.85546 | AC33: 13625.31097 | AE33: 103.202918 | AF33: 17.221976 | AH33: =Input!C34*(1-Input!E34) -> 791.1584
A34: 28 | B34: 22661.14432 | C34: 51.92188184 | D34: 3619.719939 | E34: 78.44815921 | F34: 45.48219119 | G34: 4.347315171 | H34: 0.8168206788 | I34: 0.8701502073 | J34: 37.91202986 | K34: 69.38042284 | L34: 29.96121327 | M34: 0 | N34: 0 | O34: 10 | P34: 35 | Q34: 80 | R34: 10 | S34: 45 | T34: 90 | U34: 8.106013706 | V34: 8.106013706 | W34: 10895.05174 | X34: 9230.283039 | Y34: 8163.364783 | Z34: 37349.08797 | AA34: 7017.551335 | AB34: 34321.56578 | AC34: 6448.707662 | AE34: 24.27802573 | AF34: 4.561618534 | AH34: =Input!C35*(1-Input!E35) -> 1413.6885
A35: 29 | B35: 119834.6486 | C35: 36.42 | D35: 824.63 | E35: 68 | F35: 26 | G35: 3.87737 | H35: 0.712358 | I35: 0.767162 | J35: 19 | K35: 52.1691 | L35: 19 | M35: 0 | N35: 0 | O35: 10 | P35: 35 | Q35: 80 | R35: 10 | S35: 45 | T35: 90 | U35: 9.99947 | V35: 9.99947 | W35: 76190.86957 | X35: 29677.76973 | Y35: 22768.56672 | Z35: 88282.22156 | AA35: 16219.38241 | AB35: 79454.4673 | AC35: 14597.53013 | AE35: 10.98983104 | AF35: 2.019073254 | AH35: =Input!C36*(1-Input!E36) -> 7229.817
A36: 30 | B36: 40824.24485 | C36: 79.10781856 | D36: 31502.47159 | E36: 100 | F36: 99.97393812 | G36: 5.758198957 | H36: 1.08129903 | I36: 0.9107958198 | J36: 72.05212376 | K36: 91.08068459 | L36: 6.208495034 | M36: 30.89575248 | N36: 31.94787624 | O36: 10 | P36: 35 | Q36: 80 | R36: 10 | S36: 45 | T36: 90 | U36: 51.34387638 | V36: 60.06648178 | W36: 8529.075304 | X36: 32295.16954 | Y36: 29414.66151 | Z36: 169375.8988 | AA36: 31806.12487 | AB36: 82411.74672 | AC36: 12701.30467 | AE36: 16.0704947 | AF36: 2.476785866 | AH36: =Input!C37*(1-Input!E37) -> 5128.14
A37: 31 | B37: 7756.524708 | C37: 42.93153336 | D37: 503.1646776 | E37: 58.71608137 | F37: 26.56296223 | G37: 3.492137008 | H37: 0.6107168219 | I37: 0.1584986627 | J37: 4.985572182 | K37: 10.56270259 | L37: 4.985556215 | M37: 0 | N37: 0 | O37: 10 | P37: 35 | Q37: 80 | R37: 10 | S37: 45 | T37: 90 | U37: 8.761518168 | V37: 8.761518168 | W37: 4426.529715 | X37: 1955.24257 | Y37: 351.7374675 | Z37: 1350.434308 | AA37: 236.1685544 | AB37: 1232.115761 | AC37: 215.4766036 | AE37: 0.5823754673 | AF37: 0.1018478066 | AH37: =Input!C38*(1-Input!E38) -> 2115.6725
A38: 32 | B38: 14243.33024 | C38: 59.07722877 | D38: 1885.258183 | E38: 98.11704031 | F38: 75.1449521 | G38: 4.085425623 | H38: 0.7608175739 | I38: 1.084194211 | J38: 62.39294866 | K38: 93.2962756 | L38: 30.49453756 | M38: 30.49453756 | N38: 0 | O38: 10 | P38: 35 | Q38: 80 | R38: 10 | S38: 45 | T38: 90 | U38: 22.03509863 | V38: 26.93181393 | W38: 5828.765449 | X38: 8256.121926 | Y38: 7850.475556 | Z38: 36306.4982 | AA38: 6761.259272 | AB38: 28306.32551 | AC38: 4940.329506 | AE38: 168.2398761 | AF38: 29.36306317 | AH38: =Input!C39*(1-Input!E39) -> 168.2498
A39: 33 | B39: 36616.22945 | C39: 22.78508178 | D39: 177.7735803 | E39: 39.08563098 | F39: 15.84027417 | G39: 3.342505523 | H39: 0.5660054532 | I39: 0.1941845425 | J39: 1.843752499 | K39: 7.55038549 | L39: 1.843747582 | M39: 0 | N39: 0 | O39: 10 | P39: 35 | Q39: 80 | R39: 10 | S39: 45 | T39: 90 | U39: 9.213405994 | V39: 9.213405994 | W39: 28273.19162 | X39: 3260.928977 | Y39: 629.9315174 | Z39: 2256.567746 | AA39: 382.1174389 | AB39: 2048.660998 | AC39: 346.9114078 | AE39: 0.5984333345 | AF39: 0.101336117 | AH39: =Input!C40*(1-Input!E40) -> 3423.3738
A40: 34 | B40: 17496.01358 | C40: 78.81086802 | D40: 29895.31623 | E40: 99.21145823 | F40: 95.86015573 | G40: 5.674080697 | H40: 1.06554858 | I40: 0.9113928219 | J40: 71.27717005 | K40: 90.40867458 | L40: 5.605729117 | M40: 30.60572912 | N40: 29.89722196 | O40: 10 | P40: 35 | Q40: 80 | R40: 10 | S40: 45 | T40: 90 | U40: 49.01879803 | V40: 57.46303295 | W40: 3707.253409 | X40: 13680.03004 | Y40: 12466.23531 | Z40: 70759.5502 | AA40: 13288.09762 | AB40: 36074.0692 | AC40: 5652.353705 | AE40: 22.36133704 | AF40: 3.50374075 | AH40: =Input!C41*(1-Input!E41) -> 1613.234
A41: 35 | B41: 31903.7612 | C41: 75.60276958 | D41: 9532.815494 | E41: 90.46209886 | F41: 49.92601899 | G41: 4.659504983 | H41: 0.8769072875 | I41: 0.9243061473 | J41: 63.25692395 | K41: 83.58125781 | L41: 1.231049428 | M41: 26.23104943 | N41: 6.565596947 | O41: 10 | P41: 35 | Q41: 80 | R41: 10 | S41: 45 | T41: 90 | U41: 21.95877934 | V41: 27.01147093 | W41: 7783.634133 | X41: 21819.57319 | Y41: 20159.90559 | Z41: 94035.04479 | AA41: 17697.16233 | AB41: 73386.0968 | AC41: 12916.89847 | AE41: 32.60526735 | AF41: 5.738947107 | AH41: =Input!C42*(1-Input!E42) -> 2250.7436
A42: 36 | B42: 84340.71393 | C42: 62.10149818 | D42: 9946.996251 | E42: 96.726745 | F42: 73.63416626 | G42: 4.514800484 | H42: 0.8450335456 | I42: 0.9901731152 | J42: 60.38881255 | K42: 89.79218236 | L42: 17.55957786 | M42: 15.64788707 | N42: 22.01013497 | O42: 10 | P42: 35 | Q42: 80 | R42: 10 | S42: 45 | T42: 90 | U42: 33.67958654 | V42: 38.93904404 | W42: 31963.86701 | X42: 50662.41916 | Y42: 47030.3139 | Z42: 229949.4239 | AA42: 43039.54907 | AB42: 152503.4086 | AC42: 26280.3601 | AE42: 88.07325813 | AF42: 15.17734561 | AH42: =Input!C43*(1-Input!E43) -> 1731.5518
A43: 37 | B43: 15386.11561 | C43: 81.14 | D43: 4626.34 | E43: 83 | F43: 37 | G43: 4.24362 | H43: 0.795995 | I43: 0.653331 | J43: 44 | K43: 54.2273 | L43: 14.6667 | M43: 14.6667 | N43: 14.6667 | O43: 10 | P43: 35 | Q43: 80 | R43: 10 | S43: 45 | T43: 90 | U43: 41.6657 | V43: 48.3322 | W43: 2901.821404 | X43: 10361.96419 | Y43: 6769.895672 | Z43: 28728.84429 | AA43: 5388.799282 | AB43: 16758.77021 | AC43: 2784.274035 | AE43: 4.455040916 | AF43: 0.7401530417 | AH43: =Input!C44*(1-Input!E44) -> 3761.7545
A44: 38 | B44: 67156.24749 | C44: 28.5302318 | D44: 1344.959679 | E44: 77.53696716 | F44: 50.64159186 | G44: 3.771299814 | H44: 0.6799246999 | I44: 0.3469729804 | J44: 6.780152903 | K44: 22.64195443 | L44: 5.189298181 | M44: 0 | N44: 0 | O44: 10 | P44: 35 | Q44: 80 | R44: 10 | S44: 45 | T44: 90 | U44: 2.731064815 | V44: 2.731064815 | W44: 47996.41442 | X44: 14855.95348 | Y44: 4338.160673 | Z44: 17171.84535 | AA44: 3095.898596 | AB44: 16702.87113 | AC44: 3011.347599 | AE44: 3.93666758 | AF44: 0.7097387253 | AH44: =Input!C45*(1-Input!E45) -> 4242.896
A45: 39 | B45: 5012.214571 | C45: 24.00784907 | D45: 262.911306 | E45: 29.46755404 | F45: 4.315727465 | G45: 3.385177834 | H45: 0.5784670661 | I45: 0.1408676615 | J45: 1.54694516 | K45: 4.187654588 | L45: 1.164957418 | M45: 0.3819853931 | N45: 0 | O45: 10 | P45: 35 | Q45: 80 | R45: 10 | S45: 45 | T45: 90 | U45: 8.140212422 | V45: 8.210949043 | W45: 3808.889662 | X45: 354.5904178 | Y45: 50.39109076 | Z45: 262.4738618 | AA45: 44.85214433 | AB45: 241.1079319 | AC45: 41.16935761 | AE45: 0.1385376968 | AF45: 0.02365541414 | AH45: =Input!C46*(1-Input!E46) -> 1740.3778
A46: 40 | B46: 17114.29747 | C46: 79.10277409 | D46: 31649.59372 | E46: 100 | F46: 99.99075304 | G46: 5.762922436 | H46: 1.082106146 | I46: 0.9104301121 | J46: 72.01849392 | K46: 91.04411214 | L46: 6.073975681 | M46: 30.96301216 | N46: 31.98150608 | O46: 10 | P46: 35 | Q46: 80 | R46: 10 | S46: 45 | T46: 90 | U46: 51.41724996 | V46: 60.15746562 | W46: 3576.413405 | X46: 13537.88406 | Y46: 12325.44635 | Z46: 71030.66583 | AA46: 13337.45524 | AB46: 34508.65083 | AC46: 5313.980189 | AE46: 9.440135365 | AF46: 1.453684543 | AH46: =Input!C47*(1-Input!E47) -> 3655.525
A47: 41 | B47: 2691.112657 | C47: 72.38030942 | D47: 3507.749756 | E47: 83.94841908 | F47: 77.47642072 | G47: 4.393200315 | H47: 0.8191463624 | I47: 0.5644084948 | J47: 43.44737639 | K47: 52.58440928 | L47: 21.79411702 | M47: 21.65325894 | N47: 0 | O47: 10 | P47: 35 | Q47: 80 | R47: 10 | S47: 45 | T47: 90 | U47: 19.75379646 | V47: 23.83083493 | W47: 743.2769889 | X47: 1635.17725 | Y47: 1024.25788 | Z47: 5136.608205 | AA47: 957.7605446 | AB47: 4121.933076 | AC47: 729.5182102 | AE47: 8.116583512 | AF47: 1.436509368 | AH47: =Input!C48*(1-Input!E48) -> 507.8409
A48: 42 | B48: 3656.411357 | C48: 37.18575646 | D48: 1587.54118 | E48: 58.0520005 | F48: 22.35495623 | G48: 3.823162131 | H48: 0.6951918252 | I48: 0.6019348746 | J48: 12.82352907 | K48: 35.28137468 | L48: 12.82351986 | M48: 0 | N48: 0 | O48: 10 | P48: 35 | Q48: 80 | R48: 10 | S48: 45 | T48: 90 | U48: 9.999015541 | V48: 9.999015541 | W48: 2296.747135 | X48: 789.312281 | Y48: 479.7082286 | Z48: 1792.607981 | AA48: 325.9622197 | AB48: 1613.364831 | AC48: 293.3692067 | AE48: 1.279905233 | AF48: 0.232733958 | AH48: =Input!C49*(1-Input!E49) -> 1260.5346
A49: 43 | B49: 6951.075963 | C49: 73.32 | D49: 2944.08 | E49: 93 | F49: 77 | G49: 4.23017 | H49: 0.793073 | I49: 1.02656 | J49: 70 | K49: 95.4719 | L49: 33 | M49: 33 | N49: 0 | O49: 10 | P49: 35 | Q49: 80 | R49: 10 | S49: 45 | T49: 90 | U49: 21.214 | V49: 25.9282 | W49: 1854.547067 | X49: 4739.771874 | Y49: 4865.752971 | Z49: 20582.96311 | AA49: 3858.897467 | AB49: 16216.49331 | AC49: 2858.354814 | AE49: 60.9779233 | AF49: 10.74810301 | AH49: =Input!C50*(1-Input!E50) -> 265.9404
A50: 44 | B50: 23035.33017 | C50: 30.92446651 | D50: 398.5034728 | E50: 62.22611453 | F50: 40.66707221 | G50: 3.423715525 | H50: 0.588862385 | I50: 0.3006005888 | J50: 6.471885445 | K50: 20.22573591 | L50: 6.471867215 | M50: 0 | N50: 0 | O50: 10 | P50: 35 | Q50: 80 | R50: 10 | S50: 45 | T50: 90 | U50: 9.996470346 | V50: 9.996470346 | W50: 15911.77721 | X50: 4432.710226 | Y50: 1440.79101 | Z50: 5104.144197 | AA50: 877.8879272 | AB50: 4593.909936 | AC50: 790.1301209 | AE50: 2.980271652 | AF50: 0.5125922001 | AH50: =Input!C51*(1-Input!E51) -> 1541.44
A51: 45 | B51: 12535.02162 | C51: 81.14 | D51: 4626.34 | E51: 83 | F51: 37 | G51: 4.24362 | H51: 0.795995 | I51: 0.653331 | J51: 44 | K51: 54.2273 | L51: 14.6667 | M51: 14.6667 | N51: 14.6667 | O51: 10 | P51: 35 | Q51: 80 | R51: 10 | S51: 45 | T51: 90 | U51: 41.6657 | V51: 48.3322 | W51: 2364.105078 | X51: 8441.860732 | Y51: 5515.413427 | Z51: 23405.30212 | AA51: 4390.238396 | AB51: 13653.31916 | AC51: 2268.339594 | AE51: 8.88861925 | AF51: 1.476740326 | AH51: =Input!C52*(1-Input!E52) -> 1536.045
A52: 46 | B52: 19260.72891 | C52: 44.07381601 | D52: 1361.617702 | E52: 81.37444598 | F52: 54.71593906 | G52: 3.87305713 | H52: 0.7102212475 | I52: 0.8908864267 | J52: 31.89483905 | K52: 72.60035899 | L52: 15.95094993 | M52: 15.9438891 | N52: 0 | O52: 10 | P52: 35 | Q52: 80 | R52: 10 | S52: 45 | T52: 90 | U52: 22.4108887 | V52: 27.37548516 | W52: 10771.79069 | X52: 6907.826446 | Y52: 6162.999622 | Z52: 23792.88123 | AA52: 4363.015887 | AB52: 18460.6851 | AC52: 3168.61912 | AE52: 24.4324854 | AF52: 4.193627699 | AH52: =Input!C53*(1-Input!E53) -> 755.5795
A53: 47 | B53: 31214.05448 | C53: 67.72406877 | D53: 1122.770643 | E53: 96.97663811 | F53: 86.67451255 | G53: 3.930334155 | H53: 0.7249013568 | I53: 0.9010926151 | J53: 59.13943748 | K53: 87.25213849 | L53: 22.9897449 | M53: 35.92377418 | N53: 0.1283401719 | O53: 10 | P53: 35 | Q53: 80 | R53: 10 | S53: 45 | T53: 90 | U53: 25.00333233 | V53: 30.97270151 | W53: 10074.62676 | X53: 20500.30632 | Y53: 18444.60275 | Z53: 72553.24622 | AA53: 13381.54583 | AB53: 54412.51695 | AC53: 9236.919585 | AE53: 12.7454688 | AF53: 2.163635813 | AH53: =Input!C54*(1-Input!E54) -> 4269.1656
A54: 48 | B54: 5347.792085 | C54: 86.28744492 | D54: 8092.786507 | E54: 100 | F54: 100 | G54: 4.678407403 | H54: 0.88515981 | I54: 0.5186021644 | J54: 44.79054181 | K54: 51.86081884 | L54: 14.93021154 | M54: 14.93021154 | N54: 14.93021154 | O54: 10 | P54: 35 | Q54: 80 | R54: 10 | S54: 45 | T54: 90 | U54: 41.66570958 | V54: 48.33221198 | W54: 733.3189351 | X54: 4614.47315 | Y54: 2393.103561 | Z54: 11206.21288 | AA54: 2120.227763 | AB54: 6537.064764 | AC54: 1095.474786 | AE54: 5.521006359 | AF54: 0.9252047329 | AH54: =Input!C55*(1-Input!E55) -> 1184.035
A55: 49 | B55: 5934.96861 | C55: 68.81556851 | D55: 1437.219908 | E55: 96.65026863 | F55: 88.68085961 | G55: 3.994107128 | H55: 0.739316224 | I55: 0.9094564622 | J55: 60.50930157 | K55: 87.74260219 | L55: 29.71475823 | M55: 29.71475823 | N55: 0 | O55: 10 | P55: 35 | Q55: 80 | R55: 10 | S55: 45 | T55: 90 | U55: 22.15255707 | V55: 27.07533342 | W55: 1850.78622 | X55: 3947.373251 | Y55: 3583.567907 | Z55: 14343.66969 | AA55: 2655.038378 | AB55: 11166.18007 | AC55: 1936.177885 | AE55: 2.032808792 | AF55: 0.352482174 | AH55: =Input!C56*(1-Input!E56) -> 5492.981
A56: 50 | B56: 5440.034454 | C56: 89.4146535 | D56: 8104.858629 | E56: 91.09616507 | F56: 73.71150478 | G56: 4.610541974 | H56: 0.8722506518 | I56: 0.5259525552 | J56: 42.84144439 | K56: 47.95299089 | L56: 14.28047986 | M56: 14.28047986 | N56: 14.28047986 | O56: 10 | P56: 35 | Q56: 80 | R56: 10 | S56: 45 | T56: 90 | U56: 41.66561202 | V56: 48.33211442 | W56: 575.8464968 | X56: 4431.088691 | Y56: 2332.523608 | Z56: 10745.27996 | AA56: 2032.858067 | AB56: 6268.193299 | AC56: 1050.33478 | AE56: 5.722418755 | AF56: 0.9588816357 | AH56: =Input!C57*(1-Input!E57) -> 1095.3748
A57: 51 | B57: 10643.98534 | C57: 45.87748786 | D57: 2444.119078 | E57: 70.9570926 | F57: 40.71418436 | G57: 4.048876737 | H57: 0.7450642699 | I57: 0.7717262981 | J57: 28.80686239 | K57: 58.03112222 | L57: 23.80810298 | M57: 0 | N57: 0 | O57: 10 | P57: 35 | Q57: 80 | R57: 10 | S57: 45 | T57: 90 | U57: 8.808611603 | V57: 8.808611603 | W57: 5760.792255 | X57: 3464.971836 | Y57: 2833.771745 | Z57: 12414.6586 | AA57: 2284.514729 | AB57: 11321.09954 | AC57: 2083.2807 | AE57: 22.47111301 | AF57: 4.135078565 | AH57: =Input!C58*(1-Input!E58) -> 503.8068
A58: 52 | B58: 18693.00854 | C58: 31.41454219 | D58: 448.189536 | E58: 56.50009443 | F58: 30.40801455 | G58: 3.462175626 | H58: 0.5951545603 | I58: 0.2953494567 | J58: 7.597092597 | K58: 21.31169065 | L58: 6.470806858 | M58: 0.5631262774 | N58: 0.5631262774 | O58: 10 | P58: 35 | Q58: 80 | R58: 10 | S58: 45 | T58: 90 | U58: 14.45195161 | V58: 15.39041563 | W58: 12820.68549 | X58: 3317.868071 | Y58: 1251.491324 | Z58: 4916.722744 | AA58: 845.1939701 | AB58: 4206.160352 | AC58: 715.1151052 | AE58: 1.268824394 | AF58: 0.2157206131 | AH58: =Input!C59*(1-Input!E59) -> 3315.0059
A59: 53 | B59: 10013.87529 | C59: 37.05584896 | D59: 1770.381245 | E59: 87.96935981 | F59: 36.98921146 | G59: 3.595738409 | H59: 0.6250110155 | I59: 0.5717206801 | J59: 21.29821164 | K59: 50.15260296 | L59: 7.099402944 | M59: 7.099402944 | N59: 7.099402944 | O59: 10 | P59: 35 | Q59: 80 | R59: 10 | S59: 45 | T59: 90 | U59: 41.66345872 | V59: 48.32965345 | W59: 6303.148786 | X59: 3264.302347 | Y59: 1861.025929 | Z59: 7668.905847 | AA59: 1333.008714 | AB59: 4473.774425 | AC59: 688.770222 | AE59: 5.403526873 | AF59: 0.8319123966 | AH59: =Input!C60*(1-Input!E60) -> 827.936
A60: 54 | B60: 43932.01818 | C60: 35.6054015 | D60: 793.9923446 | E60: 68.87518847 | F60: 27.21179942 | G60: 3.841411199 | H60: 0.7025513786 | I60: 0.7223496576 | J60: 17.85552277 | K60: 49.21059809 | L60: 17.72087839 | M60: 0 | N60: 0 | O60: 10 | P60: 35 | Q60: 80 | R60: 10 | S60: 45 | T60: 90 | U60: 9.326283783 | V60: 9.326283783 | W60: 28289.84672 | X60: 10773.57507 | Y60: 7697.606131 | Z60: 30133.14926 | AA60: 5511.017815 | AB60: 27322.84624 | AC60: 4997.044654 | AE60: 12.17467332 | AF60: 2.226612326 | AH60: =Input!C61*(1-Input!E61) -> 2244.2365
A61: 55 | B61: 35810.19575 | C61: 28.38834596 | D61: 592.3748898 | E61: 69.30470732 | F61: 43.86688721 | G61: 3.527232982 | H61: 0.620502395 | I61: 0.1934324526 | J61: 3.561059796 | K61: 11.88412807 | L61: 2.808401672 | M61: 0 | N61: 0 | O61: 10 | P61: 35 | Q61: 80 | R61: 10 | S61: 45 | T61: 90 | U61: 2.473229041 | V61: 2.473229041 | W61: 25644.27349 | X61: 7045.462669 | Y61: 1208.131221 | Z61: 4498.006805 | AA61: 791.2786054 | AB61: 4386.760794 | AC61: 771.7084732 | AE61: 1.773550706 | AF61: 0.3119988008 | AH61: =Input!C62*(1-Input!E62) -> 2473.4341
A62: 56 | B62: 24416.90175 | C62: 34.8191055 | D62: 372.6026009 | E62: 34.8880986 | F62: 10.13740517 | G62: 3.528111344 | H62: 0.6211165585 | I62: 0.3554497151 | J62: 3.982891196 | K62: 10.24264404 | L62: 3.982878271 | M62: 0 | N62: 0 | O62: 10 | P62: 35 | Q62: 80 | R62: 10 | S62: 45 | T62: 90 | U62: 9.721941271 | V62: 9.721941271 | W62: 15915.15497 | X62: 2966.0978 | Y62: 870.8036597 | Z62: 3431.08345 | AA62: 604.0350024 | AB62: 3097.515532 | AC62: 545.3110742 | AE62: 0.2170075546 | AF62: 0.03820372214 | AH62: =Input!C63*(1-Input!E63) -> 14273.7682
A63: 57 | B63: 6990.459127 | C63: 43.37737431 | D63: 783.3204182 | E63: 65.02324302 | F63: 47.95184148 | G63: 3.71561652 | H63: 0.6636446812 | I63: 0.2041007874 | J63: 7.031155579 | K63: 14.06023246 | L63: 4.606776424 | M63: 1.212185256 | N63: 1.212185256 | O63: 10 | P63: 35 | Q63: 80 | R63: 10 | S63: 45 | T63: 90 | U63: 19.59180078 | V63: 21.61193781 | W63: 3958.181505 | X63: 1971.685247 | Y63: 426.3452824 | Z63: 1826.262887 | AA63: 326.188035 | AB63: 1468.465101 | AC63: 255.6924797 | AE63: 3.931633469 | AF63: 0.6845849524 | AH63: =Input!C64*(1-Input!E64) -> 373.5
A64: 58 | B64: 5909.063921 | C64: 73.32 | D64: 2944.08 | E64: 93 | F64: 77 | G64: 4.23017 | H64: 0.793073 | I64: 1.02656 | J64: 70 | K64: 95.4719 | L64: 33 | M64: 33 | N64: 0 | O64: 10 | P64: 35 | Q64: 80 | R64: 10 | S64: 45 | T64: 90 | U64: 21.214 | V64: 25.9282 | W64: 1576.538254 | X64: 4029.24887 | Y64: 4136.344572 | Z64: 17497.44145 | AA64: 3280.423335 | AB64: 13785.53422 | AC64: 2429.868612 | AE64: 5.248839701 | AF64: 0.9251720417 | AH64: =Input!C65*(1-Input!E65) -> 2626.3965
A65: 59 | B65: 2921.97469 | C65: 73.32 | D65: 2944.08 | E65: 93 | F65: 77 | G65: 4.23017 | H65: 0.793073 | I65: 1.02656 | J65: 70 | K65: 95.4719 | L65: 33 | M65: 33 | N65: 0 | O65: 10 | P65: 35 | Q65: 80 | R65: 10 | S65: 45 | T65: 90 | U65: 21.214 | V65: 25.9282 | W65: 779.5828472 | X65: 1992.424413 | Y65: 2045.382197 | Z65: 8652.314771 | AA65: 1622.137463 | AB65: 6816.812715 | AC65: 1201.546417 | AE65: 5.402470301 | AF65: 0.9522513096 | AH65: =Input!C66*(1-Input!E66) -> 1261.7955
A66: 60 | B66: 7228.10063 | C66: 85.23988646 | D66: 5545.933434 | E66: 88.92146135 | F66: 59.42411747 | G66: 4.320566377 | H66: 0.8121992866 | I66: 0.6970618977 | J66: 53.93744096 | K66: 62.60020965 | L66: 17.97916684 | M66: 17.97916684 | N66: 17.97916684 | O66: 10 | P66: 35 | Q66: 80 | R66: 10 | S66: 45 | T66: 90 | U66: 41.66580882 | V66: 48.33233867 | W66: 1066.87586 | X66: 5478.651103 | Y66: 3856.939623 | Z66: 16844.38695 | AA66: 3166.482787 | AB66: 9826.036887 | AC66: 1636.047603 | AE66: 3.459053663 | AF66: 0.5759368215 | AH66: =Input!C67*(1-Input!E67) -> 2840.672
A67: 61 | B67: 39109.24133 | C67: 36.50408119 | D67: 822.9910552 | E67: 68.0293308 | F67: 26.04604394 | G67: 3.876097534 | H67: 0.7120311687 | I67: 0.7674023141 | J67: 19.06680347 | K67: 52.20963934 | L67: 19.05836715 | M67: 0 | N67: 0 | O67: 10 | P67: 35 | Q67: 80 | R67: 10 | S67: 45 | T67: 90 | U67: 9.997067225 | V67: 9.997067225 | W67: 24832.77212 | X67: 9712.186464 | Y67: 7453.693084 | Z67: 28903.60264 | AA67: 5309.532535 | AB67: 26014.09005 | AC67: 4778.734998 | AE67: 64.18382666 | AF67: 11.79043734 | AH67: =Input!C68*(1-Input!E68) -> 405.306
A68: 62 | B68: 1503.640594 | C68: 73.63173629 | D68: 3314.541421 | E68: 95.64721879 | F68: 87.67098383 | G68: 4.411125593 | H68: 0.8280989132 | I68: 0.8096807646 | J68: 56.62782867 | K68: 73.09030038 | L68: 27.98524249 | M68: 27.98524249 | N68: 0 | O68: 10 | P68: 35 | Q68: 80 | R68: 10 | S68: 45 | T68: 90 | U68: 21.45974516 | V68: 26.22859542 | W68: 396.4839171 | X68: 1058.964569 | Y68: 809.224141 | Z68: 3755.980895 | AA68: 705.1088507 | AB68: 2949.956967 | AC68: 520.168703 | AE68: 4.855968181 | AF68: 0.8562574638 | AH68: =Input!C69*(1-Input!E69) -> 607.491
A69: 63 | B69: 3893.039614 | C69: 73.32 | D69: 2944.08 | E69: 93 | F69: 77 | G69: 4.23017 | H69: 0.793073 | I69: 1.02656 | J69: 70 | K69: 95.4719 | L69: 33 | M69: 33 | N69: 0 | O69: 10 | P69: 35 | Q69: 80 | R69: 10 | S69: 45 | T69: 90 | U69: 21.214 | V69: 25.9282 | W69: 1038.662969 | X69: 2654.57028 | Y69: 2725.127616 | Z69: 11527.75357 | AA69: 2161.225224 | AB69: 9082.255927 | AC69: 1600.858426 | AE69: 54.42892842 | AF69: 9.593762757 | AH69: =Input!C70*(1-Input!E70) -> 166.8645
A70: 64 | B70: 14046.3546 | C70: 64.42 | D70: 1657.75 | E70: 86 | F70: 78 | G70: 4.10776 | H70: 0.766003 | I70: 0.216598 | J70: 12 | K70: 18.6278 | L70: 4 | M70: 4 | N70: 4 | O70: 10 | P70: 35 | Q70: 80 | R70: 10 | S70: 45 | T70: 90 | U70: 41.6632 | V70: 48.3293 | W70: 4997.692967 | X70: 7781.849005 | Y70: 1685.566592 | Z70: 6923.886429 | AA70: 1291.145972 | AB70: 4039.173778 | AC70: 667.1441616 | AE70: 9.344025745 | AF70: 1.543338456 | AH70: =Input!C71*(1-Input!E71) -> 432.2734
A71: 65 | B71: 6462.900975 | C71: 81.14 | D71: 4626.34 | E71: 83 | F71: 37 | G71: 4.24362 | H71: 0.795995 | I71: 0.653331 | J71: 44 | K71: 54.2273 | L71: 14.6667 | M71: 14.6667 | N71: 14.6667 | O71: 10 | P71: 35 | Q71: 80 | R71: 10 | S71: 45 | T71: 90 | U71: 41.6657 | V71: 48.3322 | W71: =B71*(100-C71)/100 -> 1218.903124 | X71: =B71*C71/100*E71/100 -> 4352.518217 | Y71: =B71*C71/100*K71/100 -> 2843.678447 | Z71: =B71*J71/100*G71 -> 12067.48217 | AA71: =B71*J71/100*H71 -> 2263.552219 | AB71: 7039.48125 | AC71: =(100-V71)/100*AA71 -> 1169.527633 | AE71: 6.869036415 | AF71: 1.141210214 | AH71: =Input!C72*(1-Input!E72) -> 1024.8135
A72: 66 | B72: 3256.28315 | C72: 73.32 | D72: 2944.08 | E72: 93 | F72: 77 | G72: 4.23017 | H72: 0.793073 | I72: 1.02656 | J72: 70 | K72: 95.4719 | L72: 33 | M72: 33 | N72: 0 | O72: 10 | P72: 35 | Q72: 80 | R72: 10 | S72: 45 | T72: 90 | U72: 21.214 | V72: 25.9282 | W72: 868.7763443 | X72: 2220.381329 | Y72: 2279.39811 | Z72: 9642.241904 | AA72: 1807.729172 | AB72: =((100-U72)/100)*Z72 -> 7596.736706 | AC72: 1339.017537 | AE72: =IF(AH72>0,AB72/AH72,0) -> 3.226653715 | AF72: =IF(AH72>0,AC72/AH72,0) -> 0.5687370877 | AH72: =Input!C73*(1-Input!E73) -> 2354.37
A73: 67 | B73: 95824.14882 | C73: 27.66 | D73: 462.94 | E73: 55 | F73: 17 | G73: 3.67741 | H73: 0.662175 | I73: 0.59156 | J73: 9 | K73: 32.538 | L73: 8.99997 | M73: 0 | N73: 0 | O73: 10 | P73: 35 | Q73: 80 | R73: 10 | S73: 45 | T73: 90 | U73: 9.99886 | V73: 9.99886 | W73: 69319.18925 | X73: 14577.72776 | Y73: 8624.183743 | Z73: 31714.62148 | AA73: 5710.712017 | AB73: 28543.52088 | AC73: 5139.705917 | AE73: 32.7568061 | AF73: 5.898373605 | AH73: =Input!C74*(1-Input!E74) -> 871.3768
A74: 68 | B74: 618.8484585 | C74: 79.4 | D74: 22981 | E74: 100 | F74: 99 | G74: 5.48461 | H74: 1.03455 | I74: 0.931978 | J74: 74 | K74: 93.199 | L74: 14 | M74: 27 | N74: 30 | O74: 10 | P74: 35 | Q74: 80 | R74: 10 | S74: 45 | T74: 90 | U74: 47.094 | V74: 54.7966 | W74: 127.4827824 | X74: 491.365676 | Y74: 457.9478964 | Z74: 2511.665408 | AA74: 473.7699578 | AB74: 1328.821701 | AC74: 214.1601291 | AE74: 0.05339338709 | AF74: 0.008605168523 | AH74: =Input!C75*(1-Input!E75) -> 24887.3835
A75: 69 | B75: 946.1988558 | C75: 79.4 | D75: 22981 | E75: 100 | F75: 99 | G75: 5.48461 | H75: 1.03455 | I75: 0.931978 | J75: 74 | K75: 93.199 | L75: 14 | M75: 27 | N75: 30 | O75: 10 | P75: 35 | Q75: 80 | R75: 10 | S75: 45 | T75: 90 | U75: 47.094 | V75: 54.7966 | W75: 194.9169643 | X75: 751.2818915 | Y75: 700.1872101 | Z75: 3840.253463 | AA75: 724.3786194 | AB75: 2031.724497 | AC75: 327.4437649 | AE75: 0.09033446635 | AF75: 0.01455879367 | AH75: =Input!C76*(1-Input!E76) -> 22491.133
A76: 70 | B76: 1666.26668 | C76: 61.34969409 | D76: 1975.485029 | E76: 88.89119934 | F76: 59.87999727 | G76: 4.047574899 | H76: 0.7518500878 | I76: 0.9296916005 | J76: 51.51039705 | K76: 82.82624422 | L76: 33 | M76: 10.40159639 | N76: 0 | O76: 10 | P76: 35 | Q76: 80 | R76: 10 | S76: 45 | T76: 90 | U76: 11.94197087 | V76: 13.4278862 | W76: 644.017169 | X76: 908.6898503 | Y76: 846.6908763 | Z76: 3474.035894 | AA76: 645.3133684 | AB76: 3059.167539 | AC76: 558.6614237 | AE76: 4.698834187 | AF76: 0.8580953356 | AH76: =Input!C77*(1-Input!E77) -> 651.0482
A77: 71 | B77: 0 | C77: 0 | D77: 0 | E77: 0 | F77: 0 | G77: 0 | H77: 0 | I77: 0 | J77: 0 | K77: 0 | L77: 0 | M77: 0 | N77: 0 | O77: 0 | P77: 0 | Q77: 0 | R77: 0 | S77: 0 | T77: 0 | U77: 0 | V77: 0 | W77: 0 | X77: 0 | Y77: 0 | Z77: 0 | AA77: 0 | AB77: 0 | AC77: 0 | AE77: 0 | AF77: 0 | AH77: =Input!C78*(1-Input!E78) -> 0
A78: 72 | B78: 2447.316453 | C78: 69.7181395 | D78: 11350.13433 | E78: 95.04706049 | F78: 83.55764278 | G78: 4.55851911 | H78: 0.8568145693 | I78: 1.109115061 | J78: 72.89279467 | K78: 96.80152258 | L78: 23.00221996 | M78: 23.70744985 | N78: 23.39497699 | O78: 14.38655819 | P78: 37.92437212 | Q78: 74.15125575 | R78: 15.55630703 | S78: 46.46218606 | T78: 91.16974885 | U78: 32.70136869 | V78: 46.03531546 | W78: 741.0929542 | X78: 1621.715281 | Y78: 1651.650325 | Z78: 8132.02136 | AA78: 1528.486382 | AB78: 5472.739073 | AC78: 824.8428541 | AE78: 0.1259578222 | AF78: 0.01898417011 | AH78: =Input!C79*(1-Input!E79) -> 43448.9814
A79: 73 | B79: 653.9573144 | C79: 90.72 | D79: 23475.7 | E79: 100 | F79: 100 | G79: 5.41086 | H79: 1.02167 | I79: 0.992053 | J79: 90 | K79: 99.2063 | L79: 34 | M79: 51 | N79: 5 | O79: 10 | P79: 35 | Q79: 80 | R79: 10 | S79: 45 | T79: 90 | U79: 28.0552 | V79: 34.2774 | W79: 60.68723878 | X79: 593.2700756 | Y79: 588.561291 | Z79: 3184.624327 | AA79: 601.3157125 | AB79: 2291.171603 | AC79: 395.2003204 | AE79: 0.2831726081 | AF79: 0.04884396495 | AH79: =Input!C80*(1-Input!E80) -> 8091.0778
A80: 74 | B80: 44584.99637 | C80: 36.42 | D80: 824.63 | E80: 68 | F80: 26 | G80: 3.87737 | H80: 0.712358 | I80: 0.767162 | J80: 19 | K80: 52.1691 | L80: 19 | M80: 0 | N80: 0 | O80: 10 | P80: 35 | Q80: 80 | R80: 10 | S80: 45 | T80: 90 | U80: 9.99947 | V80: 9.99947 | W80: 28347.14069 | X80: 11041.74186 | Y80: 8471.143167 | Z80: 32845.7802 | AA80: 6034.490981 | AB80: 29561.37626 | AC80: 5431.073865 | AE80: 77.13960121 | AF80: 14.17223841 | AH80: =Input!C81*(1-Input!E81) -> 383.2192
A81: 75 | B81: 27157.32208 | C81: 33.85653631 | D81: 908.6932144 | E81: 71.39811643 | F81: 37.85082732 | G81: 3.788964231 | H81: 0.6884287671 | I81: 0.5274115474 | J81: 13.00683691 | K81: 35.92888246 | L81: 12.74789156 | M81: 0 | N81: 0 | O81: 10 | P81: 35 | Q81: 80 | R81: 10 | S81: 45 | T81: 90 | U81: 6.709061011 | V81: 6.709061011 | W81: 17962.79347 | X81: 6564.720242 | Y81: 3303.491377 | Z81: 13383.79091 | AA81: 2431.742849 | AB81: 12485.86421 | AC81: 2268.595737 | AE81: 2.771478853 | AF81: 0.5035586649 | AH81: =Input!C82*(1-Input!E82) -> 4505.127
A82: 76 | B82: 13073.50506 | C82: 77.19523102 | D82: 6915.72542 | E82: 97.47526192 | F82: 87.39887187 | G82: 4.329810709 | H82: 0.8065810301 | I82: 0.9680962105 | J82: 70.86283103 | K82: 84.42296185 | L82: 23.6261465 | M82: 23.6261465 | N82: 23.32086559 | O82: 10 | P82: 35 | Q82: 80 | R82: 10 | S82: 45 | T82: 90 | U82: 41.16783368 | V82: 47.78227536 | W82: 2981.382627 | X82: 9837.322774 | Y82: 8520.068671 | Z82: 40112.47397 | AA82: 7472.372986 | AB82: 23599.0374 | AC82: 3901.90315 | AE82: 22.75081863 | AF82: 3.761657281 | AH82: =Input!C83*(1-Input!E83) -> 1037.283
A83: 77 | B83: 9412.113841 | C83: 74.91869114 | D83: 2289.731834 | E83: 95.98192359 | F83: 53.99566166 | G83: 4.124784823 | H83: 0.7698200753 | I83: 1.0011104 | J83: 71.98770804 | K83: 96.09155048 | L83: 23.99590266 | M83: 23.99590266 | N83: 23.99590266 | O83: 10 | P83: 35 | Q83: 80 | R83: 10 | S83: 45 | T83: 90 | U83: 41.66599993 | V83: 48.33259986 | W83: 2360.681343 | X83: 6768.100553 | Y83: 6775.830819 | Z83: 27947.74782 | AA83: 5215.965983 | AB83: 16303.03923 | AC83: 2694.954016 | AE83: 13.50779099 | AF83: 2.232888915 | AH83: =Input!C84*(1-Input!E84) -> 1206.936
A84: 78 | B84: 74843.21647 | C84: 27.66 | D84: 462.94 | E84: 55 | F84: 17 | G84: 3.67741 | H84: 0.662175 | I84: 0.59156 | J84: 9 | K84: 32.538 | L84: 8.99997 | M84: 0 | N84: 0 | O84: 10 | P84: 35 | Q84: 80 | R84: 10 | S84: 45 | T84: 90 | U84: 9.99886 | V84: 9.99886 | W84: 54141.5828 | X84: 11385.89852 | Y84: 6735.897566 | Z84: 24770.62734 | AA84: 4460.337618 | AB84: 22293.84699 | AC84: 4014.354704 | AE84: 17.05463042 | AF84: 3.070952082 | AH84: =Input!C85*(1-Input!E85) -> 1307.202
A85: 79 | B85: 3268.13423 | C85: 89.5 | D85: 8173.84 | E85: 91 | F85: 74 | G85: 4.61587 | H85: 0.873339 | I85: 0.515679 | J85: 42 | K85: 46.9274 | L85: 14 | M85: 14 | N85: 14 | O85: 10 | P85: 35 | Q85: 80 | R85: 10 | S85: 45 | T85: 90 | U85: 41.6656 | V85: 48.3321 | W85: 343.1540941 | X85: 2661.731924 | Y85: 1372.617128 | Z85: 6335.818754 | AA85: 1198.759414 | AB85: 3695.961855 | AC85: 619.3738151 | AE85: 2.229613638 | AF85: 0.3736413846 | AH85: =Input!C86*(1-Input!E86) -> 1657.6692
A86: 80 | B86: 9824.65196 | C86: 64.42 | D86: 1657.75 | E86: 86 | F86: 78 | G86: 4.10776 | H86: 0.766003 | I86: 0.216598 | J86: 12 | K86: 18.6278 | L86: 4 | M86: 4 | N86: 4 | O86: 10 | P86: 35 | Q86: 80 | R86: 10 | S86: 45 | T86: 90 | U86: 41.6632 | V86: 48.3293 | W86: 3495.611167 | X86: 5442.975082 | Y86: 1178.961061 | Z86: 4842.87748 | AA86: 903.0855451 | AB86: 2825.17975 | AC86: 466.6306227 | AE86: 8.122594643 | AF86: 1.341596547 | AH86: =Input!C87*(1-Input!E87) -> 347.8174
A87: 81 | B87: 34835.31673 | C87: 36.42 | D87: 824.63 | E87: 68 | F87: 26 | G87: 3.87737 | H87: 0.712358 | I87: 0.767162 | J87: 19 | K87: 52.1691 | L87: 19 | M87: 0 | N87: 0 | O87: 10 | P87: 35 | Q87: 80 | R87: 10 | S87: 45 | T87: 90 | U87: 9.99947 | V87: 9.99947 | W87: 22148.29438 | X87: 8627.175199 | Y87: 6618.705378 | Z87: 25663.18828 | AA87: 4714.891145 | AB87: 23097.00547 | AC87: 4243.42702 | AE87: 44.87016169 | AF87: 8.243633865 | AH87: =Input!C88*(1-Input!E88) -> 514.752
A88: 82 | B88: 30038.14781 | C88: 36.42 | D88: 824.63 | E88: 68 | F88: 26 | G88: 3.87737 | H88: 0.712358 | I88: 0.767162 | J88: 19 | K88: 52.1691 | L88: 19 | M88: 0 | N88: 0 | O88: 10 | P88: 35 | Q88: 80 | R88: 10 | S88: 45 | T88: 90 | U88: 9.99947 | V88: 9.99947 | W88: 19098.25438 | X88: 7439.127535 | Y88: 5707.243946 | Z88: 22129.11251 | AA88: 4065.603831 | AB88: 19916.31854 | AC88: 3659.064996 | AE88: 2.925552625 | AF88: 0.5374882502 | AH88: =Input!C89*(1-Input!E89) -> 6807.7116
A89: 83 | B89: 401.7630752 | C89: 79.4 | D89: 22981 | E89: 100 | F89: 99 | G89: 5.48461 | H89: 1.03455 | I89: 0.931978 | J89: 74 | K89: 93.199 | L89: 14 | M89: 27 | N89: 30 | O89: 10 | P89: 35 | Q89: 80 | R89: 10 | S89: 45 | T89: 90 | U89: 47.094 | V89: 54.7966 | W89: 82.7631935 | X89: 318.9998817 | Y89: 297.3046998 | Z89: 1630.600197 | AA89: 307.5765522 | AB89: 862.6853404 | AC89: 139.0350592 | AE89: 0.4662328311 | AF89: 0.07514061761 | AH89: =Input!C90*(1-Input!E90) -> 1850.3316
A90: 84 | B90: 25363.27028 | C90: 36.49287329 | D90: 823.1979694 | E90: 68.02529068 | F90: 26.0397425 | G90: 3.876263099 | H90: 0.7120737111 | I90: 0.7673696148 | J90: 19.05780727 | K90: 52.20407051 | L90: 19.05058136 | M90: 0 | N90: 0 | O90: 10 | P90: 35 | Q90: 80 | R90: 10 | S90: 45 | T90: 90 | U90: 9.997406389 | V90: 9.997406389 | W90: 16107.48419 | X90: 6296.275389 | Y90: 4831.897094 | Z90: 18736.62769 | AA90: 3441.938711 | AB90: 16863.45088 | AC90: 3097.83411 | AE90: 32.7645671 | AF90: 6.018886307 | AH90: =Input!C91*(1-Input!E91) -> 514.6856
A91: 85 | B91: 12769.03204 | C91: 22.3898852 | D91: 208.888508 | E91: 40.17348723 | F91: 19.60951304 | G91: 3.368863863 | H91: 0.5744770696 | I91: 0.2074515411 | J91: 2.074536027 | K91: 8.37849398 | L91: 2.07453052 | M91: 0 | N91: 0 | O91: 10 | P91: 35 | Q91: 80 | R91: 10 | S91: 45 | T91: 90 | U91: 9.992662758 | V91: 9.992662758 | W91: 9910.060425 | X91: 1148.548597 | Y91: 239.5387647 | Z91: 892.4058721 | AA91: 152.1779244 | AB91: 803.2307629 | AC91: 136.9712976 | AE91: 0.08216604759 | AF91: 0.0140114033 | AH91: =Input!C92*(1-Input!E92) -> 9775.7016
A92: 86 | B92: 598.6462873 | C92: 90.72 | D92: 23475.7 | E92: 100 | F92: 100 | G92: 5.41086 | H92: 1.02167 | I92: 0.992053 | J92: 90 | K92: 99.2063 | L92: 34 | M92: 51 | N92: 5 | O92: 10 | P92: 35 | Q92: 80 | R92: 10 | S92: 45 | T92: 90 | U92: 28.0552 | V92: 34.2774 | W92: 55.55437546 | X92: 543.0919118 | Y92: 538.7813913 | Z92: 2915.272125 | AA92: 550.4570571 | AB92: 2097.3867 | AC92: 361.7746898 | AE92: 0.4789932035 | AF92: 0.08262072875 | AH92: =Input!C93*(1-Input!E93) -> 4378.74
A93: 87 | B93: 2310.74108 | C93: 73.32 | D93: 2944.08 | E93: 93 | F93: 77 | G93: 4.23017 | H93: 0.793073 | I93: 1.02656 | J93: 70 | K93: 95.4719 | L93: 33 | M93: 33 | N93: 0 | O93: 10 | P93: 35 | Q93: 80 | R93: 10 | S93: 45 | T93: 90 | U93: 21.214 | V93: 25.9282 | W93: 616.5057202 | X93: 1575.638885 | Y93: 1617.518689 | Z93: 6842.379317 | AA93: 1282.810453 | AB93: 5390.836969 | AC93: 950.2007928 | AE93: 2.778823768 | AF93: 0.4898015954 | AH93: =Input!C94*(1-Input!E94) -> 1939.9708
A94: 88 | B94: 2677.176302 | C94: 73.32 | D94: 2944.08 | E94: 93 | F94: 77 | G94: 4.23017 | H94: 0.793073 | I94: 1.02656 | J94: 70 | K94: 95.4719 | L94: 33 | M94: 33 | N94: 0 | O94: 10 | P94: 35 | Q94: 80 | R94: 10 | S94: 45 | T94: 90 | U94: 21.214 | V94: 25.9282 | W94: 714.2706373 | X94: 1825.502268 | Y94: 1874.023333 | Z94: 7927.437613 | AA94: 1486.237369 | AB94: 6245.710998 | AC94: 1100.882771 | AE94: 0 | AF94: 0 | AH94: =Input!C95*(1-Input!E95) -> 0
A95: 89 | B95: 3213.411592 | C95: 73.32 | D95: 2944.08 | E95: 93 | F95: 77 | G95: 4.23017 | H95: 0.793073 | I95: 1.02656 | J95: 70 | K95: 95.4719 | L95: 33 | M95: 33 | N95: 0 | O95: 10 | P95: 35 | Q95: 80 | R95: 10 | S95: 45 | T95: 90 | U95: 21.214 | V95: 25.9282 | W95: 857.3382127 | X95: 2191.148243 | Y95: 2249.388021 | Z95: 9515.29412 | AA95: 1783.92898 | AB95: 7496.719625 | AC95: 1321.388306 | AE95: 12.45519919 | AF95: 2.195380831 | AH95: =Input!C96*(1-Input!E96) -> 601.8948
A96: 90 | B96: 1356.931932 | C96: 53.88463927 | D96: 1458.671948 | E96: 85.08692823 | F96: 49.38211231 | G96: 3.954854723 | H96: 0.7308100839 | I96: 0.8732295566 | J96: 40.58348829 | K96: 74.50495272 | L96: 31.59036817 | M96: 0 | N96: 0 | O96: 10 | P96: 35 | Q96: 80 | R96: 10 | S96: 45 | T96: 90 | U96: 7.90836273 | V96: 7.90836273 | W96: 625.7540552 | X96: 622.1367951 | Y96: 544.7637313 | Z96: 2177.90018 | AA96: 402.4500328 | AB96: 2005.663934 | AC96: 370.6228244 | AE96: 0.1697201987 | AF96: 0.03136227279 | AH96: =Input!C97*(1-Input!E97) -> 11817.4734
A97: 91 | B97: 17488.82309 | C97: 57.41830239 | D97: 1129.31344 | E97: 86.50534075 | F97: 60.72511426 | G97: 3.794803809 | H97: 0.6901598941 | I97: 0.5954661911 | J97: 33.21785928 | K97: 54.01922586 | L97: 15.9617443 | M97: 7.735568067 | N97: 0.4032839085 | O97: 10 | P97: 35 | Q97: 80 | R97: 10 | S97: 45 | T97: 90 | U97: 14.2001082 | V97: 15.99586865 | W97: 7447.037765 | X97: 8686.680614 | Y97: 5424.494696 | Z97: 22045.58123 | AA97: 4009.423616 | AB97: 18915.08484 | AC97: 3368.08148 | AE97: 11.23502506 | AF97: 2.000545076 | AH97: =Input!C98*(1-Input!E98) -> 1683.5819
A98: 92 | B98: 565.9257242 | C98: 90.72 | D98: 23475.7 | E98: 100 | F98: 100 | G98: 5.41086 | H98: 1.02167 | I98: 0.992053 | J98: 90 | K98: 99.2063 | L98: 34 | M98: 51 | N98: 5 | O98: 10 | P98: 35 | Q98: 80 | R98: 10 | S98: 45 | T98: 90 | U98: 28.0552 | V98: 34.2774 | W98: 52.5179072 | X98: 513.407817 | Y98: 509.3328991 | Z98: 2755.930378 | AA98: 520.3704012 | AB98: 1982.748598 | AC98: 342.0009573 | AE98: 0.5229941931 | AF98: 0.09021038514 | AH98: =Input!C99*(1-Input!E99) -> 3791.1484
A99: 93 | B99: 1275.015599 | C99: 71.63238357 | D99: 3234.889241 | E99: 39.01872373 | F99: 31.38420359 | G99: 3.963080172 | H99: 0.7290670533 | I99: 0.05067214353 | J99: 1.110758572 | K99: 2.368004343 | L99: 1.110757036 | M99: 0 | N99: 0 | O99: 10 | P99: 35 | Q99: 80 | R99: 10 | S99: 45 | T99: 90 | U99: 2.265931269 | V99: 2.265931269 | W99: 361.6915346 | X99: 356.3673936 | Y99: 21.62755352 | Z99: 56.12650891 | AA99: 10.32529918 | AB99: 54.85472079 | AC99: 10.091335 | AE99: 0.04584713815 | AF99: 0.008434257309 | AH99: =Input!C100*(1-Input!E100) -> 1196.4699
A100: 94 | B100: 10414.39211 | C100: 37.77386967 | D100: 870.6089991 | E100: 69.41747195 | F100: 28.09909453 | G100: 3.879859196 | H100: 0.7128738826 | I100: 0.7707881211 | J100: 20.58539763 | K100: 53.62863898 | L100: 19.87744053 | M100: 0 | N100: 0 | O100: 10 | P100: 35 | Q100: 80 | R100: 10 | S100: 45 | T100: 90 | U100: 9.834845987 | V100: 9.834845987 | W100: 6480.47321 | X100: 2730.827052 | Y100: 2109.707167 | Z100: 8317.812965 | AA100: 1528.290416 | AB100: 7499.768871 | AC100: 1377.985407 | AE100: 1.430686023 | AF100: 0.2628700292 | AH100: =Input!C101*(1-Input!E101) -> 5242.0788
A101: 95 | B101: 0 | C101: 0 | D101: 0 | E101: 0 | F101: 0 | G101: 0 | H101: 0 | I101: 0 | J101: 0 | K101: 0 | L101: 0 | M101: 0 | N101: 0 | O101: 0 | P101: 0 | Q101: 0 | R101: 0 | S101: 0 | T101: 0 | U101: 0 | V101: 0 | W101: 0 | X101: 0 | Y101: 0 | Z101: 0 | AA101: 0 | AB101: 0 | AC101: 0 | AE101: 0 | AF101: 0 | AH101: =Input!C102*(1-Input!E102) -> 0
A102: 96 | B102: 486.8560739 | C102: 90.72 | D102: 23475.7 | E102: 100 | F102: 100 | G102: 5.41086 | H102: 1.02167 | I102: 0.992053 | J102: 90 | K102: 99.2063 | L102: 34 | M102: 51 | N102: 5 | O102: 10 | P102: 35 | Q102: 80 | R102: 10 | S102: 45 | T102: 90 | U102: 28.0552 | V102: 34.2774 | W102: 45.18024365 | X102: 441.6758302 | Y102: 438.1702491 | Z102: 2370.87905 | AA102: 447.6656205 | AB102: 1705.724191 | AC102: 294.2174851 | AE102: 0.4692742111 | AF102: 0.08094431617 | AH102: =Input!C103*(1-Input!E103) -> 3634.8134
A103: 97 | B103: 28941.88579 | C103: 36.42 | D103: 824.63 | E103: 68 | F103: 26 | G103: 3.87737 | H103: 0.712358 | I103: 0.767162 | J103: 19 | K103: 52.1691 | L103: 19 | M103: 0 | N103: 0 | O103: 10 | P103: 35 | Q103: 80 | R103: 10 | S103: 45 | T103: 90 | U103: 9.99947 | V103: 9.99947 | W103: 18401.25098 | X103: 7167.631667 | Y103: 5498.954312 | Z103: 21321.49594 | AA103: 3917.226937 | AB103: 19189.45935 | AC103: 3525.525004 | AE103: 34.25490249 | AF103: 6.293377683 | AH103: =Input!C104*(1-Input!E104) -> 560.196
A104: 98 | B104: 23751.36797 | C104: 36.42 | D104: 824.63 | E104: 68 | F104: 26 | G104: 3.87737 | H104: 0.712358 | I104: 0.767162 | J104: 19 | K104: 52.1691 | L104: 19 | M104: 0 | N104: 0 | O104: 10 | P104: 35 | Q104: 80 | R104: 10 | S104: 45 | T104: 90 | U104: 9.99947 | V104: 9.99947 | W104: 15101.11976 | X104: 5882.168786 | Y104: 4512.756641 | Z104: 17497.63991 | AA104: 3214.700627 | AB104: 15747.96866 | AC104: 2893.247602 | AE104: 2.117775225 | AF104: 0.3890818064 | AH104: =Input!C105*(1-Input!E105) -> 7436.0907
A105: 99 | B105: 2894.532729 | C105: 89.46458022 | D105: 8145.211936 | E105: 91.03990961 | F105: 73.88027116 | G105: 4.613658808 | H105: 0.8728873229 | I105: 0.5199426438 | J105: 42.34920912 | K105: 47.35303204 | L105: 14.11640238 | M105: 14.11640238 | N105: 14.11640238 | O105: 10 | P105: 35 | Q105: 80 | R105: 10 | S105: 45 | T105: 90 | U105: 41.66560499 | V105: 48.33210599 | W105: 304.9511737 | X105: 2357.552707 | Y105: 1226.245384 | Z105: 5655.477031 | AA105: 1069.995509 | AB105: 3299.088311 | AC105: 552.8441457 | AE105: 2.090051842 | AF105: 0.3502400712 | AH105: =Input!C106*(1-Input!E106) -> 1578.472
A106: 100 | B106: 3287.963635 | C106: 89.396831 | D106: 8090.453585 | E106: 91.11624676 | F106: 73.65125972 | G106: 4.609429348 | H106: 0.8720233773 | I106: 0.5280979318 | J106: 43.01715914 | K106: 48.16716005 | L106: 14.33905111 | M106: 14.33905111 | N106: 14.33905111 | O106: 10 | P106: 35 | Q106: 80 | R106: 10 | S106: 45 | T106: 90 | U106: 41.66561453 | V106: 48.33211744 | W106: 348.6283408 | X106: 2678.211999 | Y106: 1415.794335 | Z106: 6519.524088 | AA106: 1233.379879 | AB106: 3803.124312 | AC106: 637.2612676 | AE106: 2.68841498 | AF106: 0.4504777118 | AH106: =Input!C107*(1-Input!E107) -> 1414.6344
A107: 101 | B107: 2302.778409 | C107: 84.01824298 | D107: 8146.087911 | E107: 99.39167642 | F107: 97.18853796 | G107: 4.630689999 | H107: 0.8740720198 | I107: 0.5395094353 | J107: 45.16136793 | K107: 53.42865611 | L107: 15.05381954 | M107: 15.05381954 | N107: 15.05381954 | O107: 10 | P107: 35 | Q107: 80 | R107: 10 | S107: 45 | T107: 90 | U107: 41.66562388 | V107: 48.33211574 | W107: 368.02445 | X107: 1922.984394 | Y107: 1033.713039 | Z107: 4815.76122 | AA107: 909.005383 | AB107: 2809.244263 | AC107: 469.6638492 | AE107: 8.965276419 | AF107: 1.498860846 | AH107: =Input!C108*(1-Input!E108) -> 313.3472
A108: 102 | B108: 3327.88119 | C108: 87.09371897 | D108: 8414.095925 | E108: 99.55076572 | F108: 95.32796345 | G108: 4.59584089 | H108: 0.8655621188 | I108: 0.6827022377 | J108: 59.45081791 | K108: 67.82137854 | L108: 19.8169522 | M108: 19.8169522 | N108: 19.8169522 | O108: 10 | P108: 35 | Q108: 80 | R108: 10 | S108: 45 | T108: 90 | U108: 41.66585781 | V108: 48.33238398 | W108: 429.5056986 | X108: 2885.354995 | Y108: 1965.718214 | Z108: 9092.653297 | AA108: 1712.473613 | AB108: 5304.121303 | AC108: 884.7942906 | AE108: 27.44296455 | AF108: 4.5778324 | AH108: =Input!C109*(1-Input!E109) -> 193.278
A109: 103 | B109: 433.1268029 | C109: 90.72 | D109: 23475.7 | E109: 100 | F109: 100 | G109: 5.41086 | H109: 1.02167 | I109: 0.992053 | J109: 90 | K109: 99.2063 | L109: 34 | M109: 51 | N109: 5 | O109: 10 | P109: 35 | Q109: 80 | R109: 10 | S109: 45 | T109: 90 | U109: 28.0552 | V109: 34.2774 | W109: 40.19416731 | X109: 392.9326356 | Y109: 389.8139293 | Z109: 2109.229643 | AA109: 398.2613946 | AB109: 1517.481049 | AC109: 261.7477434 | AE109: 0.9180082551 | AF109: 0.1583456936 | AH109: =Input!C110*(1-Input!E110) -> 1653.0146
A110: 104 | B110: 9660.615329 | C110: 74.7 | D110: 3802.74 | E110: 88 | F110: 37 | G110: 4.374 | H110: 0.823823 | I110: 0.92794 | J110: 61 | K110: 81.66 | L110: 0 | M110: 25 | N110: 0 | O110: 10 | P110: 35 | Q110: 80 | R110: 10 | S110: 45 | T110: 90 | U110: 14.344 | V110: 18.4423 | W110: 2444.135678 | X110: 6350.502093 | Y110: 5892.977283 | Z110: 25775.87418 | AA110: 4854.768632 | AB110: 22078.58279 | AC110: 3959.437637 | AE110: 11.29313741 | AF110: 2.025242006 | AH110: =Input!C111*(1-Input!E111) -> 1955.0442
A111: 105 | B111: 6916.436644 | C111: 32.25 | D111: 191.75 | E111: 53 | F111: 44 | G111: 3.29555 | H111: 0.551253 | I111: 0.0585018 | J111: 1 | K111: 3.10077 | L111: 0.999997 | M111: 0 | N111: 0 | O111: 10 | P111: 35 | Q111: 80 | R111: 10 | S111: 45 | T111: 90 | U111: 9.98998 | V111: 9.98998 | W111: 4685.885826 | X111: 1182.191933 | Y111: 69.16425059 | Z111: 227.9346278 | AA111: 38.12706449 | AB111: 205.1640041 | AC111: 34.31817837 | AE111: 0.1067816496 | AF111: 0.01786157232 | AH111: =Input!C112*(1-Input!E112) -> 1921.3414
A112: 106 | B112: 21441.99851 | C112: 62.01224297 | D112: 3513.574457 | E112: 99.83001855 | F112: 99.30628093 | G112: 4.421247547 | H112: 0.8331788158 | I112: 0.9817457197 | J112: 60.74259651 | K112: 98.01573197 | L112: 4.477969107 | M112: 29.56488717 | N112: 21.13909442 | O112: 10 | P112: 35 | Q112: 80 | R112: 10 | S112: 45 | T112: 90 | U112: 45.48171897 | V112: 53.81486597 | W112: 8145.334297 | X112: 13274.06235 | Y112: 13032.82275 | Z112: 57584.21432 | AA112: 10851.67636 | AB112: 31393.92379 | AC112: 5011.861273 | AE112: 64.4647564 | AF112: 10.2914315 | AH112: =Input!C113*(1-Input!E113) -> 486.9936
A113: 107 | B113: 1834.543909 | C113: 73.32 | D113: 2944.08 | E113: 93 | F113: 77 | G113: 4.23017 | H113: 0.793073 | I113: 1.02656 | J113: 70 | K113: 95.4719 | L113: 33 | M113: 33 | N113: 0 | O113: 10 | P113: 35 | Q113: 80 | R113: 10 | S113: 45 | T113: 90 | U113: 21.214 | V113: 25.9282 | W113: 489.4563148 | X113: 1250.931462 | Y113: 1284.180682 | Z113: 5432.302824 | AA113: 1018.449069 | AB113: 4279.894103 | AC113: 754.3835574 | AE113: 8.351322494 | AF113: 1.472022489 | AH113: =Input!C114*(1-Input!E114) -> 512.481
A114: 108 | B114: 28544.93528 | C114: 28.26056936 | D114: 519.1493298 | E114: 76.66579551 | F114: 37.97489421 | G114: 3.518569133 | H114: 0.6145154467 | I114: 0.3232172766 | J114: 7.614430143 | K114: 22.85603027 | L114: 6.228651759 | M114: 0 | N114: 0 | O114: 10 | P114: 35 | Q114: 80 | R114: 10 | S114: 45 | T114: 90 | U114: 3.278064021 | V114: 3.278064021 | W114: 20477.97405 | X114: 6184.600003 | Y114: 1843.787101 | Z114: 7647.730192 | AA114: 1335.670313 | AB114: 7397.0327 | AC114: 1291.886185 | AE114: 8.66670498 | AF114: 1.513633491 | AH114: =Input!C115*(1-Input!E115) -> 853.5
A115: 109 | B115: 442.292515 | C115: 90.72 | D115: 23475.7 | E115: 100 | F115: 100 | G115: 5.41086 | H115: 1.02167 | I115: 0.992053 | J115: 90 | K115: 99.2063 | L115: 34 | M115: 51 | N115: 5 | O115: 10 | P115: 35 | Q115: 80 | R115: 10 | S115: 45 | T115: 90 | U115: 28.0552 | V115: 34.2774 | W115: 41.04474539 | X115: 401.2477696 | Y115: 398.063066 | Z115: 2153.86459 | AA115: 406.6892944 | AB115: 1549.593571 | AC115: 267.2867782 | AE115: 0.2884565543 | AF115: 0.04975538392 | AH115: =Input!C116*(1-Input!E116) -> 5372.0172
A116: 110 | B116: 35277.6732 | C116: 81.11033266 | D116: 34302.82429 | E116: 100 | F116: 100 | G116: 5.43160174 | H116: 1.025188656 | I116: 1.181748563 | J116: 94.25032172 | K116: 99.83395868 | L116: 0.5231121995 | M116: 11.79569804 | N116: 80.12972712 | O116: 10 | P116: 35 | Q116: 80 | R116: 10 | S116: 45 | T116: 90 | U116: 72.16790902 | V116: 81.90584172 | W116: 6663.835114 | X116: 28613.83809 | Y116: 28566.32729 | Z116: 180597.067 | AA116: 34086.82617 | AB116: 50263.94 | AC116: 6167.72428 | AE116: 44.8354758 | AF116: 5.501615128 | AH116: =Input!C117*(1-Input!E117) -> 1121.0752
A117: 111 | B117: 3007.018227 | C117: 73.32 | D117: 2944.08 | E117: 93 | F117: 77 | G117: 4.23017 | H117: 0.793073 | I117: 1.02656 | J117: 70 | K117: 95.4719 | L117: 33 | M117: 33 | N117: 0 | O117: 10 | P117: 35 | Q117: 80 | R117: 10 | S117: 45 | T117: 90 | U117: 21.214 | V117: 25.9282 | W117: 802.272463 | X117: 2050.413561 | Y117: 2104.912671 | Z117: 8904.138806 | AA117: 1669.349476 | AB117: 7015.214799 | AC117: 1236.517206 | AE117: 2.103957259 | AF117: 0.3708481386 | AH117: =Input!C118*(1-Input!E118) -> 3334.2953
A118: 112 | B118: 1602.46141 | C118: 33.38 | D118: 555.26 | E118: 57 | F118: 16 | G118: 3.55906 | H118: 0.630381 | I118: 0.367887 | J118: 7 | K118: 20.9706 | L118: 6.99998 | M118: 0 | N118: 0 | O118: 10 | P118: 35 | Q118: 80 | R118: 10 | S118: 45 | T118: 90 | U118: 9.99854 | V118: 9.99854 | W118: 1067.559792 | X118: 304.8939227 | Y118: 112.1720789 | Z118: 399.2279415 | AA118: 70.71128584 | AB118: 359.3109761 | AC118: 63.64118964 | AE118: 0.2744709176 | AF118: 0.0486143115 | AH118: =Input!C119*(1-Input!E119) -> 1309.104
A119: 113 | B119: 1847.816749 | C119: 89.47924222 | D119: 8157.062509 | E119: 91.02338905 | F119: 73.92983285 | G119: 4.61457413 | H119: 0.8730742944 | I119: 0.5181777106 | J119: 42.20465418 | K119: 47.17684187 | L119: 14.06821767 | M119: 14.06821767 | N119: 14.06821767 | O119: 10 | P119: 35 | Q119: 80 | R119: 10 | S119: 45 | T119: 90 | U119: 41.66560292 | V119: 48.33210351 | W119: 194.4043244 | X119: 1504.992024 | Y119: 780.027765 | Z119: 3598.743325 | AA119: 680.8797955 | AB119: 2099.305221 | AC119: 351.796268 | AE119: 65.13230022 | AF119: 10.9147064 | AH119: =Input!C120*(1-Input!E120) -> 32.2314
A120: 114 | B120: 377.5313018 | C120: 90.72 | D120: 23475.7 | E120: 100 | F120: 100 | G120: 5.41086 | H120: 1.02167 | I120: 0.992053 | J120: 90 | K120: 99.2063 | L120: 34 | M120: 51 | N120: 5 | O120: 10 | P120: 35 | Q120: 80 | R120: 10 | S120: 45 | T120: 90 | U120: 28.0552 | V120: 34.2774 | W120: 35.03490481 | X120: 342.496397 | Y120: 339.7780031 | Z120: 1838.492118 | AA120: 347.1411646 | AB120: 1322.699477 | AC120: 228.150199 | AE120: 0.9019044237 | AF120: 0.1555679709 | AH120: =Input!C121*(1-Input!E121) -> 1466.5628
A121: 115 | B121: 356.3975061 | C121: 90.72 | D121: 23475.7 | E121: 100 | F121: 100 | G121: 5.41086 | H121: 1.02167 | I121: 0.992053 | J121: 90 | K121: 99.2063 | L121: 34 | M121: 51 | N121: 5 | O121: 10 | P121: 35 | Q121: 80 | R121: 10 | S121: 45 | T121: 90 | U121: 28.0552 | V121: 34.2774 | W121: 33.07368856 | X121: 323.3238175 | Y121: 320.7575964 | Z121: 1735.575309 | AA121: 327.708576 | AB121: 1248.656185 | AC121: 215.3785966 | AE121: 0.9358164791 | AF121: 0.1614174041 | AH121: =Input!C122*(1-Input!E122) -> 1334.296
A122: 116 | B122: 7228.52616 | C122: 55.61319361 | D122: 1390.150964 | E122: 88.95924941 | F122: 48.20857691 | G122: 3.848697553 | H122: 0.7052234194 | I122: 0.8720575693 | J122: 43.39762683 | K122: 76.22130815 | L122: 21.61043891 | M122: 21.60772943 | N122: 0 | O122: 10 | P122: 35 | Q122: 80 | R122: 10 | S122: 45 | T122: 90 | U122: 22.43157564 | V122: 27.41489864 | W122: 3208.511911 | X122: 3576.174502 | Y122: 3064.107448 | Z122: 12073.39813 | AA122: 2212.292079 | AB122: 9365.144694 | AC122: 1605.794448 | AE122: 299.5619296 | AF122: 51.36438347 | AH122: =Input!C123*(1-Input!E123) -> 31.2628
A123: 117 | B123: 19020.93404 | C123: 36.42 | D123: 824.63 | E123: 68 | F123: 26 | G123: 3.87737 | H123: 0.712358 | I123: 0.767162 | J123: 19 | K123: 52.1691 | L123: 19 | M123: 0 | N123: 0 | O123: 10 | P123: 35 | Q123: 80 | R123: 10 | S123: 45 | T123: 90 | U123: 9.99947 | V123: 9.99947 | W123: 12093.50986 | X123: 4710.648441 | Y123: 3613.974847 | Z123: 14012.72781 | AA123: 2574.445761 | AB123: 12611.5293 | AC123: 2317.014829 | AE123: 5.723409975 | AF123: 1.051516075 | AH123: =Input!C124*(1-Input!E124) -> 2203.4992
A124: 118 | B124: 4647.774421 | C124: 30.54728868 | D124: 189.181948 | E124: 53.10667518 | F124: 33.33260818 | G124: 3.329845826 | H124: 0.562214672 | I124: 0.09003757586 | J124: 1.425435809 | K124: 4.769100082 | L124: 1.425429831 | M124: 0 | N124: 0 | O124: 10 | P124: 35 | Q124: 80 | R124: 10 | S124: 45 | T124: 90 | U124: 9.992102925 | V124: 9.992102925 | W124: 3228.005352 | X124: 753.9921481 | Y124: 67.71020787 | Z124: 220.6057521 | AA124: 37.24730725 | AB124: 198.5625983 | AC124: 33.52551797 | AE124: 0.1141122123 | AF124: 0.01926682597 | AH124: =Input!C125*(1-Input!E125) -> 1740.0644
A125: 119 | B125: 1452.078619 | C125: 72.70491541 | D125: 2673.781586 | E125: 75.45065868 | F125: 51.08569871 | G125: 4.031003985 | H125: 0.74829659 | I125: 0.7446453147 | J125: 42.7808131 | K125: 54.65641344 | L125: 14.26024851 | M125: 14.26024851 | N125: 14.26024851 | O125: 10 | P125: 35 | Q125: 80 | R125: 10 | S125: 45 | T125: 90 | U125: 41.66514406 | V125: 48.33153275 | W125: 396.3460873 | X125: 796.5571489 | Y125: 577.0255372 | Z125: 2504.104178 | AA125: 464.8501029 | AB125: 1460.765565 | AC125: 240.1809232 | AE125: 1.61670304 | AF125: 0.2658203602 | AH125: =Input!C126*(1-Input!E126) -> 903.546
A126: 120 | B126: 295.7083637 | C126: 79.4 | D126: 22981 | E126: 100 | F126: 99 | G126: 5.48461 | H126: 1.03455 | I126: 0.931978 | J126: 74 | K126: 93.199 | L126: 14 | M126: 27 | N126: 30 | O126: 10 | P126: 35 | Q126: 80 | R126: 10 | S126: 45 | T126: 90 | U126: 47.094 | V126: 54.7966 | W126: 60.91592293 | X126: 234.7924408 | Y126: 218.8242069 | Z126: 1200.165336 | AA126: 226.3845649 | AB126: 634.9594727 | AC126: 102.3335204 | AE126: 0.09557040134 | AF126: 0.01540264542 | AH126: =Input!C127*(1-Input!E127) -> 6643.8925
A127: 121 | B127: 30419.84828 | C127: 84.46974126 | D127: 26951.52665 | E127: 100 | F127: 100 | G127: 5.261594528 | H127: 0.9940711365 | I127: 1.069780013 | J127: 90.54332589 | K127: 99.98030902 | L127: 0.4367328537 | M127: 7.355367255 | N127: 80.49002187 | O127: 10 | P127: 35 | Q127: 80 | R127: 10 | S127: 45 | T127: 90 | U127: 73.50806398 | V127: 83.18741742 | W127: 4724.281146 | X127: 25695.56713 | Y127: 25690.50742 | Z127: 144920.8471 | AA127: 27379.84283 | AB127: 38392.3381 | AC127: 4603.258687 | AE127: 161.7440248 | AF127: 19.39318167 | AH127: =Input!C128*(1-Input!E128) -> 237.3648
A128: 122 | B128: 1593.729584 | C128: 43.96623843 | D128: 1100.063143 | E128: 78.45106893 | F128: 52.88041011 | G128: 3.797110771 | H128: 0.6861371054 | I128: 0.7685739858 | J128: 43.48548574 | K128: 63.94924374 | L128: 21.10325043 | M128: 21.10325043 | N128: 0 | O128: 10 | P128: 35 | Q128: 80 | R128: 10 | S128: 45 | T128: 90 | U128: 13.9651719 | V128: 17.06856475 | W128: 893.0266352 | X128: 549.7089535 | Y128: 448.0942367 | Z128: 2631.55364 | AA128: 475.5211807 | AB128: 2264.05265 | AC128: 394.3565401 | AE128: 11.99451068 | AF128: 2.089224264 | AH128: =Input!C129*(1-Input!E129) -> 188.7574
A129: 123 | B129: 3304.784099 | C129: 79.1 | D129: 31730.5 | E129: 100 | F129: 100 | G129: 5.76552 | H129: 1.08255 | I129: 0.910229 | J129: 72 | K129: 91.024 | L129: 6 | M129: 31 | N129: 32 | O129: 10 | P129: 35 | Q129: 80 | R129: 10 | S129: 45 | T129: 90 | U129: 51.4576 | V129: 60.2075 | W129: 690.6998767 | X129: 2614.084222 | Y129: 2379.444023 | Z129: 13718.73515 | AA129: 2575.867699 | AB129: 6659.403291 | AC129: 1025.002154 | AE129: 8.746040672 | AF129: 1.346173244 | AH129: =Input!C130*(1-Input!E130) -> 761.4192
A130: 124 | B130: 22746.46829 | C130: 36.42 | D130: 824.63 | E130: 68 | F130: 26 | G130: 3.87737 | H130: 0.712358 | I130: 0.767162 | J130: 19 | K130: 52.1691 | L130: 19 | M130: 0 | N130: 0 | O130: 10 | P130: 35 | Q130: 80 | R130: 10 | S130: 45 | T130: 90 | U130: 9.99947 | V130: 9.99947 | W130: 14462.20454 | X130: 5633.299351 | Y130: 4321.825841 | Z130: 16757.33001 | AA130: 3078.689445 | AB130: 15081.68583 | AC130: 2770.836818 | AE130: 263.2718489 | AF130: 48.368819 | AH130: =Input!C131*(1-Input!E131) -> 57.2856
A131: 125 | B131: 8295.646116 | C131: 15.26105531 | D131: 119.1267586 | E131: 34.28953054 | F131: 4.246637126 | G131: 3.331695035 | H131: 0.5629125796 | I131: 0.1965931851 | J131: 1.01608503 | K131: 6.701503713 | L131: 1.016081992 | M131: 0 | N131: 0 | O131: 10 | P131: 35 | Q131: 80 | R131: 10 | S131: 45 | T131: 90 | U131: 9.990020159 | V131: 9.990020159 | W131: 7029.642974 | X131: 434.1065339 | Y131: 84.84124755 | Z131: 280.8313009 | AA131: 47.44836198 | AB131: 252.7761973 | AC131: 42.70826106 | AE131: 0.1253917919 | AF131: 0.02118579771 | AH131: =Input!C132*(1-Input!E132) -> 2015.8911
A132: 126 | B132: 17260.78924 | C132: 31.11693858 | D132: 2812.5066 | E132: 97.82917849 | F132: 98.67554065 | G132: 4.144342851 | H132: 0.7740527075 | I132: 0.000448989628 | J132: 0.008234340076 | K132: 0.03203500578 | L132: 0 | M132: 0 | N132: 0 | O132: 10 | P132: 35 | Q132: 80 | R132: 10 | S132: 45 | T132: 90 | U132: 0 | V132: 0 | W132: 11889.76005 | X132: 5254.43373 | Y132: 1.72060951 | Z132: 5.890404582 | AA132: 1.100170468 | AB132: 5.890404582 | AC132: 1.100170468 | AE132: 0.01540025784 | AF132: 0.002876357413 | AH132: =Input!C133*(1-Input!E133) -> 382.4874
A133: 127 | B133: 44303.85843 | C133: 27.66 | D133: 462.94 | E133: 55 | F133: 17 | G133: 3.67741 | H133: 0.662175 | I133: 0.59156 | J133: 9 | K133: 32.538 | L133: 8.99997 | M133: 0 | N133: 0 | O133: 10 | P133: 35 | Q133: 80 | R133: 10 | S133: 45 | T133: 90 | U133: 9.99886 | V133: 9.99886 | W133: 32049.41119 | X133: 6739.945982 | Y133: 3987.352043 | Z133: 14663.11068 | AA133: 2640.321671 | AB133: 13196.96677 | AC133: 2376.319603 | AE133: 17.01253903 | AF133: 3.063372871 | AH133: =Input!C134*(1-Input!E134) -> 775.72
A134: 128 | B134: 330.2662486 | C134: 90.72 | D134: 23475.7 | E134: 100 | F134: 100 | G134: 5.41086 | H134: 1.02167 | I134: 0.992053 | J134: 90 | K134: 99.2063 | L134: 34 | M134: 51 | N134: 5 | O134: 10 | P134: 35 | Q134: 80 | R134: 10 | S134: 45 | T134: 90 | U134: 28.0552 | V134: 34.2774 | W134: 30.64870787 | X134: 299.6175408 | Y134: 297.2394763 | Z134: 1608.321991 | AA134: 303.6808064 | AB134: 1157.10404 | AC134: 199.5869217 | AE134: 0.8201148933 | AF134: 0.1414602329 | AH134: =Input!C135*(1-Input!E135) -> 1410.9048
A135: 129 | B135: 18131.16297 | C135: 36.42 | D135: 824.63 | E135: 68 | F135: 26 | G135: 3.87737 | H135: 0.712358 | I135: 0.767162 | J135: 19 | K135: 52.1691 | L135: 19 | M135: 0 | N135: 0 | O135: 10 | P135: 35 | Q135: 80 | R135: 10 | S135: 45 | T135: 90 | U135: 9.99947 | V135: 9.99947 | W135: =B135*(100-C135)/100 -> 11527.79342 | X135: =B135*C135/100*E135/100 -> 4490.291296 | Y135: =B135*C135/100*K135/100 -> 3444.918466 | Z135: =B135*J135/100*G135 -> 13357.2332 | AA135: =B135*J135/100*H135 -> 2454.017008 | AB135: 12021.58067 | AC135: =(100-V135)/100*AA135 -> 2208.628314 | AE135: 16.26877114 | AF135: 2.988930454 | AH135: =Input!C136*(1-Input!E136) -> 738.936
A136: 130 | B136: 317.983761 | C136: 57.75 | D136: 492.97 | E136: 47 | F136: 13 | G136: 3.58052 | H136: 0.636284 | I136: 0.147365 | J136: 4 | K136: 6.9264 | L136: 3.99999 | M136: 0 | N136: 0 | O136: 10 | P136: 35 | Q136: 80 | R136: 10 | S136: 45 | T136: 90 | U136: 9.99747 | V136: 9.99747 | W136: 134.348139 | X136: 86.30874233 | Y136: 12.71933772 | Z136: 45.54188864 | AA136: 8.093119176 | AB136: =((100-U136)/100)*Z136 -> 40.98885199 | AC136: 7.284012014 | AE136: =IF(AH136>0,AB136/AH136,0) -> 0.1773187136 | AF136: =IF(AH136>0,AC136/AH136,0) -> 0.03151080301 | AH136: =Input!C137*(1-Input!E137) -> 231.1592
A137: 131 | B137: 4204.017769 | C137: 48.94379543 | D137: 661.3698797 | E137: 57.95291882 | F137: 41.9377587 | G137: 3.585275104 | H137: 0.637557247 | I137: 0.003684470339 | J137: 0.08449591424 | K137: 0.1916009852 | L137: 0.08449591424 | M137: 0 | N137: 0 | O137: 10 | P137: 35 | Q137: 80 | R137: 10 | S137: 45 | T137: 90 | U137: 0.06499165736 | V137: 0.06499165736 | W137: 2146.411912 | X137: 1192.442652 | Y137: 3.942393093 | Z137: 12.73569758 | AA137: 2.264745675 | AB137: 12.72742044 | AC137: 2.263273779 | AE137: 0.007952927893 | AF137: 0.00141424205 | AH137: =Input!C138*(1-Input!E138) -> 1600.344
A138: 132 | B138: 202.773731 | C138: 79.4 | D138: 22981 | E138: 100 | F138: 99 | G138: 5.48461 | H138: 1.03455 | I138: 0.931978 | J138: 74 | K138: 93.199 | L138: 14 | M138: 27 | N138: 30 | O138: 10 | P138: 35 | Q138: 80 | R138: 10 | S138: 45 | T138: 90 | U138: 47.094 | V138: 54.7966 | W138: 41.77138858 | X138: 161.0023424 | Y138: 150.0525731 | Z138: 822.9797762 | AA138: 155.2368769 | AB138: 435.4056804 | AC138: 70.17234641 | AE138: 0.3105407306 | AF138: 0.05004843232 | AH138: =Input!C139*(1-Input!E139) -> 1402.0888
A139: 133 | B139: 37864.49706 | C139: 28.25714855 | D139: 468.7424398 | E139: 58.73217844 | F139: 18.86608922 | G139: 3.668096019 | H139: 0.6596932111 | I139: 0.589967677 | J139: 9.878159634 | K139: 34.60403519 | L139: 9.87812195 | M139: 0 | N139: 0 | O139: 10 | P139: 35 | Q139: 80 | R139: 10 | S139: 45 | T139: 90 | U139: 9.99891708 | V139: 9.99891708 | W139: 27165.06988 | X139: 6284.006665 | Y139: 3702.433547 | Z139: 13719.83626 | AA139: 2467.460719 | AB139: 12348.00121 | AC139: 2220.741368 | AE139: 68.78695439 | AF139: 12.37107387 | AH139: =Input!C140*(1-Input!E140) -> 179.5108
A140: 134 | B140: 1441.685921 | C140: 89.5 | D140: 8173.84 | E140: 91 | F140: 74 | G140: 4.61587 | H140: 0.873339 | I140: 0.515679 | J140: 42 | K140: 46.9274 | L140: 14 | M140: 14 | N140: 14 | O140: 10 | P140: 35 | Q140: 80 | R140: 10 | S140: 45 | T140: 90 | U140: 41.6656 | V140: 48.3321 | W140: 151.3770218 | X140: 1174.181099 | Y140: 605.5084186 | Z140: 2794.946614 | AA140: 528.8138272 | AB140: 1630.415337 | AC140: 273.2269994 | AE140: 0.8708209041 | AF140: 0.1459332338 | AH140: =Input!C141*(1-Input!E141) -> 1872.274
A141: 135 | B141: 2347.128004 | C141: 79.1 | D141: 31730.5 | E141: 100 | F141: 100 | G141: 5.76552 | H141: 1.08255 | I141: 0.910229 | J141: 72 | K141: 91.024 | L141: 6 | M141: 31 | N141: 32 | O141: 10 | P141: 35 | Q141: 80 | R141: 10 | S141: 45 | T141: 90 | U141: 51.4576 | V141: 60.2075 | W141: 490.5497528 | X141: 1856.578251 | Y141: 1689.931787 | Z141: 9743.337682 | AA141: 1829.436063 | AB141: 4729.649951 | AC141: 727.9783452 | AE141: 8.057429621 | AF141: 1.240183596 | AH141: =Input!C142*(1-Input!E142) -> 586.9924
A142: 136 | B142: 3094.304001 | C142: 73.32 | D142: 2944.08 | E142: 93 | F142: 77 | G142: 4.23017 | H142: 0.793073 | I142: 1.02656 | J142: 70 | K142: 95.4719 | L142: 33 | M142: 33 | N142: 0 | O142: 10 | P142: 35 | Q142: 80 | R142: 10 | S142: 45 | T142: 90 | U142: 21.214 | V142: 25.9282 | W142: 825.5603074 | X142: 2109.931635 | Y142: 2166.01271 | Z142: 9162.602369 | AA142: 1717.80627 | AB142: 7218.847902 | AC142: 1272.410025 | AE142: 1.344102048 | AF142: 0.2369143862 | AH142: =Input!C143*(1-Input!E143) -> 5370.7588
A143: 137 | B143: 2366.005465 | C143: 79.1 | D143: 31730.5 | E143: 100 | F143: 100 | G143: 5.76552 | H143: 1.08255 | I143: 0.910229 | J143: 72 | K143: 91.024 | L143: 6 | M143: 31 | N143: 32 | O143: 10 | P143: 35 | Q143: 80 | R143: 10 | S143: 45 | T143: 90 | U143: 51.4576 | V143: 60.2075 | W143: 494.4951421 | X143: 1871.510323 | Y143: 1703.523556 | Z143: 9821.701315 | AA143: 1844.149835 | AB143: 4767.689539 | AC143: 733.8333232 | AE143: 10.98448534 | AF143: 1.690710209 | AH143: =Input!C144*(1-Input!E144) -> 434.0385
A144: 138 | B144: 1434.300511 | C144: 86.16 | D144: 7803.82 | E144: 100 | F144: 100 | G144: 4.6469 | H144: 0.879514 | I144: 0.510672 | J144: 44 | K144: 51.0678 | L144: 14.6667 | M144: 14.6667 | N144: 14.6667 | O144: 10 | P144: 35 | Q144: 80 | R144: 10 | S144: 45 | T144: 90 | U144: 41.6657 | V144: 48.3322 | W144: 198.5071907 | X144: 1235.79332 | Y144: 631.0924612 | Z144: 2932.622459 | AA144: 555.054447 | AB144: 1710.724783 | AC144: 286.7844216 | AE144: 15.40822868 | AF144: 2.583022116 | AH144: =Input!C145*(1-Input!E145) -> 111.0267
A145: 139 | B145: 5929.883541 | C145: 74.7 | D145: 3802.74 | E145: 88 | F145: 37 | G145: 4.374 | H145: 0.823823 | I145: 0.92794 | J145: 61 | K145: 81.66 | L145: 0 | M145: 25 | N145: 0 | O145: 10 | P145: 35 | Q145: 80 | R145: 10 | S145: 45 | T145: 90 | U145: 14.344 | V145: 18.4423 | W145: 1500.260536 | X145: 3898.068245 | Y145: 3617.230146 | Z145: 15821.75947 | AA145: 2979.956414 | AB145: 13552.28629 | AC145: 2430.383912 | AE145: 14.14396218 | AF145: 2.536491436 | AH145: =Input!C146*(1-Input!E146) -> 958.1676
A146: 140 | B146: 279.567332 | C146: 90.72 | D146: 23475.7 | E146: 100 | F146: 100 | G146: 5.41086 | H146: 1.02167 | I146: 0.992053 | J146: 90 | K146: 99.2063 | L146: 34 | M146: 51 | N146: 5 | O146: 10 | P146: 35 | Q146: 80 | R146: 10 | S146: 45 | T146: 90 | U146: 28.0552 | V146: 34.2774 | W146: 25.94384841 | X146: 253.6234836 | Y146: 251.610474 | Z146: 1361.429724 | AA146: 257.0630004 | AB146: 979.4778924 | AC146: 168.9484875 | AE146: 1.470941517 | AF146: 0.2537202182 | AH146: =Input!C147*(1-Input!E147) -> 665.885
A147: 141 | B147: 2207.662133 | C147: 79.1 | D147: 31730.5 | E147: 100 | F147: 100 | G147: 5.76552 | H147: 1.08255 | I147: 0.910229 | J147: 72 | K147: 91.024 | L147: 6 | M147: 31 | N147: 32 | O147: 10 | P147: 35 | Q147: 80 | R147: 10 | S147: 45 | T147: 90 | U147: 51.4576 | V147: 60.2075 | W147: 461.4013858 | X147: 1746.260747 | Y147: 1589.516382 | Z147: 9164.39053 | AA147: 1720.731342 | AB147: 4448.615108 | AC147: 684.7220193 | AE147: 3.952159811 | AF147: 0.6083086041 | AH147: =Input!C148*(1-Input!E148) -> 1125.6162
A148: 142 | B148: 15889.08165 | C148: 65.51657094 | D148: 7291.011392 | E148: 100 | F148: 100 | G148: 4.586413838 | H148: 0.865761591 | I148: 1.002224545 | J148: 65.93043926 | K148: 99.12139167 | L148: 2.5786271 | M148: 25.28053741 | N148: 32.72990512 | O148: 10 | P148: 35 | Q148: 80 | R148: 10 | S148: 45 | T148: 90 | U148: 51.84653145 | V148: 60.571165 | W148: 5479.1002 | X148: 10409.98145 | Y148: 10318.51849 | Z148: 48046.085 | AA148: 9069.494481 | AB148: 23135.85643 | AC148: 3575.996014 | AE148: 23.86137834 | AF148: 3.688136383 | AH148: =Input!C149*(1-Input!E149) -> 969.5943
A149: 143 | B149: 13110.98061 | C149: 75.72 | D149: 30097.5 | E149: 100 | F149: 100 | G149: 5.36965 | H149: 1.01441 | I149: 1.05651 | J149: 80 | K149: 100 | L149: 6.53061 | M149: 36.7347 | N149: 36.7347 | O149: 10 | P149: 35 | Q149: 80 | R149: 10 | S149: 45 | T149: 90 | U149: 53.6217 | V149: 62.8053 | W149: 3183.346093 | X149: 9927.63452 | Y149: 9927.63452 | Z149: 56321.10164 | AA149: 10639.92787 | AB149: 26120.76948 | AC149: 3957.489253 | AE149: 32.51444993 | AF149: 4.926179004 | AH149: =Input!C150*(1-Input!E150) -> 803.3588
A150: 144 | B150: 5617.442128 | C150: 35.09892227 | D150: 298.7332926 | E150: 48.30397428 | F150: 40.86931619 | G150: 3.383639616 | H150: 0.5790597336 | I150: 0.1982987289 | J150: 3.348012861 | K150: 9.396911699 | L150: 3.348004382 | M150: 0 | N150: 0 | O150: 10 | P150: 35 | Q150: 80 | R150: 10 | S150: 45 | T150: 90 | U150: 9.995842205 | V150: 9.995842205 | W150: 3645.780482 | X150: 952.3909345 | Y150: 185.2753039 | Z150: 636.3701873 | AA150: 108.9053188 | AB150: 572.7596275 | AC150: 98.019315 | AE150: 0.2857179481 | AF150: 0.04889638901 | AH150: =Input!C151*(1-Input!E151) -> 2004.633
A151: 145 | B151: 6858.039206 | C151: 79.1 | D151: 31730.5 | E151: 100 | F151: 100 | G151: 5.76552 | H151: 1.08255 | I151: 0.910229 | J151: 72 | K151: 91.024 | L151: 6 | M151: 31 | N151: 32 | O151: 10 | P151: 35 | Q151: 80 | R151: 10 | S151: 45 | T151: 90 | U151: 51.4576 | V151: 60.2075 | W151: 1433.330194 | X151: 5424.709012 | Y151: 4937.787131 | Z151: 28468.91679 | AA151: 5345.402647 | AB151: 13819.49546 | AC151: 2127.069348 | AE151: 17.06763757 | AF151: 2.627016942 | AH151: =Input!C152*(1-Input!E152) -> 809.69
